Workbook

Sheet Design Regulator
A1: LM(2)5143/-Q1 Synchronous Buck Controller Design Tool
O2: http://www.ti.com/product/lm5175
A3: About | C3: xx | F3: = Input Box | O3: TERMS OF USE
A5: Step 1: Operating Specifications
D7: Input Voltage – Min, VIN(min) | E7: 11.4 | F7: V
D8: Input Voltage – Nom, VIN(nom) | E8: 12 | F8: V
D9: Input Voltage – Max, VIN(max) | E9: 12.6 | F9: V
D10: Output Voltage, VOUT | E10: 3.3 | F10: V | I10: Output Voltage, VOUT2 | J10: 3.3 | K10: V
D11: Full Load Output Current, IOUT | E11: 7 | F11: A | I11: Full Load Output Current, IOUT2 | J11: 3.5 | K11: A
D12: Switching Frequency, FSW | E12: 2100 | F12: kHz
D13: Frequency Set Resistor, RT | E13: =IF('Standard Value Calculator'!O4/1000>288, "N/A",'Standard Value Calculator'!O4/1000) -> 10.5 | F13: kΩ
D14: Ambient Temperature, TA | E14: 25 | F14: °C
A16: Step 2: Current Sense Resistors
D17: Required IOCP Setpoint at VIN(nom) | E17: 10 | F17: A | I17: Required IOCP Setpoint at VIN(nom) | J17: 10 | K17: A
D18: Recommended Sense Resistance | E18: =Rs_ideal*1000 -> 12.48435788 | F18: mΩ | I18: Recommended Sense Resistance | J18: =Rs2_ideal*1000 -> 7.113838152 | K18: mΩ
D19: Sense Resistance, RS | E19: 7 | F19: mΩ | I19: Sense Resistance, RS2 | J19: 7 | K19: mΩ
D20: Min Inductor Sat Current, ILO(SAT) | E20: ='Variable Management'!B95 -> 10.42857143 | F20: A | I20: Min Inductor Sat Current, ILO2(SAT) | J20: ='Variable Management'!D95 -> 10.42857143 | K20: A
D21: Max power loss in shunt | E21: ='Variable Management'!B105 -> 0.6464946617 | F21: W | I21: Max power loss in shunt RS2 | J21: ='Variable Management'!D105 -> 0.724459538 | K21: W
D22: VIN(min) | E22: ='Variable Management'!B97 -> 19.1965178 | F22: A | I22: VIN(min) | J22: ='Variable Management'!D97 -> 10.17213348 | K22: A
C23: IOUT(typ) at OCP Inception: | D23: VIN(nom) | E23: ='Variable Management'!B98 -> 19.16250855 | F23: A | H23: IOUT2(typ) at OCP Inception: | I23: VIN(nom) | J23: ='Variable Management'!D98 -> 10.16688169 | K23: A
D24: VIN(max) | E24: ='Variable Management'!B99 -> 19.13173198 | F24: A | I24: VIN(max) | J24: ='Variable Management'!D99 -> 10.16212909 | K24: A
A26: Step 3: Buck Inductances
D27: Ch1 Recommended Inductance | E27: =Lopt*1000000 -> 0.4583333333 | F27: µH | I27: Ch2 Recommended Inductance | J27: =Lopt2*1000000 -> 0.4583333333 | K27: µH
D28: Ch1 Inductance, LO1 | E28: 0.68 | F28: µH | I28: Ch2 Inductance, LO2 | J28: 2.2 | K28: µH
D29: Ch1 Inductor DCR | E29: 5.76 | F29: mΩ | I29: Ch2 Inductor DCR | J29: 5 | K29: mΩ
D30: DIL as a % at VIN(nom) | E30: ='Variable Management'!B68*100 -> 48.41812312 | F30: % | I30: DIL2 as a % at VIN(nom) | J30: ='Variable Management'!D68*100 -> 14.95369959 | K30: %
A32: Step 4: Output Capacitors
D33: =IF(MODE=1, "Ch1 Output Voltage Ripple Spec", "Output Voltage Ripple Spec") -> Output Voltage Ripple Spec | E33: 50 | F33: mVpk-pk | I33: Ch2 Output Voltage Ripple Spec | J33: 50 | K33: mVpk-pk
D34: =IF(MODE=1, "Ch1 Minimum Output Capacitance", "Minimum Output Capacitance") -> Minimum Output Capacitance | E34: ='Variable Management'!B121 -> 2.017421797 | F34: µF | I34: Ch2 Minimum Output Capacitance | J34: ='Variable Management'!D121 -> 2.2 | K34: µF
D35: Output Capacitance (derated), COUT | E35: 188 | F35: µF | I35: Ch2 Output Cap (derated), COUT2 | J35: 120 | K35: µF | L35: =CHOOSE(SCH_MODE, "", "** For Single-Output Operation in 2-Phase Mode, tie MODE to VDDA and use FB1 to set VOUT **", "** For Single-Output Operation in 3-Phase Mode, tie both MODE pins to VDDA. Use FB1 of master IC to set VOUT. Connect FB2 of master IC to AGND. Connect FB2 of slave IC to VDDA to configure it as a slave **", "** For Single-Output Operation in 4-Phase Mode, tie both MODE pins to VDDA. Use FB1 of master IC to set VOUT. Connect FB2 of master IC to AGND. Connect FB2 of slave IC to VDDA to configure it as a slave **") -> ** For Single-Output Operation in 2-Phase Mode, tie MODE to VDDA and use FB1 to set VOUT **
D36: =IF(MODE=1, "Ch1 Maximum Permitted ESR", "Maximum Permitted ESR") -> Maximum Permitted ESR | E36: ='Variable Management'!B125 -> 29.50319181 | F36: mΩ | I36: Ch2 Maximum Permitted ESR | J36: ='Variable Management'!D125 -> 95.53168856 | K36: mΩ
D37: =IF(MODE=1, "Ch1 Output Capacitor ESR", "Output Capacitor ESR") -> Output Capacitor ESR | E37: 2 | F37: mΩ | I37: Ch2 Output Capacitor ESR | J37: 2 | K37: mΩ | L37: =CHOOSE(SCH_MODE, "", "** Tie VCCX to GND if not used **", "** Slave controller (CNTRL2) not shown **","** Slave controller (CNTRL2) not shown **") -> ** Tie VCCX to GND if not used ** | Q37: =IF(SCH_MODE=1, "** Tie VCCX to GND if not used **", "") -> 
D38: Resulting Output Voltage Ripple (max) | E38: ='Variable Management'!B127*1000 -> 3.431475761 | F38: mVpk-pk | I38: Resulting Output Voltage Ripple (max) | J38: ='Variable Management'!D127*1000 -> 1.07847261 | K38: mVpk-pk | L38: =IF(OR(SCH_MODE=3, SCH_MODE=4),"** Tie VCCX to GND if not used **", "") -> 
D39: Output Capacitor RMS Current (max) | E39: ='Variable Management'!B114 -> 0.4980832163 | F39: A (rms) | I39: Output Capacitor RMS Current (max) | J39: ='Variable Management'!D114 -> 0.1538305557 | K39: A (rms)
A41: Step 5: Input Capacitors
D42: Input Voltage Ripple Spec | E42: 1000 | F42: mVpk-pk
D43: Minimum Input Capacitance | E43: ='Variable Management'!B145 -> 10 | F43: µF
D44: Input Capacitance, CIN | E44: 40.04 | F44: µF
D45: Maximum Permitted ESR | E45: ='Variable Management'!B150 -> 226.83029 | F45: mΩ
D46: Input Capacitor ESR | E46: 1 | F46: mΩ
D47: Resulting Input Voltage Ripple (max) | E47: ='Variable Management'!B155*1000 -> 14.76896584 | F47: mVpk-pk
D48: Input Capacitor RMS Current (max) | E48: ='Variable Management'!B138 -> 1.75 | F48: A (rms)
A50: Step 6: Soft-start, Hiccup, Dither, DEMB, MODE
D51: Soft-Start Time, tSS | E51: 2 | F51: ms
D52: Soft-Start Capacitance, CSS | E52: =IF(Tss>0.5/1000,Css_u*1000000000,"N/A") -> 68 | F52: nF
D53: Hiccup Fault Time, tRES | E53: 30 | F53: ms
D54: RES Capacitance, CRES | E54: =IF(Tres>1/1000,Cres_u*1000000000,"N/A") -> 470 | F54: nF
D55: Modulating Frequency | E55: 9 | F55: =IF(DITHER=1, "kHz", "") -> 
D56: =IF(DITHER=1, "DITH Capacitance, Cd", "*Tie DITH to VDDA") -> *Tie DITH to VDDA | E56: =IF(DITHER=1,IF(E55>0,'Standard Value Calculator'!O22*1000000000,"N/A"),"") ->  | F56: =IF(DITHER=1, "nF", "") -> 
D57: =IF(DEMB=1, "* Tie DEMB to VDDA", "*Tie DEMB to AGND") -> * Tie DEMB to VDDA
D58: =IF(MODE=2, "* Tie MODE to VDDA", "* Tie MODE to AGND") -> * Tie MODE to VDDA
A60: Step 7: Compensation Design
D61: =IF(MODE=1, "Ch1 Load Pole Frequency", "Load Pole Frequency") -> Load Pole Frequency | E61: =Fp_dominant -> 2545.303096 | F61: Hz | I61: Ch2 Load Pole Frequency | J61: =Fp_dominant_Ch2 -> 1851.642478 | K61: Hz
D62: =IF(MODE=1, "Ch1 ESR Zero Frequency", "ESR Zero Frequency") -> ESR Zero Frequency | E62: =Fesr/1000 -> 423.2844236 | F62: kHz | I62: Ch2 ESR Zero Frequency | J62: =Fesr_Ch2/1000 -> 663.145597 | K62: kHz
D63: =IF(MODE=1, "Ch1 Desired Crossover Frequency", "Desired Crossover Frequency") -> Desired Crossover Frequency | E63: 60 | F63: =" kHz " -> kHz | I63: Ch2 Desired Crossover Frequency | J63: 60 | K63: =" kHz " -> kHz
D64: =IF(MODE=1, "Ch1 Error Amp Pole Frequency", "Error Amp Pole Frequency") -> Error Amp Pole Frequency | E64: =Fp1_u -> 3.031252399 | F64: Hz | I64: Ch2 Error Amp Pole Frequency | J64: =Fp1_u_Ch2 -> 1.657413383 | K64: Hz
D65: =CHOOSE(Ch1_VOUT, "* Tie FB1 to VDDA for Ch1 3.3V Out", "* Tie FB1 to AGND for Ch1 5V Out", IF(MODE=1, "Ch1 Upper Feedback Resistor", "Upper Feedback Resistor")) -> * Tie FB1 to VDDA for Ch1 3.3V Out | E65: 39.3 | F65: kΩ | I65: =CHOOSE(Ch2_VOUT, "* Tie FB2 to VDDA for Ch2 3.3V Out", "* Tie FB2 to AGND for Ch2 5V Out", "Ch2 Upper Feedback Resistor") -> * Tie FB2 to VDDA for Ch2 3.3V Out | J65: 115 | K65: kΩ
D66: =IF(Ch1_VOUT=3, IF(MODE=1,"Ch1 Lower Feedback Resistor","Lower Feedback Resistor"),"") ->  | E66: =IF(Vout=Vref,"OPEN",Rfb2_u/1000) -> 8.66 | F66: =IF(Vout=Vref,"","kΩ") -> kΩ | I66: =IF(Ch2_VOUT=3, "Ch2 Lower Feedback Resistor","") ->  | J66: =IF(Vout2=Vref,"OPEN",Rfb4_u/1000) -> 25.5 | K66: =IF(Vout=Vref,"","kΩ") -> kΩ
A68: Compensation Components
B69: Calculated / | C69: Std Values | D69: =C69 -> Std Values | F69: Actual P/Z Frequencies
A70: RC1 | B70: =Rcea1/1000 -> 13.64330856 | C70: ='Standard Value Calculator'!O30 -> 13.7 | D70: 30.1 | E70: kΩ | F70: =Fp1_u -> 3.031252399 | G70: Hz (FPEA)
A71: CC1 | B71: =Cc1ea*1000000000 -> 1.944236895 | C71: ='Standard Value Calculator'!O31 -> 1.8 | D71: 0.82 | E71: nF | F71: =Fz1_u/1000 -> 6.448219078 | G71: kHz (FZCOMP)
A72: CC2 | B72: =IF(Cc2ea<0, "N/A", Cc2ea*1000000000000) -> 21.19309981 | C72: ='Standard Value Calculator'!O32 -> 22 | D72: 0 | E72: pF | F72: =Fp2_u/1000 -> 830.5647841 | G72: kHz (FPCOMP)
A73: RC2 | B73: =Rcea2/1000 -> 17.41698965 | C73: ='Standard Value Calculator'!O34 -> 17.4 | D73: =C73 -> 17.4 | E73: kΩ | F73: =Fp1_u_Ch2 -> 1.657413383 | G73: Hz (FPEA2)
A74: CC3 | B74: =Cc3ea*1000000000 -> 1.522985568 | C74: ='Standard Value Calculator'!O35 -> 1.5 | D74: 1.5 | E74: nF | F74: =Fz1_u_Ch2/1000 -> 6.097890547 | G74: kHz (FZCOMP2)
A75: CC4 | B75: =IF(Cc4ea<0, "N/A", Cc4ea*1000000000000) -> 7.413451037 | C75: =IF(1, 'Standard Value Calculator'!O36) -> 6.8 | D75: 6.8 | E75: pF | F75: =Fp2_u_Ch2/1000 -> 694.7211342 | G75: kHz (FPCOMP2) | N75: ** Specify Inductor Core Loss ** | O75: 0.3 | P75: W
A77: Efficiency / Power Loss Analyzer
A79: Step 8: Efficiency
F80: =IF(MODE=1, "Ch1 Power MOSFETs", "Power MOSFETs") -> Power MOSFETs | G80: (Q1, Q2) | I80: =IF(MODE=1, "Ch2 Power MOSFETs ", "Power MOSFETs ") -> Power MOSFETs | J80: (Q3, Q4)
E81: NVMFS5H663, NVMFS5C628NL | H81: NVMFS5H663, NVMFS5C628NL
E82: High-side | F82: Low-side | H82: High-side | I82: Low-side
D83: On-State Resistance, RDS(on) | E83: 14 | F83: 14 | G83: mΩ | H83: 6 | I83: 2.5 | J83: mΩ
D84: Total Gate Charge, QG | E84: 7.8 | F84: 7.8 | G84: nC | H84: 8 | I84: 25 | J84: nC
D85: Gate-Drain Charge, QGD | E85: 3.7 | F85: 3.7 | G85: nC | H85: 1.4 | I85: 4.5 | J85: nC
D86: Gate-Source Charge, QGS | E86: 2.9 | F86: 2.9 | G86: nC | H86: 3.8 | I86: 12 | J86: nC
D87: Output Charge, QOSS | F87: 15.2 | G87: nC | I87: 30 | J87: nC
D88: Output Capacitance, COSS | E88: 443 | F88: 443 | G88: pF | H88: 213 | I88: 1700 | J88: pF
D89: Gate Resistance, RG | E89: 1 | F89: 1 | G89: Ω | H89: 0.5 | I89: 0.5 | J89: Ω
D90: Transconductance, gFS | E90: 40 | F90: 40 | G90: S | H90: 64 | I90: 280 | J90: S
D91: Gate-Source Threshold Voltage, VTH | E91: 2.1 | F91: 2.1 | G91: V | H91: 2.9 | I91: 3 | J91: V
D92: Body Diode Forward Voltage, VBD | E92: 0.82 | F92: 0.82 | G92: V | H92: 0.7 | I92: 0.7 | J92: V
D93: Body Diode Rev Recovery Charge, QRR | F93: 9.7 | G93: nC | I93: 60 | J93: nC
D94: Thermal Resistance, θJA | E94: 50 | F94: 50 | G94: °C/W | H94: 50 | I94: 38 | J94: °C/W
A96: External Schottky Diode (if applicable) | E96: =CHOOSE(MODE, "Ch1", "") ->  | F96: =CHOOSE(MODE, "Ch2", "") -> 
D97: Schottky Fwd Voltage, VFWDsch | E97: 0.5 | F97: 0 | G97: V
D98: Schottky Rev Recovery Charge, QRRsch | E98: 0 | F98: 0 | G98: nC
A102: Step 9: IC Power Loss
D103: IC Power Dissipation | E103: ='Variable Management'!B322 -> 0.3276 | F103: W
D104: IC Junction Temperature (estimate) | E104: ='Variable Management'!B324 -> 36.40048 | F104: °C

Sheet BOM & Schematic
A37: ** Tie DEMB to VDDA for FPWM, AGND for DCM ** | I37: =IF(OR(SCH_MODE=3, SCH_MODE=4), "** Slave controller (CNTRL2) not shown **","** Tie VCCX to GND if not used **") -> ** Tie VCCX to GND if not used **
A38: ** Tie MODE to VDDA for Single, AGND for Dual Outputs ** | I38: =IF(OR(SCH_MODE=3, SCH_MODE=4),"** Tie VCCX to GND if not used **", "") -> 
A39: ** For Dual-Output Operation, tie FB1/FB2 to to VDDA for Fixed 3.3V, AGND for Fixed 5V Output **
A40: ** For Single-Output Operation in 2-Phase Mode, tie MODE to VDDA and use FB1 to set VOUT. Connect FB2 to AGND to disable EA of channel 2 **
A41: ** For Single-Output Operation in 3-Phase or 4-Phase Mode, tie all MODE pins to VDDA. Use FB1 of master IC to set VOUT. Connect FB2 of master IC to AGND. Connect FB2 of slave IC to VDDA to configure it as a slave **
A42: =CHOOSE(MODE, "VIN = "&VIN_min&" V to "&VIN_max&" V, VOUT1 = "& Vout &" V, IOUT1 = " &Iout &"A"&", VOUT2 = "& Vout2 &" V, IOUT2 = " &Iout2 & " A, Fsw = " & Fsw/1000 &" kHz, Current Limit = "&ROUNDUP(Ilimit_DC,0)&" A", "VIN = "&VIN_min&" V to "&VIN_max&" V, VOUT = "& Vout &" V, IOUT = " &Iout & " A, Fsw = " & Fsw/1000 &" kHz, Current Limit = "&ROUNDUP(Ilimit_DC,0)&" A") -> VIN = 11.4 V to 12.6 V, VOUT = 3.3 V, IOUT = 7 A, Fsw = 2100 kHz, Current Limit = 10 A
A43: High Efficiency Synchronous Buck Regulator BOM
A44: Count | B44: Ref Des | C44: Value | D44: Description | H44: Size | I44: Part Number | J44: MFR
A45: 2 | B45: CBOOT1, CBOOT2 | C45: 0.1 | D45: =C45 -> 0.1 | H45: 0603 | I45: Std | J45: Std
A46: 1 | B46: CC1 | C46: ='Design Regulator'!D71 -> 0.82 | D46: 0.82 | H46: 0603 | I46: Std | J46: Std
A47: 1 | B47: CC2 | C47: ='Design Regulator'!D72 -> 0 | D47: 0 | H47: 0603 | I47: Std | J47: Std
A48: 1 | B48: CC3 | C48: =IF(MODE=1, 'Variable Management'!E354, "N/A") -> N/A | D48: =C48 -> N/A | H48: =IF(MODE=1, "0603", "-") -> - | I48: =IF(MODE=1, "Std", "-") -> - | J48: =IF(MODE=1, "Std", "-") -> -
A49: 1 | B49: CC4 | C49: =IF(MODE=1, 'Variable Management'!E355, "N/A") -> N/A | D49: N/A | H49: =IF(MODE=1, "0603", "-") -> - | I49: =IF(MODE=1, "Std", "-") -> - | J49: =IF(MODE=1, "Std", "-") -> -
A50: 1 | B50: CRES | C50: =Cres_u*1000000000 -> 470 | D50: =C50 -> 470 | H50: 0603 | I50: Std | J50: Std
A51: 1 | B51: CDITH | C51: =Cdither*1000000000 -> 10 | D51: =C51 -> 10 | H51: 0603 | I51: Std | J51: Std
A52: =ROUNDUP('Design Regulator'!E44/10,0) -> 5 | B52: CIN | C52: 10 | D52: =C52 -> 10 | H52: 1210 | I52: Std | J52: Std
A53: =ROUNDUP('Design Regulator'!E35/47,0) -> 4 | B53: COUT | C53: 47 | D53: =C53 -> 47 | H53: 1210 | I53: Std | J53: Std
A54: 2 | B54: CSS1, CSS2 | C54: ='Design Regulator'!E52 -> 68 | D54: =C54 -> 68 | H54: 0603 | I54: Std | J54: Std
A55: 3 | B55: CVCC1, CVCC2, CVCCX | C55: 2.2 | D55: 2.2 | H55: 0603 | I55: Std | J55: Std
A56: 1 | B56: CVDDA | C56: 0.47 | D56: 0.47 | H56: 0603 | I56: Std | J56: Std
A57: 2 | B57: DBOOT1, DBOOT2 | C57: See description | D57: Schottky Diode, 60V, 200mA | H57: - | I57: - | J57: Various
A58: 1 | B58: LO1 | C58: ='Design Regulator'!E28 -> 0.68 | D58: ="Inductor, "&Lf*1000000&"µH, "&Rdcr*1000&"mΩ, >"&ROUNDUP(Ilimit_DC*1.3/SCH_MODE,0)&"A" -> Inductor, 0.68µH, 5.76mΩ, >7A | H58: - | I58: - | J58: Various
A59: 1 | B59: LO2 | C59: =IF(MODE = 1, 'Design Regulator'!J28, 'Design Regulator'!E28) -> 0.68 | D59: =IF(MODE=1, "Inductor, "&Lo_2*1000000&"µH, "&Rdcr2*1000&"mΩ, >"&ROUNDUP(Ilimit2_DC*1.3,0)&"A", "Inductor, "&Lf*1000000&"µH, "&Rdcr*1000&"mΩ, >"&ROUNDUP(Ilimit_DC*1.3/SCH_MODE,0)&"A") -> Inductor, 0.68µH, 5.76mΩ, >7A | H59: - | I59: - | J59: Various
A60: 2 | B60: Q1, Q2 | C60: See description | D60: ='Design Regulator'!E83 -> 14 | H60: Std | I60: ='Design Regulator'!E81 -> NVMFS5H663, NVMFS5C628NL | J60: -
A61: 2 | B61: Q3, Q4 | C61: See description | D61: ='Design Regulator'!H83 -> 6 | H61: Std | I61: =IF(MODE=1, 'Design Regulator'!H81, 'Design Regulator'!E81) -> NVMFS5H663, NVMFS5C628NL | J61: -
A62: 1 | B62: RC1 | C62: ='Design Regulator'!D70 -> 30.1 | D62: =C62 -> 30.1 | H62: 0603 | I62: Std | J62: Std
A63: 1 | B63: RC2 | C63: =IF(MODE=1, 'Variable Management'!E353, "N/A") -> N/A | D63: =C63 -> N/A | H63: =IF(MODE=1, "0603", "-") -> - | I63: =IF(MODE=1, "Std", "-") -> - | J63: =IF(MODE=1, "Std", "-") -> -
A64: 1 | B64: RS1 | C64: =Rs*1000 -> 7 | D64: 7 | H64: 0508 | I64: Std | J64: Std
A65: 1 | B65: RS2 | C65: =IF(MODE=1, Rs_Ch2*1000, Rs*1000) -> 7 | D65: =C65 -> 7 | H65: 0508 | I65: Std | J65: Std
A66: 1 | B66: RT | C66: ='Design Regulator'!E13 -> 10.5 | D66: 10.5 | H66: 0603 | I66: Std | J66: Std
A67: 1 | B67: RFB1 | C67: ='Design Regulator'!E65 -> 39.3 | D67: 39.3 | H67: 0603 | I67: Std | J67: Std
A68: 1 | B68: RFB2 | C68: ='Design Regulator'!E66 -> 8.66 | D68: 8.66 | H68: 0603 | I68: Std | J68: Std
A69: 1 | B69: RFB3 | C69: =IF(MODE=1, 'Design Regulator'!J65, "N/A") -> N/A | D69: =C69 -> N/A | H69: =IF(MODE=1, "0603", "-") -> - | I69: =IF(MODE=1, "Std", "-") -> - | J69: =IF(MODE=1, "Std", "-") -> -
A70: 1 | B70: RFB4 | C70: =IF(MODE=1, 'Design Regulator'!J66, "N/A") -> N/A | D70: N/A | H70: =IF(MODE=1, "0603", "-") -> - | I70: =IF(MODE=1, "Std", "-") -> - | J70: =IF(MODE=1, "Std", "-") -> -
A71: 2 | B71: RPGOOD1, RPGOOD2 | C71: 100 | D71: 100 | H71: 0603 | I71: Std | J71: Std
A72: 2 | B72: RPG1, RPG2 | C72: 100 | D72: 100 | H72: 0603 | I72: Std | J72: Std
A73: 1 | B73: RDEMB | C73: 100 | D73: 100 | H73: 0603 | I73: Std | J73: Std
A74: 1 | B74: RVIN | C74: 2.2 | D74: 2.2 | H74: 0603 | I74: Std | J74: Std
A75: 1 | B75: U1 | C75: =CHOOSE(VARIANT, "LM5143", "LM5143-Q1", "LM5143A-Q1","LM25143","LM25143-Q1") -> LM25143-Q1 | D75: =CHOOSE(VARIANT, "IC, LM5143, Buck PWM Controller, 3.5V–65V Input","IC, LM5143-Q1, Buck PWM Controller, 3.5V–65V Input","IC, LM5143A-Q1, Buck PWM Controller, 3.5V–65V Input","IC, LM25143, Buck PWM Controller, 3.5V–42V Input","IC, LM25143-Q1, Buck PWM Controller, 3.5V–42V Input") -> IC, LM25143-Q1, Buck PWM Controller, 3.5V–42V Input | H75: VQFN-40 | I75: =CHOOSE(VARIANT, "LM5143RHAR", "LM5143QRWGRQ1", "LM5143QRHARQ1", "LM25143RHAR", "LM25143QRHARQ1") -> LM25143QRHARQ1 | J75: TI
A78: NOTES:
A79: ** For information on TI NexFETTM MOSFETs, see ** | D79: http://www.ti.com/nexfet | E79: **
A80: ** Inductor saturation current should be higher than the peak inductor current at the OCP setpoint for all input voltages and operating temperatures **
A81: ** Effective input and output capacitances should be appropriately derated for applied voltage and temperature, particularly with ceramics **

Sheet EVM
A1: LM(2)5143/-Q1 Quickstart Design Tool
B6: LM5143-Q1EVM-2100 PCB Layout

Sheet Variable Management (hidden)
A1: EXCEL Variables Names/Calculations
B2: Input from user =
B3: Output =
B4: Constant
A5: Variable Name | B5: Value | C5: STD Units | E5: Notes | I5: Iteration
A6: Step 1: Operational Specs
A7: VIN_min | B7: ='Design Regulator'!E7 -> 11.4 | C7: V | D7: Minimum input voltage | I7: 1
A8: VIN_nom | B8: ='Design Regulator'!E8 -> 12 | C8: V | D8: Nominal input voltage | K8: =CHOOSE(SCH_MODE, "Efficiency vs. IOUT (Ch1)", "Efficiency vs. IOUT - 2 Ph", "Efficiency vs. IOUT - 3 Ph", "Efficiency vs. IOUT - 4 Ph") -> Efficiency vs. IOUT - 2 Ph | L8: 1 | N8: DITHER Enabled | O8: 1 | T8: Dual Outputs | U8: 1 | W8: FPWM | X8: 1 | Z8: =CHOOSE(SCH_MODE, "Bode Plot (Ch1)", "Bode Plot - 2 Ph", "Bode Plot - 3 Ph", "Bode Plot - 4 Ph") -> Bode Plot - 2 Ph | AA8: 1
A9: VIN_max | B9: ='Design Regulator'!E9 -> 12.6 | C9: V | D9: Maximum input voltage | K9: =IF(MODE=1, "Efficiency vs. IOUT (Ch2)", "N/A - Do Not Use") -> N/A - Do Not Use | L9: 2 | N9: DITHER Disabled | O9: 2 | T9: Single Output – 2 Phases | U9: 2 | W9: DEM | X9: 2 | Z9: =IF(MODE=1, "Bode Plot (Ch2)", "N/A - Do Not Use") -> N/A - Do Not Use | AA9: 2
K10: PLOT_TYPE | L10: 1 | N10: DITHER Yes/No | O10: 2 | P10: 1 = Yes, 2 = No | T10: Single Output – 3 Phases | U10: 3 | W10: FPWM/DEM | X10: 1 | Z10: BODE_PLOT_TYPE | AA10: 1
A11: Vout | B11: ='Design Regulator'!E10 -> 3.3 | C11: V | D11: Output voltage - channel 1 | T11: Single Output – 4 Phases | U11: 4
A12: Iout | B12: ='Design Regulator'!E11 -> 7 | C12: A | D12: Output current - channel 1 | I12: 1 | T12: Single/Dual Yes/No | U12: 2
A13: Vout2 | B13: ='Design Regulator'!J10 -> 3.3 | C13: V | D13: Output voltage - channel 2 | I13: 1 | K13: 3.3V | L13: 1 | N13: 3.3V | O13: 1 | T13: MODE (Single/Dual), DUAL = 1, SINGLE = 2 | U13: =IF(U12=1, 1, 2) -> 2 | W13: VCCX Connected | X13: 1
A14: Iout2 | B14: ='Design Regulator'!J11 -> 3.5 | C14: A | D14: Output current - channel 2 | K14: 5V | L14: 2 | N14: 5V | O14: 2 | T14: SINGLE OUTPUT (1 = YES) | U14: =IF(U12=1, 2, 1) -> 1 | W14: No External VCC | X14: 2
K15: Adjustable | L15: 3 | N15: Adjustable | O15: 3 | T15: Number of Phases | U15: =SCH_MODE -> 2 | W15: Ext_VCC | X15: 1 | Z15: Shunt current sensing | AA15: 1
A16: Rout | B16: =Vout/Iout -> 0.4714285714 | C16: W | D16: Load resistance - Channel 1 | K16: Ch1 Output Setting | L16: =IF(Vout=3.3, 1, IF(Vout=5, 2, 3)) -> 1 | N16: Ch2 Output Setting | O16: =IF(Vout2=3.3, 1, IF(Vout2=5, 2, 3)) -> 1 | Z16: Inductor DCR current sensing | AA16: 2
A17: Rout2 | B17: =Vout2/Iout2 -> 0.9428571429 | C17: W | Z17: SENSING_TYPE | AA17: 1
A18: Pout | B18: =CHOOSE(MODE, Vout*Iout+Vout2*Iout2, Vout*Iout) -> 23.1 | C18: W | D18: Output power
AA19: =SENSING_TYPE -> 1
A20: Efficiency | B20: 0.9 | D20: Estimate of efficiency | X20: LM5143 | Y20: 1
A21: Pin | B21: =Pout/Efficiency -> 25.66666667 | C21: W | D21: Calculate input power assuming finite efficiency | L21: =Vout -> 3.3 | X21: LM5143-Q1 | Y21: 2
X22: LM5143A-Q1 | Y22: 3
A23: Iin_Vinmin | B23: =Pin/VIN_min -> 2.251461988 | C23: A | X23: LM25143 | Y23: 4
A24: Iin_Vinnom | B24: =Pin/VIN_nom -> 2.138888889 | C24: A | D24: Input currents at min, nom, max Vin | X24: LM25143-Q1 | Y24: 5
A25: Iin_Vinmax | B25: =Pin/VIN_max -> 2.037037037 | C25: A | W25: VARIANT | X25: =CHOOSE(VARIANT, "LM5143", "LM5143-Q1", "LM5143A-Q1", "LM25143", "LM25143-Q1") -> LM25143-Q1 | Y25: 5
W26: VIN-MAX | X26: =CHOOSE(VARIANT, 65, 65, 65, 42, 42) -> 42 | Y26: V
A27: Fsw | B27: ='Design Regulator'!E12*1000 -> 2100000 | C27: Hz | D27: Nominal switching frequency - determines RT resistor (SYNCIN must be 80-120% of this) | W27: VOUT-MAX | X27: =CHOOSE(VARIANT, 55, 55, 55, 36, 36) -> 36 | Y27: V
A28: Tsw | B28: =1/Fsw -> 4.761904762e-07 | C28: sec | D28: Switching period | I28: 1
A29: Vref | B29: 0.6 | C29: V | D29: Reference voltage
A30: Rt | B30: =22*1000/(Fsw/1000000) -> 10476.19048 | C30: W | D30: Frequency set resistor
A33: Step 2: Buck Inductor | B33: Channel 1 | D33: Channel 2
A34: Don1 | B34: =Vout/VIN_nom -> 0.275 | F34: Ideal Duty Cycle at VIN(nom)
A35: Doff1 | B35: =1-34:34 -> 0.725 | F35: Ideal 1- Duty Cycle at VIN(nom)
A37: D_Vinmin | B37: =Vout/VIN_min -> 0.2894736842 | D37: =Vout2/VIN_min -> 0.2894736842
A38: D_Vinnom | B38: =Vout/VIN_nom -> 0.275 | D38: =Vout2/VIN_nom -> 0.275
A39: D_Vinmax | B39: =Vout/VIN_max -> 0.2619047619 | D39: =Vout2/VIN_max -> 0.2619047619
A41: L_Vinnom | B41: =(VIN_nom-Vout)*D1_Vinnom/(Fsw*(Iout/Number_of_Phases)*0.35) -> 9.300291545e-07 | C41: H | D41: =(VIN_nom-Vout2)*D2_Vinnom/(Fsw*Iout2*0.35) -> 9.300291545e-07 | E41: H | F41: Calculated inductance for 35% ripple at VIN(nom)
A42: L_slopecomp | B42: =1000*Vout*Rs/24/Fsw -> 4.583333333e-07 | C42: H | D42: =1000*Vout2*Rs_Ch2/24/Fsw -> 4.583333333e-07 | E42: H | F42: Calculated inductance based on one times inductor downslope
A44: Lopt | B44: =B42 -> 4.583333333e-07 | C44: H | D44: =D42 -> 4.583333333e-07 | E44: H | F44: min of calculated inductances at VIN(min) and VIN(nom)
A46: Lo | B46: ='Design Regulator'!E28/1000000 -> 6.8e-07 | C46: H | D46: ='Design Regulator'!J28/1000000 -> 2.2e-06 | E46: H | F46: Chosen inductance
A47: Rdcr | B47: ='Design Regulator'!E29/1000 -> 0.00576 | C47: W | D47: ='Design Regulator'!J29/1000 -> 0.005 | E47: W | F47: Chosen inductor DCR
A49: Don2 | B49: =(Vout+Iout*(Rdcr+Rs))/(Vin+Iout*Rs) -> 0.2812947133
A50: Doff2 | B50: =1-_Don2 -> 0.7187052867
A52: D_Vinmin_2 | B52: =CHOOSE(MODE, (Vout+Iout*(Rdcr+Rs))/(VIN_min+Iout*Rs), (Vout+Iout/Number_of_Phases*(Rdcr+Rs))/(VIN_min+Iout/Number_of_Phases*Rs)) -> 0.2927620465 | D52: =(Vout2+Iout2*(Rdcr2+Rs_Ch2))/(VIN_min+Iout2*Rs_Ch2) -> 0.2925292135 | F52: Duty cycles adjusted for DCR/shunt voltage drops
A53: D_Vinnom_2 | B53: =CHOOSE(MODE, (Vout+Iout*(Rdcr+Rs))/(VIN_nom+Iout*Rs), (Vout+Iout/Number_of_Phases*(Rdcr+Rs))/(VIN_nom+Iout/Number_of_Phases*Rs)) -> 0.2781537694 | D53: =(Vout2+Iout2*(Rdcr2+Rs_Ch2))/(VIN_nom+Iout2*Rs_Ch2) -> 0.2779325544 | F53: need to include RDS(on) later
A54: D_Vinmax_2 | B54: =CHOOSE(MODE, (Vout+Iout*(Rdcr+Rs))/(VIN_max+Iout*Rs), (Vout+Iout/Number_of_Phases*(Rdcr+Rs))/(VIN_max+Iout/Number_of_Phases*Rs)) -> 0.2649340568 | D54: =(Vout2+Iout2*(Rdcr2+Rs_Ch2))/(VIN_max+Iout2*Rs_Ch2) -> 0.2647233554
A56: Iripple_Vinmin | B56: =MAX(0, (VIN_min-Vout)*D1_Vinmin_2/(Fsw*Lf)) -> 1.660625054 | C56: A | D56: =MAX(0.1, (VIN_min-Vout2)*D2_Vinmin_2/(Fsw*Lo_2)) -> 0.5128758939 | E56: A
A57: Iripple_Vinnom | B57: =MAX(0, (VIN_nom-Vout)*D1_Vinnom_2/(Fsw*Lf)) -> 1.694634309 | C57: A | D57: =MAX(0, (VIN_nom-Vout2)*D2_Vinnom_2/(Fsw*Lo_2)) -> 0.5233794855 | E57: A
A58: Iripple_Vinmax | B58: =MAX(0, (VIN_max-Vout)*D1_Vinmax_2/(Fsw*Lf)) -> 1.725410874 | C58: A | D58: =MAX(0, (VIN_max-Vout2)*D2_Vinmax_2/(Fsw*Lo_2)) -> 0.5328846764 | E58: A
A60: Ishunt_rms_Vinmin | B60: =SQRT((Iout/Number_of_Phases)^2+(Iripple_Vinmin^2)/12) -> 3.532676931 | C60: A | D60: =SQRT(Iout2^2+(Iripple2_Vinmin^2)/12) -> 3.503130049 | E60: A
A61: Ishunt_rms_Vinnom | B61: =SQRT((Iout/Number_of_Phases)^2+(Iripple_Vinnom^2)/12) -> 3.53402256 | C61: A | D61: =SQRT(Iout2^2+(Iripple2_Vinnom^2)/12) -> 3.503259507 | E61: A
A62: Ishunt_rms_Vinmax | B62: =SQRT((Iout/Number_of_Phases)^2+(Iripple_Vinmax^2)/12) -> 3.535263341 | C62: A | D62: =SQRT(Iout2^2+(Iripple2_Vinmax^2)/12) -> 3.503378918 | E62: A
A63: Max shunt power loss at full load | B63: =B61^2*Rs -> 0.08742520817 | C63: W | D63: =D61^2*Rs -> 0.08590979022 | E63: W | F63: Note this is power loss at full load - not loss near OCP!
A65: Max inductor ripple current | B65: =MAX(B56:B58) -> 1.725410874 | C65: A | D65: =MAX(D56:D58) -> 0.5328846764 | E65: A | F65: Ripple current at Vin(max)
B67: =B56/(Iout/Number_of_Phases) -> 0.474464301 | D67: =D56/Iout2 -> 0.1465359697
A68: % ripple current | B68: =B57/(Iout/Number_of_Phases) -> 0.4841812312 | D68: =D57/Iout2 -> 0.1495369959
B69: =B58/(Iout/Number_of_Phases) -> 0.4929745355 | D69: =D58/Iout2 -> 0.1522527647
A71: Inductor copper temerature | B71: 100 | C71: °C | D71: 100 | E71: °C
A72: DCR at hot | B72: =Rdcr*(1+0.0039*(B71-25)) -> 0.0074448 | C72: W | D72: =Rdcr2*(1+0.0039*(D71-25)) -> 0.0064625 | E72: W
A75: Step 3: Sense Resistors, Slope Comp, Current Limit
A77: Ilimit_DC | B77: ='Design Regulator'!E17 -> 10 | C77: A | D77: ='Design Regulator'!J17 -> 10 | E77: A | F77: Chosen OCP level - based on output current
A79: Ilimit_inductor_Vinmin | B79: =CHOOSE(MODE, Ilimit_DC+Iripple_Vinmin/2, Ilimit_DC/Number_of_Phases+Iripple_Vinmin/2) -> 5.830312527 | C79: A | D79: =Ilimit2_DC+Iripple2_Vinmin/2 -> 10.25643795 | E79: A | F79: Peak inductor current at current limit inception
A80: Ilimit_inductor_Vinnom | B80: =CHOOSE(MODE, Ilimit_DC+Iripple_Vinnom/2, Ilimit_DC/Number_of_Phases+Iripple_Vinnom/2) -> 5.847317155 | C80: A | D80: =Ilimit2_DC+Iripple2_Vinnom/2 -> 10.26168974 | E80: A
A81: Ilimit_inductor_Vinmax | B81: =CHOOSE(MODE, Ilimit_DC+Iripple_Vinmax/2, Ilimit_DC/Number_of_Phases+Iripple_Vinmax/2) -> 5.862705437 | C81: A | D81: =Ilimit2_DC+Iripple2_Vinmax/2 -> 10.26644234 | E81: A
A84: CS threshold_min | B84: 0.066 | C84: V
A85: CS threshold | B85: 0.073 | C85: V
A86: CS threshold_max | B86: 0.08 | C86: V
F87: =SENSING_TYPE -> 1
A88: Shunt required to get OCP at VIN(min) | B88: =Buck_CS_threshold/B79 -> 0.01252076963 | C88: W | D88: =Buck_CS_threshold/D79 -> 0.007117480784 | E88: W
A89: Shunt required to get OCP at VIN(nom) | B89: =Buck_CS_threshold/B80 -> 0.01248435788 | C89: W | D89: =Buck_CS_threshold/D80 -> 0.007113838152 | E89: W
A90: Shunt required to get OCP at VIN(max) | B90: =Buck_CS_threshold/B81 -> 0.01245158925 | C90: W | D90: =Buck_CS_threshold/D81 -> 0.007110544977 | E90: W
A92: Rs_ideal | B92: =B89 -> 0.01248435788 | C92: W | D92: =D89 -> 0.007113838152 | E92: W | F92: Ideal Rs for the required OCP -- based on 73mV CL threshold
A93: Rs | B93: =CHOOSE(SENSING_TYPE, 'Design Regulator'!E19/1000, Rdcr) -> 0.007 | C93: W | D93: =CHOOSE(SENSING_TYPE, 'Design Regulator'!J19/1000, Rdcr2) -> 0.007 | E93: W | F93: Selected (starndard value) current limit sense resistor
A95: Current limit - peak | B95: =Buck_CS_threshold/Rs -> 10.42857143 | C95: A | D95: =Buck_CS_threshold/Rs_Ch2 -> 10.42857143 | E95: A | F95: Peak inductor current limit = min sat current
A97: Iout_OCP_Vinmin | B97: =Number_of_Phases*(Buck_CS_threshold/Rs-Iripple_Vinmin/2) -> 19.1965178 | C97: A | D97: =Buck_CS_threshold/Rs_Ch2-Iripple2_Vinmin/2 -> 10.17213348 | E97: A | F97: Current limit setpoints (i.e. IOUT) after standard components are selected
A98: Iout_OCP_Vinnom | B98: =Number_of_Phases*(Buck_CS_threshold/Rs-Iripple_Vinnom/2) -> 19.16250855 | C98: A | D98: =Buck_CS_threshold/Rs_Ch2-Iripple2_Vinnom/2 -> 10.16688169 | E98: A
A99: Iout_OCP_Vinmax | B99: =Number_of_Phases*(Buck_CS_threshold/Rs-Iripple_Vinmax/2) -> 19.13173198 | C99: A | D99: =Buck_CS_threshold/Rs_Ch2-Iripple2_Vinmax/2 -> 10.16212909 | E99: A
A101: Irms_OCP_Vinmin | B101: =SQRT((Iout_OCP_Vinmin/Number_of_Phases)^2+(Iripple_Vinmin^2)/12) -> 9.610222695 | C101: A | D101: =SQRT(Iout2_OCP_Vinmin^2+(Iripple2_Vinmin^2)/12) -> 10.17321088 | E101: A
A102: Irms_OCP_Vinnom | B102: =SQRT((Iout_OCP_Vinnom/Number_of_Phases)^2+(Iripple_Vinnom^2)/12) -> 9.593734878 | C102: A | D102: =SQRT(Iout2_OCP_Vinnom^2+(Iripple2_Vinnom^2)/12) -> 10.16800425 | E102: A
A103: Irms_OCP_Vinmax | B103: =SQRT((Iout_OCP_Vinmax/Number_of_Phases)^2+(Iripple_Vinmax^2)/12) -> 9.578824513 | C103: A | D103: =SQRT(Iout2_OCP_Vinmax^2+(Iripple2_Vinmax^2)/12) -> 10.16329334 | E103: A
A105: Pshunt_Vinmin | B105: =B101^2*Rs -> 0.6464946617 | C105: W | D105: =D101^2*Rs_Ch2 -> 0.724459538 | E105: W | F105: Max power dissipations in shunt
A106: Pshunt_Vinnom | B106: =B102^2*Rs -> 0.6442782424 | C106: W | D106: =D102^2*Rs_Ch2 -> 0.7237181727 | E106: W
A107: Pshunt_Vinmax | B107: =B103^2*Rs -> 0.6422771534 | C107: W | D107: =D103^2*Rs_Ch2 -> 0.7230477204 | E107: W
A110: Step 4: Output Capacitor
A111: Icoutrms_VINmin | B111: =Iripple_Vinmin/SQRT(12) -> 0.4793811608 | C111: A | D111: =Iripple2_Vinmin/SQRT(12) -> 0.1480545177 | E111: A | F111: Output Cap RMS current
A112: Icoutrms_VINnom | B112: =Iripple_Vinnom/SQRT(12) -> 0.4891987873 | C112: A | D112: =Iripple2_Vinnom/SQRT(12) -> 0.1510866434 | E112: A
A113: Icoutrms_VINmax | B113: =Iripple_Vinmax/SQRT(12) -> 0.4980832163 | C113: A | D113: =Iripple2_Vinmax/SQRT(12) -> 0.1538305557 | E113: A
A114: Max Cout rms current | B114: =MAX(B111:B113) -> 0.4980832163 | C114: A | D114: =MAX(D111:D113) -> 0.1538305557 | E114: A
A116: Vripple1 | B116: ='Design Regulator'!E33/1000 -> 0.05 | C116: V | D116: ='Design Regulator'!J33/1000 -> 0.05 | E116: V | F116: Output voltage ripple spec(pk-pk)
A118: Output Ripple Spec (pk-pk) | B118: =Vo1_ripple*1000 -> 50 | C118: mV | D118: =Vo2_ripple*1000 -> 50 | E118: mV | F118: Vout ripple spec at Vin(nom)
A120: Coutmin | B120: =Iripple_Vinnom/(Fsw*8*Vo1_ripple) -> 2.017421797e-06 | C120: F | D120: =Iripple2_Vinnom/(Fsw*8*Vo2_ripple) -> 6.230708161e-07 | E120: F | F120: Minimum output capacitnace | H120: =Vo2_ripple -> 0.05 | I120: 1
A121: Reported Coutmin | B121: =IF(Cout_min*1000000<2, 2.2,Cout_min*1000000) -> 2.017421797 | C121: uF | D121: =IF(Cout2_min*1000000<2, 2.2,Cout2_min*1000000) -> 2.2 | E121: uF
A122: Cout | B122: ='Design Regulator'!E35/1000000 -> 0.000188 | C122: F | D122: ='Design Regulator'!J35/1000000 -> 0.00012 | E122: F | F122: Chosen output capacitance | I122: 1
A123: Resrmax | B123: =SQRT((Vo1_ripple/Iripple_Vinnom)^2-(1/(Fsw*Cout*8))^2) -> 0.02950319181 | C123: W | D123: =SQRT((Vo2_ripple/Iripple2_Vinnom)^2-(1/(Fsw*Cout2*8))^2) -> 0.09553168856 | E123: W | F123: Max ESR before ripple exceeds Vripple1 | I123: 1
A125: Reported Cout ESR max | B125: =IF(OR(CoutEsrMax>0.3, CoutEsrMax<0, (ISERROR(CoutEsrMax))), "N/A", CoutEsrMax*1000) -> 29.50319181 | C125: mΩ | D125: =IF(OR(Cout2EsrMax>0.3, Cout2EsrMax<0, (ISERROR(Cout2EsrMax))), "N/A", Cout2EsrMax*1000) -> 95.53168856 | E125: mΩ
A126: CoutEsr | B126: ='Design Regulator'!E37/1000 -> 0.002 | C126: W | D126: ='Design Regulator'!J37/1000 -> 0.002 | E126: W | F126: Chosen ESR | I126: 1 | K126: =ISERROR(CoutEsrMax) -> FALSE | L126: =ISERROR(B125) -> FALSE
A127: Vripple | B127: =Iripple_Vinnom*SQRT(Cout_ESR^2+(1/(8*Fsw*Cout))^2) -> 0.003431475761 | C127: Vp-p | D127: =Iripple2_Vinnom*SQRT(Cout2_ESR^2+(1/(8*Fsw*Cout2))^2) -> 0.00107847261 | E127: Vp-p | L127: =OR(CoutEsrMax>0.3,CoutEsrMax<0) -> FALSE
K128: =OR(TRUE, FALSE, TRUE) -> TRUE
A129: Step 5: Input Capacitor
K130: Two channels operating at full load
A131: Icinrms_VINmin | B131: =SQRT(D1_Vinmin_2*(Iout^2*(1-D1_Vinmin_2)+Iripple_Vinmin^2/12)) -> 3.195754631 | C131: A | D131: =SQRT(D2_Vinmin_2*(Iout2^2*(1-D2_Vinmin_2)+Iripple2_Vinmin^2/12)) -> 1.594246444 | E131: A | F131: Calculate input cap rms current with one output unloaded | K131: =SQRT(Iout^2*D1_Vinmin*(1-D1_Vinmin)+Iout2^2*D2_Vinmin*(1-D2_Vinmin)-2*Iout*Iout2*D1_Vinmin*D2_Vinmin) -> 2.914080109 | L131: A | M131: =SQRT(Iout^2*D1_Vinmin*(1-D1_Vinmin)+Iout2^2*D2_Vinmin*(1-D2_Vinmin)-2*Iout*Iout2*(0.5-D2_Vinmin*(1-D1_Vinmin))) ->  | N131: A
A132: Icinrms_VINnom | B132: =SQRT(D1_Vinnom_2*(Iout^2*(1-D1_Vinnom_2)+Iripple_Vinnom^2/12)) -> 3.147220161 | C132: A | D132: =SQRT(D2_Vinnom_2*(Iout2^2*(1-D2_Vinnom_2)+Iripple2_Vinnom^2/12)) -> 1.569951758 | E132: A | K132: =SQRT(Iout^2*D1_Vinnom*(1-D1_Vinnom)+Iout2^2*D2_Vinnom*(1-D2_Vinnom)-2*Iout*Iout2*D1_Vinnom*D2_Vinnom) -> 2.91652083 | L132: A
A133: Icinrms_VINmax | B133: =SQRT(D1_Vinmax_2*(Iout^2*(1-D1_Vinmax_2)+Iripple_Vinmax^2/12)) -> 3.099706886 | C133: A | D133: =SQRT(D2_Vinmax_2*(Iout2^2*(1-D2_Vinmax_2)+Iripple2_Vinmax^2/12)) -> 1.546177351 | E133: A | K133: =SQRT(Iout^2*D1_Vinmax*(1-D1_Vinmax)+Iout2^2*D2_Vinmax*(1-D2_Vinmax)-2*Iout*Iout2*D1_Vinmax*D2_Vinmax) -> 2.911900868 | L133: A
A134: Max Cin rms current | B134: =MAX(B131:B133, D131:D133) -> 3.195754631 | C134: A | K134: =MAX(K131:K133) -> 2.91652083 | L134: A
F135: =Number_of_Phases*D1_Vinnom -> 0.55 | G135: N*D
A136: Icinrms - multiphase | B136: =Iout*SQRT((D1_Vinnom-F136/Number_of_Phases)*((F136+1)/Number_of_Phases-D1_Vinnom)) -> 1.741228015 | C136: A | F136: =FLOOR(Number_of_Phases*D1_Vinnom,1) -> 0 | G136: floor(N*D)
A137: Icinrms - multiphase - max | B137: =Iout/2/Number_of_Phases -> 1.75 | C137: A
A138: Final result | B138: =CHOOSE(MODE, B134, B137) -> 1.75 | C138: A | D138: …report this
A140: Vinripple1 | B140: ='Design Regulator'!E42/1000 -> 1 | C140: Vp-p | F140: Input voltage ripple spec (pk-pk)
A142: Cinmin_Vinmax | B142: =Iout/Number_of_Phases*D1_Vinmax*(1-D1_Vinmax)/(Vinripple1*Fsw) -> 3.221844293e-07 | C142: F | F142: Calculate cap at Vinmax and 50% duty cycle (Vin = 2*Vout)
A143: Cinmin_50%D | B143: =MAX(Iout/Number_of_Phases*0.5*(1-0.5)/(Vinripple1*Fsw), Iout2*0.5*(1-0.5)/(Vinripple1*Fsw)) -> 4.166666667e-07 | C143: F | F143: Buck 50% typically worst case
A144: Cinmin | B144: =IF(VIN_max<2*Vout, B142,B143) -> 4.166666667e-07 | C144: F
A145: Reported Cinmin | B145: =IF(Cinmin*1000000<10, 10,Cinmin*1000000) -> 10 | C145: uF | F145: …report this
A146: Cin | B146: ='Design Regulator'!E44/1000000 -> 4.004e-05 | C146: F | F146: Input capacitance
A147: CinEsrMax_Vinmax | B147: =-(Iout/Number_of_Phases*D1_Vinmax*(1-D1_Vinmax)/(Cin*Fsw)-Vinripple1)/(Iout/Number_of_Phases+Iripple_Vinmax/2) -> 0.2273711691 | C147: W
A148: CinEsrMax_50%D | B148: =-(Iout/Number_of_Phases*0.5*(1-0.5)/(Cin*Fsw)-Vinripple1)/(Iout/Number_of_Phases+Iripple_Vinmax/2) -> 0.22683029 | C148: W | F148: Calculate ESR at Vinmax and 50% duty cycle (Vin = 2*Vout)
A149: CinEsrMax | B149: =IF(VIN_max<2*Vout, B147,B148) -> 0.22683029 | C149: W
A150: Reported Cin ESR max | B150: =IF(OR(CinEsrMax>0.3, CinEsrMax<0), "N/A",CinEsrMax*1000) -> 226.83029 | C150: mΩ | F150: …report this
A151: RCinEsr | B151: ='Design Regulator'!E46/1000 -> 0.001 | C151: W | F151: Input capacitance series resistance (ESR)
A153: Vinripple2_Vinmax | B153: =Iout/Number_of_Phases*D1_Vinmax_2*(1-D1_Vinmax_2)/(Cin*Fsw)+(Iout/Number_of_Phases +Iripple_Vinmax/2)*RCinEsr -> 0.01246893264 | C153: Vp-p
A154: Vinripple2_50%D | B154: =Iout/Number_of_Phases*0.5*(1-0.5)/(Cin*Fsw)+(Iout/Number_of_Phases +Iripple_Vinmax/2)*RCinEsr -> 0.01476896584 | C154: Vp-p | F154: Calculate ripple at Vinmax and 50% duty cycle (Vin = 2*Vout)
A155: Vinripple2 | B155: =IF(VIN_max<2*Vout, B153,B154) -> 0.01476896584 | C155: Vp-p | F155: …report highest of these
B157: =Iout*D1_Vinmax_2*(1-D1_Vinmax_2)/(Cin*Fsw) -> 0.01621245441 | C157: Vp-p
A159: Step 6a: Soft Start
A160: Tss | B160: ='Design Regulator'!E51/1000 -> 0.002 | C160: s | D160: Soft-start time
A161: Iss | B161: =Cout*Vout/Tss -> 0.3102 | C161: A | D161: Load cap current during soft start
A162: Css | B162: =0.00002*Tss/0.6 -> 6.666666667e-08 | C162: F
A163: Css_u | B163: ='Standard Value Calculator'!B4 -> 6.8e-08 | C163: F
A165: Step 6b: Other Components - Dither, Hiccup, DEMB, MODE
A166: Tres | B166: ='Design Regulator'!E53/1000 -> 0.03 | C166: s | D166: Hiccup time
A167: Cres | B167: =0.00002*Tres/1.2 -> 5e-07 | C167: F
A168: Cres_u | B168: ='Standard Value Calculator'!G4 -> 4.7e-07 | C168: F
A170: RPG1/2 | B170: 100 | C170: kΩ
A171: RFB1/2 | C171: W | E171: Tie to VDDA or AGND for 3.3V/5V output, respectively.
A172: R_MODE | C172: W | E172: Tie to VDDA or AGND for Single/Dual operation, respectively.
A173: R_DEMB | C173: W | E173: Tie to VDDA or AGND for FPWM/DEM, respectively.
A175: Dither Modulation Frequency | B175: ='Design Regulator'!E55*1000 -> 9000 | C175: Hz
A176: Cdither_calculated | B176: =10*10^-6/Fdither/0.12 -> 9.259259259e-09 | C176: F
A177: Cdither_stdvalue | B177: ='Standard Value Calculator'!O22 -> 1e-08 | C177: F
A180: Step 7: Compensation
A181: Pi | B181: 3.14159265 | D181: p
A182: CS Amp Gain | B182: 12
A183: Ri | B183: =Rs*CSAmp_gain -> 0.084 | C183: W | D183: =Rs_Ch2*CSAmp_gain -> 0.084 | E183: W | F183: Current Sense effective resistance = shunt resistor Rs * CS amp gain
A184: gm | B184: 0.0012 | C184: S | F184: Error Amp Transconductance
A186: Se_ext | B186: =B190/Ri*1000 -> 7272727.273 | C186: A/s | D186: =B190/Ri_Ch2*1000 -> 7272727.273 | E186: A/s | F186: Slope Comp Slope - referred to inductor current
A187: Sn | B187: =(Vin-Vout)/Lf -> 12794117.65 | C187: A/s | D187: =(Vin-Vout2)/Lo_2 -> 3954545.455 | E187: A/s | F187: On-time Slope
A188: Sf | B188: =Vout/Lf -> 4852941.176 | C188: A/s | D188: =Vout2/Lo_2 -> 1500000 | E188: A/s | F188: Off-time Slope
K189: Tsw | L189: Tsw (us) | M189: Slope comp amplitude
A190: Se_int | B190: =(Fsw/1000)/220*64 -> 610.9090909 | C190: mV/μs | F190: Slope Comp Slope - referred to IC | K190: =Ts -> 4.761904762e-07 | L190: =Ts*1000000 -> 0.4761904762 | M190: =B190*L190 -> 290.9090909 | N190: mV
A191: Sn_int | B191: =Sn*Ri/1000 -> 1074.705882 | C191: mV/μs | D191: =Sn_Ch2*Ri_Ch2/1000 -> 332.1818182 | E191: mV/μs | F191: etc
A192: Sf_int | B192: =Sf*Ri/1000 -> 407.6470588 | C192: mV/μs | D192: =Sf_Ch2*Ri_Ch2/1000 -> 126 | E192: mV/μs | F192: etc
A194: mc_buck | B194: =1+Se_ext/Sn -> 1.568443051 | D194: =1+Se_ext_Ch2/Sn_Ch2 -> 2.83908046 | F194: mc = 1 + Se/Sf for peak current-mode buck
A195: k_buck | B195: =mc_buck*(1-D1_Vinnom_2) -> 1.132174704 | D195: =mc_buck_Ch2*(1-D2_Vinnom_2) -> 2.050007576 | F195: mc*(1-d)
A197: mc | B197: =1+Se_ext/Sn -> 1.568443051 | D197: =1+Se_ext_Ch2/Sn_Ch2 -> 2.83908046
A198: k | B198: =mc_buck*(1-D1_Vinnom_2) -> 1.132174704 | D198: =mc_buck_Ch2*(1-D2_Vinnom_2) -> 2.050007576
A199: Q | B199: =1/Pi/(k-0.5) -> 0.5035156964 | D199: =1/Pi/(k_Ch2-0.5) -> 0.2053602134 | F199: 1/(Pi*(k-0.5)) | H199: Q = 2/Pi = 0.636 gives ideal one-cycle damping
A201: Error Amp (EA)
A202: GBW | B202: 30 | C202: MHz | F202: EA gain-bandwidth product
A203: Cbw | B203: =gm/(2*Pi*GBW*1000000) -> 6.366197731e-12 | C203: F | F203: EA effective bandwidth limiting capacitance = gm/(2*Pi*GBW)
A204: RoEA | B204: 64000000 | C204: W | F204: EA output resistance
A205: AEA | B205: =gm*RoEA -> 76800 | C205: V/V | F205: EA DC gain = gm*RoEA
A206: Afb | B206: =Vref/Vout -> 0.1818181818 | C206: V/V | D206: =Vref/Vout2 -> 0.1818181818 | E206: V/V | F206: Feedback gain from Vout to FB
A207: Acs | B207: =1/Ri -> 11.9047619 | D207: =1/Ri_Ch2 -> 11.9047619 | F207: Acs = 1/Ri
A208: Am_buck | B208: =(Ro/Number_of_Phases)/Ri/((1+Ro/Number_of_Phases*(k-0.5)/(Fsw*Lf))) -> 2.540970715 | D208: =Ro_Ch2/Ri_Ch2/((1+Ro_Ch2*(k_Ch2-0.5)/(Fsw*Lo_2))) -> 8.527121768
A209: Am | B209: =(Ro*Number_of_Phases)/Ri/((1+Ro*Number_of_Phases*(k-0.5)/(Fsw*Lf))) -> 7.919057325 | D209: =Ro_Ch2/Ri_Ch2/((1+Ro_Ch2*(k_Ch2-0.5)/(Fsw*Lo_2))) -> 8.527121768 | F209: Buck modulator gain
A211: Scaling factor to calculate Rcomp - buck | B211: =2*Pi*Ri/gm -> 439.822971 | F211: 2*Pi*Ri/gm -- scaling factor to calculate Rcomp given desired buck crossover frequency
A212: DC Gain is Adc = AEA*Afb*Am
A214: Ro | B214: =Rout -> 0.4714285714 | C214: W | D214: =Rout2 -> 0.9428571429 | E214: W | F214: Output Resistance
A216: Fp_load_buck | B216: =1/(2*Pi*Ro*Cout)+(k-0.5)/(2*Pi*Fsw*Lf*Cout/Number_of_Phases) -> 2545.303096 | C216: Hz | D216: =1/(2*Pi*Ro_Ch2*Cout2)+(k_Ch2-0.5)/(2*Pi*Fsw*Lo_2*Cout2) -> 1851.642478 | E216: Hz | F216: Buck dominant pole frequency -- note slope comp influence
A217: Fp_dominant | B217: =Fload_u -> 2545.303096 | C217: Hz | D217: =Fload_u_Ch2 -> 1851.642478 | E217: Hz
B218: =Cbw -> 6.366197731e-12
A219: Fp_EA | B219: =1/(2*Pi*(RoEA+Rcea1_u)*Cc1ea_u) -> 3.031252399 | C219: Hz | D219: =1/(2*Pi*(RoEA+Rcea2_u)*Cc3ea_u) -> 1.657413383 | E219: Hz | F219: Error Amp LF pole -- related to amplifier ouptut resistance and comp cap
A220: Fp_HF | B220: =1/(2*Pi*Rcea1_u*(Cc2ea_u+Cbw)) -> 830564.7841 | C220: Hz | D220: =1/(2*Pi*Rcea2_u*(Cc4ea_u+Cbw)) -> 694721.1342 | E220: Hz | F220: Error Amp HF pole cancels zero related to Output Cap ESR
A221: Fesr | B221: =1/(2*Pi*Cout*Cout_ESR) -> 423284.4236 | C221: Hz | D221: =1/(2*Pi*Cout2*Cout2_ESR) -> 663145.597 | E221: Hz | F221: Cout ESR zero frequency
A222: F_mod | B222: =Fsw/2 -> 1050000 | C222: Hz | F222: Zero-order sample-and-hold effects of current-mode control modeled as pole at Fsw/2
A224: Desired Crossover Frequency | B224: ='Design Regulator'!E63*1000 -> 60000 | C224: Hz | D224: ='Design Regulator'!J63*1000 -> 60000 | E224: Hz
A225: Rcea1 | B225: =Fcross*Cout/Number_of_Phases*2*Pi*Ri/(gm*Afb) -> 13643.30856 | C225: W | D225: =Fcross_Ch2*Cout2*2*Pi*Ri_Ch2/(gm*Afb_Ch2) -> 17416.98965 | E225: W | F225: This component will largely determine the crossover frequency
A226: Cc1ea, Cc3ea | B226: =10/(Rcea1*Fcross*2*Pi) -> 1.944236895e-09 | C226: F | D226: =10/(Rcea2*Fcross_Ch2*2*Pi) -> 1.522985568e-09 | E226: F | F226: This along with Rcea1 will set a zero at Fcrossover/5 to optimize phase margin
A227: Cc2ea, Cc4ea | B227: =MAX(1/(Rcea1*2*Pi*Fesr)-Cbw, 1/(Rcea1*2*Pi*(Fsw/2))-Cbw) -> 2.119309981e-11 | C227: F | D227: =MAX(1/(Rcea2*2*Pi*Fesr_Ch2)-Cbw, 1/(Rcea2*2*Pi*(Fsw/2))-Cbw) -> 7.413451037e-12 | E227: F | F227: This along with Rcea1 places a pole at the output cap ESR zero
A229: Chosen Compensation Components from the standard value sheet
A230: Rcea1_u | B230: ='Design Regulator'!D70*1000 -> 30100 | C230: W | D230: ='Design Regulator'!D73*1000 -> 17400 | E230: W | F230: =1/(Rcea1*2*Pi*(Fsw/2))-Cbw -> 4.743727386e-12
A231: Cc1ea_u | B231: ='Design Regulator'!D71*0.000000001 -> 8.2e-10 | C231: F | D231: ='Design Regulator'!D74*0.000000001 -> 1.5e-09 | E231: F
A232: Cc2ea_u | B232: ='Design Regulator'!D72*0.000000000001 -> 0 | C232: F | D232: ='Design Regulator'!D75*0.000000000001 -> 6.8e-12 | E232: F
A234: Resulting Pole/Zero Locations | F234: =Cout -> 0.000188 | G234: =Cout_ESR -> 0.002
A235: Fz1 | B235: =1/(2*Pi*Rcea1_u*Cc1ea_u) -> 6448.219078 | C235: Hz | D235: =1/(2*Pi*Rcea2_u*Cc3ea_u) -> 6097.890547 | E235: Hz | F235: This zero is set at or close to the dominant load pole
A236: Fp2 | B236: =1/(2*Pi*Rcea1_u*(Cc1ea_u*(Cc2ea_u+Cbw)/(Cc1ea_u+Cc2ea_u+Cbw))) -> 837013.0031 | C236: Hz | D236: =1/(2*Pi*Rcea2_u*(Cc3ea_u*(Cc4ea_u+Cbw)/(Cc3ea_u+Cc4ea_u+Cbw))) -> 700819.0247 | E236: Hz | F236: This pole cancels the zero from the Output Cap ESR
A238: Rfb1 | B238: ='Design Regulator'!E65*1000 -> 39300 | C238: W | D238: ='Design Regulator'!J65*1000 -> 115000 | E238: W | F238: Upper Feedback Resistance - chosen by user
A239: Rfb2 | B239: =IF(Vout=Vref,100000000,Vref*B238/((Vout-Vref))) -> 8733.333333 | C239: W | D239: =IF(Vout2=Vref,100000000,Vref*D238/((Vout2-Vref))) -> 25555.55556 | E239: W | F239: Lower Feedback Resistance
A240: Rfb2_u | B240: =IF(Vout=Vref,"N/A",'Standard Value Calculator'!O11) -> 8660 | C240: W | D240: =IF(Vout2=Vref,"N/A",'Standard Value Calculator'!O13) -> 25500 | E240: W | F240: Std Value Lower Feedback Resistance
A243: Other Input Variables
A244: Rfets | B244: 0 | C244: W | D244: Series resistance due to FETs
A245: Diode loss eq res | B245: =0.00000002*Fsw*0.6*4/Iripple1 -> 
A246: Fet loss eq res | B246: =_Don2*RdsonTop+Doff2*RdsonBot -> 
A247: cap loss eq res | B247: =B248*Vin^2*Fsw/2/(((Iripple1/SQRT(3))^2)) -> 
A248: Sw cap | B248: 5e-09
A250: Step 8: Efficiency
A251: VAR | B251: 0
A252: Design
A253: Ta | B253: ='Design Regulator'!E14 -> 25 | C253: °C | D253: Ambient Temperature
A254: Components
... 109 more rows

Sheet Stability Calculations (hidden)
A2: Divider Network & EA Poles/Zeros | E2: Modulator | J2: Power Stage Poles/Zeros | M2: Complex Pole Pair | P2: Total System
B3: Afb1 | C3: =Afb -> 0.1818181818 | D3: V/V | E3: Acs | F3: =Acs -> 11.9047619 | G3: A/V | H3: gm | I3: =gm -> 0.0012 | J3: z_ESR | K3: =Fesr -> 423284.4236 | L3: Hz | M3: p3 | N3: =Fsw/2 -> 1050000 | O3: Hz | P3: Adc | Q3: =Am*Afb*AEA -> 110578.8368 | R3: V/V
B4: EA zero, z1 | C4: =Fz1_u -> 6448.219078 | D4: Hz | E4: Am | F4: =Am -> 7.919057325 | G4: V/V | J4: p_dom | K4: =Fp_dominant -> 2545.303096 | L4: Hz | M4: pterm1 | N4: =Q*pole3 -> 528691.4812 | P4: Crossover | Q4: =AE7 -> 131.83 | R4: kHz
B5: EA pole, p1 | C5: =Fp1_u -> 3.031252399 | D5: Hz | E5: Q | F5: =Q -> 0.5035156964 | M5: pterm2 | N5: =pole3^2 -> 1102500000000 | P5: Phase Margin | Q5: =AE9 -> 82.37066828 | R5: °
B6: Aea | C6: =AEA -> 76800 | D6: V/V | E6: mc | F6: =mc -> 1.568443051 | P6: radconv | Q6: =180/Pi -> 57.29577958 | AD6: XOVER SEARCH
B7: EA pole, p2 | C7: =Fp2_u -> 830564.7841 | D7: Hz | E7: k | F7: =k -> 1.132174704 | AD7: xover | AE7: =SUM(AD12:AD613)/1000 -> 131.83
AD9: phase margin | AE9: =SUM(AE13:AE613) -> 82.37066828
A10: Freq (Hz) | C10: Power Stage | I10: Error Amplifier | O10: Sampling Double Pole | Q10: System Response | X10: ERROR AMP Response | AA10: PLANT Response
C11: p_dom | E11: z_ESR | G11: z_RHP | I11: p1 | K11: z1 | M11: p2 | O11: p3
C12: Gain(V/V) | D12: Phase(rad) | E12: Gain(V/V) | F12: Phase(rad) | G12: Gain(V/V) | H12: Phase(rad) | I12: Gain(V/V) | J12: Phase(rad) | K12: Gain(V/V) | L12: Phase(rad) | M12: Gain(V/V) | N12: Phase(rad) | O12: Gain(V/V) | P12: Phase(rad) | Q12: Gain (dB) | R12: Phase (°) | S12: Phase Margin (°) | V12: Fsquare | X12: Gain(dB) | Y12: Phase(Deg) | AA12: Gain(dB) | AB12: Phase(Deg)
A13: 1 | B13: =A13/1000 -> 0.001 | C13: =SQRT(1+(A13/pole1)^2) -> 1.000000077 | D13: =ATAN(A13/pole1) -> 0.0003928804983 | E13: =SQRT(1+(A13/Zero1)^2) -> 1 | F13: =ATAN(A13/Zero1) -> 2.362477673e-06 | G13: =IF(VIN_nom>Vout, 1, SQRT(1+(A13/z_RHP)^2)) -> 1 | H13: =IF(VIN_nom>Vout, 0, -ATAN(A13/z_RHP)) -> 0 | I13: =SQRT(1+(A13/Pole2)^2) -> 1.053010825 | J13: =ATAN(A13/Pole2) -> 0.3186543536 | K13: =SQRT(1+(A13/Zero2)^2) -> 1.000000012 | L13: =ATAN(A13/Zero2) -> 0.0001550815783 | M13: =SQRT(1+(A13/pole4)^2) -> 1 | N13: =ATAN(A13/pole4) -> 1.204e-06 | O13: =SQRT((1-(V13/pterm2))^2+(A13/pterm1)^2) -> 1 | P13: =IF((ATAN((A13/pterm1)/(1-A13^2/pterm2))>0),ATAN((A13/pterm1)/(1-A13^2/pterm2)),PI()+ATAN((A13/pterm1)/(1-A13^2/pterm2))) -> 1.89146229e-06 | Q13: =20*LOG10(((E13*K13*G13)/(C13*I13*O13*M13))*Adc) -> 100.4247831 | R13: =((F13+L13+H13)-(D13+J13+P13+N13))*radconv -> -18.27121648 | S13: =IF(R13>0,R13,R13+180) -> 161.7287835 | U13: =IF(Q13<0,A13,1000000000) -> 1000000000 | V13: =A13^2 -> 1 | X13: =20*LOG10((K13/(I13*M13))*AEA) -> 97.25856779 | Y13: =(L13-(J13+N13))*radconv -> -18.24873307 | AA13: =20*LOG10((E13*G13/(C13*O13))*Acs*Am) -> 39.48788334 | AB13: =(F13+H13-(D13+P13))*radconv -> -0.02248340724 | AD13: =SUM((Q14<0)*(Q13>0))*A13 -> 0 | AE13: =IF(AD13>0,S11,0) -> 0
A14: 1.0965 | B14: =A14/1000 -> 0.0010965 | C14: 1.000000093 | D14: 0.0004307934619 | E14: 1 | F14: 2.590456768e-06 | G14: 1 | H14: 0 | I14: 1.06341422 | J14: 0.34708773 | K14: 1.000000014 | L14: 0.0001700469504 | M14: 1 | N14: 1.320186e-06 | O14: 1 | P14: 2.073988401e-06 | Q14: 100.3393904 | R14: -19.9016478 | S14: 160.0983522 | U14: =IF(Q14<0,A14,1000000000) -> 1000000000 | V14: =A14^2 -> 1.20231225 | X14: 97.17317526 | Y14: -19.87699474 | AA14: 39.48788321 | AB14: -0.02465305578 | AD14: =SUM((Q15<0)*(Q14>0))*A14 -> 0 | AE14: 0
A15: 1.2023 | B15: 0.0012023 | C15: 1.000000112 | D15: 0.0004723602123 | E15: 1 | F15: 2.840406906e-06 | G15: 1 | H15: 0 | I15: 1.075787672 | J15: 0.3776019266 | K15: 1.000000017 | L15: 0.000186454581 | M15: 1 | N15: 1.4475692e-06 | O15: 1 | P15: 2.274105112e-06 | Q15: 100.2389083 | R15: -21.65142843 | S15: 158.3485716 | U15: 1000000000 | V15: 1.44552529 | X15: 97.07269329 | Y15: -21.62439663 | AA15: 39.48788305 | AB15: -0.0270317999 | AD15: 0 | AE15: 0
A16: 1.3183 | B16: 0.0013183 | C16: 1.000000134 | D16: 0.0005179343413 | E16: 1 | F16: 3.114454316e-06 | G16: 1 | H16: 0 | I16: 1.090477144 | J16: 0.4102283759 | K16: 1.000000021 | L16: 0.0002044440435 | M16: 1 | N16: 1.5872332e-06 | O16: 1 | P16: 2.493514738e-06 | Q16: 100.121108 | R16: -23.52237164 | S16: 156.4776284 | U16: 1000000000 | V16: 1.73791489 | X16: 96.95489324 | Y16: -23.49273176 | AA16: 39.48788285 | AB16: -0.02963987464 | AD16: 0 | AE16: 0
A17: 1.4454 | B17: 0.0014454 | C17: 1.000000161 | D17: 0.0005678694404 | E17: 1 | F17: 3.414725228e-06 | G17: 1 | H17: 0 | I17: 1.107867023 | J17: 0.4449425212 | K17: 1.000000025 | L17: 0.0002241549114 | M17: 1 | N17: 1.7402616e-06 | O17: 1 | P17: 2.733919595e-06 | Q17: 99.98368646 | R17: -25.51308272 | S17: 154.4869173 | U17: 1000000000 | V17: 2.08918116 | X17: 96.81747192 | Y17: -25.4805852 | AA17: 39.48788261 | AB17: -0.032497515 | AD17: 0 | AE17: 0
A18: 1.5849 | B18: 0.0015849 | C18: 1.000000194 | D18: 0.0006226762533 | E18: 1 | F18: 3.744290864e-06 | G18: 1 | H18: 0 | I18: 1.128439393 | J18: 0.4817625708 | K18: 1.00000003 | L18: 0.0002457887905 | M18: 1 | N18: 1.9082196e-06 | O18: 1 | P18: 2.997778584e-06 | Q18: 99.82387415 | R18: -27.62462269 | S18: 152.3753773 | U18: 1000000000 | V18: 2.51190801 | X18: 96.65765989 | Y18: -27.58898874 | AA18: 39.48788233 | AB18: -0.03563394936 | AD18: 0 | AE18: 0
A19: 1.7378 | B19: 0.0017378 | C19: 1.000000233 | D19: 0.000682747659 | E19: 1 | F19: 4.1055137e-06 | G19: 1 | H19: 0 | I19: 1.152677951 | J19: 0.5205515251 | K19: 1.000000036 | L19: 0.0002695007625 | M19: 1 | N19: 2.0923112e-06 | O19: 1 | P19: 3.286983168e-06 | Q19: 99.63927892 | R19: -29.84915573 | S19: 150.1508443 | U19: 1000000000 | V19: 3.01994884 | X19: 96.473065 | Y19: -29.81008407 | AA19: 39.48788199 | AB19: -0.03907166103 | AD19: 0 | AE19: 0
A20: 1.9055 | B20: 0.0019055 | C20: 1.00000028 | D20: 0.0007486336882 | E20: 1 | F20: 4.501701205e-06 | G20: 1 | H20: 0 | I20: 1.181169194 | J20: 0.5611968361 | K20: 1.000000044 | L20: 0.0002955079413 | M20: 1 | N20: 2.294222e-06 | O20: 1 | P20: 3.604181394e-06 | Q20: 99.42719606 | R20: -32.18025244 | S20: 147.8197476 | U20: 1000000000 | V20: 3.63093025 | X20: 96.26098255 | Y20: -32.13741031 | AA20: 39.48788158 | AB20: -0.04284212669 | AD20: 0 | AE20: 0
A21: 2.0893 | B21: 0.0020893 | C21: 1.000000337 | D21: 0.000820845083 | E21: 1 | F21: 4.935924602e-06 | G21: 1 | H21: 0 | I21: 1.21452451 | J21: 0.6034767808 | K21: 1.000000052 | L21: 0.0003240119329 | M21: 1 | N21: 2.5155172e-06 | O21: 1 | P21: 3.951832163e-06 | Q21: 99.18531221 | R21: -34.6052268 | S21: 145.3947732 | U21: 1000000000 | V21: 4.36517449 | X21: 96.01909919 | Y21: -34.55825223 | AA21: 39.48788109 | AB21: -0.0469745746 | AD21: 0 | AE21: 0
A22: 2.2909 | B22: 0.0022909 | C22: 1.000000405 | D22: 0.0009000497368 | E22: 1 | F22: 5.412200101e-06 | G22: 1 | H22: 0 | I22: 1.253464607 | J22: 0.6471774724 | K22: 1.000000063 | L22: 0.0003552763757 | M22: 1 | N22: 2.7582436e-06 | O22: 1 | P22: 4.333150961e-06 | Q22: 98.91119587 | R22: -37.11184723 | S22: 142.8881528 | U22: 1000000000 | V22: 5.24822281 | X22: 95.74498344 | Y22: -37.06034001 | AA22: 39.4878805 | AB22: -0.05150722637 | AD22: 0 | AE22: 0
A23: 2.5119 | B23: 0.0025119 | C23: 1.000000487 | D23: 0.0009868762541 | E23: 1 | F23: 5.934307666e-06 | G23: 1 | H23: 0 | I23: 1.298726159 | J23: 0.6919782755 | K23: 1.000000076 | L23: 0.0003895494 | M23: 1 | N23: 3.0243276e-06 | O23: 1 | P23: 4.751164127e-06 | Q23: 98.60308501 | R23: -39.68176455 | S23: 140.3182355 | U23: 1000000000 | V23: 6.30964161 | X23: 95.4368733 | Y23: -39.62528849 | AA23: 39.48787978 | AB23: -0.05647605519 | AD23: 0 | AE23: 0
A24: 2.7542 | B24: 0.0027542 | C24: 1.000000585 | D24: 0.001082071102 | E24: 1 | F24: 6.506736006e-06 | G24: 1 | H24: 0 | I24: 1.351131526 | J24: 0.7375469517 | K24: 1.000000091 | L24: 0.0004271256605 | M24: 1 | N24: 3.3160568e-06 | O24: 1 | P24: 5.20946544e-06 | Q24: 98.2594835 | R24: -42.29596885 | S24: 137.7040311 | U24: 1000000000 | V24: 7.58561764 | X24: 95.09327264 | Y24: -42.23404507 | AA24: 39.48787893 | AB24: -0.06192377921 | AD24: 0 | AE24: 0
A25: 3.02 | B25: 0.00302 | C25: 1.000000704 | D25: 0.001186498609 | E25: 1 | F25: 7.134682572e-06 | G25: 1 | H25: 0 | I25: 1.411591131 | J25: 0.7835386498 | K25: 1.00000011 | L25: 0.0004683463361 | M25: 1 | N25: 3.63608e-06 | O25: 1 | P25: 5.712216117e-06 | Q25: 97.87925676 | R25: -44.9347317 | S25: 135.0652683 | U25: 1000000000 | V25: 9.1204 | X25: 94.71304693 | Y25: -44.86683183 | AA25: 39.4878779 | AB25: -0.06789986146 | AD25: 0 | AE25: 0
A26: 3.3113 | B26: 0.0033113 | C26: 1.000000846 | D26: 0.001300944527 | E26: 1 | F26: 7.822872318e-06 | G26: 1 | H26: 0 | I26: 1.480982391 | J26: 0.8295232737 | K26: 1.000000132 | L26: 0.0005135215893 | M26: 1 | N26: 3.9868052e-06 | O26: 1 | P26: 6.263199082e-06 | Q26: 97.46243625 | R26: -47.57343772 | S26: 132.4265623 | U26: 1000000000 | V26: 10.96470769 | X26: 94.29622765 | Y26: -47.49898845 | AA26: 39.48787666 | AB26: -0.07444926817 | AD26: 0 | AE26: 0
A27: 3.6308 | B27: 0.0036308 | C27: 1.000001017 | D27: 0.001426469619 | E27: 1 | F27: 8.577683934e-06 | G27: 1 | H27: 0 | I27: 1.560351842 | J27: 0.8751508112 | K27: 1.000000159 | L27: 0.0005630701396 | M27: 1 | N27: 4.3714832e-06 | O27: 1 | P27: 6.867521284e-06 | Q27: 97.00898212 | R27: -50.19206961 | S27: 129.8079304 | U27: 1000000000 | V27: 13.18270864 | X27: 93.84277502 | Y27: -50.1104369 | AA27: 39.48787518 | AB27: -0.08163270377 | AD27: 0 | AE27: 0
A28: 3.9811 | B28: 0.0039811 | C28: 1.000001223 | D28: 0.001564095357 | E28: 1 | F28: 9.405259863e-06 | G28: 1 | H28: 0 | I28: 1.650724769 | J28: 0.920032237 | K28: 1.000000191 | L28: 0.000617395198 | M28: 1 | N28: 4.7932444e-06 | O28: 1 | P28: 7.530100525e-06 | Q28: 96.51993802 | R28: -52.76837337 | S28: 127.2316266 | U28: 1000000000 | V28: 15.84915721 | X28: 93.3537327 | Y28: -52.67886475 | AA28: 39.48787339 | AB28: -0.08950862409 | AD28: 0 | AE28: 0
A29: 4.3652 | B29: 0.0043652 | C29: 1.000001471 | D29: 0.001715000358 | E29: 1 | F29: 1.031268754e-05 | G29: 1 | H29: 0 | I29: 1.753221818 | J29: 0.9638297578 | K29: 1.000000229 | L29: 0.0006769620077 | M29: 1 | N29: 5.2557008e-06 | O29: 1 | P29: 8.25661119e-06 | Q29: 95.99669223 | R29: -55.28303589 | S29: 124.7169641 | U29: 1000000000 | V29: 19.05497104 | X29: 92.83048906 | Y29: -55.18489142 | AA29: 39.48787124 | AB29: -0.098144478 | AD29: 0 | AE29: 0
A30: 4.7863 | B30: 0.0047863 | C30: 1.000001768 | D30: 0.001880441809 | E30: 1 | F30: 1.130752688e-05 | G30: 1 | H30: 0 | I30: 1.869008153 | J30: 1.006237511 | K30: 1.000000275 | L30: 0.000742266828 | M30: 1 | N30: 5.7627052e-06 | O30: 1 | P30: 9.053105961e-06 | Q30: 95.44120347 | R30: -57.71857625 | S30: 122.2814237 | U30: 1000000000 | V30: 22.90866769 | X30: 92.27500288 | Y30: -57.61096404 | AA30: 39.48786866 | AB30: -0.1076122106 | AD30: 0 | AE30: 0
A31: 5.2481 | B31: 0.0052481 | C31: 1.000002126 | D31: 0.002061873327 | E31: 1 | F31: 1.239851907e-05 | G31: 1 | H31: 0 | I31: 1.999376304 | J31: 1.04701744 | K31: 1.000000331 | L31: 0.0008138834581 | M31: 1 | N31: 6.3187124e-06 | O31: 1 | P31: 9.926583246e-06 | Q31: 94.85553394 | R31: -60.06140543 | S31: 119.9385946 | U31: 1000000000 | V31: 27.54255361 | X31: 91.68933646 | Y31: -59.94341042 | AA31: 39.48786555 | AB31: -0.1179950082 | AD31: 0 | AE31: 0
A32: 5.7544 | B32: 0.0057544 | C32: 1.000002556 | D32: 0.002260787804 | E32: 1 | F32: 1.359464152e-05 | G32: 1 | H32: 0 | I32: 2.145637502 | J32: 1.085961814 | K32: 1.000000398 | L32: 0.0008924012046 | M32: 1 | N32: 6.9282976e-06 | O32: 1 | P32: 1.08842306e-05 | Q32: 94.24229458 | R32: -62.29967315 | S32: 117.7003268 | U32: 1000000000 | V32: 33.11311936 | X32: 91.07610083 | Y32: -62.17029485 | AA32: 39.48786182 | AB32: -0.1293783046 | AD32: 0 | AE32: 0
A33: 6.3096 | B33: 0.0063096 | C33: 1.000003073 | D33: 0.002478913842 | E33: 1 | F33: 1.490628912e-05 | G33: 1 | H33: 0 | I33: 2.30926576 | J33: 1.122935781 | K33: 1.000000479 | L33: 0.0009785024222 | M33: 1 | N33: 7.5967584e-06 | O33: 1 | P33: 1.193437047e-05 | Q33: 93.60393949 | R33: -64.42571319 | S33: 115.5742868 | U33: 1000000000 | V33: 39.81105216 | X33: 90.43775023 | Y33: -64.28385216 | AA33: 39.48785733 | AB33: -0.1418610227 | AD33: 0 | AE33: 0
A34: 6.9183 | B34: 0.0069183 | C34: 1.000003694 | D34: 0.002718058598 | E34: 1 | F34: 1.634432928e-05 | G34: 1 | H34: 0 | I34: 2.491787047 | J34: 1.157840532 | K34: 1.000000576 | L34: 0.00107290048 | M34: 1 | N34: 8.3296332e-06 | O34: 1 | P34: 1.308570356e-05 | Q34: 92.94319478 | R34: -66.43392708 | S34: 113.5660729 | U34: 1000000000 | V34: 47.86287489 | X34: 89.77701092 | Y34: -66.2783805 | AA34: 39.48785193 | AB34: -0.1555465808 | AD34: 0 | AE34: 0
A35: 7.5858 | B35: 0.0075858 | C35: 1.000004441 | D35: 0.002980304213 | E35: 1 | F35: 1.792128313e-05 | G35: 1 | H35: 0 | I35: 2.694931593 | J35: 1.190638608 | K35: 1.000000692 | L35: 0.001176417304 | M35: 1 | N35: 9.1333032e-06 | O35: 1 | P35: 1.434825464e-05 | Q35: 92.26245287 | R35: -68.32224093 | S35: 111.6777591 | U35: 1000000000 | V35: 57.54436164 | X35: 89.0962755 | Y35: -68.1516868 | AA35: 39.48784544 | AB35: -0.1705541338 | AD35: 0 | AE35: 0
A36: 8.3176 | B36: 0.0083176 | C36: 1.000005339 | D36: 0.003267811369 | E36: 1 | F36: 1.965014429e-05 | G36: 1 | H36: 0 | I36: 2.920488403 | J36: 1.221317184 | K36: 1.000000832 | L36: 0.001289905831 | M36: 1 | N36: 1.00143904e-05 | O36: 1 | P36: 1.573242675e-05 | Q36: 91.56429148 | R36: -70.08999514 | S36: 109.9100049 | U36: 1000000000 | V36: 69.18246976 | X36: 88.3981219 | Y36: -69.9029878 | AA36: 39.48783764 | AB36: -0.1870073312 | AD36: 0 | AE36: 0
A37: 9.1201 | B37: 0.0091201 | C37: 1.000006419 | D37: 0.003583094283 | E37: 1 | F37: 2.154603262e-05 | G37: 1 | H37: 0 | I37: 3.170523291 | J37: 1.249912553 | K37: 1.000001 | L37: 0.001414358571 | M37: 1 | N37: 1.09806004e-05 | O37: 1 | P37: 1.725032523e-05 | Q37: 90.85077432 | R37: -71.73935653 | S37: 108.2606435 | U37: 1000000000 | V37: 83.17622401 | X37: 87.68461413 | Y37: -71.53430647 | AA37: 39.48782826 | AB37: -0.2050500543 | AD37: 0 | AE37: 0
A38: 10 | B38: 0.01 | C38: 1.000007718 | D38: 0.003928784971 | E38: 1 | F38: 2.362477672e-05 | G38: 1 | H38: 0 | I38: 3.447198821 | J38: 1.276474812 | K38: 1.000001203 | L38: 0.001550814552 | M38: 1 | N38: 1.204e-05 | O38: 1 | P38: 1.89146229e-05 | Q38: 90.12405711 | R38: -73.27328709 | S38: 106.7267129 | U38: 1000000000 | V38: 100 | X38: 86.95790819 | Y38: -73.04845416 | AA38: 39.48781698 | AB38: -0.2248329258 | AD38: 0 | AE38: 0
A39: 10.965 | B39: 0.010965 | C39: 1.000009279 | D39: 0.004307908237 | E39: 1 | F39: 2.590456768e-05 | G39: 1 | H39: 0 | I39: 3.752996175 | J39: 1.301084414 | K39: 1.000001446 | L39: 0.001700467881 | M39: 1 | N39: 1.320186e-05 | O39: 1 | P39: 2.073988401e-05 | Q39: 89.38580987 | R39: -74.69650163 | S39: 105.3034984 | U39: 1000000000 | V39: 120.231225 | X39: 86.21967452 | Y39: -74.44997258 | AA39: 39.48780342 | AB39: -0.2465290462 | AD39: 0 | AE39: 0
A40: 12.023 | B40: 0.012023 | C40: 1.000011156 | D40: 0.004723567343 | E40: 1 | F40: 2.840406905e-05 | G40: 1 | H40: 0 | I40: 4.090465928 | J40: 1.3238223 | K40: 1.000001738 | L40: 0.001864543671 | M40: 1 | N40: 1.4475692e-05 | O40: 1 | P40: 2.274105112e-05 | Q40: 88.63790296 | R40: -76.01374564 | S40: 103.9862544 | U40: 1000000000 | V40: 144.552529 | X40: 85.47178391 | Y40: -75.74342964 | AA40: 39.48778712 | AB40: -0.2703160063 | AD40: 0 | AE40: 0
A41: 13.183 | B41: 0.013183 | C41: 1.000013413 | D41: 0.005179297563 | E41: 1 | F41: 3.114454315e-05 | G41: 1 | H41: 0 | I41: 4.462514994 | J41: 1.344788284 | K41: 1.00000209 | L41: 0.002044437615 | M41: 1 | N41: 1.5872332e-05 | O41: 1 | P41: 2.493514737e-05 | Q41: 87.88174823 | R41: -77.23086098 | S41: 102.769139 | U41: 1000000000 | V41: 173.791489 | X41: 84.71564878 | Y41: -76.93446486 | AA41: 39.48776752 | AB41: -0.2963961194 | AD41: 0 | AE41: 0
A42: 14.454 | B42: 0.014454 | C42: 1.000016124 | D42: 0.005678633975 | E42: 1.000000001 | F42: 3.414725227e-05 | G42: 1 | H42: 0 | I42: 4.872056446 | J42: 1.364075004 | K42: 1.000002512 | L42: 0.002241545397 | M42: 1 | N42: 1.7402616e-05 | O42: 1 | P42: 2.733919594e-05 | Q42: 87.1190759 | R42: -78.35327845 | S42: 101.6467216 | U42: 1000000000 | V42: 208.918116 | X42: 83.953 | Y42: -78.02830676 | AA42: 39.48774397 | AB42: -0.3249716876 | AD42: 0 | AE42: 0
A43: 15.849 | B43: 0.015849 | C43: 1.000019386 | D43: 0.006226682864 | E43: 1.000000001 | F43: 3.744290862e-05 | G43: 1 | H43: 0 | I43: 5.323302198 | J43: 1.381820227 | K43: 1.000003021 | L43: 0.002457883005 | M43: 1 | N43: 1.9082196e-05 | O43: 1 | P43: 2.997778584e-05 | Q43: 86.34967578 | R43: -79.38906909 | S43: 100.6109309 | U43: 1000000000 | V43: 251.190801 | X43: 83.18362821 | Y43: -79.03273416 | AA43: 39.48771563 | AB43: -0.3563349289 | AD43: 0 | AE43: 0
A44: 17.378 | B44: 0.017378 | C44: 1.000023307 | D44: 0.006827371568 | E44: 1.000000001 | F44: 4.105513697e-05 | G44: 1 | H44: 0 | I44: 5.819505645 | J44: 1.398103337 | K44: 1.000003632 | L44: 0.002695001165 | M44: 1 | N44: 2.0923112e-05 | O44: 1 | P44: 3.286983168e-05 | Q44: 85.57554758 | R44: -80.34291785 | S44: 99.65708215 | U44: 1000000000 | V44: 301.994884 | X44: 82.40953407 | Y44: -79.95220726 | AA44: 39.48768158 | AB44: -0.390710593 | AD44: 0 | AE44: 0
A45: 19.055 | B45: 0.019055 | C45: 1.000028022 | D45: 0.007486198427 | E45: 1.000000001 | F45: 4.501701202e-05 | G45: 1 | H45: 0 | I45: 6.365223204 | J45: 1.413039099 | K45: 1.000004366 | L45: 0.002955070897 | M45: 1 | N45: 2.294222e-05 | O45: 1 | P45: 3.604181394e-05 | Q45: 84.79696213 | R45: -81.2215915 | S45: 98.7784085 | U45: 1000000000 | V45: 363.093025 | X45: 81.63098958 | Y45: -80.79317817 | AA45: 39.48764063 | AB45: -0.428413334 | AD45: 0 | AE45: =IF(AD45>0,S43,0) -> 0
A46: 20.893 | B46: 0.020893 | C46: 1.000033689 | D46: 0.008208268323 | E46: 1.000000001 | F46: 4.935924598e-05 | G46: 1 | H46: 0 | I46: 6.964695144 | J46: 1.426717055 | K46: 1.000005249 | L46: 0.003240108103 | M46: 1 | N46: 2.515517199e-05 | O46: 1 | P46: 3.951832163e-05 | Q46: 84.0151511 | R46: -82.03039797 | S46: 97.96960203 | U46: 1000000000 | V46: 436.517449 | X46: 80.84922776 | Y46: -81.56066268 | AA46: 39.48759141 | AB46: -0.4697352891 | AD46: 0 | AE46: 0
A47: 22.909 | B47: 0.022909 | C47: 1.000040504 | D47: 0.00900025677 | E47: 1.000000001 | F47: 5.412200095e-05 | G47: 1 | H47: 0 | I47: 7.62347375 | J47: 1.439243412 | K47: 1.000006311 | L47: 0.003552748959 | M47: 1 | N47: 2.758243599e-05 | O47: 1 | P47: 4.333150961e-05 | Q47: 83.23008518 | R47: -82.77565458 | S47: 97.22434542 | U47: 1000000000 | V47: 524.822281 | X47: 80.06422103 | Y47: -82.26059611 | AA47: 39.48753222 | AB47: -0.5150584784 | AD47: 0 | AE47: 0
A48: 25.119 | B48: 0.025119 | C48: 1.000048695 | D48: 0.009868445382 | E48: 1.000000002 | F48: 5.934307659e-05 | G48: 1 | H48: 0 | I48: 8.34679361 | J48: 1.450701366 | K48: 1.000007587 | L48: 0.003895474493 | M48: 1 | N48: 3.024327599e-05 | O48: 1.000000001 | P48: 4.751164127e-05 | Q48: 82.44268981 | R48: -83.46234665 | S48: 96.53765335 | U48: 1000000000 | V48: 630.964161 | X48: 79.2768968 | Y48: -82.89760427 | AA48: 39.48746108 | AB48: -0.5647423801 | AD48: 0 | AE48: 0
A49: 27.542 | B49: 0.027542 | C49: 1.000058542 | D49: 0.01082029295 | E49: 1.000000002 | F49: 6.506735997e-05 | G49: 1 | H49: 0 | I49: 9.14087742 | J49: 1.46117824 | K49: 1.000009122 | L49: 0.004271230891 | M49: 1.000000001 | N49: 3.316056799e-05 | O49: 1.000000001 | P49: 5.209465439e-05 | Q49: 81.65325341 | R49: -84.09573663 | S49: 95.90426337 | U49: 1000000000 | V49: 758.561764 | X49: 78.48754593 | Y49: -83.47652279 | AA49: 39.48737555 | AB49: -0.6192138383 | AD49: 0 | AE49: 0
A50: 30.2 | B50: 0.0302 | C50: 1.000070387 | D50: 0.01186443493 | E50: 1.000000003 | F50: 7.13468256e-05 | G50: 1 | H50: 0 | I50: 10.01293924 | J50: 1.470758781 | K50: 1.000010967 | L50: 0.00468342946 | M50: 1.000000001 | N50: 3.636079998e-05 | O50: 1.000000001 | P50: 5.712216116e-05 | Q50: 80.86169265 | R50: -84.68098054 | S50: 95.31901946 | U50: 1000000000 | V50: 912.04 | X50: 77.69608804 | Y50: -84.00201351 | AA50: 39.48727268 | AB50: -0.6789670353 | AD50: 0 | AE50: 0
A51: 33.113 | B51: 0.033113 | C51: 1.000084619 | D51: 0.01300871875 | E51: 1.000000003 | F51: 7.822872302e-05 | G51: 1 | H51: 0 | I51: 10.96954349 | J51: 1.479508091 | K51: 1.000013185 | L51: 0.005135171206 | M51: 1.000000001 | N51: 3.986805198e-05 | O51: 1.000000001 | P51: 6.26319908e-05 | Q51: 80.06904884 | R51: -85.22208114 | S51: 94.77791886 | U51: 1000000000 | V51: 1096.470769 | X51: 76.90356784 | Y51: -84.47763008 | AA51: 39.48714907 | AB51: -0.7444510553 | AD51: 0 | AE51: 0
A52: 36.308 | B52: 0.036308 | C52: 1.000101736 | D52: 0.01426373845 | E52: 1.000000004 | F52: 8.577683913e-05 | G52: 1 | H52: 0 | I52: 12.01955853 | J52: 1.487502315 | K52: 1.000015852 | L52: 0.005630642486 | M52: 1.000000001 | N52: 4.371483197e-05 | O52: 1.000000001 | P52: 6.867521282e-05 | Q52: 79.2749241 | R52: -85.72376954 | S52: 94.27623046 | U52: 1000000000 | V52: 1318.270864 | X52: 76.10959175 | Y52: -84.90749738 | AA52: 39.48700042 | AB52: -0.8162721631 | AD52: 0 | AE52: 0
A53: 39.811 | B53: 0.039811 | C53: 1.000122312 | D53: 0.01563969104 | E53: 1.000000004 | F53: 9.405259835e-05 | G53: 1 | H53: 0 | I53: 13.1715309 | J53: 1.494801882 | K53: 1.000019059 | L53: 0.006173874321 | M53: 1.000000001 | N53: 4.793244396e-05 | O53: 1.000000001 | P53: 7.530100521e-05 | Q53: 78.47981848 | R53: -86.18986245 | S53: 93.81013755 | U53: 1000000000 | V53: 1584.915721 | X53: 75.31466483 | Y53: -85.29484854 | AA53: 39.48682171 | AB53: -0.8950139035 | AD53: 0 | AE53: 0
A54: 43.652 | B54: 0.043652 | C54: 1.000147051 | D54: 0.01714833929 | E54: 1.000000005 | F54: 0.000103126875 | G54: 1 | H54: 0 | I54: 14.4353273 | J54: 1.501466305 | K54: 1.000022914 | L54: 0.006769517702 | M54: 1.000000001 | N54: 5.255700795e-05 | O54: 1.000000002 | P54: 8.256611186e-05 | Q54: 77.68382951 | R54: -86.62417837 | S54: 93.37582163 | U54: 1000000000 | V54: 1905.497104 | X54: 74.51889071 | Y54: -85.64282895 | AA54: 39.48660687 | AB54: -0.9813494229 | AD54: 0 | AE54: 0
A55: 47.863 | B55: 0.047863 | C55: 1.000176788 | D55: 0.01880222427 | E55: 1.000000006 | F55: 0.0001130752684 | G55: 1 | H55: 0 | I55: 15.82147741 | J55: 1.507548945 | K55: 1.000027548 | L55: 0.007422533328 | M55: 1.000000002 | N55: 5.762705194e-05 | O55: 1.000000002 | P55: 9.053105955e-05 | Q55: 76.88720351 | R55: -87.03021044 | S55: 92.96978956 | U55: 1000000000 | V55: 2290.866769 | X55: 73.72252295 | Y55: -85.95421403 | AA55: 39.48634863 | AB55: -1.075996409 | AD55: 0 | AE55: 0
A56: 52.481 | B56: 0.052481 | C56: 1.000212544 | D56: 0.02061584133 | E56: 1.000000008 | F56: 0.0001239851901 | G56: 1 | H56: 0 | I56: 17.34216136 | J56: 1.513101384 | K56: 1.00003312 | L56: 0.008138656678 | M56: 1.000000002 | N56: 6.318712392e-05 | O56: 1.000000002 | P56: 9.926583239e-05 | Q56: 76.08981765 | R56: -87.41141747 | S56: 92.58858253 | U56: 1000000000 | V56: 2754.255361 | X56: 72.9254476 | Y56: -86.23163308 | AA56: 39.48603812 | AB56: -1.179784386 | AD56: 0 | AE56: 0
A57: 57.544 | B57: 0.057544 | C57: 1.000255526 | D57: 0.02260406597 | E57: 1.000000009 | F57: 0.0001359464144 | G57: 1 | H57: 0 | I57: 19.00989292 | J57: 1.518167846 | K57: 1.000039818 | L57: 0.008923777529 | M57: 1.000000002 | N57: 6.928297589e-05 | O57: 1.000000003 | P57: 0.0001088423059 | Q57: 75.29197363 | R57: -87.77084976 | S57: 92.22915024 | U57: 1000000000 | V57: 3311.311936 | X57: 72.12797682 | Y57: -86.47728513 | AA57: 39.48566488 | AB57: -1.29356463 | AD57: 0 | AE57: 0
A58: 63.096 | B58: 0.063096 | C58: 1.000307205 | D58: 0.02478411338 | E58: 1.000000011 | F58: 0.0001490628901 | G58: 1 | H58: 0 | I58: 20.83916589 | J58: 1.522791326 | K58: 1.000047872 | L58: 0.009784715068 | M58: 1.000000003 | N58: 7.596758385e-05 | O58: 1.000000004 | P58: 0.0001193437045 | Q58: 74.49358161 | R58: -88.11156819 | S58: 91.88843181 | U58: 1000000000 | V58: 3981.105216 | X58: 71.33003354 | Y58: -86.69324588 | AA58: 39.48521614 | AB58: -1.418322314 | AD58: 0 | AE58: 0
A59: 69.183 | B59: 0.069183 | C59: 1.000369326 | D59: 0.0271739623 | E59: 1.000000013 | F59: 0.0001634432914 | G59: 1 | H59: 0 | I59: 22.84513666 | J59: 1.527009343 | K59: 1.000057554 | L59: 0.01072859727 | M59: 1.000000003 | N59: 8.329633181e-05 | O59: 1.000000004 | P59: 0.0001308570355 | Q59: 73.69485775 | R59: -88.43634623 | S59: 91.56365377 | U59: 1000000000 | V59: 4786.287489 | X59: 70.53184906 | Y59: -86.88125993 | AA59: 39.48467676 | AB59: -1.555086299 | AD59: 0 | AE59: 0
A60: 75.858 | B60: 0.075858 | C60: 1.000444015 | D60: 0.0297943111 | E60: 1.000000016 | F60: 0.0001792128294 | G60: 1 | H60: 0 | I60: 25.04527159 | J60: 1.530858014 | K60: 1.000069196 | L60: 0.0117636358 | M60: 1.000000004 | N60: 9.133303175e-05 | O60: 1.000000005 | P60: 0.0001434825462 | Q60: 72.89567069 | R60: -88.74797073 | S60: 91.25202927 | U60: 1000000000 | V60: 5754.436164 | X60: 69.73331046 | Y60: -87.04292964 | AA60: 39.4840283 | AB60: -1.705041087 | AD60: 0 | AE60: 0
A61: 83.176 | B61: 0.083176 | C61: 1.000533791 | D61: 0.03266660546 | E61: 1.000000019 | F61: 0.0001965014404 | G61: 1 | H61: 0 | I61: 27.45769931 | J61: 1.534368614 | K61: 1.000083189 | L61: 0.01289835013 | M61: 1.000000005 | N61: 0.0001001439037 | O61: 1.000000006 | P61: 0.0001573242672 | Q61: 72.09624486 | R61: -89.04897661 | S61: 90.95102339 | U61: 1000000000 | V61: 6918.246976 | X61: 68.93466401 | Y61: -87.17956267 | AA61: 39.48324892 | AB61: -1.869413939 | AD61: 0 | AE61: 0
A62: 91.201 | B62: 0.091201 | C62: 1.000641728 | D62: 0.03581577385 | E62: 1.000000023 | F62: 0.0002154603229 | G62: 1 | H62: 0 | I62: 30.10351796 | J62: 1.537571505 | K62: 1.000100016 | L62: 0.01414265215 | M62: 1.000000006 | N62: 0.0001098060036 | O62: 1.000000007 | P62: 0.0001725032519 | Q62: 71.2963919 | R62: -89.34196663 | S62: 90.65803337 | U62: 1000000000 | V62: 8317.622401 | X62: 68.13574801 | Y62: -87.2923352 | AA62: 39.48231196 | AB62: -2.049631425 | AD62: 0 | AE62: 0
A63: 100 | B63: 0.1 | C63: 1.000771478 | D63: 0.03926785618 | E63: 1.000000028 | F63: 0.0002362477629 | G63: 1 | H63: 0 | I63: 33.00481739 | J63: 1.540493082 | K63: 1.000120244 | L63: 0.01550691488 | M63: 1.000000007 | N63: 0.0001203999994 | O63: 1.000000009 | P63: 0.0001891462285 | Q63: 70.49623974 | R63: -89.62935341 | S63: 90.37064659 | U63: 1000000000 | V63: 10000 | X63: 67.33672202 | Y63: -87.3821697 | AA63: 39.48118579 | AB63: -2.247183713 | AD63: 0 | AE63: 0
A64: 109.65 | B64: 0.10965 | C64: 1.000927485 | D64: 0.04305272917 | E64: 1.000000034 | F64: 0.000259045671 | G64: 1 | H64: 0 | I64: 36.18698701 | J64: 1.543158565 | K64: 1.000144569 | L64: 0.01700305646 | M64: 1.000000009 | N64: 0.0001320185992 | O64: 1.000000011 | P64: 0.0002073988394 | Q64: 69.6955953 | R64: -89.91361428 | S64: 90.08638572 | U64: 1000000000 | V64: 12023.1225 | X64: 66.53743146 | Y64: -87.44983374 | AA64: 39.47983191 | AB64: -2.463780535 | AD64: 0 | AE64: 0
A65: 120.23 | B65: 0.12023 | C65: 1.001114999 | D65: 0.04720094003 | E65: 1.00000004 | F65: 0.000284040683 | G65: 1 | H65: 0 | I65: 39.67607782 | J65: 1.545589553 | K65: 1.000173811 | L65: 0.01864329805 | M65: 1.00000001 | N65: 0.000144756919 | O65: 1.000000013 | P65: 0.0002274105102 | Q65: 68.89469604 | R65: -90.19704002 | S65: 89.80295998 | U65: 1000000000 | V65: 14455.2529 | X65: 65.73815922 | Y65: -87.49587003 | AA65: 39.47820489 | AB65: -2.701169986 | AD65: 0 | AE65: 0
A66: 131.83 | B66: 0.13183 | C66: 1.001340382 | D66: 0.05174720015 | E66: 1.000000048 | F66: 0.0003114454215 | G66: 1 | H66: 0 | I66: 43.50177016 | J66: 1.547806731 | K66: 1.000208965 | L66: 0.02044155694 | M66: 1.000000013 | N66: 0.0001587233187 | O66: 1.000000015 | P66: 0.0002493514725 | Q66: 68.09348218 | R66: -90.482011 | S66: 89.517989 | U66: 1000000000 | V66: 17379.1489 | X66: 64.93890056 | Y66: -87.52067255 | AA66: 39.47624969 | AB66: -2.961338452 | AD66: 0 | AE66: 0
A67: 144.54 | B67: 0.14454 | C67: 1.001611081 | D67: 0.0567260266 | E67: 1.000000058 | F67: 0.0003414725096 | G67: 1 | H67: 0 | I67: 47.69374594 | J67: 1.549827681 | K67: 1.000251196 | L67: 0.02241173839 | M67: 1.000000015 | N67: 0.0001740261582 | O67: 1.000000018 | P67: 0.0002733919578 | Q67: 67.29241105 | R67: -90.7707193 | S67: 89.2292807 | U67: 1000000000 | V67: 20891.8116 | X67: 64.14017717 | Y67: -87.52445811 | AA67: 39.47390195 | AB67: -3.246261188 | AD67: 0 | AE67: 0
A68: 158.49 | B68: 0.15849 | C68: 1.001936754 | D68: 0.06218734418 | E68: 1.00000007 | F68: 0.0003744290689 | G68: 1 | H68: 0 | I68: 52.29488148 | J68: 1.551672831 | K68: 1.000302015 | L68: 0.0245739318 | M68: 1.000000018 | N68: 0.0001908219577 | O68: 1.000000022 | P68: 0.0002997778563 | Q68: 66.49007366 | R68: -91.06605037 | S68: 88.93394963 | U68: 1000000000 | V68: 25119.0801 | X68: 63.34066345 | Y68: -87.50725521 | AA68: 39.47107827 | AB68: -3.558795165 | AD68: 0 | AE68: 0
A69: 173.78 | B69: 0.17378 | C69: 1.002328013 | D69: 0.06816898586 | E69: 1.000000084 | F69: 0.0004105513469 | G69: 1 | H69: 0 | I69: 57.33816002 | J69: 1.55335505 | K69: 1.000363087 | L69: 0.02694355507 | M69: 1.000000022 | N69: 0.0002092311169 | O69: 1.000000027 | P69: 0.000328698314 | Q69: 65.68752141 | R69: -91.37002999 | S69: 88.62997001 | U69: 1000000000 | V69: 30199.4884 | X69: 62.54150233 | Y69: -87.46892464 | AA69: 39.46768715 | AB69: -3.901105355 | AD69: 0 | AE69: 0
A70: 190.55 | B70: 0.19055 | C70: 1.002798348 | D70: 0.07472399331 | E70: 1.000000101 | F70: 0.0004501700901 | G70: 1 | H70: 0 | I70: 62.86975937 | J70: 1.554889758 | K70: 1.000436529 | L70: 0.02954219775 | M70: 1.000000026 | N70: 0.000229422196 | O70: 1.000000032 | P70: 0.0003604181357 | Q70: 64.88412338 | R70: -91.68534954 | S70: 88.31465046 | U70: 1000000000 | V70: 36309.3025 | X70: 61.74217903 | Y70: -87.4091225 | AA70: 39.46361242 | AB70: -4.276227041 | AD70: 0 | AE70: 0
A71: 208.93 | B71: 0.20893 | C71: 1.003363279 | D71: 0.0819009102 | E71: 1.000000122 | F71: 0.0004935924201 | G71: 1 | H71: 0 | I71: 68.93256012 | J71: 1.556288885 | K71: 1.000524781 | L71: 0.0323898629 | M71: 1.000000032 | N71: 0.0002515517147 | O71: 1.000000038 | P71: 0.0003951832114 | Q71: 64.08034557 | R71: -92.01433341 | S71: 87.98566659 | U71: 1000000000 | V71: 43651.7449 | X71: 60.94329295 | Y71: -87.32739534 | AA71: 39.45872068 | AB71: -4.686938066 | AD71: 0 | AE71: 0
A72: 229.09 | B72: 0.22909 | C72: 1.00404228 | D72: 0.08976313202 | E72: 1.000000146 | F72: 0.0005412199572 | G72: 1 | H72: 0 | I72: 75.58263823 | J72: 1.557565389 | K72: 1.000630908 | L72: 0.03551270256 | M72: 1.000000038 | N72: 0.000275824353 | O72: 1.000000046 | P72: 0.0004333150896 | Q72: 63.27543819 | R72: -92.35986494 | S72: 87.64013506 | U72: 1000000000 | V72: 52482.2281 | X72: 60.1442614 | Y72: -87.22299881 | AA72: 39.45284486 | AB72: -5.136866133 | AD72: 0 | AE72: 0
A73: 251.19 | B73: 0.25119 | C73: 1.004857828 | D73: 0.09836913531 | E73: 1.000000176 | F73: 0.000593430697 | G73: 1 | H73: 0 | I73: 82.8727721 | J73: 1.558729345 | K73: 1.000758456 | L73: 0.03893525535 | M73: 1.000000046 | N73: 0.0003024327508 | O73: 1.000000056 | P73: 0.0004751164042 | Q73: 62.46969664 | R73: -92.72447264 | S73: 87.27552736 | U73: 1000000000 | V73: 63096.4161 | X73: 59.34557205 | Y73: -87.09511526 | AA73: 39.44579266 | AB73: -5.629357384 | AD73: 0 | AE73: 0
A74: 275.42 | B74: 0.27542 | C74: 1.005837357 | D74: 0.1077877699 | E74: 1.000000212 | F74: 0.0006506735088 | G74: 1 | H74: 0 | I74: 90.86563707 | J74: 1.559790844 | K74: 1.000911766 | L74: 0.04268662262 | M74: 1.000000055 | N74: 0.0003316056678 | O74: 1.000000067 | P74: 0.0005209465328 | Q74: 61.66280828 | R74: -93.11102018 | S74: 86.88897982 | U74: 1000000000 | V74: 75856.1764 | X74: 58.5471463 | Y74: -86.94266868 | AA74: 39.43733005 | AB74: -6.168351498 | AD74: 0 | AE74: 0
A75: 302 | B75: 0.302 | C75: 1.007014301 | D75: 0.118097796 | E75: 1.000000255 | F75: 0.0007134681361 | G75: 1 | H75: 0 | I75: 99.63380563 | J75: 1.560759404 | K75: 1.001096141 | L75: 0.04680043837 | M75: 1.000000066 | N75: 0.000363607984 | O75: 1.00000008 | P75: 0.0005712215968 | Q75: 60.85410988 | R75: -93.52264757 | S75: 86.47735243 | U75: 1000000000 | V75: 91204 | X75: 57.74860519 | Y75: -86.7642924 | AA75: 39.42717276 | AB75: -6.758355163 | AD75: 0 | AE75: 0
A76: 331.13 | B76: 0.33113 | C76: 1.008426787 | D76: 0.1293679581 | E76: 1.000000306 | F76: 0.0007822870722 | G76: 1 | H76: 0 | I76: 109.2432535 | J76: 1.561642316 | K76: 1.001317654 | L76: 0.05130709541 | M76: 1.000000079 | N76: 0.0003986804989 | O76: 1.000000097 | P76: 0.0006263198886 | Q76: 60.04409895 | R76: -93.96197832 | S76: 86.03802168 | U76: 1000000000 | V76: 109647.0769 | X76: 56.95076866 | Y76: -86.55867657 | AA76: 39.41499836 | AB76: -7.403301749 | AD76: 0 | AE76: 0
A77: 363.08 | B77: 0.36308 | C77: =SQRT(1+(A77/pole1)^2) -> 1.010122856 | D77: =ATAN(A77/pole1) -> 0.141691166 | E77: =SQRT(1+(A77/Zero1)^2) -> 1.000000368 | F77: =ATAN(A77/Zero1) -> 0.0008577681831 | G77: =IF(VIN_nom>Vout, 1, SQRT(1+(A77/z_RHP)^2)) -> 1 | H77: =IF(VIN_nom>Vout, 0, -ATAN(A77/z_RHP)) -> 0 | I77: =SQRT(1+(A77/Pole2)^2) -> 119.7830486 | J77: =ATAN(A77/Pole2) -> 1.562447803 | K77: =SQRT(1+(A77/Zero2)^2) -> 1.001583986 | L77: =ATAN(A77/Zero2) -> 0.05624762609 | M77: =SQRT(1+(A77/pole4)^2) -> 1.000000096 | N77: =ATAN(A77/pole4) -> 0.0004371482922 | O77: =SQRT((1-(V77/pterm2))^2+(A77/pterm1)^2) -> 1.000000116 | P77: =IF((ATAN((A77/pterm1)/(1-A77^2/pterm2))>0),ATAN((A77/pterm1)/(1-A77^2/pterm2)),PI()+ATAN((A77/pterm1)/(1-A77^2/pterm2))) -> 0.0006867521026 | Q77: =20*LOG10(((E77*K77*G77)/(C77*I77*O77*M77))*Adc) -> 59.23179795 | R77: =((F77+L77+H77)-(D77+J77+P77+N77))*radconv -> -94.43246742 | S77: =IF(R77>0,R77,R77+180) -> 85.56753258 | U77: 1000000000 | V77: 131827.0864 | X77: =20*LOG10((K77/(I77*M77))*AEA) -> 56.15306377 | Y77: =(L77-(J77+N77))*radconv -> -86.3239601 | AA77: =20*LOG10((E77*G77/(C77*O77))*Acs*Am) -> 39.40040224 | AB77: =(F77+H77-(D77+P77))*radconv -> -8.108507318 | AD77: 0 | AE77: =IF(AD77>0,S75,0) -> 0
A78: 398.11 | B78: =A78/1000 -> 0.39811 | C78: 1.012158082 | D78: 0.1551525962 | E78: 1.000000442 | F78: 0.000940525709 | G78: 1 | H78: 0 | I78: 131.3389608 | J78: 1.563182366 | K78: 1.001904072 | L78: 0.06166126096 | M78: 1.000000115 | N78: 0.0004793244033 | O78: 1.00000014 | P78: 0.0007530100184 | Q78: 58.41712635 | R78: -94.93713065 | S78: 85.06286935 | U78: =IF(Q78<0,A78,1000000000) -> 1000000000 | V78: =A78^2 -> 158491.5721 | X78: 55.35587472 | Y78: -86.05828555 | AA78: 39.3829197 | AB78: -8.878845097 | AD78: =SUM((Q79<0)*(Q78>0))*A78 -> 0 | AE78: 0
A79: 436.52 | B79: 0.43652 | C79: 1.014599586 | D79: 0.1698478606 | E79: 1.000000532 | F79: 0.001031268388 | G79: 1 | H79: 0 | I79: 144.009956 | J79: 1.563852307 | K79: 1.002288769 | L79: 0.06759308232 | M79: 1.000000138 | N79: 0.0005255700316 | O79: 1.000000168 | P79: 0.0008256610741 | Q79: 57.59955562 | R79: -95.47923681 | S79: 84.52076319 | U79: 1000000000 | V79: 190549.7104 | X79: 54.55923013 | Y79: -85.75945165 | AA79: 39.36199356 | AB79: -9.719785154 | AD79: 0 | AE79: 0
A80: 478.63 | B80: 0.47863 | C80: 1.017526755 | D80: 0.1858738115 | E80: 1.000000639 | F80: 0.001130752207 | G80: 1 | H80: 0 | I80: 157.9015983 | J80: 1.564463226 | K80: 1.002751017 | L80: 0.07409082544 | M80: 1.000000166 | N80: 0.0005762704562 | O80: 1.000000202 | P80: 0.0009053105369 | Q80: 56.77865766 | R80: -96.06193452 | S80: 83.93806548 | U80: 1000000000 | V80: 229086.6769 | X80: 53.76335466 | Y80: -85.42506644 | AA80: 39.33697106 | AB80: -10.63686808 | AD80: 0 | AE80: 0
A81: 524.81 | B81: 0.52481 | C81: 1.021035424 | D81: 0.203338058 | E81: 1.000000769 | F81: 0.001239851272 | G81: 1 | H81: 0 | I81: 173.1359468 | J81: 1.565020487 | K81: 1.003306566 | L81: 0.08120936736 | M81: 1.0000002 | N81: 0.0006318711559 | O81: 1.000000243 | P81: 0.0009926582466 | Q81: 55.95355515 | R81: -96.68856781 | S81: 83.31143219 | U81: 1000000000 | V81: 275425.5361 | X81: 52.96815083 | Y81: -85.05231837 | AA81: 39.30707239 | AB81: -11.63624944 | AD81: 0 | AE81: 0
A82: 575.44 | B82: 0.57544 | C82: 1.025237431 | D82: 0.22234137 | E82: 1.000000924 | F82: 0.001359463315 | G82: 1 | H82: 0 | I82: 189.8383599 | J82: 1.565528663 | K82: 1.003974005 | L82: 0.08900437273 | M82: 1.00000024 | N82: 0.0006928296491 | O82: 1.000000292 | P82: 0.001088422958 | Q82: 55.12372458 | R82: -97.36199916 | S82: 82.63800084 | U82: 1000000000 | V82: 331131.1936 | X82: 52.17399222 | Y82: -84.6383065 | AA82: 39.27140043 | AB82: -12.72369266 | AD82: 0 | AE82: 0
A83: 630.96 | B83: 0.63096 | C83: 1.030267145 | D83: 0.2429935794 | E83: 1.000001111 | F83: 0.001490627808 | G83: 1 | H83: 0 | I83: 208.1539899 | J83: 1.565992173 | K83: 1.004775933 | L83: 0.09753976045 | M83: 1.000000289 | N83: 0.0007596756939 | O83: 1.000000351 | P83: 0.001193436911 | Q83: 54.28813712 | R83: -98.08513072 | S83: 81.91486928 | U83: 1000000000 | V83: 398110.5216 | X83: 51.38091158 | Y83: -84.17965194 | AA83: 39.22889361 | AB83: -13.90547878 | AD83: 0 | AE83: 0
A84: 691.83 | B84: 0.69183 | C84: 1.036281231 | D84: 0.2653948492 | E84: 1.000001336 | F84: 0.001634431473 | G84: 1 | H84: 0 | I84: 228.2345874 | J84: 1.566414856 | K84: 1.005739113 | L84: 0.1068812315 | M84: 1.000000347 | N84: 0.0008329631274 | O84: 1.000000422 | P84: 0.001308570178 | Q84: 53.44597023 | R84: -98.86017641 | S84: 81.13982359 | U84: 1000000000 | V84: 478628.7489 | X84: 50.589299 | Y84: -83.67284211 | AA84: 39.17833931 | AB84: -15.1873343 | AD84: 0 | AE84: 0
A85: 758.58 | B85: 0.75858 | C85: 1.043466654 | D85: 0.2896496739 | E85: 1.000001606 | F85: 0.001792126394 | G85: 1 | H85: 0 | I85: 250.2549958 | J85: 1.566800392 | K85: 1.006896017 | L85: 0.1171035424 | M85: 1.000000417 | N85: 0.000913330066 | O85: 1.000000507 | P85: 0.001434825229 | Q85: 52.59591211 | R85: -99.68907313 | S85: 80.31092687 | U85: 1000000000 | V85: 575443.6164 | X85: 49.79925812 | Y85: -83.11384111 | AA85: 39.11832206 | AB85: -16.57523202 | AD85: 0 | AE85: 0
A86: 831.76 | B86: 0.83176 | C86: 1.052039292 | D86: 0.315843083 | E86: 1.000001931 | F86: 0.0019650119 | G86: 1 | H86: 0 | I86: 274.3966566 | J86: 1.567151959 | K86: 1.008284974 | L86: 0.1282823054 | M86: 1.000000501 | N86: 0.001001438705 | O86: 1.00000061 | P86: 0.001573242364 | Q86: 51.73689785 | R86: -100.5725657 | S86: 79.42743432 | U86: 1000000000 | V86: 691824.6976 | X86: 49.01130964 | Y86: -82.49853675 | AA86: 39.04725628 | AB86: -18.07402893 | AD86: 0 | AE86: 0
A87: 912.01 | B87: 0.91201 | C87: 1.062255499 | D87: 0.3440595229 | E87: 1.000002321 | F87: 0.002154599928 | G87: 1 | H87: 0 | I87: 300.8707021 | J87: 1.567472634 | K87: 1.009952538 | L87: 0.1405040107 | M87: 1.000000603 | N87: 0.001098059599 | O87: 1.000000733 | P87: 0.001725032114 | Q87: 50.86729045 | R87: -101.51074 | S87: 78.48925996 | U87: 1000000000 | V87: 831762.2401 | X87: 48.22564047 | Y87: -81.82219388 | AA87: 38.96331804 | AB87: -19.68854616 | AD87: 0 | AE87: 0
A88: 1000 | B88: 1 | C88: 1.074409187 | D88: 0.3743538661 | E88: 1.000002791 | F88: 0.002362473278 | G88: 1 | H88: 0 | I88: 329.8981617 | J88: 1.567765084 | K88: 1.011953703 | L88: 0.1538559647 | M88: 1.000000725 | N88: 0.001203999418 | O88: 1.000000882 | P88: 0.00189146175 | Q88: 49.98567133 | R88: -102.5019189 | S88: 77.49808107 | U88: 1000000000 | V88: 1000000 | X88: 47.44283307 | Y88: -81.08000931 | AA88: 38.86450633 | AB88: -21.42190963 | AD88: 0 | AE88: 0
A89: 1096.5 | B89: 1.0965 | C89: 1.088844814 | D89: 0.4067675326 | E89: 1.000003355 | F89: 0.002590450974 | G89: 1 | H89: 0 | I89: 361.7330547 | J89: 1.568031854 | K89: 1.014354951 | L89: 0.16843579 | M89: 1.000000871 | N89: 0.001320185233 | O89: 1.00000106 | P89: 0.00207398769 | Q89: 49.09016811 | R89: -103.5430603 | S89: 76.45693967 | U89: 1000000000 | V89: 1202312.25 | X89: 46.66325198 | Y89: -80.26658861 | AA89: 38.74858421 | AB89: -23.27647172 | AD89: 0 | AE89: 0
A90: 1202.3 | B90: 1.2023 | C90: 1.105949458 | D90: 0.4412923329 | E90: 1.000004034 | F90: 0.002840399267 | G90: 1 | H90: 0 | I90: 396.6359982 | J90: 1.568275121 | K90: 1.017234148 | L90: 0.1843378469 | M90: 1.000001048 | N90: 0.001447568189 | O90: 1.000001275 | P90: 0.002274104173 | Q90: 48.17932567 | R90: -104.6284465 | S90: 75.37155354 | U90: 1000000000 | V90: 1445525.29 | X90: 45.88779136 | Y90: -79.37670454 | AA90: 38.61320238 | AB90: -25.25174191 | AD90: 0 | AE90: =IF(AD90>0,S90,0) -> 0
A91: 1318.3 | B91: 1.3183 | C91: 1.12616874 | D91: 0.4778919632 | E91: 1.00000485 | F91: 0.003114444246 | G91: 1 | H91: 0 | I91: 434.9038983 | J91: 1.568496966 | K91: 1.020684755 | L91: 0.2016650066 | M91: 1.00000126 | N91: 0.001587231867 | O91: 1.000001532 | P91: 0.0024935135 | Q91: 47.25135541 | R91: -105.7502602 | S91: 74.24973976 | U91: 1000000000 | V91: 1737914.89 | X91: 45.11718001 | Y91: -78.40464437 | AA91: 38.45584347 | AB91: -27.34561587 | AD91: 0 | AE91: 0
A92: 1445.4 | B92: 1.4454 | C92: 1.149989465 | D92: 0.5164590098 | E92: 1.00000583 | F92: 0.003414711956 | G92: 1 | H92: 0 | I92: 476.8336609 | J92: 1.568699158 | K92: 1.024814825 | L92: 0.220509933 | M92: 1.000001514 | N92: 0.001740259843 | O92: 1.000001842 | P92: 0.002733917964 | Q92: 46.30515447 | R92: -106.8971772 | S92: 73.10282283 | U92: 1000000000 | V92: 2089181.16 | X92: 44.35278112 | Y92: -77.34526221 | AA92: 38.27404141 | AB92: -29.55191496 | AD92: 0 | AE92: 0
A93: 1584.9 | B93: 1.5849 | C93: 1.178017749 | D93: 0.5569266191 | E93: 1.00000701 | F93: 0.003744273366 | G93: 1 | H93: 0 | I93: 522.8541507 | J93: 1.568883746 | K93: 1.029763144 | L93: 0.2410112661 | M93: 1.000001821 | N93: 0.001908217284 | O93: 1.000002215 | P93: 0.002997776434 | Q93: 45.33756518 | R93: -108.0575954 | S93: 71.94240458 | U93: 1000000000 | V93: 2511908.01 | X93: 43.59434426 | Y93: -76.19082173 | AA93: 38.06488898 | AB93: -31.86677368 | AD93: 0 | AE93: 0
A94: 1737.8 | B94: 1.7378 | C94: 1.210844544 | D94: 0.5990532005 | E94: 1.000008428 | F94: 0.004105490634 | G94: 1 | H94: 0 | I94: 573.2952638 | J94: 1.569052024 | K94: 1.035678842 | L94: 0.2632464661 | M94: 1.000002189 | N94: 0.002092308147 | O94: 1.000002663 | P94: 0.003286980334 | Q94: 44.34863862 | R94: -109.2133508 | S94: 70.78664921 | U94: 1000000000 | V94: 3019948.84 | X94: 42.84414039 | Y94: -74.93702785 | AA94: 37.8261663 | AB94: -34.27632294 | AD94: 0 | AE94: 0
A95: 1905.5 | B95: 1.9055 | C95: 1.249180775 | D95: 0.6426261852 | E95: 1.000010133 | F95: 0.004501670796 | G95: 1 | H95: 0 | I95: 628.6188546 | J95: 1.569205537 | K95: 1.042748747 | L95: 0.2873305695 | M95: 1.000002632 | N95: 0.002294217975 | O95: 1.000003202 | P95: 0.003604177658 | Q95: 43.33681732 | R95: -110.3458203 | S95: 69.65417971 | U95: 1000000000 | V95: 3630930.25 | X95: 42.10304701 | Y95: -73.57747459 | AA95: 37.55543838 | AB95: -36.76834569 | AD95: 0 | AE95: 0
A96: 2089.3 | B96: 2.0893 | C96: 1.293749185 | D96: 0.6873228621 | E96: 1.000012182 | F96: 0.004935884517 | G96: 1 | H96: 0 | I96: 689.2537882 | J96: 1.569345482 | K96: 1.051182068 | L96: 0.313337977 | M96: 1.000003164 | N96: 0.002515511894 | O96: 1.000003849 | P96: 0.003951827238 | Q96: 42.3024591 | R96: -111.4323742 | S96: 68.56762576 | U96: 1000000000 | V96: 4365174.49 | X96: 41.37317256 | Y96: -72.10805736 | AA96: 37.25095461 | AB96: -39.32431688 | AD96: 0 | AE96: 0
A97: 2290.9 | B97: 2.2909 | C97: 1.34539584 | D97: 0.7328427143 | E97: 1.000014646 | F97: 0.005412147257 | G97: 1 | H97: 0 | I97: 755.7608882 | J97: 1.569473157 | K97: 1.061235748 | L97: 0.341367635 | M97: 1.000003804 | N97: 0.002758236605 | O97: 1.000004628 | P97: 0.004333144468 | Q97: 41.24504188 | R97: -112.4502709 | S97: 67.5497291 | U97: 1000000000 | V97: 5248222.81 | X97: 40.65574053 | Y97: -70.52329858 | AA97: 36.91096942 | AB97: -41.92697232 | AD97: 0 | AE97: 0
A98: 2511.9 | B98: 2.5119 | C98: 1.404964545 | D98: 0.7787932062 | E98: 1.000017608 | F98: 0.005934238007 | G98: 1 | H98: 0 | I98: 828.6679888 | J98: 1.569589571 | K98: 1.073195579 | L98: 0.3714649195 | M98: 1.000004573 | N98: 0.003024318379 | O98: 1.000005564 | P98: 0.004751155568 | Q98: 40.16616419 | R98: -113.3745448 | S98: 66.62545515 | U98: 1000000000 | V98: 6309641.61 | X98: 39.95315093 | Y98: -68.8207666 | AA98: 36.53468133 | AB98: -44.55377825 | AD98: 0 | AE98: 0
A99: 2754.2 | B99: 2.7542 | C99: 1.473390235 | D99: 0.8247959724 | E99: 1.000021169 | F99: 0.006506644182 | G99: 1 | H99: 0 | I99: 908.601893 | J99: 1.569695735 | K99: 1.087398893 | L99: 0.4036697444 | M99: 1.000005498 | N99: 0.003316044645 | O99: 1.000006689 | P99: 0.005209454158 | Q99: 39.0674676 | R99: -114.1813682 | S99: 65.8186318 | U99: 1000000000 | V99: 7585617.64 | X99: 39.26748163 | Y99: -66.99836348 | AA99: 36.12165404 | AB99: -47.18300472 | AD99: 0 | AE99: 0
A100: 3020 | B100: 3.02 | C100: 1.551702378 | D100: 0.8704879953 | E100: 1.000025452 | F100: 0.007134561515 | G100: 1 | H100: 0 | I100: 996.2883732 | J100: 1.569792601 | K100: 1.104241062 | L100: 0.4380055904 | M100: 1.000006611 | N100: 0.003636063976 | O100: 1.000008042 | P100: 0.005712201243 | Q100: 37.95094224 | R100: -114.8487433 | S100: 65.15125671 | U100: 1000000000 | V100: 9120400 | X100: 38.60074359 | Y100: -65.05495022 | AA100: 35.67186671 | AB100: -49.79379306 | AD100: 0 | AE100: 0
A101: 3311.3 | B101: 3.3113 | C101: 1.640871284 | D101: 0.9154519382 | E101: 1.000030598 | F101: 0.007822712744 | G101: 1 | H101: 0 | I101: 1092.387222 | J101: 1.5698809 | K101: 1.124146107 | L101: 0.4744063091 | M101: 1.000007947 | N101: 0.003986784077 | O101: 1.000009669 | P101: 0.006263179475 | Q101: 36.82098579 | R101: -115.3566744 | S101: 64.64332559 | U101: 1000000000 | V101: 10964707.69 | X101: 37.95607836 | Y101: -62.99449662 | AA101: 35.18657551 | AB101: -52.36217779 | AD101: 0 | AE101: 0
A102: 3630.8 | B102: 3.6308 | C102: 1.742072999 | D102: 0.9593787991 | E102: 1.000036788 | F102: 0.008577473571 | G102: 1 | H102: 0 | I102: 1197.78916 | J102: 1.569961455 | K102: 1.147627139 | L102: 0.5128225031 | M102: 1.000009555 | N102: 0.004371455354 | O102: 1.000011624 | P102: 0.006867495436 | Q102: 35.68065755 | R102: -115.690448 | S102: 64.309552 | U102: 1000000000 | V102: 13182708.64 | X102: 37.33555003 | Y102: -60.82006633 | AA102: 34.66677558 | AB102: -54.87038167 | AD102: 0 | AE102: 0
A103: 3981.1 | B103: 3.9811 | C103: 1.856447757 | D103: 1.001946747 | E103: 1.000044228 | F103: 0.009404982552 | G103: 1 | H103: 0 | I103: 1313.351919 | J103: 1.570034916 | K103: 1.175234839 | L103: 0.5531120503 | M103: 1.000011488 | N103: 0.004793207692 | O103: 1.000013976 | P103: 0.00753006645 | Q103: 34.53481958 | R103: -115.8399141 | S103: 64.16008586 | U103: 1000000000 | V103: 15849157.21 | X103: 36.74199551 | Y103: -58.54001894 | AA103: 34.11449214 | AB103: -57.2998952 | AD103: 0 | AE103: 0
A104: 4365.2 | B104: 4.3652 | C104: 1.985253635 | D104: 1.042903687 | E104: 1.000053174 | F104: 0.01031232197 | G104: 1 | H104: 0 | I104: 1440.065187 | J104: 1.570101914 | K104: 1.207591694 | L104: 0.5950963915 | M104: 1.000013811 | N104: 0.005255652409 | O104: 1.000016802 | P104: 0.008256566271 | Q104: 33.38807561 | R104: -115.8010218 | S104: 64.19897819 | U104: 1000000000 | V104: 19054971.04 | X104: 36.17786375 | Y104: -56.16482819 | AA104: 33.53187993 | AB104: -59.63619363 | AD104: 0 | AE104: 0
A105: 4786.3 | B105: 4.7863 | C105: 2.129805093 | D105: 1.082041878 | E105: 1.000063928 | F105: 0.01130704499 | G105: 1 | H105: 0 | I105: 1578.984634 | J105: 1.570163008 | K105: 1.245375544 | L105: 0.6385335679 | M105: 1.000016604 | N105: 0.00576264141 | O105: 1.000020201 | P105: 0.009053046747 | Q105: 32.24532729 | R105: -115.5758985 | S105: 64.42410153 | U105: 1000000000 | V105: 22908667.69 | X105: 35.64552877 | Y105: -53.7086101 | AA105: 32.92146659 | AB105: -61.86728837 | AD105: 0 | AE105: 0
A106: 5248.1 | B106: 5.2481 | C106: 2.291578859 | D106: 1.119224485 | E106: 1.000076859 | F106: 0.01239788382 | G106: 1 | H106: 0 | I106: 1731.330877 | J106: 1.570218736 | K106: 1.289343467 | L106: 0.683149429 | M106: 1.000019963 | N106: 0.006318628308 | O106: 1.000024287 | P106: 0.009926505187 | Q106: 31.11079842 | R106: -115.1725981 | S106: 64.82740194 | U106: 1000000000 | V106: 27542553.61 | X106: 35.146822 | Y106: -51.18735825 | AA106: 32.28564449 | AB106: -63.98523982 | AD106: 0 | AE106: 0
A107: 5370.3 | B107: 5.3703 | C107: 2.334870442 | D107: 1.128197532 | E107: 1.000080479 | F107: 0.01268653318 | G107: 1 | H107: 0 | I107: 1771.644241 | J107: 1.570231879 | K107: 1.301389059 | L107: 0.6944438736 | M107: 1.000020903 | N107: 0.006465751096 | O107: 1.000025431 | P107: 0.0101576363 | Q107: 30.82909385 | R107: -115.0454788 | S107: 64.95452124 | U107: 1000000000 | V107: 28840122.09 | X107: 35.02765553 | Y107: -50.54941679 | AA107: 32.12310639 | AB107: -64.49606198 | AD107: 0 | AE107: 0
A108: 5432.85 | B108: 5.43285 | C108: 2.357100643 | D108: 1.132662808 | E108: 1.000082365 | F108: 0.0128342821 | G108: 1 | H108: 0 | I108: 1792.279273 | J108: 1.570238378 | K108: 1.307618124 | L108: 0.7001442272 | M108: 1.000021393 | N108: 0.006541058111 | O108: 1.000026027 | P108: 0.01027594431 | Q108: 30.68768631 | R108: -114.9777143 | S108: 65.02228568 | U108: 1000000000 | V108: 29515859.12 | X108: 34.96854357 | Y108: -50.2274977 | AA108: 32.04081081 | AB108: -64.75021662 | AD108: 0 | AE108: 0
A109: 5495.4 | B109: 5.4954 | C109: 2.379376962 | D109: 1.13704456 | E109: 1.000084272 | F109: 0.01298203045 | G109: 1 | H109: 0 | I109: 1812.914305 | J109: 1.570244729 | K109: 1.313889275 | L109: 0.7057903477 | M109: 1.000021889 | N109: 0.006616365052 | O109: 1.000026629 | P109: 0.01039425225 | Q109: 30.54811567 | R109: -114.9082632 | S109: 65.09173681 | U109: 1000000000 | V109: 30199421.16 | X109: 34.91066412 | Y109: -49.90867747 | AA109: 31.95911962 | AB109: -64.99958572 | AD109: 0 | AE109: 0
A110: 5559.4 | B110: 5.5594 | C110: 2.402216076 | D110: 1.141443688 | E110: 1.000086247 | F110: 0.01313320325 | G110: 1 | H110: 0 | I110: 1834.027687 | J110: 1.570251079 | K110: 1.320348736 | L110: 0.7115116531 | M110: 1.000022401 | N110: 0.006693417639 | O110: 1.000027253 | P110: 0.01051530267 | Q110: 30.4071721 | R110: -114.8355607 | S110: 65.1644393 | U110: 1000000000 | V110: 30906928.36 | X110: 34.85268516 | Y110: -49.58564943 | AA110: 31.87615502 | AB110: -65.24991128 | AD110: 0 | AE110: 0
A111: 5623.4 | B111: 5.6234 | C111: 2.425100801 | D111: 1.145759872 | E111: 1.000088244 | F111: 0.01328437544 | G111: 1 | H111: 0 | I111: 1855.141069 | J111: 1.570257284 | K111: 1.326850995 | L111: 0.7171770678 | M111: 1.00002292 | N111: 0.006770470147 | O111: 1.000027884 | P111: 0.01063635301 | Q111: 30.2680739 | R111: -114.7613 | S111: 65.23870004 | U111: 1000000000 | V111: 31622627.56 | X111: 34.79592961 | Y111: -49.26581541 | AA111: 31.79381236 | AB111: -65.49548455 | AD111: 0 | AE111: 0
A112: 5688.9 | B112: 5.6889 | C112: 2.448567782 | D112: 1.150093596 | E112: 1.000090311 | F112: 0.0134390901 | G112: 1 | H112: 0 | I112: 1876.749297 | J112: 1.570263491 | K112: 1.333549312 | L112: 0.7229178711 | M112: 1.000023457 | N112: 0.00684932849 | O112: 1.000028538 | P112: 0.0107602404 | Q112: 30.12758687 | R112: -114.6837878 | S112: 65.31621219 | U112: 1000000000 | V112: 32363583.21 | X112: 34.73907701 | Y112: -48.94176545 | AA112: 31.71017793 | AB112: -65.74202236 | AD112: 0 | AE112: 0
A113: 5754.4 | B113: 5.7544 | C113: 2.472079876 | D113: 1.154344961 | E113: 1.000092403 | F113: 0.01359380412 | G113: 1 | H113: 0 | I113: 1898.357524 | J113: 1.570269556 | K113: 1.340291137 | L113: 0.7286011063 | M113: 1.000024 | N113: 0.006928186747 | O113: 1.000029199 | P113: 0.0108841277 | Q113: 29.98895361 | R113: -114.6048472 | S113: 65.39515275 | U113: 1000000000 | V113: 33113119.36 | X113: 34.6834387 | Y113: -48.62100581 | AA113: 31.62718298 | AB113: -65.98384144 | AD113: 0 | AE113: 0
A114: 5821.4 | B114: 5.8214 | C114: 2.49617576 | D114: 1.158610746 | E114: 1.000094567 | F114: 0.01375206053 | G114: 1 | H114: 0 | I114: 1920.460596 | J114: 1.570275618 | K114: 1.347231691 | L114: 0.7343554524 | M114: 1.000024562 | N114: 0.00700885083 | O114: 1.000029883 | P114: 0.01101085204 | Q114: 29.84902336 | R114: -114.5227214 | S114: 65.4772786 | U114: 1000000000 | V114: 33888697.96 | X114: 34.62774884 | Y114: -48.29627514 | AA114: 31.54294259 | AB114: -66.22644625 | AD114: 0 | AE114: 0
A115: 5888.4 | B115: 5.8884 | C115: 2.520316198 | D115: 1.162794888 | E115: 1.000096756 | F115: 0.01391031626 | G115: 1 | H115: 0 | I115: 1942.563668 | J115: 1.570281543 | K115: 1.354216396 | L115: 0.7400506266 | M115: 1.000025131 | N115: 0.007089514822 | O115: 1.000030574 | P115: 0.01113757629 | Q115: 29.71095238 | R115: -114.4393002 | S115: 65.56069984 | U115: 1000000000 | V115: 34673254.56 | X115: 34.57326223 | Y115: -47.97492687 | AA115: 31.45935821 | AB115: -66.46437329 | AD115: 0 | AE115: 0
A116: 5957 | B116: 5.957 | C116: 2.545077963 | D116: 1.166996634 | E116: 1.000099024 | F116: 0.0140723505 | G116: 1 | H116: 0 | I116: 1965.194575 | J116: 1.570287471 | K116: 1.361412937 | L116: 0.7458210649 | M116: 1.00002572 | N116: 0.007172105022 | O116: 1.000031291 | P116: 0.01126732671 | Q116: 29.57146975 | R116: -114.3526427 | S116: 65.6473573 | U116: 1000000000 | V116: 35485849 | X116: 34.51868733 | Y116: -47.64937684 | AA116: 31.37445049 | AB116: -66.70326586 | AD116: 0 | AE116: 0
A117: 6025.6 | B117: 6.0256 | C117: 2.569883793 | D117: 1.171117336 | E117: 1.000101317 | F117: 0.01423438401 | G117: 1 | H117: 0 | I117: 1987.825482 | J117: 1.570293265 | K117: 1.368654332 | L117: 0.7515306301 | M117: 1.000026316 | N117: 0.007254695124 | O117: 1.000032016 | P117: 0.01139707703 | Q117: 29.43385442 | R117: -114.2648219 | S117: 65.73517813 | U117: 1000000000 | V117: 36307855.36 | X117: 34.46530628 | Y117: -47.32730684 | AA117: 31.29021621 | AB117: -66.93751503 | AD117: 0 | AE117: 0
A118: 6095.8 | B118: 6.0958 | C118: 2.595312487 | D118: 1.175252528 | E118: 1.000103692 | F118: 0.01440019595 | G118: 1 | H118: 0 | I118: 2010.984224 | J118: 1.570299058 | K118: 1.37611032 | L118: 0.7573109613 | M118: 1.000026933 | N118: 0.007339211424 | O118: 1.000032766 | P118: 0.01152985351 | Q118: 29.29492106 | R118: -114.1738439 | S118: 65.82615608 | U118: 1000000000 | V118: 37158777.64 | X118: 34.41188223 | Y118: -47.00129262 | AA118: 31.2047069 | AB118: -67.1725513 | AD118: 0 | AE118: 0
A119: 6166 | B119: 6.166 | C119: 2.620784699 | D119: 1.179307406 | E119: 1.000106094 | F119: 0.01456600709 | G119: 1 | H119: 0 | I119: 2034.142966 | J119: 1.570304719 | K119: 1.383611791 | L119: 0.7630288038 | M119: 1.000027556 | N119: 0.007423727619 | O119: 1.000033525 | P119: 0.01166262988 | Q119: 29.15786001 | R119: -114.0818371 | S119: 65.91816288 | U119: 1000000000 | V119: 38019556 | X119: 34.35964067 | Y119: -46.67885117 | AA119: 31.1198874 | AB119: -67.40298595 | AD119: 0 | AE119: 0
A120: 6237.8 | B120: 6.2378 | C120: 2.646881181 | D120: 1.183373902 | E120: 1.000108579 | F120: 0.01473559658 | G120: 1 | H120: 0 | I120: 2057.829542 | J120: 1.570310378 | K120: 1.391330518 | L120: 0.7688129933 | M120: 1.000028202 | N120: 0.007510169999 | O120: 1.00003431 | P120: 0.0117984324 | Q120: 29.01956978 | R120: -113.9867617 | S120: 66.01323833 | U120: 1000000000 | V120: 38910148.84 | X120: 34.30739771 | Y120: -46.35271852 | AA120: 31.03384013 | AB120: -67.63404315 | AD120: 0 | AE120: 0
A121: 6309.6 | B121: 6.3096 | C121: 2.673020578 | D121: 1.187360931 | E121: 1.000111093 | F121: 0.01490518522 | G121: 1 | H121: 0 | I121: 2081.516119 | J121: 1.570315908 | K121: 1.39909528 | L121: 0.7745331698 | M121: 1.000028855 | N121: 0.007596612267 | O121: 1.000035105 | P121: 0.01193423482 | Q121: 28.88315391 | R121: -113.8907934 | S121: 66.10920658 | U121: 1000000000 | V121: 39811052.16 | X121: 34.25632403 | Y121: -46.03024617 | AA121: 30.94849794 | AB121: -67.86054725 | AD121: 0 | AE121: 0
A122: 6383.05 | B122: 6.38305 | C122: 2.699803777 | D122: 1.191359632 | E122: 1.000113694 | F122: 0.01507867021 | G122: 1 | H122: 0 | I122: 2105.747024 | J122: 1.570321436 | K122: 1.407085319 | L122: 0.7803192802 | M122: 1.000029531 | N122: 0.007685040904 | O122: 1.000035927 | P122: 0.01207315793 | Q122: 28.74549999 | R122: -113.7917855 | S122: 66.20821451 | U122: 1000000000 | V122: 40743327.3 | X122: 34.20525263 | Y122: -45.70410979 | AA122: 30.86191543 | AB122: -68.0876757 | AD122: 0 | AE122: 0
A123: 6456.5 | B123: 6.4565 | C123: 2.726629297 | D123: 1.195279714 | E123: 1.000116325 | F123: 0.01525215429 | G123: 1 | H123: 0 | I123: 2129.97793 | J123: 1.570326838 | K123: 1.415121933 | L123: 0.7860398605 | M123: 1.000030214 | N123: 0.007773469421 | O123: 1.000036758 | P123: 0.01221208093 | Q123: 28.60972221 | R123: -113.6920204 | S123: 66.30797957 | U123: 1000000000 | V123: 41686392.25 | X123: 34.15533714 | Y123: -45.3817208 | AA123: 30.77605314 | AB123: -68.31029963 | AD123: 0 | AE123: 0
A124: 6531.7 | B124: 6.5317 | C124: 2.754136507 | D124: 1.199214017 | E124: 1.000119051 | F124: 0.0154297708 | G124: 1 | H124: 0 | I124: 2154.786156 | J124: 1.570332244 | K124: 1.423397455 | L124: 0.7918296189 | M124: 1.000030922 | N124: 0.007864004686 | O124: 1.00003762 | P124: 0.01235431376 | Q124: 28.47260994 | R124: -113.5891804 | S124: 66.41081963 | U124: 1000000000 | V124: 42663104.89 | X124: 34.10539599 | Y124: -45.05548907 | AA124: 30.68888202 | AB124: -68.5336913 | AD124: 0 | AE124: 0
A125: 6606.9 | B125: 6.6069 | C125: 2.781685505 | D125: 1.203070452 | E125: 1.000121808 | F125: 0.01560738634 | G125: 1 | H125: 0 | I125: 2179.594381 | J125: 1.570337526 | K125: 1.431720138 | L125: 0.7975522547 | M125: 1.000031638 | N125: 0.007954539822 | O125: 1.000038491 | P125: 0.01249654646 | Q125: 28.3373777 | R125: -113.4857175 | S125: 66.51428247 | U125: 1000000000 | V125: 43651127.61 | X125: 34.05659868 | Y125: -44.73309612 | AA125: 30.60244709 | AB125: -68.75262141 | AD125: 0 | AE125: 0
A126: 6683.85 | B126: 6.68385 | C126: 2.809917578 | D126: 1.206938292 | E126: 1.000124661 | F126: 0.0157891342 | G126: 1 | H126: 0 | I126: 2204.979925 | J126: 1.570342808 | K126: 1.440284468 | L126: 0.8033394062 | M126: 1.000032379 | N126: 0.008047181691 | O126: 1.000039393 | P126: 0.01264208898 | Q126: 28.20090081 | R126: -113.3792853 | S126: 66.62071466 | U126: 1000000000 | V126: 44673850.82 | X126: 34.00781591 | Y126: -44.40712739 | AA126: 30.51475297 | AB126: -68.97215795 | AD126: 0 | AE126: 0
A127: 6760.8 | B127: 6.7608 | C127: 2.838190851 | D127: 1.210729128 | E127: 1.000127548 | F127: 0.01597088102 | G127: 1 | H127: 0 | I127: 2230.365469 | J127: 1.57034797 | K127: 1.448896464 | L127: 0.8090579516 | M127: 1.000033129 | N127: 0.008139823423 | O127: 1.000040305 | P127: 0.01278763137 | Q127: 28.0663048 | R127: -113.2723651 | S127: 66.72763491 | U127: 1000000000 | V127: 45708416.64 | X127: 33.96016305 | Y127: -44.0850826 | AA127: 30.42780982 | AB127: -69.18728249 | AD127: 0 | AE127: 0
A128: 6839.55 | B128: 6.83955 | C128: 2.867166872 | D128: 1.214531176 | E128: 1.000130537 | F128: 0.01615687813 | G128: 1 | H128: 0 | I128: 2256.344828 | J128: 1.570353132 | K128: 1.45775838 | L128: 0.8148401142 | M128: 1.000033906 | N128: 0.008234632067 | O128: 1.000041249 | P128: 0.01293657813 | Q128: 27.93046342 | R128: -113.1625179 | S128: 66.83748206 | U128: 1000000000 | V128: 46779444.2 | X128: 33.9125314 | Y128: -43.75951701 | AA128: 30.33960008 | AB128: -69.40300094 | AD128: 0 | AE128: 0
A129: 6918.3 | B129: 6.9183 | C129: 2.896183511 | D129: 1.218257091 | E129: 1.00013356 | F129: 0.01634287412 | G129: 1 | H129: 0 | I129: 2282.324186 | J129: 1.570358177 | K129: 1.466668444 | L129: 0.8205522121 | M129: 1.000034691 | N129: 0.008329440564 | O129: 1.000042205 | P129: 0.01308552475 | Q129: 27.79650324 | R129: -113.0523165 | S129: 66.94768352 | U129: 1000000000 | V129: 47862874.89 | X129: 33.86601539 | Y129: -43.43795908 | AA129: 30.25215591 | AB129: -69.6143574 | AD129: 0 | AE129: 0
A130: 6998.9 | B130: 6.9989 | C130: 2.925922608 | D130: 1.221993958 | E130: 1.00013669 | F130: 0.01653323838 | G130: 1 | H130: 0 | I130: 2308.913853 | J130: 1.570363223 | K130: 1.475836771 | L130: 0.8263268852 | M130: 1.000035504 | N130: 0.008426476152 | O130: 1.000043194 | P130: 0.01323797028 | Q130: 27.66129924 | R130: -112.939235 | S130: 67.06076496 | U130: 1000000000 | V130: 48984601.21 | X130: 33.81952797 | Y130: -43.11294352 | AA130: 30.16343934 | AB130: -69.82629153 | AD130: 0 | AE130: 0
A131: 7079.5 | B131: 7.0795 | C131: 2.955701741 | D131: 1.225655577 | E131: 1.000139856 | F131: 0.01672360143 | G131: 1 | H131: 0 | I131: 2335.50352 | J131: 1.570368154 | K131: 1.485053704 | L131: 0.8320300658 | M131: 1.000036326 | N131: 0.008523511582 | O131: 1.000044195 | P131: 0.01339041567 | Q131: 27.52797617 | R131: -112.8259319 | S131: 67.17406815 | U131: 1000000000 | V131: 50119320.25 | X131: 33.77414154 | Y131: -42.79201757 | AA131: 30.07550269 | AB131: -70.03391428 | AD131: 0 | AE131: 0
A132: 7161.95 | B132: 7.16195 | C132: 2.986204566 | D132: 1.229325626 | E132: 1.000143132 | F132: 0.01691833261 | G132: 1 | H132: 0 | I132: 2362.703496 | J132: 1.570373083 | K132: 1.494531546 | L132: 0.837791174 | M132: 1.000037177 | N132: 0.008622774086 | O132: 1.00004523 | P132: 0.01354635997 | Q132: 27.39349387 | R132: -112.7098705 | S132: 67.29012954 | U132: 1000000000 | V132: 51293527.8 | X132: 33.72881874 | Y132: -42.46790014 | AA132: 29.9863432 | AB132: -70.24197032 | AD132: 0 | AE132: 0
A133: 7244.4 | B133: 7.2444 | C133: 3.016746799 | D133: 1.232921411 | E133: 1.000146446 | F133: 0.0171130625 | G133: 1 | H133: 0 | I133: 2389.903472 | J133: 1.5703779 | K133: 1.504058367 | L133: 0.8434794864 | M133: 1.000038038 | N133: 0.00872203642 | O133: 1.000046277 | P133: 0.0137023041 | Q133: 27.26088931 | R133: -112.5937185 | S133: 67.40628151 | U133: 1000000000 | V133: 52481331.36 | X133: 33.6845806 | Y133: -42.14794715 | AA133: 29.89797678 | AB133: -70.44577135 | AD133: 0 | AE133: 0
A134: 7328.75 | B134: 7.32875 | C134: 3.048032401 | D134: 1.236525438 | E134: 1.000149876 | F134: 0.01731227845 | G134: 1 | H134: 0 | I134: 2417.730252 | J134: 1.570382716 | K134: 1.513854445 | L134: 0.8492246035 | M134: 1.000038929 | N134: 0.008823586004 | O134: 1.000047361 | P134: 0.01386184169 | Q134: 27.1271265 | R134: -112.474864 | S134: 67.52513602 | U134: 1000000000 | V134: 53710576.56 | X134: 33.64041179 | Y134: -41.82487048 | AA134: 29.80838278 | AB134: -70.6499935 | AD134: 0 | AE134: 0
A135: 7413.1 | B135: 7.4131 | C135: 3.079356789 | D135: 1.240056188 | E135: 1.000153346 | F135: 0.01751149304 | G135: 1 | H135: 0 | I135: 2445.557032 | J135: 1.570387422 | K135: 1.523699848 | L135: 0.8548956614 | M135: 1.00003983 | N135: 0.008925135406 | O135: 1.000048458 | P135: 0.01402137911 | Q135: 26.9952377 | R135: -112.356048 | S135: 67.643952 | U135: 1000000000 | V135: 54954051.61 | X135: 33.59731102 | Y135: -41.50603079 | AA135: 29.71959474 | AB135: -70.85001721 | AD135: 0 | AE135: 0
A136: 7499.45 | B136: 7.49945 | C136: 3.111462855 | D136: 1.243596969 | E136: 1.000156939 | F136: 0.0177154297 | G136: 1 | H136: 0 | I136: 2474.043605 | J136: 1.57039213 | K136: 1.533828791 | L136: 0.8606255823 | M136: 1.000040764 | N136: 0.009029092428 | O136: 1.000049593 | P136: 0.0141846991 | Q136: 26.86211688 | R136: -112.2345184 | S136: 67.76548156 | U136: 1000000000 | V136: 56241750.3 | X136: 33.55426105 | Y136: -41.18395657 | AA136: 29.6295239 | AB136: -71.05056187 | AD136: 0 | AE136: 0
A137: 7585.8 | B137: 7.5858 | C137: 3.143607132 | D137: 1.247065382 | E137: 1.000160573 | F137: 0.01791936489 | G137: 1 | H137: 0 | I137: 2502.530178 | J137: 1.570396731 | K137: 1.544007432 | L137: 0.8662801395 | M137: 1.000041708 | N137: 0.009133049254 | O137: 1.000050742 | P137: 0.01434801891 | Q137: 26.73086792 | R137: -112.1131544 | S137: 67.88684557 | U137: 1000000000 | V137: 57544361.64 | X137: 33.5122634 | Y137: -40.86619421 | AA137: 29.54027259 | AB137: -71.24696022 | AD137: 0 | AE137: 0
A138: 7674.15 | B138: 7.67415 | C138: 3.176534261 | D138: 1.250541433 | E138: 1.000164335 | F138: 0.018128022 | G138: 1 | H138: 0 | I138: 2531.676544 | J138: 1.570401332 | K138: 1.554472244 | L138: 0.8719888335 | M138: 1.000042685 | N138: 0.009239413678 | O138: 1.000051931 | P138: 0.01451512127 | Q138: 26.59847003 | R138: -111.9892103 | S138: 68.0107897 | U138: 1000000000 | V138: 58892578.22 | X138: 33.47034873 | Y138: -40.54546795 | AA138: 29.44978937 | AB138: -71.44374234 | AD138: 0 | AE138: 0
A139: 7762.5 | B139: 7.7625 | C139: 3.209498983 | D139: 1.253946119 | E139: 1.00016814 | F139: 0.01833667752 | G139: 1 | H139: 0 | I139: 2560.822911 | J139: 1.570405827 | K139: 1.564987037 | L139: 0.8776209983 | M139: 1.000043673 | N139: 0.009345777893 | O139: 1.000053133 | P139: 0.01468222344 | Q139: 26.46793895 | R139: -111.8655562 | S139: 68.13444384 | U139: 1000000000 | V139: 60256406.25 | X139: 33.42946903 | Y139: -40.22912049 | AA139: 29.36013799 | AB139: -71.63643567 | AD139: 0 | AE139: 0
A140: 7852.9 | B140: 7.8529 | C140: 3.243266309 | D140: 1.257358126 | E140: 1.000172079 | F140: 0.01855017286 | G140: 1 | H140: 0 | I140: 2590.645565 | J140: 1.570410323 | K140: 1.575796496 | L140: 0.8833058627 | M140: 1.000044696 | N140: 0.009454609875 | O140: 1.000054378 | P140: 0.0148532027 | Q140: 26.33626475 | R140: -111.7393882 | S140: 68.2606118 | U140: 1000000000 | V140: 61668038.41 | X140: 33.38867879 | Y140: -39.90989493 | AA140: 29.26925403 | AB140: -71.82949328 | AD140: 0 | AE140: 0
A141: 7943.3 | B141: 7.9433 | C141: =SQRT(1+(A141/pole1)^2) -> 3.277070613 | D141: =ATAN(A141/pole1) -> 1.260699779 | E141: =SQRT(1+(A141/Zero1)^2) -> 1.000176063 | F141: =ATAN(A141/Zero1) -> 0.01876366651 | G141: =IF(VIN_nom>Vout, 1, SQRT(1+(A141/z_RHP)^2)) -> 1 | H141: =IF(VIN_nom>Vout, 0, -ATAN(A141/z_RHP)) -> 0 | I141: =SQRT(1+(A141/Pole2)^2) -> 2620.46822 | J141: =ATAN(A141/Pole2) -> 1.570414716 | K141: =SQRT(1+(A141/Zero2)^2) -> 1.586656187 | L141: =ATAN(A141/Zero2) -> 0.8889130874 | M141: =SQRT(1+(A141/pole4)^2) -> 1.000045731 | N141: =ATAN(A141/pole4) -> 0.009563441634 | O141: =SQRT((1-(V141/pterm2))^2+(A141/pterm1)^2) -> 1.000055637 | P141: =IF((ATAN((A141/pterm1)/(1-A141^2/pterm2))>0),ATAN((A141/pterm1)/(1-A141^2/pterm2)),PI()+ATAN((A141/pterm1)/(1-A141^2/pterm2))) -> 0.01502418176 | Q141: =20*LOG10(((E141*K141*G141)/(C141*I141*O141*M141))*Adc) -> 26.20645168 | R141: =((F141+L141+H141)-(D141+J141+P141+N141))*radconv -> -111.6136319 | S141: =IF(R141>0,R141,R141+180) -> 68.38636811 | U141: 1000000000 | V141: 63096014.89 | X141: =20*LOG10((K141/(I141*M141))*AEA) -> 33.34890584 | Y141: =(L141-(J141+N141))*radconv -> -39.59511191 | AA141: =20*LOG10((E141*G141/(C141*O141))*Acs*Am) -> 29.17921391 | AB141: =(F141+H141-(D141+P141))*radconv -> -72.01851997 | AD141: 0 | AE141: 0
A142: 8035.8 | B142: =A142/1000 -> 8.0358 | C142: 3.311697291 | D142: 1.264048405 | E142: 1.000180187 | F142: 0.01898211787 | G142: 1 | H142: 0 | I142: 2650.983658 | J142: 1.570419108 | K142: 1.597819076 | L142: 0.8945714899 | M142: 1.000046803 | N142: 0.009674801329 | O142: 1.000056941 | P142: 0.01519913245 | Q142: 26.07550258 | R142: -111.4854311 | S142: 68.51456885 | U142: =IF(Q142<0,A142,1000000000) -> 1000000000 | V142: =A142^2 -> 64574081.64 | X142: 33.30922891 | Y142: -39.27754146 | AA142: 29.08794174 | AB142: -72.20788969 | AD142: =SUM((Q143<0)*(Q142>0))*A142 -> 0 | AE142: 0
A143: 8128.3 | B143: 8.1283 | C143: 3.346360335 | D143: 1.267327694 | E143: 1.000184359 | F143: 0.01920056741 | G143: 1 | H143: 0 | I143: 2681.499095 | J143: 1.570423401 | K143: 1.609032412 | L143: 0.9001512022 | M143: 1.000047886 | N143: 0.009786160785 | O143: 1.000058259 | P143: 0.01537408293 | Q143: 25.94640826 | R143: -111.3577607 | S143: 68.64223934 | U143: 1000000000 | V143: 66069260.89 | X143: 33.27055123 | Y143: -38.96447387 | AA143: 28.9975251 | AB143: -72.39328678 | AD143: 0 | AE143: 0
A144: 8222.95 | B144: 8.22295 | C144: 3.381865538 | D144: 1.270613582 | E144: 1.000188677 | F144: 0.01942409254 | G144: 1 | H144: 0 | I144: 2712.723811 | J144: 1.570427694 | K144: 1.62055751 | L144: 0.9057804956 | M144: 1.000049008 | N144: 0.009900108344 | O144: 1.000059624 | P144: 0.01555309958 | Q144: 25.81618613 | R144: -111.227718 | S144: 68.77228203 | U144: 1000000000 | V144: 67616906.7 | X144: 33.2319761 | Y144: -38.64871378 | AA144: 28.9058781 | AB144: -72.57900419 | AD144: 0 | AE144: 0
A145: 8270.275 | B145: 8.270275 | C145: 3.399631618 | D145: 1.27223078 | E145: 1.000190855 | F145: 0.01953585437 | G145: 1 | H145: 0 | I145: 2728.336168 | J145: 1.570429803 | K145: 1.626339112 | L145: 0.9085651792 | M145: 1.000049574 | N145: 0.009957082027 | O145: 1.000060312 | P145: 0.01564260782 | Q145: 25.75177083 | R145: -111.1629361 | S145: 68.83706387 | U145: 1000000000 | V145: 68397448.58 | X145: 33.21305834 | Y145: -38.49254838 | AA145: 28.86038056 | AB145: -72.67038776 | AD145: 0 | AE145: 0
A146: 8317.6 | B146: 8.3176 | C146: 3.417406497 | D146: 1.273831159 | E146: 1.000193045 | F146: 0.01964761572 | G146: 1 | H146: 0 | I146: 2743.948526 | J146: 1.570431888 | K146: 1.632133235 | L146: 0.9113301126 | M146: 1.000050143 | N146: 0.01001405565 | O146: 1.000061004 | P146: 0.015732116 | Q146: 25.68781173 | R146: -111.0983209 | S146: 68.90167911 | U146: 1000000000 | V146: 69182469.76 | X146: 33.19438184 | Y146: -38.3375132 | AA146: 28.81509795 | AB146: -72.7608077 | AD146: 0 | AE146: 0
A147: 8366.05 | B147: 8.36605 | C147: 3.435612889 | D147: 1.275452423 | E147: 1.000195301 | F147: 0.01976203332 | G147: 1 | H147: 0 | I147: 2759.932017 | J147: 1.570433999 | K147: 1.638077929 | L147: 0.9141404884 | M147: 1.000050729 | N147: 0.01007238356 | O147: 1.000061717 | P147: 0.01582375189 | Q147: 25.6227989 | R147: -111.0323473 | S147: 68.96765265 | U147: 1000000000 | V147: 69990792.6 | X147: 33.17550727 | Y147: -38.17995339 | AA147: 28.76895969 | AB147: -72.85239396 | AD147: 0 | AE147: 0
A148: 8414.5 | B148: 8.4145 | C148: 3.453828215 | D148: 1.277056589 | E148: 1.000197569 | F148: 0.01987645041 | G148: 1 | H148: 0 | I148: 2775.915509 | J148: 1.570436085 | K148: =SQRT(1+(A148/Zero2)^2) -> 1.644035467 | L148: =ATAN(A148/Zero2) -> 0.9169305181 | M148: 1.000051318 | N148: 0.01013071141 | O148: 1.000062434 | P148: 0.01591538771 | Q148: 25.55825236 | R148: -110.9665586 | S148: 69.03344139 | U148: 1000000000 | V148: 70803810.25 | X148: 33.15687745 | Y148: -38.02355794 | AA148: 28.72304297 | AB148: -72.94300067 | AD148: 0 | AE148: 0
A149: 8462.95 | B149: 8.46295 | C149: 3.472052337 | D149: 1.27864392 | E149: 1.000199851 | F149: 0.01999086698 | G149: 1 | H149: 0 | I149: 2791.899 | J149: 1.570438148 | K149: 1.65000571 | L149: 0.9197003787 | M149: 1.000051911 | N149: 0.01018903919 | O149: 1.000063155 | P149: 0.01600702347 | Q149: 25.49416626 | R149: -110.9009595 | S149: 69.0990405 | U149: 1000000000 | V149: 71621522.7 | X149: 33.1384884 | Y149: -37.86831671 | AA149: 28.67734592 | AB149: -73.03264279 | AD149: 0 | AE149: 0
A150: 8511.4 | B150: 8.5114 | C150: 3.490285115 | D150: 1.280214671 | E150: 1.000202145 | F150: 0.02010528302 | G150: 1 | H150: 0 | I150: 2807.882492 | J150: 1.570440187 | K150: 1.655988521 | L150: 0.9224502463 | M150: 1.000052507 | N150: 0.0102473669 | O150: 1.00006388 | P150: 0.01609865916 | Q150: 25.43053485 | R150: -110.8355546 | S150: 69.16444538 | U150: 1000000000 | V150: 72443929.96 | X150: 33.12033621 | Y150: -37.71421966 | AA150: 28.63186671 | AB150: -73.12133496 | AD150: 0 | AE150: 0
A151: 8560.95 | B151: 8.56095 | C151: 3.508940661 | D151: 1.281804196 | E151: 1.000204505 | F151: 0.0202222962 | G151: 1 | H151: 0 | I151: 2824.22887 | J151: 1.570442248 | K151: 1.662120022 | L151: 0.9252420491 | M151: 1.00005312 | N151: 0.0103070188 | O151: 1.000064626 | P151: 0.01619237527 | Q151: 25.36592316 | R151: -110.7688703 | S151: 69.23112973 | U151: 1000000000 | V151: 73289864.9 | X151: 33.10201288 | Y151: -37.55779705 | AA151: 28.58557835 | AB151: -73.21107322 | AD151: 0 | AE151: 0
A152: 8610.5 | B152: 8.6105 | C152: 3.527604978 | D152: 1.283376905 | E152: 1.000206879 | F152: 0.02033930883 | G152: 1 | H152: 0 | I152: 2840.575247 | J152: 1.570444285 | K152: 1.668264383 | L152: 0.9280133084 | M152: 1.000053736 | N152: 0.01036667062 | O152: 1.000065376 | P152: 0.01628609131 | Q152: 25.30177518 | R152: -110.7023981 | S152: 69.29760186 | U152: 1000000000 | V152: 74140710.25 | X152: 33.08392925 | Y152: -37.40255013 | AA152: 28.53951399 | AB152: -73.29984801 | AD152: 0 | AE152: 0
A153: 8660.05 | B153: 8.66005 | C153: 3.546277929 | D153: 1.284933056 | E153: 1.000209267 | F153: 0.0204563209 | G153: 1 | H153: 0 | I153: 2856.921625 | J153: 1.5704463 | K153: 1.674421461 | L153: 0.9307642082 | M153: 1.000054357 | N153: 0.01042632237 | O153: 1.000066131 | P153: 0.01637980728 | Q153: 25.23808504 | R153: -110.6361425 | S153: 69.36385752 | U153: 1000000000 | V153: 74996466 | X153: 33.06608139 | Y153: -37.24846839 | AA153: 28.49367173 | AB153: -73.3876741 | AD153: 0 | AE153: 0
A154: 8709.6 | B154: 8.7096 | C154: 3.564959377 | D154: 1.2864729 | E154: 1.000211668 | F154: 0.02057333241 | G154: 1 | H154: 0 | I154: 2873.268003 | J154: 1.570448291 | K154: 1.680591118 | L154: 0.9334949307 | M154: 1.00005498 | N154: 0.01048597405 | O154: 1.00006689 | P154: 0.01647352318 | Q154: 25.174847 | R154: -110.5701074 | S154: 69.42989263 | U154: 1000000000 | V154: 75857132.16 | X154: 33.04846541 | Y154: -37.0955414 | AA154: 28.44804966 | AB154: -73.47456597 | AD154: 0 | AE154: =IF(AD154>0,S154,0) -> 0
A155: 8760.325 | B155: 8.760325 | C155: 3.58409249 | D155: 1.288032629 | E155: 1.000214141 | F155: 0.02069311808 | G155: 1 | H155: 0 | I155: 2890.002009 | J155: 1.570450306 | K155: 1.686919964 | L155: 0.9362696962 | M155: 1.000055623 | N155: 0.0105470402 | O155: 1.000067671 | P155: 0.01656946134 | Q155: 25.11057176 | R155: -110.5027388 | S155: 69.49726121 | U155: 1000000000 | V155: 76743294.11 | X155: 33.03066795 | Y155: -36.94017334 | AA155: 28.40157189 | AB155: -73.56256545 | AD155: 0 | AE155: 0
A156: 8811.05 | B156: 8.81105 | C156: 3.60323423 | D156: 1.289575789 | E156: 1.000216628 | F156: 0.02081290315 | G156: 1 | H156: 0 | I156: 2906.736016 | J156: 1.570452298 | K156: 1.6932617 | L156: 0.9390236982 | M156: 1.000056269 | N156: 0.01060810627 | O156: 1.000068457 | P156: 0.01666539942 | Q156: 25.0467584 | R156: -110.4356093 | S156: 69.5643907 | U156: 1000000000 | V156: 77634602.1 | X156: 33.01310554 | Y156: -36.78599361 | AA156: 28.35532093 | AB156: -73.64961569 | AD156: 0 | AE156: 0
A157: 8861.775 | B157: 8.861775 | C157: 3.622384459 | D157: 1.291102636 | E157: 1.000219129 | F157: 0.02093268763 | G157: 1 | H157: 0 | I157: 2923.470022 | J157: 1.570454268 | K157: 1.699616183 | L157: 0.9417571277 | M157: 1.000056918 | N157: 0.01066917225 | O157: 1.000069248 | P157: 0.01676133743 | Q157: 24.98340105 | R157: -110.3687226 | S157: 69.6312774 | U157: 1000000000 | V157: 78531056.15 | X157: 32.99577429 | Y157: -36.63299129 | AA157: 28.30929484 | AB157: -73.73573131 | AD157: 0 | AE157: 0
A158: 8912.5 | B158: 8.9125 | C158: 3.641543044 | D158: 1.292613422 | E158: 1.000221644 | F158: 0.02105247151 | G158: 1 | H158: 0 | I158: 2940.204029 | J158: 1.570456214 | K158: =SQRT(1+(A158/Zero2)^2) -> 1.705983271 | L158: =ATAN(A158/Zero2) -> 0.9444701738 | M158: 1.000057572 | N158: 0.01073023816 | O158: 1.000070043 | P158: 0.01685727536 | Q158: 24.92049394 | R158: -110.3020822 | S158: 69.69791779 | U158: 1000000000 | V158: 79432656.25 | X158: 32.97867035 | Y158: -36.48115556 | AA158: 28.26349166 | AB158: -73.82092665 | AD158: 0 | AE158: 0
A159: 8964.4 | B159: 8.9644 | C159: 3.661153933 | D159: 1.294142834 | E159: 1.000224233 | F159: 0.02117502945 | G159: 1 | H159: 0 | I159: 2957.325664 | J159: 1.570458183 | K159: 1.712510745 | L159: 0.9472251639 | M159: 1.000058244 | N159: 0.01079271853 | O159: 1.000070861 | P159: 0.01695543554 | Q159: 24.85658971 | R159: -110.2341566 | S159: 69.76584343 | U159: 1000000000 | V159: 80360467.36 | X159: 32.96140157 | Y159: -36.32699893 | AA159: 28.21685621 | AB159: -73.90715764 | AD159: 0 | AE159: 0
A160: 9016.3 | B160: 9.0163 | C160: 3.680773295 | D160: 1.295655946 | E160: 1.000226836 | F160: 0.02129758675 | G160: 1 | H160: 0 | I160: 2974.447299 | J160: 1.57046013 | K160: 1.719051119 | L160: 0.9499592112 | M160: 1.000058921 | N160: 0.0108551988 | O160: 1.000071684 | P160: 0.01705359563 | Q160: 24.79314489 | R160: -110.1664956 | S160: 69.83350437 | U160: 1000000000 | V160: 81293665.69 | X160: 32.9443629 | Y160: -36.17404094 | AA160: 28.17045007 | AB160: -73.99245469 | AD160: 0 | AE160: 0
A161: 9068.2 | B161: 9.0682 | C161: 3.700400994 | D161: 1.297153009 | E161: 1.000229455 | F161: 0.02142014342 | G161: 1 | H161: 0 | I161: 2991.568934 | J161: 1.570462054 | K161: 1.725604245 | L161: 0.9526725131 | M161: 1.000059601 | N161: 0.010917679 | O161: 1.000072511 | P161: 0.01715175565 | Q161: 24.73015361 | R161: -110.0991026 | S161: 69.90089743 | U161: 1000000000 | V161: 82232251.24 | X161: 32.92755045 | Y161: -36.02227029 | AA161: 28.12427123 | AB161: -74.07683227 | AD161: 0 | AE161: 0
A162: 9120.1 | B162: 9.1201 | C162: 3.720036899 | D162: 1.298634271 | E162: 1.000232089 | F162: 0.02154269944 | G162: 1 | H162: 0 | I162: 3008.690568 | J162: 1.570463956 | K162: 1.732169979 | L162: 0.9553652653 | M162: 1.000060285 | N162: 0.01098015911 | O162: 1.000073344 | P162: 0.01724991559 | Q162: 24.66761007 | R162: -110.0319804 | S162: 69.96801965 | U162: 1000000000 | V162: 83176224.01 | X162: 32.91096044 | Y162: -35.87167579 | AA162: 28.07831769 | AB162: -74.16030456 | AD162: 0 | AE162: 0
A163: 9173.2 | B163: 9.1732 | C163: 3.740135171 | D163: 1.300133682 | E163: 1.000234799 | F163: 0.02166808845 | G163: 1 | H163: 0 | I163: 3026.208079 | J163: 1.57046588 | K163: 1.738900421 | L163: 0.9580992121 | M163: 1.000060989 | N163: 0.01104408376 | O163: 1.0000742 | P163: 0.01735034504 | Q163: 24.6040779 | R163: -109.9635894 | S163: 70.03641058 | U163: 1000000000 | V163: 84147598.24 | X163: 32.89421319 | Y163: -35.71880503 | AA163: 28.03153278 | AB163: -74.24478439 | AD163: 0 | AE163: 0
A164: 9226.3 | B164: 9.2263 | C164: 3.760241762 | D164: 1.301617061 | E164: 1.000237525 | F164: 0.02179347679 | G164: 1 | H164: 0 | I164: 3043.72559 | J164: 1.570467782 | K164: 1.74564376 | L164: 0.9608120568 | M164: 1.000061697 | N164: 0.01110800831 | O164: 1.000075062 | P164: 0.01745077441 | Q164: 24.54100251 | R164: -109.8954877 | S164: 70.10451225 | U164: 1000000000 | V164: 85124611.69 | X164: 32.87769101 | Y164: -35.56714205 | AA164: 27.98497956 | AB164: -74.3283457 | AD164: 0 | AE164: 0
A165: 9279.4 | B165: 9.2794 | C165: 3.780356539 | D165: 1.303084657 | E165: 1.000240266 | F165: 0.02191886443 | G165: 1 | H165: 0 | I165: 3061.243101 | J165: 1.570469662 | K165: 1.752399847 | L165: 0.9635040034 | M165: 1.000062409 | N165: 0.01117193278 | O165: 1.000075928 | P165: 0.01755120369 | Q165: 24.47837799 | R165: -109.827678 | S165: 70.17232204 | U165: 1000000000 | V165: 86107264.36 | X165: 32.86139008 | Y165: -35.41667519 | AA165: 27.93865598 | AB165: -74.41100277 | AD165: 0 | AE165: 0
A166: 9332.5 | B166: 9.3325 | C166: 3.800479372 | D166: 1.304536716 | E166: 1.000243024 | F166: 0.02204425139 | G166: 1 | H166: 0 | I166: 3078.760612 | J166: 1.570471521 | K166: 1.759168535 | L166: 0.9661752537 | M166: 1.000063126 | N166: 0.01123585715 | O166: 1.0000768 | P166: 0.01765163289 | Q166: 24.41619858 | R166: -109.7601625 | S166: 70.23983749 | U166: 1000000000 | V166: 87095556.25 | X166: 32.84530665 | Y166: -35.26739291 | AA166: 27.89255999 | AB166: -74.4927696 | AD166: 0 | AE166: 0
A167: 9386.85 | B167: 9.38685 | C167: 3.821084116 | D167: 1.306007115 | E167: 1.000245862 | F167: 0.0221725893 | G167: 1 | H167: 0 | I167: 3096.690494 | J167: 1.570473401 | K167: 1.766109461 | L167: 0.9688881628 | M167: 1.000063863 | N167: 0.01130128625 | O167: 1.000077697 | P167: 0.01775442615 | Q167: 24.35301044 | R167: -109.6913649 | S167: 70.3086351 | U167: 1000000000 | V167: 88112952.92 | X167: 32.82906603 | Y167: -35.11581124 | AA167: 27.84561248 | AB167: -74.57555366 | AD167: 0 | AE167: 0
A168: 9441.2 | B168: 9.4412 | C168: 3.841697033 | D168: 1.307461738 | E168: 1.000248717 | F168: 0.02230092649 | G168: 1 | H168: 0 | I168: 3114.620376 | J168: 1.57047526 | K168: 1.773063283 | L168: 0.9715798118 | M168: 1.000064605 | N168: 0.01136671524 | O168: 1.000078599 | P168: 0.01785721933 | Q168: 24.29027667 | R168: -109.6228803 | S168: 70.37711971 | U168: 1000000000 | V168: 89136257.44 | X168: 32.81304559 | Y168: -34.96544642 | AA168: 27.79889915 | AB168: -74.65743387 | AD168: 0 | AE168: 0
A169: 9495.55 | B169: 9.49555 | C169: 3.862317992 | D169: 1.308900831 | E169: 1.000251589 | F169: 0.02242926293 | G169: 1 | H169: 0 | I169: 3132.550258 | J169: 1.570477098 | K169: 1.78002985 | L169: 0.9742504113 | M169: 1.000065351 | N169: 0.01143214414 | O169: 1.000079507 | P169: 0.01796001241 | Q169: 24.22799139 | R169: -109.5547108 | S169: 70.44528924 | U169: 1000000000 | V169: 90165469.8 | X169: 32.79724155 | Y169: -34.81628643 | AA169: 27.75241791 | AB169: -74.73842433 | AD169: 0 | AE169: 0
A170: 9549.9 | B170: 9.5499 | C170: 3.882946865 | D170: 1.310324637 | E170: 1.000254477 | F170: 0.02255759864 | G170: 1 | H170: 0 | I170: 3150.48014 | J170: 1.570478915 | K170: 1.787009014 | L170: 0.9769001695 | M170: 1.000066101 | N170: 0.01149757294 | O170: 1.00008042 | P170: 0.0180628054 | Q170: 24.16614879 | R170: -109.4868583 | S170: 70.51314174 | U170: 1000000000 | V170: 91200590.01 | X170: 32.78165021 | Y170: -34.66831936 | AA170: 27.70616665 | AB170: -74.8185389 | AD170: 0 | AE170: 0
A171: 9605.525 | B171: 9.605525 | C171: 3.904067736 | D171: 1.311766261 | E171: 1.000257449 | F171: 0.02268894421 | G171: 1 | H171: 0 | I171: 3168.83064 | J171: 1.570480753 | K171: 1.794164791 | L171: 0.9795907234 | M171: 1.000066873 | N171: 0.01156453653 | O171: 1.000081359 | P171: 0.01816800972 | Q171: 24.1033079 | R171: -109.4177441 | S171: 70.58225591 | U171: 1000000000 | V171: 92266110.53 | X171: 32.76590959 | Y171: -34.51810403 | AA171: 27.65906637 | AB171: -74.89964006 | AD171: 0 | AE171: 0
A172: 9661.15 | B172: 9.66115 | C172: 3.925196633 | D172: 1.313192367 | E172: 1.000260439 | F172: 0.022820289 | G172: 1 | H172: 0 | I172: 3187.18114 | J172: 1.57048257 | K172: 1.801333454 | L172: 0.9822598815 | M172: 1.00006765 | N172: 0.01163150002 | O172: 1.000082304 | P172: 0.01827321395 | Q172: 24.04091877 | R172: -109.3489655 | S172: 70.65103445 | U172: 1000000000 | V172: 93337819.32 | X172: 32.75038418 | Y172: -34.36911336 | AA172: 27.61220266 | AB172: -74.97985219 | AD172: 0 | AE172: 0
A173: 9716.775 | B173: 9.716775 | C173: 3.946333427 | D173: 1.314603199 | E173: 1.000263447 | F173: 0.02295163301 | G173: 1 | H173: 0 | I173: 3205.53164 | J173: 1.570484366 | K173: 1.808514848 | L173: 0.9849078607 | M173: 1.000068431 | N173: 0.01169846341 | O173: 1.000083255 | P173: 0.01837841808 | Q173: 23.97897553 | R173: -109.2805242 | S173: 70.7194758 | U173: 1000000000 | V173: 94415716.4 | X173: 32.73507026 | Y173: -34.22133496 | AA173: 27.56557335 | AB173: -75.05918924 | AD173: 0 | AE173: 0
A174: 9772.4 | B174: 9.7724 | C174: 3.967477993 | D174: 1.315998997 | E174: 1.000266471 | F174: 0.02308297622 | G174: 1 | H174: 0 | I174: 3223.88214 | J174: 1.570486142 | K174: 1.815708823 | L174: 0.9875348751 | M174: 1.000069217 | N174: 0.01176542669 | O174: 1.000084211 | P174: 0.01848362211 | Q174: 23.9174724 | R174: -109.2124214 | S174: 70.78757856 | U174: 1000000000 | V174: 95499801.76 | X174: 32.71996417 | Y174: -34.07475658 | AA174: 27.5191763 | AB174: -75.13766487 | AD174: 0 | AE174: 0
A175: 9829.3 | B175: 9.8293 | C175: 3.989115133 | D175: 1.317411475 | E175: 1.000269583 | F175: 0.02321732917 | G175: 1 | H175: 0 | I175: 3242.653258 | J175: 1.570487937 | K175: 1.823080555 | L175: 0.9902006344 | M175: 1.000070025 | N175: 0.01183392475 | O175: 1.000085194 | P175: 0.01859123746 | Q175: 23.85500897 | R175: -109.1431093 | S175: 70.85689069 | U175: 1000000000 | V175: 96615138.49 | X175: 32.70472314 | Y175: -33.92604735 | AA175: 27.47195389 | AB175: -75.21706196 | AD175: 0 | AE175: 0
A176: 9886.2 | B176: 9.8862 | C176: 4.010760145 | D176: 1.318808711 | E176: 1.000272712 | F176: 0.02335168128 | G176: 1 | H176: 0 | I176: 3261.424376 | J176: 1.570489712 | K176: 1.830465138 | L176: 0.9928449036 | M176: 1.000070838 | N176: 0.01190242271 | O176: 1.000086183 | P176: 0.01869885271 | Q176: 23.79299413 | R176: -109.074154 | S176: 70.92584602 | U176: 1000000000 | V176: 97736950.44 | X176: 32.68969211 | Y176: -33.77856822 | AA176: 27.42497008 | AB176: -75.29558576 | AD176: 0 | AE176: 0
A177: 9943.1 | B177: 9.9431 | C177: 4.032412903 | D177: 1.320190944 | E177: 1.00027586 | F177: 0.02348603255 | G177: 1 | H177: 0 | I177: 3280.195495 | J177: 1.570491467 | K177: 1.837862416 | L177: 0.995467905 | M177: 1.000071656 | N177: 0.01197092054 | O177: 1.000087178 | P177: 0.01880646785 | Q177: 23.73142201 | R177: -109.0055565 | S177: 70.99444352 | U177: 1000000000 | V177: 98865237.61 | X177: 32.67486741 | Y177: -33.63230648 | AA177: 27.37822267 | AB177: -75.37325 | AD177: 0 | AE177: 0
A178: 10000 | B178: 10 | C178: 4.054073283 | D178: 1.321558409 | E178: 1.000279026 | F178: 0.02362038297 | G178: 1 | H178: 0 | I178: 3298.966613 | J178: 1.570493202 | K178: 1.845272238 | L178: 0.9980698585 | M178: 1.000072478 | N178: 0.01203941827 | O178: 1.000088179 | P178: 0.01891408289 | Q178: 23.67028686 | R178: -108.9373177 | S178: 71.06268229 | U178: 1000000000 | V178: 100000000 | X178: 32.66024544 | Y178: -33.48724955 | AA178: 27.33170949 | AB178: -75.45006816 | AD178: 0 | AE178: 0
A179: 10058.25 | B179: 10.05825 | C179: 4.076255342 | D179: 1.322943262 | E179: 1.000282286 | F179: 0.02375792008 | G179: 1 | H179: 0 | I179: 3318.183092 | J179: 1.570494957 | K179: 1.8528707 | L179: 1.00071197 | M179: 1.000073325 | N179: 0.01210954105 | O179: 1.000089209 | P179: 0.01902425108 | Q179: 23.60814795 | R179: -108.8678323 | S179: 71.1321677 | U179: 1000000000 | V179: 101168393.1 | X179: 32.64548289 | Y179: -33.33998605 | AA179: 27.28433313 | AB179: -75.52784625 | AD179: 0 | AE179: 0
A180: 10116.5 | B180: 10.1165 | C180: 4.098445134 | D180: 1.324313121 | E180: 1.000285564 | F180: 0.02389545629 | G180: 1 | H180: 0 | I180: 3337.39957 | J180: 1.570496692 | K180: 1.860481991 | L180: 1.003332481 | M180: 1.000074177 | N180: 0.0121796637 | O180: 1.000090245 | P180: 0.01913441916 | Q180: 23.54645507 | R180: -108.7987243 | S180: 71.20127569 | U180: 1000000000 | V180: 102343572.2 | X180: 32.63092543 | Y180: -33.19395896 | AA180: 27.2371977 | AB180: -75.60476535 | AD180: 0 | AE180: 0
A181: 10174.75 | B181: 10.17475 | C181: 4.120642534 | D181: 1.325668225 | E181: 1.000288862 | F181: 0.0240329916 | G181: 1 | H181: 0 | I181: 3356.616049 | J181: 1.570498408 | K181: 1.868105954 | L181: 1.005931621 | M181: 1.000075033 | N181: 0.01224978624 | O181: 1.000091288 | P181: 0.01924458712 | Q181: 23.48520236 | R181: -108.7299943 | S181: 71.27000575 | U181: 1000000000 | V181: 103525537.6 | X181: 32.61656945 | Y181: -33.04915522 | AA181: 27.19030098 | AB181: -75.68083903 | AD181: 0 | AE181: 0
A182: 10233 | B182: 10.233 | C182: 4.14284742 | D182: 1.327008805 | E182: 1.000292178 | F182: 0.024170526 | G182: 1 | H182: 0 | I182: 3375.832528 | J182: 1.570500104 | K182: 1.875742434 | L182: 1.008509615 | M182: 1.000075895 | N182: 0.01231990866 | O182: 1.000092336 | P182: 0.01935475497 | Q182: 23.42438406 | R182: -108.6616425 | S182: 71.33835747 | U182: 1000000000 | V182: 104714289 | X182: 32.60241141 | Y182: -32.90556192 | AA182: 27.14364072 | AB182: -75.75608061 | AD182: 0 | AE182: 0
A183: 10292.5 | B183: 10.2925 | C183: 4.165536409 | D183: 1.328363394 | E183: 1.000295585 | F183: 0.02431101084 | G183: 1 | H183: 0 | I183: 3395.461377 | J183: 1.570501816 | K183: 1.883555552 | L183: 1.011121332 | M183: 1.00007678 | N183: 0.01239153572 | O183: 1.000093413 | P183: 0.01946728683 | Q183: 23.36270326 | R183: -108.5922149 | S183: 71.40778508 | U183: 1000000000 | V183: 105935556.2 | X183: 32.5881503 | Y183: -32.76012363 | AA183: 27.09622103 | AB183: -75.83209128 | AD183: 0 | AE183: 0
A184: 10352 | B184: 10.352 | C184: 4.188232959 | D184: 1.329703305 | E184: 1.000299012 | F184: 0.02445149472 | G184: 1 | H184: 0 | I184: 3415.090227 | J184: 1.570503509 | K184: 1.891381412 | L184: 1.013711453 | M184: 1.00007767 | N184: 0.01246316266 | O184: 1.000094496 | P184: 0.01957981856 | Q184: 23.30146388 | R184: -108.5231825 | S184: 71.47681751 | U184: 1000000000 | V184: 107163904 | X184: 32.57408848 | Y184: -32.61592152 | AA184: 27.04904347 | AB184: -75.90726097 | AD184: 0 | AE184: 0
A185: 10411.5 | B185: 10.4115 | C185: 4.210936947 | D185: 1.331028769 | E185: 1.000302459 | F185: 0.02459197763 | G185: 1 | H185: 0 | I185: 3434.719077 | J185: 1.570505182 | K185: 1.899219856 | L185: 1.016280212 | M185: 1.000078566 | N185: 0.01253478947 | O185: 1.000095585 | P185: 0.01969235018 | Q185: 23.24066011 | R185: -108.4545453 | S185: 71.54545473 | U185: 1000000000 | V185: 108399332.2 | X185: 32.56022241 | Y185: -32.47294228 | AA185: 27.00210577 | AB185: -75.98160298 | AD185: 0 | AE185: 0
A186: 10471 | B186: 10.471 | C186: 4.233648253 | D186: 1.332340015 | E186: 1.000305925 | F186: 0.02473245957 | G186: 1 | H186: 0 | I186: 3454.347926 | J186: 1.570506837 | K186: 1.907070729 | L186: 1.018827837 | M186: 1.000079466 | N186: 0.01260641615 | O186: 1.000096681 | P186: 0.01980488168 | Q186: 23.18028624 | R186: -108.3863032 | S186: 71.61369683 | U186: 1000000000 | V186: 109641841 | X186: 32.54654864 | Y186: -32.33117278 | AA186: 26.95540567 | AB186: -76.05513039 | AD186: 0 | AE186: 0
A187: 10532 | B187: 10.532 | C187: 4.256939589 | D187: 1.33366979 | E187: 1.000309499 | F187: 0.02487648206 | G187: 1 | H187: 0 | I187: 3474.471621 | J187: 1.570508513 | K187: 1.915132266 | L187: 1.021417988 | M187: 1.000080395 | N187: 0.01267984841 | O187: 1.000097811 | P187: 0.01992024998 | Q187: 23.11883076 | R187: -108.3167507 | S187: 71.68324935 | U187: 1000000000 | V187: 110923024 | X187: 32.53272622 | Y187: -32.18707153 | AA187: 26.9077726 | AB187: -76.12967912 | AD187: 0 | AE187: 0
A188: 10593 | B188: 10.593 | C188: 4.280238371 | D188: 1.33498509 | E188: 1.000313094 | F188: 0.02502050352 | G188: 1 | H188: 0 | I188: 3494.595315 | J188: 1.570510171 | K188: 1.923206544 | L188: 1.023986406 | M188: 1.000081329 | N188: 0.01275328053 | O188: 1.000098947 | P188: 0.02003561816 | Q188: 23.05781528 | R188: -108.2476129 | S188: 71.75238713 | U188: 1000000000 | V188: 112211649 | X188: 32.51909877 | Y188: -32.04421429 | AA188: 26.86038457 | AB188: -76.20339858 | AD188: 0 | AE188: 0
A189: 10654 | B189: 10.654 | C189: 4.303544477 | D189: 1.336286147 | E189: 1.00031671 | F189: 0.02516452394 | G189: 1 | H189: 0 | I189: 3514.71901 | J189: 1.570511809 | K189: 1.931293402 | L189: 1.026533332 | M189: 1.000082268 | N189: 0.01282671252 | O189: 1.00010009 | P189: 0.0201509862 | Q189: 22.99723397 | R189: -108.1788894 | S189: 71.82111063 | U189: 1000000000 | V189: 113507716 | X189: 32.50566279 | Y189: -31.90258739 | AA189: 26.81323925 | AB189: -76.27630198 | AD189: 0 | AE189: 0
A190: 10715 | B190: 10.715 | C190: 4.326857789 | D190: 1.337573185 | E190: 1.000320347 | F190: 0.02530854332 | G190: 1 | H190: 0 | I190: 3534.842705 | J190: 1.570513429 | K190: 1.939392684 | L190: 1.029059002 | M190: 1.000083213 | N190: 0.01290014437 | O190: 1.000101239 | P190: 0.02026635412 | Q190: 22.93708111 | R190: -108.1105796 | S190: 71.88942043 | U190: 1000000000 | V190: 114811225 | X190: 32.49241485 | Y190: -31.76217733 | AA190: 26.76633433 | AB190: -76.34840224 | AD190: 0 | AE190: 0
A191: 10777.5 | B191: 10.7775 | C191: 4.350751733 | D191: 1.338877564 | E191: 1.000324094 | F191: 0.02545610306 | G191: 1 | H191: 0 | I191: 3555.461244 | J191: 1.570515069 | K191: 1.947703852 | L191: 1.031624974 | M191: 1.000084186 | N191: 0.01297538177 | O191: 1.000102424 | P191: 0.02038455882 | Q191: 22.87588759 | R191: -108.0410184 | S191: 71.95898157 | U191: 1000000000 | V191: 116154506.2 | X191: 32.47903268 | Y191: -31.61956271 | AA191: 26.71852297 | AB191: -76.42145572 | AD191: 0 | AE191: 0
A192: 10840 | B192: 10.84 | C192: 4.374652998 | D192: 1.340167692 | E192: 1.000327863 | F192: 0.0256036617 | G192: 1 | H192: 0 | I192: 3576.079784 | J192: 1.570516691 | K192: 1.956027735 | L192: 1.034169125 | M192: 1.000085165 | N192: 0.01305061903 | O192: 1.000103615 | P192: 0.02050276339 | Q192: 22.81513199 | R192: -107.9718901 | S192: 72.02810995 | U192: 1000000000 | V192: 117505600 | X192: 32.46584087 | Y192: -31.47819732 | AA192: 26.67095919 | AB192: -76.49369273 | AD192: 0 | AE192: 0
A193: 10902.5 | B193: 10.9025 | C193: 4.398561466 | D193: 1.341443797 | E193: 1.000331654 | F193: 0.02575121922 | G193: 1 | H193: 0 | I193: 3596.698323 | J193: 1.570518294 | K193: 1.964364171 | L193: 1.036691697 | M193: 1.00008615 | N193: 0.01312585614 | O193: 1.000104813 | P193: 0.02062096782 | Q193: 22.75480851 | R193: -107.9031935 | S193: 72.09680648 | U193: 1000000000 | V193: 118864506.2 | X193: 32.45283598 | Y193: -31.33806717 | AA193: 26.6236406 | AB193: -76.56512634 | AD193: 0 | AE193: 0
A194: 10965 | B194: 10.965 | C194: 4.422477018 | D194: 1.342706102 | E194: 1.000335467 | F194: 0.02589877562 | G194: 1 | H194: 0 | I194: 3617.316863 | J194: 1.570519879 | K194: 1.972713002 | L194: 1.039192934 | M194: 1.000087141 | N194: 0.0132010931 | O194: 1.000106018 | P194: 0.0207391721 | Q194: 22.6949114 | R194: -107.8349278 | S194: 72.16507221 | U194: 1000000000 | V194: 120231225 | X194: 32.44001462 | Y194: -31.19915843 | AA194: 26.57656484 | AB194: -76.63576935 | AD194: 0 | AE194: 0
A195: 11028.75 | B195: 11.02875 | C195: 4.446878063 | D195: 1.343979664 | E195: 1.000339378 | F195: 0.02604928199 | G195: 1 | H195: 0 | I195: 3638.347773 | J195: 1.570521477 | K195: 1.981241416 | L195: 1.041722462 | M195: 1.000088157 | N195: 0.01327783465 | O195: 1.000107255 | P195: 0.02085974034 | Q195: 22.63424977 | R195: -107.7657394 | S195: 72.23426061 | U195: 1000000000 | V195: 121633326.6 | X195: 32.42712249 | Y195: -31.05871565 | AA195: 26.52879535 | AB195: -76.70702373 | AD195: 0 | AE195: 0
A196: 11092.5 | B196: 11.0925 | C196: 4.471286242 | D196: 1.345239323 | E196: 1.000343313 | F196: 0.02619978718 | G196: 1 | H196: 0 | I196: 3659.378684 | J196: 1.570523056 | K196: 1.989782397 | L196: 1.044230291 | M196: 1.000089179 | N196: 0.01335457604 | O196: 1.000108498 | P196: 0.02098030842 | Q196: 22.57402004 | R196: -107.6969967 | S196: 72.30300326 | U196: 1000000000 | V196: 123043556.2 | X196: 32.41441445 | Y196: -30.91951511 | AA196: 26.48127366 | AB196: -76.77748163 | AD196: 0 | AE196: 0
A197: 11156.25 | B197: 11.15625 | C197: 4.495701438 | D197: 1.346485302 | E197: 1.000347269 | F197: 0.02635029117 | G197: 1 | H197: 0 | I197: 3680.409594 | J197: 1.570524618 | K197: 1.998335786 | L197: 1.046716667 | M197: 1.000090207 | N197: 0.01343131727 | O197: 1.000109749 | P197: 0.02110087636 | Q197: 22.51421646 | R197: -107.6286985 | S197: 72.37130154 | U197: 1000000000 | V197: 124461914.1 | X197: 32.40188714 | Y197: -30.78154268 | AA197: 26.43399738 | AB197: -76.84715578 | AD197: 0 | AE197: 0
A198: 11220 | B198: 11.22 | C198: 4.520123538 | D198: 1.34771782 | E198: 1.000351249 | F198: 0.02650079398 | G198: 1 | H198: 0 | I198: 3701.440505 | J198: 1.570526162 | K198: 2.006901424 | L198: 1.049181834 | M198: 1.000091241 | N198: 0.01350805835 | O198: 1.000111007 | P198: 0.02122144416 | Q198: 22.45483337 | R198: -107.5608431 | S198: 72.43915692 | U198: 1000000000 | V198: 125888400 | X198: 32.38953729 | Y198: -30.64478441 | AA198: 26.38696416 | AB198: -76.91605867 | AD198: 0 | AE198: 0
A199: 11285.5 | B199: 11.2855 | C199: 4.545223123 | D199: 1.348970374 | E199: 1.000355361 | F199: 0.02665542698 | G199: 1 | H199: 0 | I199: 3723.048734 | J199: 1.57052773 | K199: 2.015714789 | L199: 1.051692835 | M199: 1.000092309 | N199: 0.01358690587 | O199: 1.000112307 | P199: 0.0213453215 | Q199: 22.39425232 | R199: -107.4915847 | S199: 72.50841532 | U199: 1000000000 | V199: 127362510.2 | X199: 32.37702987 | Y199: -30.50552213 | AA199: 26.33889052 | AB199: -76.98606255 | AD199: 0 | AE199: 0
A200: 11351 | B200: 11.351 | C200: 4.570329761 | D200: 1.350209168 | E200: 1.000359497 | F200: 0.02681005871 | G200: 1 | H200: 0 | I200: 3744.656964 | J200: 1.57052928 | K200: 2.024540754 | L200: 1.054181958 | M200: 1.000093384 | N200: 0.01366575323 | O200: 1.000113614 | P200: 0.02146919869 | Q200: 22.33410342 | R200: -107.4227904 | S200: 72.57720956 | U200: 1000000000 | V200: 128845201 | X200: 32.364703 | Y200: -30.36751232 | AA200: 26.29106849 | AB200: -77.05527812 | AD200: 0 | AE200: 0
A201: 11416.5 | B201: 11.4165 | C201: 4.595443335 | D201: 1.351434424 | E201: 1.000363657 | F201: 0.02696468916 | G201: 1 | H201: 0 | I201: 3766.265193 | J201: 1.570530812 | K201: 2.033379153 | L201: 1.056649457 | M201: 1.000094464 | N201: 0.01374460042 | O201: 1.000114929 | P201: 0.02159307572 | Q201: 22.27438088 | R201: -107.3544585 | S201: 72.6455415 | U201: 1000000000 | V201: 130336472.2 | X201: 32.35255333 | Y201: -30.23074041 | AA201: 26.24349562 | AB201: -77.1237181 | AD201: 0 | AE201: 0
A202: 11482 | B202: 11.482 | C202: 4.620563734 | D202: 1.35264636 | E202: 1.000367841 | F202: 0.02711931831 | G202: 1 | H202: 0 | I202: 3787.873423 | J202: 1.570532326 | K202: 2.042229825 | L202: 1.059095584 | M202: 1.000095551 | N202: 0.01382344744 | O202: 1.000116252 | P202: 0.02171695259 | Q202: 22.21507902 | R202: -107.286587 | S202: 72.71341304 | U202: 1000000000 | V202: 131836324 | X202: 32.34057762 | Y202: -30.09519205 | AA202: 26.19616946 | AB202: -77.19139491 | AD202: 0 | AE202: 0
... 433 more rows

Sheet Ch2 Stability Calculations (hidden)
A2: Divider Network & EA Poles/Zeros | E2: Modulator | J2: Power Stage Poles/Zeros | M2: Complex Pole Pair | P2: Total System
B3: Afb1 | C3: =Afb_Ch2 -> 0.1818181818 | D3: V/V | E3: Acs | F3: =Acs_Ch2 -> 11.9047619 | G3: A/V | H3: gm | I3: =gm -> 0.0012 | J3: z_ESR | K3: =Fesr_Ch2 -> 663145.597 | L3: Hz | M3: p3 | N3: =Fsw/2 -> 1050000 | O3: Hz | P3: Adc | Q3: =Am_Ch2*Afb_Ch2*AEA -> 119069.6276 | R3: V/V
B4: EA zero, z1 | C4: =Fz1_u_Ch2 -> 6097.890547 | D4: Hz | E4: Am | F4: =Am_Ch2 -> 8.527121768 | G4: V/V | J4: p_dom | K4: =Fp_dominant_Ch2 -> 1851.642478 | L4: Hz | M4: pterm1 | N4: =Q_Ch2*pole3 -> 215628.2241 | P4: Crossover | Q4: =AE7 -> 58.214 | R4: kHz
B5: EA pole, p1 | C5: =Fp1_u_Ch2 -> 1.657413383 | D5: Hz | E5: Q | F5: =Q_Ch2 -> 0.2053602134 | M5: pterm2 | N5: =pole3^2 -> 1102500000000 | P5: Phase Margin | Q5: =AE9 -> 70.91785864 | R5: °
B6: Aea | C6: =AEA -> 76800 | D6: V/V | E6: mc | F6: =mc_Ch2 -> 2.83908046 | P6: radconv | Q6: =180/Pi -> 57.29577958 | AD6: XOVER SEARCH
B7: EA pole, p2 | C7: =Fp2_u_Ch2 -> 694721.1342 | D7: Hz | E7: k | F7: =k_Ch2 -> 2.050007576 | AD7: xover | AE7: =SUM(AD12:AD613)/1000 -> 58.214
AD9: phase margin | AE9: =SUM(AE13:AE613) -> 70.91785864
A10: Freq (Hz) | C10: Power Stage | I10: Error Amplifier | O10: Sampling Double Pole | Q10: System Response | X10: ERROR AMP Response | AA10: PLANT Response
C11: p_dom | E11: z_ESR | G11: z_RHP | I11: p1 | K11: z1 | M11: p2 | O11: p3
C12: Gain(V/V) | D12: Phase(rad) | E12: Gain(V/V) | F12: Phase(rad) | G12: Gain(V/V) | H12: Phase(rad) | I12: Gain(V/V) | J12: Phase(rad) | K12: Gain(V/V) | L12: Phase(rad) | M12: Gain(V/V) | N12: Phase(rad) | O12: Gain(V/V) | P12: Phase(rad) | Q12: Gain (dB) | R12: Phase (°) | S12: Phase Margin (°) | V12: Fsquare | X12: Gain(dB) | Y12: Phase(Deg) | AA12: Gain(dB) | AB12: Phase(Deg)
A13: 1 | B13: =A13/1000 -> 0.001 | C13: =SQRT(1+(A13/pole1)^2) -> 1.000000146 | D13: =ATAN(A13/pole1) -> 0.0005400610078 | E13: =SQRT(1+(A13/Zero1)^2) -> 1 | F13: =ATAN(A13/Zero1) -> 1.507964472e-06 | G13: =IF(VIN_nom>Vout, 1, SQRT(1+(A13/z_RHP)^2)) -> 1 | H13: =IF(VIN_nom>Vout, 0, -ATAN(A13/z_RHP)) -> 0 | I13: =SQRT(1+(A13/Pole2)^2) -> 1.167917359 | J13: =ATAN(A13/Pole2) -> 0.5428789341 | K13: =SQRT(1+(A13/Zero2)^2) -> 1.000000013 | L13: =ATAN(A13/Zero2) -> 0.0001639911349 | M13: =SQRT(1+(A13/pole4)^2) -> 1 | N13: =ATAN(A13/pole4) -> 1.439426485e-06 | O13: =SQRT((1-(V13/pterm2))^2+(A13/pterm1)^2) -> 1 | P13: =IF((ATAN((A13/pterm1)/(1-A13^2/pterm2))>0),ATAN((A13/pterm1)/(1-A13^2/pterm2)),PI()+ATAN((A13/pterm1)/(1-A13^2/pterm2))) -> 4.637611816e-06 | Q13: =20*LOG10(((E13*K13*G13)/(C13*I13*O13*M13))*Adc) -> 100.1677765 | R13: =((F13+L13+H13)-(D13+J13+P13+N13))*radconv -> -31.12648075 | S13: =IF(R13>0,R13,R13+180) -> 148.8735192 | U13: =IF(Q13<0,A13,1000000000) -> 1000000000 | V13: =A13^2 -> 1 | X13: =20*LOG10((K13/(I13*M13))*AEA) -> 96.35898225 | Y13: =(L13-(J13+N13))*radconv -> -31.09535822 | AA13: =20*LOG10((E13*G13/(C13*O13))*Acs*Am) -> 39.48788275 | AB13: =(F13+H13-(D13+P13))*radconv -> -0.03112253205 | AD13: =SUM((Q14<0)*(Q13>0))*A13 -> 0 | AE13: =IF(AD13>0,S11,0) -> 0
A14: 1.0965 | B14: =A14/1000 -> 0.0010965 | C14: 1.000000175 | D14: 0.0005921768834 | E14: 1 | F14: 1.653483044e-06 | G14: 1 | H14: 0 | I14: 1.199032476 | J14: 0.5844679473 | K14: 1.000000016 | L14: 0.000179816279 | M14: 1 | N14: 1.57833114e-06 | O14: 1 | P14: 5.085141356e-06 | Q14: 99.9393996 | R14: -33.51146025 | S14: 146.4885397 | U14: =IF(Q14<0,A14,1000000000) -> 1000000000 | V14: =A14^2 -> 1.20231225 | X14: 96.13060562 | Y14: -33.4773344 | AA14: 39.48788249 | AB14: -0.03412585572 | AD14: =SUM((Q15<0)*(Q14>0))*A14 -> 0 | AE14: 0
A15: 1.2023 | B15: 0.0012023 | C15: 1.000000211 | D15: 0.0006493153216 | E15: 1 | F15: 1.813025685e-06 | G15: 1 | H15: 0 | I15: 1.235401131 | J15: 0.6275752052 | K15: 1.000000019 | L15: 0.0001971665407 | M15: 1 | N15: 1.730622463e-06 | O15: 1 | P15: 5.575800686e-06 | Q15: 99.67985835 | R15: -35.98363159 | S15: 144.0163684 | U15: 1000000000 | V15: 1.44552529 | X15: 95.87106468 | Y15: -35.94621297 | AA15: 39.48788218 | AB15: -0.03741861867 | AD15: 0 | AE15: 0
A16: 1.3183 | B16: 0.0013183 | C16: 1.000000253 | D16: 0.0007119623755 | E16: 1 | F16: 1.987949563e-06 | G16: 1 | H16: 0 | I16: 1.277753818 | J16: 0.6719273227 | K16: 1.000000023 | L16: 0.0002161895117 | M16: 1 | N16: 1.897595935e-06 | O16: 1 | P16: 6.113763657e-06 | Q16: 99.38707416 | R16: -38.52735058 | S16: 141.4726494 | U16: 1000000000 | V16: 1.73791489 | X16: 95.57828085 | Y16: -38.48632175 | AA16: 39.48788181 | AB16: -0.04102883107 | AD16: 0 | AE16: 0
A17: 1.4454 | B17: 0.0014454 | C17: 1.000000305 | D17: 0.000780604098 | E17: 1 | F17: 2.179611848e-06 | G17: 1 | H17: 0 | I17: 1.326848378 | J17: 0.7171748056 | K17: 1.000000028 | L17: 0.000237032784 | M17: 1 | N17: 2.080547041e-06 | O17: 1 | P17: 6.703204119e-06 | Q17: 99.05959155 | R17: -41.12261231 | S17: 138.8773877 | U17: 1000000000 | V17: 2.08918116 | X17: 95.25079869 | Y17: -41.07762781 | AA17: 39.48788137 | AB17: -0.04498450308 | AD17: 0 | AE17: 0
A18: 1.5849 | B18: 0.0015849 | C18: 1.000000366 | D18: 0.0008559425655 | E18: 1 | F18: 2.389972892e-06 | G18: 1 | H18: 0 | I18: 1.383622881 | J18: 0.7630371858 | K18: 1.000000034 | L18: 0.0002599095461 | M18: 1 | N18: 2.281347036e-06 | O18: 1 | P18: 7.350150967e-06 | Q18: 98.69566231 | R18: -43.75337549 | S18: 136.2466245 | U18: 1000000000 | V18: 2.51190801 | X18: 94.88686999 | Y18: -43.7040494 | AA18: 39.48788083 | AB18: -0.04932609383 | AD18: 0 | AE18: 0
A19: 1.7378 | B19: 0.0017378 | C19: 1.00000044 | D19: 0.0009385178351 | E19: 1 | F19: 2.620540659e-06 | G19: 1 | H19: 0 | I19: 1.448915065 | J19: 0.8090701957 | K19: 1.000000041 | L19: 0.000284983789 | M19: 1 | N19: 2.501435345e-06 | O19: 1 | P19: 8.059241814e-06 | Q19: 98.29515787 | R19: -46.39420728 | S19: 133.6057927 | U19: 1000000000 | V19: 3.01994884 | X19: 94.48636619 | Y19: -46.34012255 | AA19: 39.48788019 | AB19: -0.05408472563 | AD19: 0 | AE19: 0
A20: 1.9055 | B20: 0.0019055 | C20: 1.00000053 | D20: 0.001029085987 | E20: 1 | F20: 2.873426301e-06 | G20: 1 | H20: 0 | I20: 1.523735874 | J20: 0.8549162273 | K20: 1.000000049 | L20: 0.0003124851001 | M20: 1 | N20: 2.742827167e-06 | O20: 1 | P20: 8.836969315e-06 | Q20: 97.85782188 | R20: -49.02464876 | S20: 130.9753512 | U20: 1000000000 | V20: 3.63093025 | X20: 94.04903098 | Y20: -48.96534479 | AA20: 39.48787941 | AB20: -0.05930396973 | AD20: 0 | AE20: 0
A21: 2.0893 | B21: 0.0020893 | C21: 1.000000637 | D21: 0.001128349094 | E21: 1 | F21: 3.150590171e-06 | G21: 1 | H21: 0 | I21: 1.609055203 | J21: 0.9001624389 | K21: 1.000000059 | L21: 0.0003426266677 | M21: 1 | N21: 3.007393754e-06 | O21: 1 | P21: 9.689362367e-06 | Q21: 97.38459601 | R21: -51.62107422 | S21: 128.3789258 | U21: 1000000000 | V21: 4.36517449 | X21: 93.57580603 | Y21: -51.55604993 | AA21: 39.48787848 | AB21: -0.06502428505 | AD21: 0 | AE21: 0
A22: 2.2909 | B22: 0.0022909 | C22: 1.000000765 | D22: 0.001237225252 | E22: 1 | F22: 3.454595809e-06 | G22: 1 | H22: 0 | I22: 1.706023321 | J22: 0.9444871584 | K22: 1.000000071 | L22: 0.0003756872765 | M22: 1 | N22: 3.297582134e-06 | O22: 1 | P22: 1.062430491e-05 | Q22: 96.8763146 | R22: -54.16509027 | S22: 125.8349097 | U22: 1000000000 | V22: 5.24822281 | X22: 93.06752574 | Y22: -54.09379169 | AA22: 39.48787737 | AB22: -0.07129857939 | AD22: 0 | AE22: 0
A23: 2.5119 | B23: 0.0025119 | C23: 1.00000092 | D23: 0.001356578545 | E23: 1 | F23: 3.787855957e-06 | G23: 1 | H23: 0 | I23: 1.815738107 | J23: 0.9875455167 | K23: 1.000000085 | L23: 0.000411929312 | M23: 1 | N23: 3.615695387e-06 | O23: 1 | P23: 1.164921712e-05 | Q23: 96.33494849 | R23: -56.63697225 | S23: 123.3630277 | U23: 1000000000 | V23: 6.30964161 | X23: 92.52616097 | Y23: -56.5587956 | AA23: 39.48787602 | AB23: -0.07817664813 | AD23: 0 | AE23: 0
A24: 2.7542 | B24: 0.0027542 | C24: 1.000001106 | D24: 0.001487435075 | E24: 1 | F24: 4.153235749e-06 | G24: 1 | H24: 0 | I24: 1.939432816 | J24: 1.029071454 | K24: 1.000000102 | L24: 0.000451664357 | M24: 1 | N24: 3.964468424e-06 | O24: 1 | P24: 1.277291046e-05 | Q24: 95.76251639 | R24: -59.02151753 | S24: 120.9784825 | U24: 1000000000 | V24: 7.58561764 | X24: 91.95373049 | Y24: -58.93579991 | AA24: 39.48787441 | AB24: -0.0857176232 | AD24: 0 | AE24: 0
A25: 3.02 | B25: 0.00302 | C25: 1.00000133 | D25: 0.001630982956 | E25: 1 | F25: 4.554052705e-06 | G25: 1 | H25: 0 | I25: 2.078486935 | J25: 1.068865375 | K25: 1.000000123 | L25: 0.0004952531912 | M25: 1 | N25: 4.347067984e-06 | O25: 1 | P25: 1.400558768e-05 | Q25: 95.16106344 | R25: -61.30733803 | S25: 118.692662 | U25: 1000000000 | V25: 9.1204 | X25: 91.35227949 | Y25: -61.21334805 | AA25: 39.48787246 | AB25: -0.09398997301 | AD25: 0 | AE25: 0
A26: 3.3113 | B26: 0.0033113 | C26: 1.000001599 | D26: 0.001788302283 | E26: 1 | F26: 4.993322756e-06 | G26: 1 | H26: 0 | I26: 2.234164952 | J26: 1.106722781 | K26: 1.000000147 | L26: 0.0005430237964 | M26: 1 | N26: 4.766372919e-06 | O26: 1 | P26: 1.535652401e-05 | Q26: 94.5337026 | R26: -63.48276055 | S26: 116.5172394 | U26: 1000000000 | V26: 10.96470769 | X26: 90.72492099 | Y26: -63.37970461 | AA26: 39.48787012 | AB26: -0.1030559411 | AD26: 0 | AE26: 0
A27: 3.6308 | B27: 0.0036308 | C27: 1.000001922 | D27: 0.001960851185 | E27: 1 | F27: 5.475117405e-06 | G27: 1 | H27: 0 | I27: 2.408093445 | J27: 1.142560835 | K27: 1.000000177 | L27: 0.0005954189474 | M27: 1 | N27: 5.226269681e-06 | O27: 1 | P27: 1.683824098e-05 | Q27: 93.88253804 | R27: -65.54309774 | S27: 114.4569023 | U27: 1000000000 | V27: 13.18270864 | X27: 90.07375923 | Y27: -65.43009819 | AA27: 39.48786732 | AB27: -0.1129995563 | AD27: 0 | AE27: 0
A28: 3.9811 | B28: 0.0039811 | C28: 1.000002311 | D28: 0.002150033774 | E28: 1 | F28: 6.003357359e-06 | G28: 1 | H28: 0 | I28: 2.601842398 | J28: 1.176300236 | K28: 1.000000213 | L28: 0.0006528650201 | M28: 1 | N28: 5.730500778e-06 | O28: 1 | P28: 1.84627964e-05 | Q28: 93.21038195 | R28: -67.4838627 | S28: 112.5161373 | U28: 1000000000 | V28: 15.84915721 | X28: 89.40160652 | Y28: -67.35996097 | AA28: 39.48786394 | AB28: -0.1239017345 | AD28: 0 | AE28: 0
A29: 4.3652 | B29: 0.0043652 | C29: 1.000002779 | D29: 0.002357470173 | E29: 1 | F29: 6.582566513e-06 | G29: 1 | H29: 0 | I29: 2.817197072 | J29: 1.207922112 | K29: 1.000000256 | L29: 0.000715853986 | M29: 1 | N29: 6.283384491e-06 | O29: 1 | P29: 2.02441031e-05 | Q29: 92.51965343 | R29: -69.30403952 | S29: 110.6959605 | U29: 1000000000 | V29: 19.05497104 | X29: 88.71088206 | Y29: -69.16818368 | AA29: 39.48785988 | AB29: -0.1358558398 | AD29: 0 | AE29: 0
A30: 4.7863 | B30: 0.0047863 | C30: 1.000003341 | D30: 0.002584888496 | E30: 1 | F30: 7.217570352e-06 | G30: 1 | H30: 0 | I30: 3.056053701 | J30: 1.237436871 | K30: 1.000000308 | L30: 0.0007849106146 | M30: 1 | N30: 6.889526984e-06 | O30: 1 | P30: 2.219700143e-05 | Q30: 91.81277393 | R30: -71.00429436 | S30: 108.9957056 | U30: 1000000000 | V30: 22.90866769 | X30: 88.00400745 | Y30: -70.8553329 | AA30: 39.48785499 | AB30: -0.1489614597 | AD30: 0 | AE30: 0
A31: 5.2481 | B31: 0.0052481 | C31: 1.000004017 | D31: 0.002834286861 | E31: 1 | F31: 7.913948345e-06 | G31: 1 | H31: 0 | I31: 3.320593644 | J31: 1.264896898 | K31: 1.00000037 | L31: 0.0008606416701 | M31: 1 | N31: 7.554254134e-06 | O31: 1 | P31: 2.433865057e-05 | Q31: 91.09167359 | R31: -72.5877093 | S31: 107.4122907 | U31: 1000000000 | V31: 27.54255361 | X31: 87.28291297 | Y31: -72.42437555 | AA31: 39.48784912 | AB31: -0.1633337414 | AD31: 0 | AE31: 0
A32: 5.7544 | B32: 0.0057544 | C32: 1.000004829 | D32: 0.003107717361 | E32: 1 | F32: 8.677430757e-06 | G32: 1 | H32: 0 | I32: 3.613059718 | J32: 1.290361281 | K32: 1.000000445 | L32: 0.0009436703148 | M32: 1 | N32: 8.283035763e-06 | O32: 1 | P32: 2.668667343e-05 | Q32: 90.35847903 | R32: -74.05775271 | S32: 105.9422473 | U32: 1000000000 | V32: 33.11311936 | X32: 86.54972547 | Y32: -73.87866177 | AA32: 39.48784207 | AB32: -0.1790909425 | AD32: 0 | AE32: 0
A33: 6.3096 | B33: 0.0063096 | C33: 1.000005806 | D33: 0.003407556077 | E33: 1 | F33: 9.514652632e-06 | G33: 1 | H33: 0 | I33: 3.936045657 | J33: 1.313918472 | K33: 1.000000535 | L33: 0.001034718105 | M33: 1 | N33: 9.082205348e-06 | O33: 1 | P33: 2.926147551e-05 | Q33: 89.61477157 | R33: -75.41958856 | S33: 104.5804114 | U33: 1000000000 | V33: 39.81105216 | X33: 85.8060265 | Y33: -75.22321857 | AA33: 39.48783358 | AB33: -0.1963699915 | AD33: 0 | AE33: 0
A34: 6.9183 | B34: 0.0069183 | C34: 1.00000698 | D34: 0.003736287048 | E34: 1 | F34: 1.043255061e-05 | G34: 1 | H34: 0 | I34: 4.292268415 | J34: 1.335658479 | K34: 1.000000644 | L34: 0.001134539392 | M34: 1 | N34: 9.958384249e-06 | O34: 1 | P34: 3.208438982e-05 | Q34: 88.86222741 | R34: -76.6784741 | S34: 103.3215259 | U34: 1000000000 | V34: 47.86287489 | X34: 85.05349254 | Y34: -76.46316006 | AA34: 39.48782338 | AB34: -0.2153140381 | AD34: 0 | AE34: 0
A35: 7.5858 | B35: 0.0075858 | C35: 1.000008392 | D35: 0.004096772272 | E35: 1 | F35: 1.143911689e-05 | G35: 1 | H35: 0 | I35: 4.684861688 | J35: 1.355687781 | K35: 1.000000774 | L35: 0.00124400332 | M35: 1 | N35: 1.091920143e-05 | O35: 1.000000001 | P35: 3.51799957e-05 | Q35: 88.10201826 | R35: -77.84062579 | S35: 102.1593742 | U35: 1000000000 | V35: 57.54436164 | X35: 84.29329565 | Y35: -77.60453778 | AA35: 39.48781112 | AB35: -0.2360880132 | AD35: 0 | AE35: 0
A36: 8.3176 | B36: 0.0083176 | C36: 1.000010089 | D36: 0.004491981662 | E36: 1 | F36: 1.254264529e-05 | G36: 1 | H36: 0 | I36: 5.117085173 | J36: 1.374106809 | K36: 1.00000093 | L36: 0.00136401183 | M36: 1 | N36: 1.197257373e-05 | O36: 1.000000001 | P36: 3.857380002e-05 | Q36: 87.33548743 | R36: -78.91191777 | S36: 101.0880822 | U36: 1000000000 | V36: 69.18246976 | X36: 83.52677956 | Y36: -78.6530547 | AA36: 39.48779638 | AB36: -0.2588630665 | AD36: 0 | AE36: 0
A37: 9.1201 | B37: 0.0091201 | C37: 1.00001213 | D37: 0.004925371047 | E37: 1 | F37: 1.375278678e-05 | G37: 1 | H37: 0 | I37: 5.592738186 | J37: 1.391026319 | K37: 1.000001118 | L37: 0.001495614447 | M37: 1 | N37: 1.312771348e-05 | O37: 1.000000001 | P37: 4.22954835e-05 | Q37: 86.56343447 | R37: -79.89883549 | S37: 100.1011645 | U37: 1000000000 | V37: 83.17622401 | X37: 82.75474433 | Y37: -79.61499714 | AA37: 39.48777865 | AB37: -0.2838383499 | AD37: 0 | AE37: 0
A38: 10 | B38: 0.01 | C38: 1.000014583 | D38: 0.005400558098 | E38: 1 | F38: 1.507964472e-05 | G38: 1 | H38: 0 | I38: 6.115807035 | J38: 1.406548104 | K38: 1.000001345 | L38: 0.001639909893 | M38: 1 | N38: 1.439426485e-05 | O38: 1.000000001 | P38: 4.637611813e-05 | Q38: 85.78682943 | R38: -80.80735727 | S38: 99.19264273 | U38: 1000000000 | V38: 100 | X38: 81.9781606 | Y38: -80.49613493 | AA38: 39.48775734 | AB38: -0.3112223422 | AD38: 0 | AE38: 0
A39: 10.965 | B39: 0.010965 | C39: 1.000017534 | D39: 0.005921700308 | E39: 1 | F39: 1.653483043e-05 | G39: 1 | H39: 0 | I39: 6.69088095 | J39: 1.420777093 | K39: 1.000001617 | L39: 0.001798160872 | M39: 1 | N39: 1.57833114e-05 | O39: 1.000000001 | P39: 5.085141352e-05 | Q39: 85.00621559 | R39: -81.64366307 | S39: 98.35633693 | U39: 1000000000 | V39: 120.231225 | X39: 81.19757239 | Y39: -81.30240844 | AA39: 39.48773171 | AB39: -0.3412546309 | AD39: 0 | AE39: 0
A40: 12.023 | B40: 0.012023 | C40: 1.00002108 | D40: 0.006493062878 | E40: 1 | F40: 1.813025684e-05 | G40: 1 | H40: 0 | I40: 7.322676796 | J40: 1.433806179 | K40: 1.000001944 | L40: 0.001971662877 | M40: 1 | N40: 1.730622462e-05 | O40: 1.000000001 | P40: 5.575800681e-05 | Q40: 84.22245636 | R40: -82.4132474 | S40: 97.5867526 | U40: 1000000000 | V40: 144.552529 | X40: 80.41384396 | Y40: -82.03906639 | AA40: 39.4877009 | AB40: -0.3741810107 | AD40: 0 | AE40: 0
A41: 13.183 | B41: 0.013183 | C41: 1.000025344 | D41: 0.007119504666 | E41: 1 | F41: 1.987949563e-05 | G41: 1 | H41: 0 | I41: 8.016575457 | J41: 1.445728991 | K41: 1.000002337 | L41: 0.002161891782 | M41: 1 | N41: 1.897595935e-05 | O41: 1.000000002 | P41: 6.11376365e-05 | Q41: 83.43604236 | R41: -83.12167103 | S41: 96.87832897 | U41: 1000000000 | V41: 173.791489 | X41: 79.627467 | Y41: -82.71138954 | AA41: 39.48766387 | AB41: -0.4102814874 | AD41: 0 | AE41: 0
A42: 14.454 | B42: 0.014454 | C42: 1.000030467 | D42: 0.00780588402 | E42: 1 | F42: 2.179611847e-05 | G42: 1 | H42: 0 | I42: 8.777964553 | J42: 1.456626835 | K42: 1.000002809 | L42: 0.002370323445 | M42: 1 | N42: 2.080547041e-05 | O42: 1.000000002 | P42: 6.70320411e-05 | Q42: 82.64790321 | R42: -83.77378863 | S42: 96.22621137 | U42: 1000000000 | V42: 208.918116 | X42: 78.83937234 | Y42: -83.32395259 | AA42: 39.48761937 | AB42: -0.4498360377 | AD42: 0 | AE42: 0
A43: 15.849 | B43: 0.015849 | C43: 1.000036631 | D43: 0.008559218722 | E43: 1 | F43: 2.389972891e-05 | G43: 1 | H43: 0 | I43: 9.614636117 | J43: 1.466599791 | K43: 1.000003378 | L43: 0.002599089667 | M43: 1 | N43: 2.281347035e-05 | O43: 1.000000002 | P43: 7.350150956e-05 | Q43: 81.85707401 | R43: -84.37561766 | S43: 95.62438234 | U43: 1000000000 | V43: 251.190801 | X43: 78.04859669 | Y43: -83.88236857 | AA43: 39.48756583 | AB43: -0.493249082 | AD43: 0 | AE43: 0
A44: 17.378 | B44: 0.017378 | C44: 1.00004404 | D44: 0.009384905567 | E44: 1 | F44: 2.620540659e-05 | G44: 1 | H44: 0 | I44: 10.53259164 | J44: 1.47570971 | K44: 1.000004061 | L44: 0.002849830252 | M44: 1 | N44: 2.501435345e-05 | O44: 1.000000003 | P44: 8.059241798e-05 | Q44: 81.06496771 | R44: -84.93091988 | S44: 95.06908012 | U44: 1000000000 | V44: 301.994884 | X44: 77.25655474 | Y44: -84.39008825 | AA44: 39.48750147 | AB44: -0.5408316269 | AD44: 0 | AE44: 0
A45: 19.055 | B45: 0.019055 | C45: 1.00005295 | D45: 0.01029050025 | E45: 1 | F45: 2.873426301e-05 | G45: 1 | H45: 0 | I45: 11.54023836 | J45: 1.484034192 | K45: 1.000004882 | L45: 0.003124840932 | M45: 1 | N45: 2.742827166e-05 | O45: 1.000000004 | P45: 8.836969295e-05 | Q45: 80.2713068 | R45: -85.44444638 | S45: 94.55555362 | U45: 1000000000 | V45: 363.093025 | X45: 76.46297122 | Y45: -84.85142729 | AA45: 39.48742409 | AB45: -0.5930190927 | AD45: 0 | AE45: 0
A46: 20.893 | B46: 0.020893 | C46: 1.000063657 | D46: 0.01128301691 | E46: 1 | F46: 3.15059017e-05 | G46: 1 | H46: 0 | I46: 12.64538907 | J46: 1.491633462 | K46: 1.00000587 | L46: 0.003426253404 | M46: 1 | N46: 3.007393754e-05 | O46: 1.000000004 | P46: 9.689362341e-05 | Q46: 79.47687403 | R46: -85.919931 | S46: 94.080069 | U46: 1000000000 | V46: 436.517449 | X46: 75.66863146 | Y46: -85.26971531 | AA46: 39.48733108 | AB46: -0.6502156903 | AD46: 0 | AE46: 0
A47: 22.909 | B47: 0.022909 | C47: 1.000076533 | D47: 0.0123716276 | E47: 1.000000001 | F47: 3.454595808e-05 | G47: 1 | H47: 0 | I47: 13.85826675 | J47: 1.498574462 | K47: 1.000007057 | L47: 0.003756855267 | M47: 1.000000001 | N47: 3.297582133e-05 | O47: 1.000000005 | P47: 0.0001062430487 | Q47: 78.68123809 | R47: -86.36157949 | S47: 93.63842051 | U47: 1000000000 | V47: 524.822281 | X47: 74.87310736 | Y47: -85.6486295 | AA47: 39.48721924 | AB47: -0.7129499889 | AD47: 0 | AE47: 0
A48: 25.119 | B48: 0.025119 | C48: 1.000092011 | D48: 0.01356496169 | E48: 1.000000001 | F48: 3.787855955e-05 | G48: 1 | H48: 0 | I48: 15.18849852 | J48: 1.504909374 | K48: 1.000008484 | L48: 0.004119270054 | M48: 1.000000001 | N48: 3.615695385e-05 | O48: 1.000000006 | P48: 0.0001164921707 | Q48: 77.88499752 | R48: -86.77272993 | S48: 93.22727007 | U48: 1000000000 | V48: 630.964161 | X48: 74.07700122 | Y48: -85.99101064 | AA48: 39.4870848 | AB48: -0.7817192832 | AD48: 0 | AE48: 0
A49: 27.542 | B49: 0.027542 | C49: 1.000110617 | D49: 0.0148732649 | E49: 1.000000001 | F49: 4.153235746e-05 | G49: 1 | H49: 0 | I49: 16.64752128 | J49: 1.510691141 | K49: 1.0000102 | L49: 0.004516613164 | M49: 1.000000001 | N49: 3.964468422e-05 | O49: 1.000000007 | P49: 0.000127729104 | Q49: 77.08815611 | R49: -87.15682924 | S49: 92.84317076 | U49: 1000000000 | V49: 758.561764 | X49: 73.28032141 | Y49: -86.29971523 | AA49: 39.4869232 | AB49: -0.8571140172 | AD49: 0 | AE49: 0
A50: 30.2 | B50: 0.0302 | C50: 1.000132997 | D50: 0.01630839805 | E50: 1.000000001 | F50: 4.554052702e-05 | G50: 1 | H50: 0 | I50: 18.24858334 | J50: 1.515970089 | K50: 1.000012264 | L50: 0.004952491827 | M50: 1.000000001 | N50: 4.347067981e-05 | O50: 1.000000009 | P50: 0.000140055876 | Q50: 76.29038813 | R50: -87.51723961 | S50: 92.48276039 | U50: 1000000000 | V50: 912.04 | X50: 72.48274781 | Y50: -86.5774219 | AA50: 39.48672883 | AB50: -0.9398177107 | AD50: 0 | AE50: 0
A51: 33.113 | B51: 0.033113 | C51: 1.000159889 | D51: 0.0178811359 | E51: 1.000000001 | F51: 4.993322752e-05 | G51: 1 | H51: 0 | I51: 20.00373223 | J51: 1.520784811 | K51: 1.000014744 | L51: 0.005430185124 | M51: 1.000000001 | N51: 4.766372915e-05 | O51: 1.000000011 | P51: 0.000153565239 | Q51: 75.49253856 | R51: -87.85660683 | S51: 92.14339317 | U51: 1000000000 | V51: 1096.470769 | X51: 71.6851318 | Y51: -86.82615553 | AA51: 39.48649527 | AB51: -1.030451298 | AD51: 0 | AE51: 0
A52: 36.308 | B52: 0.036308 | C52: 1.000192229 | D52: 0.01960602443 | E52: 1.000000001 | F52: 5.475117399e-05 | G52: 1 | H52: 0 | I52: 21.92923629 | J52: 1.525179284 | K52: 1.000017726 | L52: 0.005954119816 | M52: 1.000000001 | N52: 5.226269676e-05 | O52: 1.000000013 | P52: 0.0001683824084 | Q52: 74.6940341 | R52: -88.17803763 | S52: 91.82196237 | U52: 1000000000 | V52: 1318.270864 | X52: 70.88690821 | Y52: -87.04818459 | AA52: 39.4862144 | AB52: -1.129853044 | AD52: 0 | AE52: 0
A53: 39.811 | B53: 0.039811 | C53: 1.000231106 | D53: 0.02149705883 | E53: 1.000000002 | F53: 6.003357352e-05 | G53: 1 | H53: 0 | I53: 24.0407651 | J53: 1.529188308 | K53: 1.000021311 | L53: 0.006528558373 | M53: 1.000000002 | N53: 5.730500772e-05 | O53: 1.000000016 | P53: 0.0001846279622 | Q53: 73.89523205 | R53: -88.48409022 | S53: 91.51590978 | U53: 1000000000 | V53: 1584.915721 | X53: 70.08844379 | Y53: -87.24526075 | AA53: 39.48587676 | AB53: -1.238829477 | AD53: 0 | AE53: 0
A54: 43.652 | B54: 0.043652 | C54: 1.000277846 | D54: 0.02357037949 | E54: 1.000000002 | F54: 6.582566504e-05 | G54: 1 | H54: 0 | I54: 26.35640215 | J54: 1.532845772 | K54: 1.000025622 | L54: 0.007158418808 | M54: 1.000000002 | N54: 6.283384483e-05 | O54: 1.000000019 | P54: 0.0002024410286 | Q54: 73.09610678 | R54: -88.77735717 | S54: 91.22264283 | U54: 1000000000 | V54: 1905.497104 | X54: 69.28972442 | Y54: -87.41904641 | AA54: 39.48547087 | AB54: -1.358310752 | AD54: 0 | AE54: 0
A55: 47.863 | B55: 0.047863 | C55: 1.000334028 | D55: 0.02584318769 | E55: 1.000000003 | F55: 7.21757034e-05 | G55: 1 | H55: 0 | I55: 28.89543947 | J55: 1.536181878 | K55: 1.000030804 | L55: 0.007848946574 | M55: 1.000000002 | N55: 6.889526973e-05 | O55: 1.000000023 | P55: 0.0002219700112 | Q55: 72.29680034 | R55: -89.06026231 | S55: 90.93973769 | U55: 1000000000 | V55: 2290.866769 | X55: 68.49090585 | Y55: -87.57097415 | AA55: 39.48498299 | AB55: -1.489288167 | AD55: 0 | AE55: 0
A56: 52.481 | B56: 0.052481 | C56: 1.000401581 | D56: 0.02833535865 | E56: 1.000000003 | F56: 7.913948329e-05 | G56: 1 | H56: 0 | I56: 31.68018647 | J56: 1.539225612 | K56: 1.000037035 | L56: 0.008606206341 | M56: 1.000000003 | N56: 7.55425412e-05 | O56: 1.000000027 | P56: 0.0002433865015 | Q56: 71.49709938 | R56: -89.33526747 | S56: 90.66473253 | U56: 1000000000 | V56: 2754.255361 | X56: 67.69179146 | Y56: -87.70236034 | AA56: 39.48439642 | AB56: -1.632907125 | AD56: 0 | AE56: 0
A57: 57.544 | B57: 0.057544 | C57: 1.000482782 | D57: 0.03106727467 | E57: 1.000000004 | F57: 8.677430736e-05 | G57: 1 | H57: 0 | I57: 34.73355802 | J57: 1.542001747 | K57: 1.000044525 | L57: 0.009436425847 | M57: 1.000000003 | N57: 8.283035745e-05 | O57: 1.000000033 | P57: 0.0002668667288 | Q57: 70.6972285 | R57: -89.60461293 | S57: 90.39538707 | U57: 1000000000 | V57: 3311.311936 | X57: 66.89262563 | Y57: -87.81427067 | AA57: 39.48369139 | AB57: -1.790342257 | AD57: 0 | AE57: 0
A58: 63.096 | B58: 0.063096 | C58: 1.000580408 | D58: 0.03406251281 | E58: 1.000000005 | F58: 9.514652604e-05 | G58: 1 | H58: 0 | I58: 38.08208951 | J58: 1.544534245 | K58: 1.000053531 | L58: 0.01034681549 | M58: 1.000000004 | N58: 9.082205323e-05 | O58: 1.000000039 | P58: 0.0002926147478 | Q58: 69.89702923 | R58: -89.87062082 | S58: 90.12937918 | U58: 1000000000 | V58: 3981.105216 | X58: 66.09327392 | Y58: -87.9076685 | AA58: 39.48284382 | AB58: -1.962952322 | AD58: 0 | AE58: 0
A59: 69.183 | B59: 0.069183 | C59: 1.000697755 | D59: 0.03734567265 | E59: 1.000000005 | F59: 0.0001043255057 | G59: 1 | H59: 0 | I59: 41.75352458 | J59: 1.546843963 | K59: 1.000064357 | L59: 0.01134491204 | M59: 1.000000005 | N59: 9.958384216e-05 | O59: 1.000000047 | P59: 0.0003208438886 | Q59: 69.09665713 | R59: -90.1354759 | S59: 89.8645241 | U59: 1000000000 | V59: 4786.287489 | X59: 65.2939205 | Y59: -87.98332088 | AA59: 39.48182514 | AB59: -2.152155018 | AD59: 0 | AE59: 0
A60: 75.858 | B60: 0.075858 | C60: 1.000838835 | D60: 0.04094505513 | E60: 1.000000007 | F60: 0.0001143911684 | G60: 1 | H60: 0 | I60: 45.77983075 | J60: 1.548950909 | K60: 1.000077374 | L60: 0.01243939796 | M60: 1.000000006 | N60: 0.0001091920138 | O60: 1.000000057 | P60: 0.0003517999445 | Q60: 68.29592483 | R60: -90.40146246 | S60: 89.59853754 | U60: 1000000000 | V60: 5754.436164 | X60: 64.49441273 | Y60: -88.04188108 | AA60: 39.48060061 | AB60: -2.359581375 | AD60: 0 | AE60: 0
A61: 83.176 | B61: 0.083176 | C61: 1.0010084 | D61: 0.04488994175 | E61: 1.000000008 | F61: 0.0001254264523 | G61: 1 | H61: 0 | I61: 50.1941836 | J61: 1.550872382 | K61: 1.000093022 | L61: 0.01363928092 | M61: 1.000000007 | N61: 0.0001197257367 | O61: 1.000000068 | P61: 0.0003857379837 | Q61: 67.49500493 | R61: -90.67074764 | S61: 89.32925236 | U61: 1000000000 | V61: 6918.246976 | X61: 63.69496438 | Y61: -88.08382868 | AA61: 39.47912905 | AB61: -2.58691896 | AD61: 0 | AE61: 0
A62: 91.201 | B62: 0.091201 | C62: 1.001212249 | D62: 0.04921433702 | E62: 1.000000009 | F62: 0.0001375278669 | G62: 1 | H62: 0 | I62: 55.03518913 | J62: 1.552625134 | K62: 1.000111837 | L62: 0.01495504061 | M62: 1.000000009 | N62: 0.0001312771341 | O62: 1.000000082 | P62: 0.0004229548132 | Q62: 66.6936582 | R62: -90.94565592 | S62: 89.05434408 | U62: 1000000000 | V62: 8317.622401 | X62: 62.89538641 | Y62: -88.10952836 | AA62: 39.4773603 | AB62: -2.836127565 | AD62: 0 | AE62: 0
A63: 100 | B63: 0.1 | C63: 1.001457268 | D63: 0.05395369192 | E63: 1.000000011 | F63: 0.0001507964461 | G63: 1 | H63: 0 | I63: 60.34326449 | J63: 1.55422371 | K63: 1.000134456 | L63: 0.01639764379 | M63: 1.00000001 | N63: 0.0001439426475 | O63: 1.000000098 | P63: 0.0004637611526 | Q63: 65.89196238 | R63: -91.22844104 | S63: 88.77155896 | U63: 1000000000 | V63: 10000 | X63: 62.09581608 | Y63: -88.11919065 | AA63: 39.4752348 | AB63: -3.109250396 | AD63: 0 | AE63: 0
A64: 109.65 | B64: 0.10965 | C64: 1.001751833 | D64: 0.05914862028 | E64: 1.000000014 | F64: 0.0001653483028 | G64: 1 | H64: 0 | I64: 66.16486068 | J64: 1.555681989 | K64: 1.000161656 | L64: 0.01797969042 | M64: 1.000000012 | N64: 0.0001578331127 | O64: 1.000000118 | P64: 0.0005085140973 | Q64: 65.08967194 | R64: -91.52152337 | S64: 88.47847663 | U64: 1000000000 | V64: 12023.1225 | X64: 61.29608026 | Y64: -88.11289511 | AA64: 39.47268019 | AB64: -3.408628262 | AD64: 0 | AE64: 0
A65: 120.23 | B65: 0.12023 | C65: 1.002105835 | D65: 0.0648405187 | E65: 1.000000016 | F65: 0.0001813025665 | G65: 1 | H65: 0 | I65: 72.54763639 | J65: 1.557011844 | K65: 1.000194354 | L65: 0.01971409999 | M65: 1.000000015 | N65: 0.0001730622445 | O65: 1.000000142 | P65: 0.0005575800182 | Q65: 64.28696949 | R65: -91.82723558 | S65: 88.17276442 | U65: 1000000000 | V65: 14455.2529 | X65: 60.49644689 | Y65: -88.0905884 | AA65: 39.4696111 | AB65: -3.736647177 | AD65: 0 | AE65: 0
A66: 131.83 | B66: 0.13183 | C66: 1.002531249 | D66: 0.07107631843 | E66: 1.00000002 | F66: 0.0001987949537 | G66: 1 | H66: 0 | I66: 79.54588742 | J66: 1.558224635 | K66: 1.000233662 | L66: 0.02161558436 | M66: 1.000000018 | N66: 0.0001897595912 | O66: 1.000000171 | P66: 0.0006113762992 | Q66: 63.48373477 | R66: -92.14809816 | S66: 87.85190184 | U66: 1000000000 | V66: 17379.1489 | X66: 59.69689895 | Y66: -88.05208592 | AA66: 39.46592433 | AB66: -4.096012244 | AD66: 0 | AE66: 0
A67: 144.54 | B67: 0.14454 | C67: 1.003042088 | D67: 0.07790245091 | E67: 1.000000024 | F67: 0.0002179611813 | G67: 1 | H67: 0 | I67: 87.21391041 | J67: 1.559330015 | K67: 1.000280883 | L67: 0.02369884115 | M67: 1.000000022 | N67: 0.0002080547011 | O67: 1.000000206 | P67: 0.0006703203242 | Q67: 62.6803592 | R67: -92.48650582 | S67: 87.51349418 | U67: 1000000000 | V67: 20891.8116 | X67: 58.8979484 | Y67: -87.99710589 | AA67: 39.4614993 | AB67: -4.489399926 | AD67: 0 | AE67: 0
A68: 158.49 | B68: 0.15849 | C68: 1.003656505 | D68: 0.08538615946 | E68: 1.000000029 | F68: 0.0002389972846 | G68: 1 | H68: 0 | I68: 95.63013524 | J68: 1.560339181 | K68: 1.000337708 | L68: 0.02598510501 | M68: 1.000000026 | N68: 0.0002281346996 | O68: 1.000000247 | P68: 0.0007350149811 | Q68: 61.8753531 | R68: -92.84577041 | S68: 87.15422959 | U68: 1000000000 | V68: 25119.0801 | X68: 58.09826157 | Y68: -87.92508411 | AA68: 39.45618004 | AB68: -4.920686292 | AD68: 0 | AE68: 0
A69: 173.78 | B69: 0.17378 | C69: 1.004394426 | D69: 0.09357770424 | E69: 1.000000034 | F69: 0.0002620540599 | G69: 1 | H69: 0 | I69: 104.8548934 | J69: 1.561259193 | K69: 1.000405996 | L69: 0.02849066837 | M69: 1.000000031 | N69: 0.0002501435293 | O69: 1.000000297 | P69: 0.000805924029 | Q69: 61.06968314 | R69: -93.22826866 | S69: 86.77173134 | U69: 1000000000 | V69: 30199.4884 | X69: 57.2989758 | Y69: -87.83549969 | AA69: 39.44979585 | AB69: -5.392768969 | AD69: 0 | AE69: 0
A70: 190.55 | B70: 0.19055 | C70: 1.005281148 | D70: 0.1025476521 | E70: 1.000000041 | F70: 0.0002873426222 | G70: 1 | H70: 0 | I70: 114.9726495 | J70: 1.562098496 | K70: 1.000488116 | L70: 0.03123834591 | M70: 1.000000038 | N70: 0.0002742827098 | O70: 1.000000358 | P70: 0.0008836967306 | Q70: 60.26261395 | R70: -93.63725723 | S70: 86.36274277 | U70: 1000000000 | V70: 36309.3025 | X70: 56.49957196 | Y70: -87.72754099 | AA70: 39.4421305 | AB70: -5.909716245 | AD70: 0 | AE70: 0
A71: 208.93 | B71: 0.20893 | C71: 1.00634573 | D71: 0.1123597211 | E71: 1.00000005 | F71: 0.0003150590067 | G71: 1 | H71: 0 | I71: 126.0618359 | J71: 1.562863629 | K71: 1.000586793 | L71: 0.03424927022 | M71: 1.000000045 | N71: 0.0003007393664 | O71: 1.00000043 | P71: 0.0009689359718 | Q71: 59.45449482 | R71: -94.07558464 | S71: 85.92441536 | U71: 1000000000 | V71: 43651.7449 | X71: 55.70064678 | Y71: -87.60038244 | AA71: 39.43293655 | AB71: -6.475202205 | AD71: 0 | AE71: 0
A72: 229.09 | B72: 0.22909 | C72: 1.007624572 | D72: 0.1230970382 | E72: 1.00000006 | F72: 0.0003454595671 | G72: 1 | H72: 0 | I72: 138.2250184 | J72: 1.563561683 | K72: 1.000705456 | L72: 0.03755106942 | M72: 1.000000054 | N72: 0.0003297582014 | O72: 1.000000517 | P72: 0.001062430142 | Q72: 58.64443269 | R72: -94.54688168 | S72: 85.45311832 | U72: 1000000000 | V72: 52482.2281 | X72: 54.90161615 | Y72: -87.45286152 | AA72: 39.42190505 | AB72: -7.094020157 | AD72: 0 | AE72: 0
A73: 251.19 | B73: 0.25119 | C73: 1.009159589 | D73: 0.134834833 | E73: 1.000000072 | F73: 0.0003787855776 | G73: 1 | H73: 0 | I73: 151.5587303 | J73: 1.564198177 | K73: 1.000848069 | L73: 0.04116965771 | M73: 1.000000065 | N73: 0.0003615695229 | O73: 1.000000621 | P73: 0.001164921252 | Q73: 57.83256149 | R73: -95.05433185 | S73: 84.94566815 | U73: 1000000000 | V73: 63096.4161 | X73: 54.10296778 | Y73: -87.28382272 | AA73: 39.40868222 | AB73: -7.770509125 | AD73: 0 | AE73: 0
A74: 275.42 | B74: 0.27542 | C74: 1.011001812 | D74: 0.1476609855 | E74: 1.000000086 | F74: 0.000415323551 | G74: 1 | H74: 0 | I74: 166.1776052 | J74: 1.564778632 | K74: 1.001019484 | L74: 0.04513576302 | M74: 1.000000079 | N74: 0.0003964468216 | O74: 1.000000747 | P74: 0.00127729044 | Q74: 57.0183755 | R74: -95.60157596 | S74: 84.39842404 | U74: 1000000000 | V74: 75856.1764 | X74: 53.30462441 | Y74: -87.09183761 | AA74: 39.3928396 | AB74: -8.509738343 | AD74: 0 | AE74: 0
A75: 302 | B75: 0.302 | C75: 1.013213256 | D75: 0.1616748934 | E75: 1.000000104 | F75: 0.0004554052391 | G75: 1 | H75: 0 | I75: 182.2143776 | J75: 1.565308258 | K75: 1.001225628 | L75: 0.04948489145 | M75: 1.000000094 | N75: 0.000434706771 | O75: 1.000000898 | P75: 0.001400557969 | Q75: 56.20098124 | R75: -96.19263068 | S75: 83.80736932 | U75: 1000000000 | V75: 91204 | X75: 52.50620989 | Y75: -86.87518836 | AA75: 39.37385986 | AB75: -9.317442321 | AD75: 0 | AE75: 0
A76: 331.13 | B76: 0.33113 | C76: 1.015864321 | D76: 0.1769598317 | E76: 1.000000125 | F76: 0.0004993322341 | G76: 1 | H76: 0 | I76: 199.7897153 | J76: 1.565791043 | K76: 1.001473289 | L76: 0.05424910451 | M76: 1.000000114 | N76: 0.0004766372558 | O76: 1.00000108 | P76: 0.001535651346 | Q76: 55.38062133 | R76: -96.83071127 | S76: 83.16928873 | U76: 1000000000 | V76: 109647.0769 | X76: 51.70854826 | Y76: -86.63228305 | AA76: 39.35116157 | AB76: -10.19842823 | AD76: 0 | AE76: 0
A77: 363.08 | B77: 0.36308 | C77: =SQRT(1+(A77/pole1)^2) -> 1.01904341 | D77: =ATAN(A77/pole1) -> 0.1936286744 | E77: =SQRT(1+(A77/Zero1)^2) -> 1.00000015 | F77: =ATAN(A77/Zero1) -> 0.0005475116858 | G77: =IF(VIN_nom>Vout, 1, SQRT(1+(A77/z_RHP)^2)) -> 1 | H77: =IF(VIN_nom>Vout, 0, -ATAN(A77/z_RHP)) -> 0 | I77: =SQRT(1+(A77/Pole2)^2) -> 219.0665205 | J77: =ATAN(A77/Pole2) -> 1.566231487 | K77: =SQRT(1+(A77/Zero2)^2) -> 1.001771051 | L77: =ATAN(A77/Zero2) -> 0.05947168767 | M77: =SQRT(1+(A77/pole4)^2) -> 1.000000137 | N77: =ATAN(A77/pole4) -> 0.0005226269205 | O77: =SQRT((1-(V77/pterm2))^2+(A77/pterm1)^2) -> 1.000001298 | P77: =IF((ATAN((A77/pterm1)/(1-A77^2/pterm2))>0),ATAN((A77/pterm1)/(1-A77^2/pterm2)),PI()+ATAN((A77/pterm1)/(1-A77^2/pterm2))) -> 0.001683822708 | Q77: =20*LOG10(((E77*K77*G77)/(C77*I77*O77*M77))*Adc) -> 54.55600439 | R77: =((F77+L77+H77)-(D77+J77+P77+N77))*radconv -> -97.52013336 | S77: =IF(R77>0,R77,R77+180) -> 82.47986664 | U77: 1000000000 | V77: 131827.0864 | X77: =20*LOG10((K77/(I77*M77))*AEA) -> 50.91107255 | Y77: =(L77-(J77+N77))*radconv -> -86.36092168 | AA77: =20*LOG10((E77*G77/(C77*O77))*Acs*Am) -> 39.32402034 | AB77: =(F77+H77-(D77+P77))*radconv -> -11.15921167 | AD77: 0 | AE77: =IF(AD77>0,S75,0) -> 0
A78: 398.11 | B78: =A78/1000 -> 0.39811 | C78: 1.022852186 | D78: 0.2117797049 | E78: 1.00000018 | F78: 0.0006003356638 | G78: 1 | H78: 0 | I78: 240.2016625 | J78: 1.566633146 | K78: 1.002128898 | L78: 0.06519399026 | M78: 1.000000164 | N78: 0.0005730500151 | O78: 1.000001561 | P78: 0.001846277808 | Q78: 53.72670048 | R78: -98.2644308 | S78: 81.7355692 | U78: =IF(Q78<0,A78,1000000000) -> 1000000000 | V78: =A78^2 -> 158491.5721 | X78: 50.11417452 | Y78: -86.05896028 | AA78: 39.29161447 | AB78: -12.20547052 | AD78: =SUM((Q79<0)*(Q78>0))*A78 -> 0 | AE78: 0
A79: 436.52 | B79: 0.43652 | C79: 1.027412703 | D79: 0.2315201786 | E79: 1.000000217 | F79: 0.0006582565562 | G79: 1 | H79: 0 | I79: 263.3761444 | J79: 1.566999467 | K79: 1.002558961 | L79: 0.07146350631 | M79: 1.000000197 | N79: 0.0006283383664 | O79: 1.000001876 | P79: 0.002024407894 | Q79: 52.89177491 | R79: -99.06730369 | S79: 80.93269631 | U79: 1000000000 | V79: 190549.7104 | X79: 49.31789244 | Y79: -85.72389987 | AA79: 39.25297098 | AB79: -13.34340383 | AD79: 0 | AE79: 0
A80: 478.63 | B80: 0.47863 | C80: 1.032868231 | D80: 0.2529526131 | E80: 1.00000026 | F80: 0.0007217569099 | G80: 1 | H80: 0 | I80: 288.7830366 | J80: 1.567333513 | K80: 1.003075695 | L80: 0.07833048025 | M80: 1.000000237 | N80: 0.0006889525894 | O80: 1.000002256 | P80: 0.002219696959 | Q80: 52.05034269 | R80: -99.93200641 | S80: 80.06799359 | U80: 1000000000 | V80: 229086.6769 | X80: 48.52246291 | Y80: -85.35306361 | AA80: 39.20696829 | AB80: -14.5789428 | AD80: 0 | AE80: 0
A81: 524.81 | B81: 0.52481 | C81: 1.039390326 | D81: 0.2761859866 | E81: 1.000000313 | F81: 0.0007913946693 | G81: 1 | H81: 0 | I81: 316.6455771 | J81: 1.567638216 | K81: 1.003696689 | L81: 0.0858526339 | M81: 1.000000285 | N81: 0.0007554252697 | O81: 1.000002712 | P81: 0.002433860859 | Q81: 51.20100449 | R81: -100.8617406 | S81: 79.13825941 | U81: 1000000000 | V81: 275425.5361 | X81: 47.72780323 | Y81: -84.9433428 | AA81: 39.15228977 | AB81: -15.91839779 | AD81: 0 | AE81: 0
A82: 575.44 | B82: 0.57544 | C82: 1.047177012 | D82: 0.3013105032 | E82: 1.000000376 | F82: 0.000867742858 | G82: 1 | H82: 0 | I82: 347.1930375 | J82: 1.567916081 | K82: 1.004442702 | L82: 0.09408842937 | M82: 1.000000343 | N82: 0.0008283033869 | O82: 1.000003261 | P82: 0.00266866181 | Q82: 50.34267309 | R82: -101.8585678 | S82: 78.14143223 | U82: 1000000000 | V82: 331131.1936 | X82: 46.93430463 | Y82: -84.49156254 | AA82: 39.08745697 | AB82: -17.36700523 | AD82: 0 | AE82: 0
A83: 630.96 | B83: 0.63096 | C83: 1.056463574 | D83: 0.328416843 | E83: 1.000000453 | F83: 0.0009514649761 | G83: 1 | H83: 0 | I83: 380.6908906 | J83: 1.568169521 | K83: 1.005338959 | L83: 0.1031049304 | M83: 1.000000412 | N83: 0.0009082202851 | O83: 1.00000392 | P83: 0.002926140256 | Q83: 49.47369622 | R83: -102.9240946 | S83: 77.07590537 | U83: 1000000000 | V83: 398110.5216 | X83: 46.14202138 | Y83: -83.99405502 | AA83: 39.01076335 | AB83: -18.93003961 | AD83: 0 | AE83: 0
A84: 691.83 | B84: 0.69183 | C84: 1.067520355 | D84: 0.3575694228 | E84: 1.000000544 | F84: 0.001043254682 | G84: 1 | H84: 0 | I84: 417.4166761 | J84: 1.568400637 | K84: 1.006415325 | L84: 0.1129709272 | M84: 1.000000496 | N84: 0.0009958380957 | O84: 1.000004713 | P84: 0.003208429366 | Q84: 48.59260502 | R84: -104.0583114 | S84: 75.94168864 | U84: 1000000000 | V84: 478628.7489 | X84: 45.35136901 | Y84: -83.44703716 | AA84: 38.92032451 | AB84: -20.6112742 | AD84: 0 | AE84: 0
A85: 758.58 | B85: 0.75858 | C85: 1.080665216 | D85: 0.3888228394 | E85: 1.000000654 | F85: 0.00114391119 | G85: 1 | H85: 0 | I85: 457.6901685 | J85: 1.568611441 | K85: 1.007708022 | L85: 0.1237645719 | M85: 1.000000596 | N85: 0.001091919709 | O85: 1.000005666 | P85: 0.003517986894 | Q85: 47.69741039 | R85: -105.2601223 | S85: 74.73987766 | U85: 1000000000 | V85: 575443.6164 | X85: 44.56248187 | Y85: -82.84619012 | AA85: 38.81401703 | AB85: -22.41393222 | AD85: 0 | AE85: 0
A86: 831.76 | B86: 0.83176 | C86: 1.096258048 | D86: 0.4221894345 | E86: 1.000000787 | F86: 0.001254263872 | G86: 1 | H86: 0 | I86: 501.8432093 | J86: 1.568803671 | K86: 1.009259781 | L86: 0.135564658 | M86: 1.000000717 | N86: 0.001197256801 | O86: 1.000006812 | P86: 0.003857363293 | Q86: 46.78640376 | R86: -106.5259637 | S86: 73.47403626 | U86: 1000000000 | V86: 691824.6976 | X86: 43.77591648 | Y86: -82.18714435 | AA86: 38.68957579 | AB86: -24.33881939 | AD86: 0 | AE86: 0
A87: 912.01 | B87: 0.91201 | C87: 1.114718226 | D87: 0.457662694 | E87: 1.000000946 | F87: 0.001375277811 | G87: 1 | H87: 0 | I87: 550.2619415 | J87: 1.568979009 | K87: 1.011122475 | L87: 0.1484611242 | M87: 1.000000862 | N87: 0.001312770594 | O87: 1.00000819 | P87: 0.004229526322 | Q87: 45.85733321 | R87: -107.8505731 | S87: 72.14942691 | U87: 1000000000 | V87: 831762.2401 | X87: 42.99190267 | Y87: -81.46489586 | AA87: 38.54451905 | AB87: -26.38567723 | AD87: 0 | AE87: 0
A88: 1000 | B88: 1 | C88: 1.136514826 | D88: 0.4951805372 | E88: 1.000001137 | F88: 0.001507963329 | G88: 1 | H88: 0 | I88: 603.3506086 | J88: 1.569138915 | K88: 1.013357337 | L88: 0.1625443346 | M88: 1.000001036 | N88: 0.001439425491 | O88: 1.000009847 | P88: 0.004637582775 | Q88: 44.90829037 | R88: -109.2254749 | S88: 70.77452507 | U88: 1000000000 | V88: 1000000 | X88: 42.21107263 | Y88: -80.67440603 | AA88: 38.37630626 | AB88: -28.5510689 | AD88: 0 | AE88: 0
A89: 1096.5 | B89: 1.0965 | C89: 1.162184815 | D89: 0.5346474019 | E89: 1.000001367 | F89: 0.001653481537 | G89: 1 | H89: 0 | I89: 661.5737895 | J89: 1.569284779 | K89: 1.016038333 | L89: 0.1779149792 | M89: 1.000001246 | N89: 0.00157832983 | O89: 1.000011839 | P89: 0.005085103071 | Q89: 43.93705025 | R89: -110.6397061 | S89: 69.36029387 | U89: 1000000000 | V89: 1202312.25 | X89: 41.43384963 | Y89: -79.810049 | AA89: 38.18228913 | AB89: -30.82965713 | AD89: 0 | AE89: 0
A90: 1202.3 | B90: 1.2023 | C90: 1.19231309 | D90: 0.5758938137 | E90: 1.000001644 | F90: 0.001813023698 | G90: 1 | H90: 0 | I90: 725.4081297 | J90: 1.569417792 | K90: 1.019252003 | L90: 0.1946696036 | M90: 1.000001498 | N90: 0.001730620735 | O90: 1.000014234 | P90: 0.005575750215 | Q90: 42.94207441 | R90: -112.0782998 | S90: 67.92170019 | U90: 1000000000 | V90: 1445525.29 | X90: 40.6611945 | Y90: -78.86642645 | AA90: 37.95996842 | AB90: -33.21187336 | AD90: 0 | AE90: =IF(AD90>0,S90,0) -> 0
A91: 1318.3 | B91: 1.3183 | C91: 1.227554722 | D91: 0.6187094476 | E91: 1.000001976 | F91: 0.001987946945 | G91: 1 | H91: 0 | I91: 795.3966435 | J91: 1.569539092 | K91: 1.0231021 | L91: 0.2129128408 | M91: 1.0000018 | N91: 0.001897593657 | O91: 1.000017113 | P91: 0.006113697122 | Q91: 41.92176001 | R91: -113.523511 | S91: 66.47648902 | U91: 1000000000 | V91: 1737914.89 | X91: 39.8939132 | Y91: -77.83768277 | AA91: 37.70693532 | AB91: -35.68582821 | AD91: 0 | AE91: 0
A92: 1445.4 | B92: 1.4454 | C92: 1.268598835 | D92: 0.6628018718 | E92: 1.000002375 | F92: 0.002179608396 | G92: 1 | H92: 0 | I92: 872.0823453 | J92: 1.569649646 | K92: 1.027708394 | L92: 0.2327374892 | M92: 1.000002164 | N92: 0.002080544039 | O92: 1.000020571 | P92: 0.006703116425 | Q92: 40.87560507 | R92: -114.9535585 | S92: 65.0464415 | U92: 1000000000 | V92: 2089181.16 | X92: 39.13345378 | Y92: -76.71863064 | AA92: 37.4212398 | AB92: -38.23492787 | AD92: 0 | AE92: 0
A93: 1584.9 | B93: 1.5849 | C93: 1.316297092 | D93: 0.7079340494 | E93: 1.000002856 | F93: 0.002389968341 | G93: 1 | H93: 0 | I93: 956.2495891 | J93: 1.569750575 | K93: 1.033224552 | L93: 0.2542833358 | M93: 1.000002602 | N93: 0.002281343078 | O93: 1.000024734 | P93: 0.007350035354 | Q93: 39.80119797 | R93: -116.3472564 | S93: 63.65274356 | U93: 1000000000 | V93: 2511908.01 | X93: 38.37967092 | Y93: -75.50143228 | AA93: 37.10061556 | AB93: -40.84582416 | AD93: 0 | AE93: 0
A94: 1737.8 | B94: 1.7378 | C94: 1.371428541 | D94: 0.7536928692 | E94: 1.000003434 | F94: 0.002620534661 | G94: 1 | H94: 0 | I94: 1048.501724 | J94: 1.569842585 | K94: 1.039815255 | L94: 0.277624171 | M94: 1.000003129 | N94: 0.002501430128 | O94: 1.000029736 | P94: 0.008059089409 | Q94: 38.70004132 | R94: -117.6770095 | S94: 62.32299047 | U94: 1000000000 | V94: 3019948.84 | X94: 37.63493794 | Y94: -74.18198279 | AA94: 36.74419189 | AB94: -43.49502674 | AD94: 0 | AE94: 0
A95: 1905.5 | B95: 1.9055 | C95: 1.434928122 | D95: 0.7997318848 | E95: 1.000004128 | F95: 0.002873418393 | G95: 1 | H95: 0 | I95: 1149.683441 | J95: 1.569926522 | K95: 1.047686472 | L95: 0.3028713033 | M95: 1.000003762 | N95: 0.002742820288 | O95: 1.000035752 | P95: 0.008836768395 | Q95: 37.57217082 | R95: -118.9170051 | S95: 61.08299487 | U95: 1000000000 | V95: 3630930.25 | X95: 36.90025293 | Y95: -72.75406855 | AA95: 36.3510064 | AB95: -46.16293658 | AD95: 0 | AE95: 0
A96: 2089.3 | B96: 2.0893 | C96: 1.507704467 | D96: 0.8456299625 | E96: 1.000004963 | F96: 0.003150579747 | G96: 1 | H96: 0 | I96: 1260.579092 | J96: 1.570003041 | K96: 1.057068135 | L96: 0.3300911199 | M96: 1.000004522 | N96: 0.003007384688 | O96: 1.000042982 | P96: 0.00968909752 | Q96: 36.41998362 | R96: -120.039688 | S96: 59.96031204 | U96: 1000000000 | V96: 4365174.49 | X96: 36.17784276 | Y96: -71.21403055 | AA96: 35.92122937 | AB96: -48.82565741 | AD96: 0 | AE96: 0
A97: 2290.9 | B97: 2.2909 | C97: 1.590826165 | D97: 0.8910391476 | E97: 1.000005967 | F97: 0.003454582066 | G97: 1 | H97: 0 | I97: 1382.214373 | J97: 1.57007285 | K97: 1.068241987 | L97: 0.3593730934 | M97: 1.000005437 | N97: 0.003297570181 | O97: 1.000051676 | P97: 0.01062395576 | Q97: 35.24500595 | R97: -121.0204807 | S97: 58.97951931 | U97: 1000000000 | V97: 5248222.81 | X97: 35.46906196 | Y97: -69.55692324 | AA97: 35.4550325 | AB97: -51.46355745 | AD97: 0 | AE97: 0
A98: 2511.9 | B98: 2.5119 | C98: 1.685321218 | D98: 0.9355712579 | E98: 1.000007174 | F98: 0.003787837842 | G98: 1 | H98: 0 | I98: 1515.554642 | J98: 1.570136502 | K98: 1.081520123 | L98: 0.3907477986 | M98: 1.000006537 | N98: 0.003615679631 | O98: 1.000062127 | P98: 0.01164875687 | Q98: 34.05109217 | R98: -121.8358404 | S98: 58.16415955 | U98: 1000000000 | V98: 6309641.61 | X98: 34.77642773 | Y98: -67.78115839 | AA98: 34.95375294 | AB98: -54.05468206 | AD98: 0 | AE98: 0
A99: 2754.2 | B99: 2.7542 | C99: 1.79233545 | D99: 0.9789054024 | E99: 1.000008625 | F99: 0.004153211869 | G99: 1 | H99: 0 | I99: 1661.746265 | J99: 1.57019455 | K99: 1.097269666 | L99: 0.4242371699 | M99: 1.000007858 | N99: 0.003964447654 | O99: 1.00007469 | P99: 0.01277230378 | Q99: 32.84196518 | R99: -122.4666533 | S99: 57.53334666 | U99: 1000000000 | V99: 7585617.64 | X99: 34.10212938 | Y99: -65.88566759 | AA99: 34.4189243 | AB99: -56.58098576 | AD99: 0 | AE99: 0
A100: 3020 | B100: 3.02 | C100: 1.913141427 | D100: 1.020780748 | E100: 1.00001037 | F100: 0.004554021223 | G100: 1 | H100: 0 | I100: 1822.11661 | J100: 1.570247514 | K100: 1.115919246 | L100: 0.4598429888 | M100: 1.000009448 | N100: 0.004347040602 | O100: 1.000089802 | P100: 0.01400478787 | Q100: 31.62143843 | R100: -122.8984778 | S100: 57.1015222 | U100: 1000000000 | V100: 9120400 | X100: 33.44827435 | Y100: -63.87056002 | AA100: 33.85225259 | AB100: -59.02791778 | AD100: 0 | AE100: 0
A101: 3311.3 | B101: 3.3113 | C101: 2.048909923 | D101: 1.060925619 | E101: 1.000012467 | F101: 0.004993281257 | G101: 1 | H101: 0 | I101: 1997.872377 | J101: 1.570295794 | K101: 1.137925701 | L101: 0.497471469 | M101: 1.000011359 | N101: 0.004766336825 | O101: 1.00010796 | P101: 0.01535546973 | Q101: 30.39555782 | R101: -123.1216671 | S101: 56.87833287 | U101: 1000000000 | V101: 10964707.69 | X101: 32.81804902 | Y101: -61.74139706 | AA101: 33.2565973 | AB101: -61.38027008 | AD101: 0 | AE101: 0
A102: 3630.8 | B102: 3.6308 | C102: 2.201124082 | D102: 1.09919508 | E102: 1.000014988 | F102: 0.005475062697 | G102: 1 | H102: 0 | I102: 2190.642609 | J102: 1.57033984 | K102: 1.163840112 | L102: 0.5370443225 | M102: 1.000013657 | N102: 0.005226222098 | O102: 1.000129798 | P102: 0.01683685117 | Q102: 29.16844944 | R102: -123.1331342 | S102: 56.86686578 | U102: 1000000000 | V102: 13182708.64 | X102: 32.21354159 | Y102: -59.50291266 | AA102: 32.63399636 | AB102: -63.63022156 | AD102: 0 | AE102: 0
A103: 3981.1 | B103: 3.9811 | C103: 2.371214768 | D103: 1.135449648 | E103: 1.00001802 | F103: 0.00600328524 | G103: 1 | H103: 0 | I103: 2401.996017 | J103: 1.570380006 | K103: 1.194249913 | L103: 0.5783867235 | M103: 1.000016419 | N103: 0.005730438052 | O103: 1.00015605 | P103: 0.01846096432 | Q103: 27.94571937 | R103: -122.9356036 | S103: 57.06439643 | U103: 1000000000 | V103: 15849157.21 | X103: 31.6375405 | Y103: -57.16535839 | AA103: 31.98726739 | AB103: -65.77024518 | AD103: 0 | AE103: 0
A104: 4365.2 | B104: 4.3652 | C104: 2.560797963 | D104: 1.169618113 | E104: 1.000021665 | F104: 0.006582471441 | G104: 1 | H104: 0 | I104: 2633.742649 | J104: 1.570416639 | K104: 1.229815882 | L104: 0.621287247 | M104: 1.00001974 | N104: 0.006283301802 | O104: 1.000187611 | P104: 0.02024168802 | Q104: 26.73223611 | R104: -122.5379122 | S104: 57.46208782 | U104: 1000000000 | V104: 19054971.04 | X104: 31.09238816 | Y104: -54.74111511 | AA104: 31.31893646 | AB104: -67.79679706 | AD104: 0 | AE104: 0
A105: 4786.3 | B105: 4.7863 | C105: 2.771584078 | D105: 1.201665976 | E105: 1.000026046 | F105: 0.007217445027 | G105: 1 | H105: 0 | I105: 2887.813225 | J105: 1.570450044 | K105: 1.271253289 | L105: 0.665472236 | M105: 1.000023733 | N105: 0.006889417982 | O105: 1.000225549 | P105: 0.02219381798 | Q105: 25.53277975 | R105: -121.9546154 | S105: 58.04538455 | U105: 1000000000 | V105: 22908667.69 | X105: 30.58027804 | Y105: -52.24614358 | AA105: 30.63159022 | AB105: -69.70847187 | AD105: 0 | AE105: 0
A106: 5248.1 | B106: 5.2481 | C106: 3.005532404 | D106: 1.231610142 | E106: 1.000031315 | F106: 0.007913783133 | G106: 1 | H106: 0 | I106: 3166.440138 | J106: 1.570480515 | K106: 1.31935759 | L106: 0.7106398733 | M106: 1.000028533 | N106: 0.00755411044 | O106: 1.000271167 | P106: 0.02433445413 | Q106: 24.35108553 | R106: -121.2049569 | S106: 58.79504309 | U106: 1000000000 | V106: 27542553.61 | X106: 30.10280132 | Y106: -49.69805851 | AA106: 29.92737271 | AB106: -71.5068984 | AD106: 0 | AE106: 0
A107: 5370.3 | B107: 5.3703 | C107: 3.067846407 | D107: 1.238767665 | E107: 1.00003279 | F107: 0.008098044581 | G107: 1 | H107: 0 | I107: 3240.169478 | J107: 1.570487701 | K107: 1.332516446 | L107: 0.7220388506 | M107: 1.000029877 | N107: 0.007729998084 | O107: 1.00028394 | P107: 0.02490087035 | Q107: 24.05900406 | R107: -120.9943247 | S107: 59.00567531 | U107: 1000000000 | V107: 28840122.09 | X107: 29.98906192 | Y107: -49.05543458 | AA107: 29.74903065 | AB107: -71.93889011 | AD107: 0 | AE107: 0
A108: 5432.85 | B108: 5.43285 | C108: 3.099801777 | D108: 1.242319916 | E108: 1.000033558 | F108: 0.008192361501 | G108: 1 | H108: 0 | I108: 3277.909004 | J108: 1.570491254 | K108: 1.339318012 | L108: 0.7277865466 | M108: 1.000030577 | N108: 0.007820028768 | O108: 1.000290592 | P108: 0.02519079405 | Q108: 23.91257999 | R108: -120.8851043 | S108: 59.11489567 | U108: 1000000000 | V108: 29515859.12 | X108: 29.93269514 | Y108: -48.73147782 | AA108: 29.65897335 | AB108: -72.1536265 | AD108: 0 | AE108: 0
A109: 5495.4 | B109: 5.4954 | C109: 3.131795464 | D109: 1.245799631 | E109: 1.000034336 | F109: 0.008286678275 | G109: 1 | H109: 0 | I109: 3315.648531 | J109: 1.570494727 | K109: 1.346163376 | L109: 0.7334759739 | M109: 1.000031285 | N109: 0.007910059325 | O109: 1.000297321 | P109: 0.02548071406 | Q109: 23.76818214 | R109: -120.7750617 | S109: 59.22493827 | U109: 1000000000 | V109: 30199421.16 | X109: 29.87753833 | Y109: -48.41085498 | AA109: 29.56973232 | AB109: -72.36420676 | AD109: 0 | AE109: 0
A110: 5559.4 | B110: 5.5594 | C110: 3.164569258 | D110: 1.249287143 | E110: 1.00003514 | F110: 0.008383181296 | G110: 1 | H110: 0 | I110: 3354.262916 | J110: 1.570498199 | K110: 1.353212065 | L110: 0.739237521 | M110: 1.000032018 | N110: 0.008002176789 | O110: 1.000304285 | P110: 0.02577735096 | Q110: 23.62248755 | R110: -120.6617128 | S110: 59.33828718 | U110: 1000000000 | V110: 30906928.36 | X110: 29.82232151 | Y110: -48.08621952 | AA110: 29.47925455 | AB110: -72.57549331 | AD110: 0 | AE110: 0
A111: 5623.4 | B111: 5.6234 | C111: 3.197380752 | D111: 1.252703119 | E111: 1.000035954 | F111: 0.008479684162 | G111: 1 | H111: 0 | I111: 3392.8773 | J111: 1.570501592 | K111: 1.360305207 | L111: 0.7449391701 | M111: 1.00003276 | N111: 0.008094294117 | O111: 1.00031133 | P111: 0.0260739839 | Q111: 23.47882089 | R111: -120.5476923 | S111: 59.45230769 | U111: 1000000000 | V111: 31622627.56 | X111: 29.76830399 | Y111: -47.76501143 | AA111: 29.38960541 | AB111: -72.78268088 | AD111: 0 | AE111: 0
A112: 5688.9 | B112: 5.6889 | C112: 3.230999103 | D112: 1.256127277 | E112: 1.000036796 | F112: 0.00857844865 | G112: 1 | H112: 0 | I112: 3432.396709 | J112: 1.570504985 | K112: 1.367609903 | L112: 0.75071302 | M112: 1.000033527 | N112: 0.008188570302 | O112: 1.000318624 | P112: 0.02637756502 | Q112: 23.33383966 | R112: -120.4303961 | S112: 59.56960392 | U112: 1000000000 | V112: 32363583.21 | X112: 29.71422839 | Y112: -47.43979026 | AA112: 29.29869977 | AB112: -72.99060583 | AD112: 0 | AE112: 0
A113: 5754.4 | B113: 5.7544 | C113: 3.264654557 | D113: 1.259480874 | E113: 1.000037648 | F113: 0.00867721297 | G113: 1 | H113: 0 | I113: 3471.916118 | J113: 1.570508301 | K113: 1.374959705 | L113: 0.7564253308 | M113: 1.000034304 | N113: 0.008282846342 | O113: 1.000326002 | P113: 0.02668114189 | Q113: 23.19088806 | R113: -120.3125783 | S113: 59.68742173 | U113: 1000000000 | V113: 33113119.36 | X113: 29.66134139 | Y113: -47.11809058 | AA113: 29.20863518 | AB113: -73.19448769 | AD113: 0 | AE113: 0
A114: 5821.4 | B114: 5.8214 | C114: 3.29911795 | D114: 1.262840442 | E114: 1.00003853 | F114: 0.008778238894 | G114: 1 | H114: 0 | I114: 3512.340551 | J114: 1.570511616 | K114: 1.382523743 | L114: 0.7622054265 | M114: 1.000035107 | N114: 0.008379281223 | O114: 1.000333636 | P114: 0.02699166646 | Q114: 23.04671495 | R114: -120.1916109 | S114: 59.80838913 | U114: 1000000000 | V114: 33888697.96 | X114: 29.60843908 | Y114: -46.79263074 | AA114: 29.11736438 | AB114: -73.39898013 | AD114: 0 | AE114: 0
A115: 5888.4 | B115: 5.8884 | C115: 3.333617808 | D115: 1.266130509 | E115: 1.000039422 | F115: 0.008879264639 | G115: 1 | H115: 0 | I115: 3552.764985 | J115: 1.570514856 | K115: 1.390133466 | L115: 0.7679224298 | M115: 1.00003592 | N115: 0.008475715948 | O115: 1.000341359 | P115: 0.02730218648 | Q115: 22.90457005 | R115: -120.0702717 | S115: 59.92972826 | U115: 1000000000 | V115: 34673254.56 | X115: 29.55671278 | Y115: -46.47078149 | AA115: 29.02694577 | AB115: -73.59949025 | AD115: 0 | AE115: 0
A116: 5957 | B116: 5.957 | C116: 3.368978157 | D116: 1.269429292 | E116: 1.000040346 | F116: 0.00898270275 | G116: 1 | H116: 0 | I116: 3594.154778 | J116: 1.570518097 | K116: 1.39797147 | L116: 0.7737112773 | M116: 1.000036762 | N116: 0.008574453428 | O116: 1.000349358 | P116: 0.02762011714 | Q116: 22.76108383 | R116: -119.945734 | S116: 60.05426597 | U116: 1000000000 | V116: 35485849 | X116: 29.50493575 | Y116: -46.14494792 | AA116: 28.93523659 | AB116: -73.80078612 | AD116: 0 | AE116: 0
A117: 6025.6 | B117: 6.0256 | C117: 3.404374404 | D117: 1.272659513 | E117: 1.00004128 | F117: 0.00908614067 | G117: 1 | H117: 0 | I117: 3635.544572 | J117: 1.570521265 | K117: 1.405855798 | L117: 0.7794353848 | M117: 1.000037613 | N117: 0.008673190742 | O117: 1.000357449 | P117: 0.02793804292 | Q117: 22.61962727 | R117: -119.8209728 | S117: 60.17902717 | U117: 1000000000 | V117: 36307855.36 | X117: 29.45432376 | Y117: -45.82281944 | AA117: 28.84439202 | AB117: -73.99815339 | AD117: 0 | AE117: 0
A118: 6095.8 | B118: 6.0958 | C118: 3.44063223 | D118: 1.275896234 | E118: 1.000042248 | F118: 0.009191990934 | G118: 1 | H118: 0 | I118: 3677.899724 | J118: 1.570524432 | K118: 1.413971165 | L118: 0.7852267184 | M118: 1.000038495 | N118: 0.008774230791 | O118: 1.000365825 | P118: 0.02826337878 | Q118: 22.47692388 | R118: -119.6931505 | S118: 60.30684948 | U118: 1000000000 | V118: 37158777.64 | X118: 29.40370342 | Y118: -45.49697112 | AA118: 28.75230897 | AB118: -74.1961794 | AD118: 0 | AE118: 0
A119: 6166 | B119: 6.166 | C119: 3.476925348 | D119: 1.279065415 | E119: 1.000043226 | F119: 0.009297840993 | G119: 1 | H119: 0 | I119: 3720.254877 | J119: 1.570527528 | K119: 1.422133414 | L119: 0.7909517642 | M119: 1.000039387 | N119: 0.008875270661 | O119: 1.000374297 | P119: 0.0285887094 | Q119: 22.33624835 | R119: -119.5652521 | S119: 60.4347479 | U119: 1000000000 | V119: 38019556 | X119: 29.35423522 | Y119: -45.17491668 | AA119: 28.66110165 | AB119: -74.39033543 | AD119: 0 | AE119: 0
A120: 6237.8 | B120: 6.2378 | C120: 3.51408103 | D120: 1.282239079 | E120: 1.000044239 | F120: 0.009406103373 | G120: 1 | H120: 0 | I120: 3763.57539 | J120: 1.570530622 | K120: 1.430529358 | L120: 0.7967395191 | M120: 1.000040309 | N120: 0.008978613247 | O120: 1.000383064 | P120: 0.0289214495 | Q120: 22.1944151 | R120: -119.4344357 | S120: 60.5655643 | U120: 1000000000 | V120: 38910148.84 | X120: 29.30479739 | Y120: -44.84940112 | AA120: 28.56870622 | AB120: -74.58503459 | AD120: 0 | AE120: 0
A121: 6309.6 | B121: 6.3096 | C121: 3.551271364 | D121: 1.285346301 | E121: 1.000045263 | F121: 0.009514365532 | G121: 1 | H121: 0 | I121: 3806.895903 | J121: 1.570533646 | K121: 1.438972661 | L121: 0.8024595434 | M121: 1.000041242 | N121: 0.009081955641 | O121: 1.000391931 | P121: 0.02925418401 | Q121: 22.05460487 | R121: -119.3036888 | S121: 60.69631116 | U121: 1000000000 | V121: 39811052.16 | X121: 29.25649701 | Y121: -44.52776219 | AA121: 28.47719637 | AB121: -74.77592665 | AD121: 0 | AE121: 0
A122: 6383.05 | B122: 6.38305 | C122: 3.589351086 | D122: 1.288458272 | E122: 1.000046323 | F122: 0.009625115379 | G122: 1 | H122: 0 | I122: 3851.211943 | J122: 1.570536668 | K122: 1.447658137 | L122: 0.8082417823 | M122: 1.000042208 | N122: 0.009187672694 | O122: 1.000401107 | P122: 0.02959455906 | Q122: 21.91362549 | R122: -119.1700806 | S122: 60.82991935 | U122: 1000000000 | V122: 40743327.3 | X122: 29.20822972 | Y122: -44.20269463 | AA122: 28.38448429 | AB122: -74.96738602 | AD122: 0 | AE122: 0
A123: 6456.5 | B123: 6.4565 | C123: 3.627464838 | D123: 1.291504878 | E123: 1.000047395 | F123: 0.00973586499 | G123: 1 | H123: 0 | I123: 3895.527983 | J123: 1.570539622 | K123: 1.456391436 | L123: 0.8139548636 | M123: 1.000043185 | N123: 0.009293389542 | O123: 1.00041039 | P123: 0.02993492812 | Q123: 21.77466414 | R123: -119.0366854 | S123: 60.96331458 | U123: 1000000000 | V123: 41686392.25 | X123: 29.16108507 | Y123: -43.88158556 | AA123: 28.29266758 | AB123: -75.15509987 | AD123: 0 | AE123: 0
A124: 6531.7 | B124: 6.5317 | C124: 3.666520826 | D124: 1.294558421 | E124: 1.000048506 | F124: 0.009849253045 | G124: 1 | H124: 0 | I124: 3940.899884 | J124: 1.570542578 | K124: 1.465381465 | L124: 0.8197333198 | M124: 1.000044197 | N124: 0.009401624955 | O124: 1.000420003 | P124: 0.03028340045 | Q124: 21.63443271 | R124: -118.9003995 | S124: 61.09960051 | U124: 1000000000 | V124: 42663104.89 | X124: 29.11394636 | Y124: -43.55687517 | AA124: 28.19957486 | AB124: -75.34352432 | AD124: 0 | AE124: 0
A125: 6606.9 | B125: 6.6069 | C125: 3.705610281 | D125: 1.297547569 | E125: 1.000049629 | F125: 0.009962640846 | G125: 1 | H125: 0 | I125: 3986.271786 | J125: 1.570545466 | K125: 1.474419827 | L125: 0.8254411194 | M125: 1.00004522 | N125: 0.009509860149 | O125: 1.000429728 | P125: 0.03063186635 | Q125: 21.49621671 | R125: -118.7644681 | S125: 61.23553187 | U125: 1000000000 | V125: 43651127.61 | X125: 29.06791676 | Y125: -43.23620925 | AA125: 28.10738846 | AB125: -75.52825888 | AD125: 0 | AE125: 0
A126: 6683.85 | B126: 6.68385 | C126: 3.745642947 | D126: 1.300541667 | E126: 1.000050792 | F126: 0.01007866706 | G126: 1 | H126: 0 | I126: 4032.699551 | J126: 1.570548354 | K126: 1.483717633 | L126: 0.8312095675 | M126: 1.00004628 | N126: 0.009620613883 | O126: 1.000439794 | P126: 0.03098843477 | Q126: 21.35682024 | R126: -118.6258028 | S126: 61.37419717 | U126: 1000000000 | V126: 44673850.82 | X126: 29.02193025 | Y126: -42.91221272 | AA126: 28.0139785 | AB126: -75.71359012 | AD126: 0 | AE126: 0
A127: 6760.8 | B127: 6.7608 | C127: 3.785708482 | D127: 1.303472415 | E127: 1.000051968 | F127: 0.010194693 | G127: 1 | H127: 0 | I127: 4079.127315 | J127: 1.570551176 | K127: 1.493064195 | L127: 0.8369059823 | M127: 1.000047352 | N127: 0.009731367381 | O127: 1.000449976 | P127: 0.03134499631 | Q127: 21.21943348 | R127: -118.4876309 | S127: 61.51236908 | U127: 1000000000 | V127: 45708416.64 | X127: 28.97703753 | Y127: -42.5923396 | AA127: 27.92148446 | AB127: -75.89529132 | AD127: 0 | AE127: 0
A128: 6839.55 | B128: 6.83955 | C128: 3.826744175 | D128: 1.306408154 | E128: 1.000053186 | F128: 0.01031343272 | G128: 1 | H128: 0 | I128: 4126.641109 | J128: 1.570553999 | K128: 1.502678919 | L128: 0.8426620867 | M128: 1.000048461 | N128: 0.009844711357 | O128: 1.000460518 | P128: 0.03170989125 | Q128: 21.08086313 | R128: -118.3467954 | S128: 61.6532046 | U128: 1000000000 | V128: 46779444.2 | X128: 28.93219335 | Y128: -42.26919497 | AA128: 27.82775829 | AB128: -76.07760043 | AD128: 0 | AE128: 0
A129: 6918.3 | B129: 6.9183 | C129: 3.867812149 | D129: 1.309281575 | E129: 1.000054418 | F129: 0.01043217214 | G129: 1 | H129: 0 | I129: 4174.154902 | J129: 1.570556757 | K129: 1.512342797 | L129: 0.8483448143 | M129: 1.000049583 | N129: 0.00995805508 | O129: 1.000471181 | P129: 0.03207477882 | Q129: 20.94429638 | R129: -118.2065894 | S129: 61.79341061 | U129: 1000000000 | V129: 47862874.89 | X129: 28.88842735 | Y129: -41.95025083 | AA129: 27.73495754 | AB129: -76.25633856 | AD129: 0 | AE129: 0
A130: 6998.9 | B130: 6.9989 | C130: 3.909877261 | D130: 1.312159968 | E130: 1.000055693 | F130: 0.0105537007 | G130: 1 | H130: 0 | I130: 4222.784893 | J130: 1.570559516 | K130: 1.522283622 | L130: 0.8540861374 | M130: 1.000050746 | N130: 0.01007406122 | O130: 1.000482221 | P130: 0.03244823062 | Q130: 20.8065452 | R130: -118.0637944 | S130: 61.93620558 | U130: 1000000000 | V130: 48984601.21 | X130: 28.84471596 | Y130: -41.62810198 | AA130: 27.64091775 | AB130: -76.43569244 | AD130: 0 | AE130: 0
A131: 7079.5 | B131: 7.0795 | C131: 3.951974076 | D131: 1.314977061 | E131: 1.000056983 | F131: 0.01067522894 | G131: 1 | H131: 0 | I131: 4271.414884 | J131: 1.570562212 | K131: 1.532273974 | L131: 0.8597527789 | M131: 1.000051921 | N131: 0.01019006708 | O131: 1.000493389 | P131: 0.03282167452 | Q131: 20.67079103 | R131: -117.9217622 | S131: 62.07823783 | U131: 1000000000 | V131: 50119320.25 | X131: 28.8020668 | Y131: -41.31022846 | AA131: 27.54781274 | AB131: -76.61153372 | AD131: 0 | AE131: 0
A132: 7161.95 | B132: 7.16195 | C132: 3.995068893 | D132: 1.317797364 | E132: 1.000058318 | F132: 0.01079954628 | G132: 1 | H132: 0 | I132: 4321.161072 | J132: 1.570564908 | K132: 1.542543874 | L132: 0.8654733509 | M132: 1.000053137 | N132: 0.01030873533 | O132: 1.000504945 | P132: 0.03320368174 | Q132: 20.53393606 | R132: -117.7773071 | S132: 62.22269286 | U132: 1000000000 | V132: 51293527.8 | X132: 28.75950427 | Y132: -40.98941744 | AA132: 27.45352029 | AB132: -76.78788971 | AD132: 0 | AE132: 0
A133: 7244.4 | B133: 7.2444 | C133: 4.038194808 | D133: 1.32055745 | E133: 1.000059668 | F133: 0.01092386328 | G133: 1 | H133: 0 | I133: 4370.90726 | J133: 1.570567541 | K133: 1.552863585 | L133: 0.8711180723 | M133: 1.000054368 | N133: 0.01042740328 | O133: 1.000516635 | P133: 0.0335856805 | Q133: 20.39906862 | R133: -117.6337438 | S133: 62.36625616 | U133: 1000000000 | V133: 52481331.36 | X133: 28.71798646 | Y133: -40.67294881 | AA133: 27.36017067 | AB133: -76.96079503 | AD133: 0 | AE133: 0
A134: 7328.75 | B134: 7.32875 | C134: 4.082345683 | D134: 1.323320771 | E134: 1.000061066 | F134: 0.01105104473 | G134: 1 | H134: 0 | I134: 4421.799813 | J134: 1.570570175 | K134: 1.563471624 | L134: 0.8768155745 | M134: 1.000055641 | N134: 0.01054880555 | O134: 1.000528733 | P134: 0.03397647327 | Q134: 20.26309871 | R134: -117.4878382 | S134: 62.51216179 | U134: 1000000000 | V134: 53710576.56 | X134: 28.67655965 | Y134: -40.35361268 | AA134: 27.26562757 | AB134: -77.13422553 | AD134: 0 | AE134: 0
A135: 7413.1 | B135: 7.4131 | C135: 4.126527064 | D135: 1.326024941 | E135: 1.00006248 | F135: 0.01117822582 | G135: 1 | H135: 0 | I135: 4472.692365 | J135: 1.570572748 | K135: 1.574129731 | L135: 0.8824361039 | M135: 1.000056929 | N135: 0.01067020751 | O135: 1.000540971 | P135: 0.03436725698 | Q135: 20.12910649 | R135: -117.3429497 | S135: 62.65705029 | U135: 1000000000 | V135: 54954051.61 | X135: 28.6361598 | Y135: -40.03868333 | AA135: 27.17203519 | AB135: -77.30426638 | AD135: 0 | AE135: 0
A136: 7499.45 | B136: 7.49945 | C136: 4.171786604 | D136: 1.328733879 | E136: 1.000063944 | F136: 0.01130842209 | G136: 1 | H136: 0 | I136: 4524.791618 | J136: 1.570575322 | K136: 1.585091357 | L136: 0.8881114222 | M136: 1.000058263 | N136: 0.01079448767 | O136: 1.000553643 | P136: 0.03476729696 | Q136: 19.99393428 | R136: -117.1957177 | S136: 62.80428228 | U136: 1000000000 | V136: 56241750.3 | X136: 28.59583264 | Y136: -39.72077976 | AA136: 27.07719015 | AB136: -77.47493796 | AD136: 0 | AE136: 0
A137: 7585.8 | B137: 7.5858 | C137: 4.217076101 | D137: 1.33138465 | E137: 1.000065425 | F137: 0.01143861798 | G137: 1 | H137: 0 | I137: 4576.89087 | J137: 1.570577838 | K137: 1.596103335 | L137: 0.8937086075 | M137: 1.000059613 | N137: 0.0109187675 | O137: 1.000566463 | P137: 0.03516732721 | Q137: 19.86073174 | R137: -117.0496258 | S137: 62.95037416 | U137: 1000000000 | V137: 57544361.64 | X137: 28.55651558 | Y137: -39.40734952 | AA137: 26.98330466 | AB137: -77.64227631 | AD137: 0 | AE137: 0
A138: 7674.15 | B138: 7.67415 | C138: 4.263444583 | D138: 1.334038509 | E138: 1.000066957 | F138: 0.01157182901 | G138: 1 | H138: 0 | I138: 4630.196822 | J138: 1.570580353 | K138: 1.607421404 | L138: 0.8993558766 | M138: 1.000061009 | N138: 0.01104592549 | O138: 1.00057973 | P138: 0.03557661261 | Q138: 19.726431 | R138: -116.9013637 | S138: 63.09863629 | U138: 1000000000 | V138: 58892578.22 | X138: 28.51730039 | Y138: -39.09121457 | AA138: 26.88821912 | AB138: -77.81014914 | AD138: 0 | AE138: 0
A139: 7762.5 | B139: 7.7625 | C139: 4.309842445 | D139: 1.336635245 | E139: 1.000068508 | F139: 0.01170503962 | G139: 1 | H139: 0 | I139: 4683.502774 | J139: 1.570582811 | K139: 1.618790019 | L139: 0.9049240008 | M139: 1.000062422 | N139: 0.01117308312 | O139: 1.000593152 | P139: 0.03598588759 | Q139: 19.59408908 | R139: -116.7543595 | S139: 63.2456405 | U139: 1000000000 | V139: 60256406.25 | X139: 28.47907695 | Y139: -38.779611 | AA139: 26.79410064 | AB139: -77.97474851 | AD139: 0 | AE139: 0
A140: 7852.9 | B140: 7.8529 | C140: 4.357346318 | D140: 1.339234976 | E140: 1.000070113 | F140: 0.01184134072 | G140: 1 | H140: 0 | I140: 4738.045592 | J140: 1.570585269 | K140: 1.630473637 | L140: 0.9105407727 | M140: 1.000063884 | N140: 0.01130319084 | O140: 1.000607044 | P140: 0.03640464814 | Q140: 19.46065223 | R140: -116.6052749 | S140: 63.39472506 | U140: 1000000000 | V140: 61668038.41 | X140: 28.44096044 | Y140: -38.46538912 | AA140: 26.6987803 | AB140: -78.13988582 | AD140: 0 | AE140: 0
A141: 7943.3 | B141: 7.9433 | C141: =SQRT(1+(A141/pole1)^2) -> 4.404879006 | D141: =ATAN(A141/pole1) -> 1.341778616 | E141: =SQRT(1+(A141/Zero1)^2) -> 1.000071736 | F141: =ATAN(A141/Zero1) -> 0.01197764137 | G141: =IF(VIN_nom>Vout, 1, SQRT(1+(A141/z_RHP)^2)) -> 1 | H141: =IF(VIN_nom>Vout, 0, -ATAN(A141/z_RHP)) -> 0 | I141: =SQRT(1+(A141/Pole2)^2) -> 4792.588411 | J141: =ATAN(A141/Pole2) -> 1.570587671 | K141: =SQRT(1+(A141/Zero2)^2) -> 1.64220796 | L141: =ATAN(A141/Zero2) -> 0.9160774485 | M141: =SQRT(1+(A141/pole4)^2) -> 1.000065364 | N141: =ATAN(A141/pole4) -> 0.01143329818 | O141: =SQRT((1-(V141/pterm2))^2+(A141/pterm1)^2) -> 1.000621096 | P141: =IF((ATAN((A141/pterm1)/(1-A141^2/pterm2))>0),ATAN((A141/pterm1)/(1-A141^2/pterm2)),PI()+ATAN((A141/pterm1)/(1-A141^2/pterm2))) -> 0.03682339754 | Q141: =20*LOG10(((E141*K141*G141)/(C141*I141*O141*M141))*Adc) -> 19.32916288 | R141: =((F141+L141+H141)-(D141+J141+P141+N141))*radconv -> -116.457562 | S141: =IF(R141>0,R141,R141+180) -> 63.54243801 | U141: 1000000000 | V141: 63096014.89 | X141: =20*LOG10((K141/(I141*M141))*AEA) -> 28.40381707 | Y141: =(L141-(J141+N141))*radconv -> -38.15575319 | AA141: =20*LOG10((E141*G141/(C141*O141))*Acs*Am) -> 26.60443432 | AB141: =(F141+H141-(D141+P141))*radconv -> -78.3018088 | AD141: 0 | AE141: 0
A142: 8035.8 | B142: =A142/1000 -> 8.0358 | C142: 4.453544745 | D142: 1.344325125 | E142: 1.000073417 | F142: 0.01211710784 | G142: 1 | H142: 0 | I142: 4848.398265 | J142: 1.570590073 | K142: 1.654266233 | L142: 0.9216612607 | M142: 1.000066895 | N142: 0.01156642752 | O142: 1.000635641 | P142: 0.03725186285 | Q142: 19.19658315 | R142: -116.3078611 | S142: 63.69213888 | U142: =IF(Q142<0,A142,1000000000) -> 1000000000 | V142: =A142^2 -> 64574081.64 | X142: 28.36678574 | Y142: -37.84358968 | AA142: 26.50888593 | AB142: -78.46427145 | AD142: =SUM((Q143<0)*(Q142>0))*A142 -> 0 | AE142: 0
A143: 8128.3 | B143: 8.1283 | C143: 4.50223874 | D143: 1.346816567 | E143: 1.000075117 | F143: 0.01225657384 | G143: 1 | H143: 0 | I143: 4904.208118 | J143: 1.57059242 | K143: 1.666375337 | L143: 0.9271640903 | M143: 1.000068444 | N143: 0.01169955646 | O143: 1.000650354 | P143: 0.0376803162 | Q143: 19.06593913 | R143: -116.1596413 | S143: 63.84035874 | U143: 1000000000 | V143: 66069260.89 | X143: 28.33070867 | Y143: -37.53606298 | AA143: 26.41431897 | AB143: -78.62357829 | AD143: 0 | AE143: 0
A144: 8222.95 | B144: 8.22295 | C144: 4.552092843 | D144: 1.349310727 | E144: 1.000076876 | F144: 0.01239928099 | G144: 1 | H144: 0 | I144: 4961.315174 | J144: 1.570594767 | K144: 1.678817365 | L144: 0.9327124798 | M144: 1.000070047 | N144: 0.01183577931 | O144: 1.000665583 | P144: 0.03811871569 | Q144: 18.93421045 | R144: -116.0095282 | S144: 63.9904718 | U144: 1000000000 | V144: 67616906.7 | X144: 28.29474872 | Y144: -37.22610315 | AA144: 26.31855024 | AB144: -78.78342505 | AD144: 0 | AE144: 0
A145: 8270.275 | B145: 8.270275 | C145: 4.577030341 | D145: 1.350537428 | E145: 1.000077763 | F145: 0.01247063437 | G145: 1 | H145: 0 | I145: 4989.868701 | J145: 1.570595921 | K145: 1.685057545 | L145: 0.9354559064 | M145: 1.000070855 | N145: 0.01190389057 | O145: 1.000673264 | P145: 0.03833791064 | Q145: 18.86907052 | R145: -115.9350655 | S145: 64.06493452 | U145: 1000000000 | V145: 68397448.58 | X145: 28.27712135 | Y145: -37.07288495 | AA145: 26.27103768 | AB145: -78.86218053 | AD145: 0 | AE145: 0
A146: 8317.6 | B146: 8.3176 | C146: 4.601974651 | D146: 1.351750832 | E146: 1.000078656 | F146: 0.01254198763 | G146: 1 | H146: 0 | I146: 5018.422229 | J146: 1.570597061 | K146: 1.691310314 | L146: 0.9381790686 | M146: 1.000071669 | N146: 0.01197200172 | O146: 1.000680989 | P146: 0.03855710238 | Q146: 18.80440515 | R146: -115.8610011 | S146: 64.13899893 | U146: 1000000000 | V146: 69182469.76 | X146: 28.2597239 | Y146: -36.92082707 | AA146: 26.22376976 | AB146: -78.94017401 | AD146: 0 | AE146: 0
A147: 8366.05 | B147: 8.36605 | C147: 4.627518875 | D147: 1.352979528 | E147: 1.000079575 | F147: 0.01261503695 | G147: 1 | H147: 0 | I147: 5047.654525 | J147: 1.570598215 | K147: 1.697724618 | L147: 0.9409461642 | M147: 1.000072506 | N147: 0.01204173188 | O147: 1.000688942 | P147: 0.03878150134 | Q147: 18.73868777 | R147: -115.7855903 | S147: 64.21440969 | U147: 1000000000 | V147: 69990792.6 | X147: 28.24214711 | Y147: -36.76634553 | AA147: 26.17562917 | AB147: -79.01924478 | AD147: 0 | AE147: 0
A148: 8414.5 | B148: 8.4145 | C148: 4.653070008 | D148: 1.354194731 | E148: 1.000080499 | F148: 0.01268808613 | G148: 1 | H148: 0 | I148: 5076.886822 | J148: 1.570599356 | K148: =SQRT(1+(A148/Zero2)^2) -> 1.704151824 | L148: =ATAN(A148/Zero2) -> 0.9436924085 | M148: 1.000073348 | N148: 0.01211146192 | O148: 1.000696943 | P148: 0.03900589688 | Q148: 18.67345486 | R148: -115.7106002 | S148: 64.28939977 | U148: 1000000000 | V148: 70803810.25 | X148: 28.22480337 | Y148: -36.61305791 | AA148: 26.12774 | AB148: -79.09754231 | AD148: 0 | AE148: 0
A149: 8462.95 | B149: 8.46295 | C149: 4.678627938 | D149: 1.35539666 | E149: 1.000081429 | F149: 0.01276113518 | G149: 1 | H149: 0 | I149: 5106.119118 | J149: 1.570600483 | K149: 1.710591785 | L149: 0.9464179954 | M149: 1.000074195 | N149: 0.01218119185 | O149: 1.000704989 | P149: 0.039230289 | Q149: 18.60870004 | R149: -115.6360322 | S149: 64.3639678 | U149: 1000000000 | V149: 71621522.7 | X149: 28.20768877 | Y149: -36.46095313 | AA149: 26.08009977 | AB149: -79.17507907 | AD149: 0 | AE149: 0
A150: 8511.4 | B150: 8.5114 | C150: 4.704192553 | D150: 1.356585527 | E150: 1.000082364 | F150: 0.01283418409 | G150: 1 | H150: 0 | I150: 5135.351414 | J150: 1.570601598 | K150: 1.717044359 | L150: 0.949123117 | M150: 1.000075047 | N150: 0.01225092165 | O150: 1.000713081 | P150: 0.03945467766 | Q150: 18.54441706 | R150: -115.5618874 | S150: 64.43811259 | U150: 1000000000 | V150: 72443929.96 | X150: 28.19079952 | Y150: -36.31002018 | AA150: 26.03270605 | AB150: -79.25186724 | AD150: 0 | AE150: 0
A151: 8560.95 | B151: 8.56095 | C151: 4.730344384 | D151: 1.357788092 | E151: 1.000083326 | F151: 0.01290889136 | G151: 1 | H151: 0 | I151: 5165.247395 | J151: 1.570602725 | K151: 1.723656328 | L151: 0.9518686861 | M151: 1.000075924 | N151: 0.01232223447 | O151: 1.000721405 | P151: 0.03968415721 | Q151: 18.47915623 | R151: -115.4864981 | S151: 64.51350188 | U151: 1000000000 | V151: 73289864.9 | X151: 28.17375598 | Y151: -36.15686115 | AA151: 25.98448876 | AB151: -79.32963697 | AD151: 0 | AE151: 0
A152: 8610.5 | B152: 8.6105 | C152: 4.756502981 | D152: 1.358977432 | E152: 1.000084293 | F152: 0.01298359847 | G152: 1 | H152: 0 | I152: 5195.143376 | J152: 1.570603839 | K152: 1.730281191 | L152: 0.9545932513 | M152: 1.000076805 | N152: 0.01239354716 | O152: 1.000729777 | P152: 0.03991363311 | Q152: 18.41437601 | R152: -115.4115536 | S152: 64.58844644 | U152: 1000000000 | V152: 74140710.25 | X152: 28.15694029 | Y152: -36.00490481 | AA152: 25.93652423 | AB152: -79.40664874 | AD152: 0 | AE152: 0
A153: 8660.05 | B153: 8.66005 | C153: 4.782668232 | D153: 1.360153761 | E153: 1.000085266 | F153: 0.01305830544 | G153: 1 | H153: 0 | I153: 5225.039357 | J153: 1.570604941 | K153: 1.7369188 | L153: 0.9572970127 | M153: 1.000077691 | N153: 0.01246485972 | O153: 1.000738197 | P153: 0.04014310534 | Q153: 18.35007005 | R153: -115.3370545 | S153: 64.6629455 | U153: 1000000000 | V153: 74996466 | X153: 28.14034861 | Y153: -35.85413971 | AA153: 25.88880995 | AB153: -79.48291479 | AD153: 0 | AE153: 0
A154: 8709.6 | B154: 8.7096 | C154: 4.80884003 | D154: 1.361317287 | E154: 1.000086244 | F154: 0.01313301227 | G154: 1 | H154: 0 | I154: 5254.935338 | J154: 1.570606029 | K154: 1.74356901 | L154: 0.9599801686 | M154: 1.000078583 | N154: 0.01253617216 | O154: 1.000746665 | P154: 0.04037257387 | Q154: 18.28623211 | R154: -115.2630016 | S154: 64.7369984 | U154: 1000000000 | V154: 75857132.16 | X154: 28.12397716 | Y154: -35.70455449 | AA154: 25.84134345 | AB154: -79.55844711 | AD154: 0 | AE154: =IF(AD154>0,S154,0) -> 0
A155: 8760.325 | B155: 8.760325 | C155: 4.83563912 | D155: 1.362495356 | E155: 1.000087252 | F155: 0.0132094905 | G155: 1 | H155: 0 | I155: 5285.540256 | J155: 1.570607131 | K155: 1.750389822 | L155: 0.962705812 | M155: 1.000079501 | N155: 0.01260917553 | O155: 1.000755385 | P155: 0.04060748004 | Q155: 18.22135876 | R155: -115.1876553 | S155: 64.81234471 | U155: 1000000000 | V155: 76743294.11 | X155: 28.10744178 | Y155: -35.55263254 | AA155: 25.79300548 | AB155: -79.63502275 | AD155: 0 | AE155: 0
A156: 8811.05 | B156: 8.81105 | C156: 4.862444847 | D156: 1.363660438 | E156: 1.000088265 | F156: 0.01328596857 | G156: 1 | H156: 0 | I156: 5316.145173 | J156: 1.570608221 | K156: 1.757223537 | L156: 0.9654102758 | M156: 1.000080424 | N156: 0.01268217876 | O156: 1.000764155 | P156: 0.04084238229 | Q156: 18.156963 | R156: -115.1127774 | S156: 64.88722257 | U156: 1000000000 | V156: 77634602.1 | X156: 28.09112947 | Y156: -35.40192336 | AA156: 25.74492205 | AB156: -79.71085406 | AD156: 0 | AE156: 0
A157: 8861.775 | B157: 8.861775 | C157: 4.889257102 | D157: 1.364812743 | E157: 1.000089284 | F157: 0.01336244649 | G157: 1 | H157: 0 | I157: 5346.75009 | J157: 1.570609297 | K157: 1.764070004 | L157: 0.9680937667 | M157: 1.000081353 | N157: 0.01275518186 | O157: 1.000772975 | P157: 0.04107728061 | Q157: 18.09303851 | R157: -115.0383682 | S157: 64.96163178 | U157: 1000000000 | V157: 78531056.15 | X157: 28.07503641 | Y157: -35.25241512 | AA157: 25.69709061 | AB157: -79.7859531 | AD157: 0 | AE157: 0
A158: 8912.5 | B158: 8.9125 | C158: 4.916075778 | D158: 1.365952477 | E158: 1.000090309 | F158: 0.01343892425 | G158: 1 | H158: 0 | I158: 5377.355007 | J158: 1.570610362 | K158: =SQRT(1+(A158/Zero2)^2) -> 1.770929077 | L158: =ATAN(A158/Zero2) -> 0.9707564895 | M158: 1.000082287 | N158: 0.01282818482 | O158: 1.000781846 | P158: 0.04131217496 | Q158: 18.02957903 | R158: -114.9644278 | S158: 65.03557225 | U158: 1000000000 | V158: 79432656.25 | X158: 28.05915889 | Y158: -35.10409609 | AA158: 25.64950865 | AB158: -79.86033166 | AD158: 0 | AE158: 0
A159: 8964.4 | B159: 8.9644 | C159: 4.943522223 | D159: 1.367105811 | E159: 1.000091364 | F159: 0.01351717339 | G159: 1 | H159: 0 | I159: 5408.66886 | J159: 1.570611438 | K159: 1.777959928 | L159: 0.9734596083 | M159: 1.000083248 | N159: 0.01290287869 | O159: 1.000790975 | P159: 0.04155250631 | Q159: 17.96512449 | R159: -114.8892596 | S159: 65.11074039 | U159: 1000000000 | V159: 80360467.36 | X159: 28.04313286 | Y159: -34.95356013 | AA159: 25.60108014 | AB159: -79.93569948 | AD159: 0 | AE159: 0
A160: 9016.3 | B160: 9.0163 | C160: 4.97097517 | D160: 1.368246408 | E160: 1.000092425 | F160: 0.01359542237 | G160: 1 | H160: 0 | I160: 5439.982713 | J160: 1.570612503 | K160: 1.785003668 | L160: 0.9761414131 | M160: 1.000084215 | N160: 0.01297757242 | O160: 1.000800156 | P160: 0.04179283347 | Q160: 17.90114391 | R160: -114.8145819 | S160: 65.18541809 | U160: 1000000000 | V160: 81293665.69 | X160: 28.02732482 | Y160: -34.80424464 | AA160: 25.5529076 | AB160: -80.01033727 | AD160: 0 | AE160: 0
A161: 9068.2 | B161: 9.0682 | C161: 4.998434514 | D161: 1.369374475 | E161: 1.000093492 | F161: 0.01367367118 | G161: 1 | H161: 0 | I161: 5471.296566 | J161: 1.570613555 | K161: 1.792060145 | L161: 0.978802117 | M161: 1.000085187 | N161: 0.013052266 | O161: 1.000809391 | P161: 0.04203315641 | Q161: 17.83763098 | R161: -114.7403943 | S161: 65.25960567 | U161: 1000000000 | V161: 82232251.24 | X161: 28.01173102 | Y161: -34.65613744 | AA161: 25.50498847 | AB161: -80.08425689 | AD161: 0 | AE161: 0
A162: 9120.1 | B162: 9.1201 | C162: 5.025900148 | D162: 1.370490213 | E162: 1.000094565 | F162: 0.01375191982 | G162: 1 | H162: 0 | I162: 5502.610419 | J162: 1.570614595 | K162: 1.799129209 | L162: 0.9814419309 | M162: 1.000086165 | N162: 0.01312695943 | O162: 1.000818678 | P162: 0.0422734751 | Q162: 17.77457947 | R162: -114.6666964 | S162: 65.33330361 | U162: 1000000000 | V162: 83176224.01 | X162: 27.99634778 | Y162: -34.50922646 | AA162: 25.4573202 | AB162: -80.15746993 | AD162: 0 | AE162: 0
A163: 9173.2 | B163: 9.1732 | C163: 5.054007231 | D163: 1.371619197 | E163: 1.000095669 | F163: 0.0138319775 | G163: 1 | H163: 0 | I163: 5534.648292 | J163: 1.570615647 | K163: 1.806374592 | L163: 0.9841213783 | M163: 1.000087171 | N163: 0.01320337973 | O163: 1.000828235 | P163: 0.04251934588 | Q163: 17.71054131 | R163: -114.5918006 | S163: 65.4081994 | U163: 1000000000 | V163: 84147598.24 | X163: 27.98082303 | Y163: -34.36014427 | AA163: 25.40880679 | AB163: -80.23165633 | AD163: 0 | AE163: 0
A164: 9226.3 | B164: 9.2263 | C164: 5.082120683 | D164: 1.372735692 | E164: 1.00009678 | F164: 0.013912035 | G164: 1 | H164: 0 | I164: 5566.686164 | J164: 1.570616687 | K164: 1.813632841 | L164: 0.9867793982 | M164: 1.000088183 | N164: 0.01327979988 | O164: 1.000837848 | P164: 0.04276521217 | Q164: 17.64697336 | R164: -114.517416 | S164: 65.48258401 | U164: 1000000000 | V164: 85124611.69 | X164: 27.96551116 | Y164: -34.21228908 | AA164: 25.36055071 | AB164: -80.30512691 | AD164: 0 | AE164: 0
A165: 9279.4 | B165: 9.2794 | C165: 5.110240402 | D165: 1.373839901 | E165: 1.000097897 | F165: 0.01399209233 | G165: 1 | H165: 0 | I165: 5598.724037 | J165: 1.570617715 | K165: 1.820903801 | L165: 0.9894162093 | M165: 1.000089201 | N165: 0.01335621987 | O165: 1.000847516 | P165: 0.04301107395 | Q165: 17.58386932 | R165: -114.4435417 | S165: 65.55645833 | U165: 1000000000 | V165: 86107264.36 | X165: 27.95040846 | Y165: -34.06564837 | AA165: 25.31254936 | AB165: -80.3778933 | AD165: 0 | AE165: 0
A166: 9332.5 | B166: 9.3325 | C166: 5.138366283 | D166: 1.374932023 | E166: 1.000099021 | F166: 0.01407214948 | G166: 1 | H166: 0 | I166: 5630.76191 | J166: 1.570618731 | K166: 1.82818732 | L166: 0.9920320284 | M166: 1.000090225 | N166: 0.0134326397 | O166: 1.000857239 | P166: 0.04325693117 | Q166: 17.52122299 | R166: -114.3701767 | S166: 65.62982334 | U166: 1000000000 | V166: 87095556.25 | X166: 27.93551132 | Y166: -33.92020974 | AA166: 25.26480018 | AB166: -80.44996692 | AD166: 0 | AE166: 0
A167: 9386.85 | B167: 9.38685 | C167: 5.167160538 | D167: 1.37603754 | E167: 1.000100178 | F167: 0.01415409103 | G167: 1 | H167: 0 | I167: 5663.55397 | J167: 1.570619759 | K167: 1.835655147 | L167: 0.9946879096 | M167: 1.000091279 | N167: 0.01351085833 | O167: 1.000867248 | P167: 0.04350857127 | Q167: 17.4575696 | R167: -114.2956109 | S167: 65.70438913 | U167: 1000000000 | V167: 88112952.92 | X167: 27.92047266 | Y167: -33.77257947 | AA167: 25.21618545 | AB167: -80.5230314 | AD167: 0 | AE167: 0
A168: 9441.2 | B168: 9.4412 | C168: 5.195961038 | D168: 1.377130803 | E168: 1.000101341 | F168: 0.01423603238 | G168: 1 | H168: 0 | I168: 5696.34603 | J168: 1.570620776 | K168: 1.843135818 | L168: 0.9973222506 | M168: 1.000092339 | N168: 0.0135890768 | O168: 1.000877316 | P168: 0.04376020655 | Q168: 17.39438296 | R168: -114.2215762 | S168: 65.77842383 | U168: 1000000000 | V168: 89136257.44 | X168: 27.90564191 | Y168: -33.62618267 | AA168: 25.16782956 | AB168: -80.5953935 | AD168: 0 | AE168: 0
A169: 9495.55 | B169: 9.49555 | C169: 5.22476768 | D169: 1.378212012 | E169: 1.000102511 | F169: 0.01431797355 | G169: 1 | H169: 0 | I169: 5729.13809 | J169: 1.57062178 | K169: 1.850629176 | L169: 0.9999352763 | M169: 1.000093405 | N169: 0.0136672951 | O169: 1.000887441 | P169: 0.04401183699 | Q169: 17.3316568 | R169: -114.1480712 | S169: 65.85192883 | U169: 1000000000 | V169: 90165469.8 | X169: 27.89101542 | Y169: -33.48100648 | AA169: 25.11972989 | AB169: -80.66706469 | AD169: 0 | AE169: 0
A170: 9549.9 | B170: 9.5499 | C170: 5.253580362 | D170: 1.379281362 | E170: 1.000103688 | F170: 0.01439991452 | G170: 1 | H170: 0 | I170: 5761.93015 | J170: 1.570622774 | K170: 1.858135068 | L170: 1.002527209 | M170: 1.000094477 | N170: 0.01374551323 | O170: 1.000897625 | P170: 0.04426346256 | Q170: 17.26938494 | R170: -114.0750943 | S170: 65.92490566 | U170: 1000000000 | V170: 91200590.01 | X170: 27.87658963 | Y170: -33.33703816 | AA170: 25.07188382 | AB170: -80.73805618 | AD170: 0 | AE170: 0
A171: 9605.525 | B171: 9.605525 | C171: 5.283075115 | D171: 1.38036372 | E171: 1.000104899 | F171: 0.01448377755 | G171: 1 | H171: 0 | I171: 5795.491481 | J171: 1.570623779 | K171: 1.865829862 | L171: 1.005158335 | M171: 1.000095581 | N171: 0.01382556612 | O171: 1.000908107 | P171: 0.04452098595 | Q171: 17.20611634 | R171: -114.0009508 | S171: 65.99904925 | U171: 1000000000 | V171: 92266110.53 | X171: 27.86202959 | Y171: -33.19093004 | AA171: 25.02317526 | AB171: -80.81002071 | AD171: 0 | AE171: 0
A172: 9661.15 | B172: 9.66115 | C172: 5.312575989 | D172: 1.381434058 | E172: 1.000106117 | F172: 0.01456764038 | G172: 1 | H172: 0 | I172: 5829.052812 | J172: 1.570624772 | K172: 1.873537466 | L172: 1.00776783 | M172: 1.000096691 | N172: 0.01390561882 | O172: 1.00091865 | P172: 0.04477850419 | Q172: 17.14331088 | R172: -113.9273569 | S172: 66.07264311 | U172: 1000000000 | V172: 93337819.32 | X172: 27.84767244 | Y172: -33.0460606 | AA172: 24.97472696 | AB172: -80.88129629 | AD172: 0 | AE172: 0
A173: 9716.775 | B173: 9.716775 | C173: 5.342082881 | D173: 1.382492574 | E173: 1.000107343 | F173: 0.014651503 | G173: 1 | H173: 0 | I173: 5862.614143 | J173: 1.570625754 | K173: 1.881257724 | L173: 1.010355925 | M173: 1.000097807 | N173: 0.01398567135 | O173: 1.000929254 | P173: 0.04503601723 | Q173: 17.08096232 | R173: -113.8543108 | S173: 66.14568918 | U173: 1000000000 | V173: 94415716.4 | X173: 27.83351459 | Y173: -32.90241662 | AA173: 24.92653624 | AB173: -80.9518942 | AD173: 0 | AE173: 0
A174: 9772.4 | B174: 9.7724 | C174: 5.371595694 | D174: 1.383539459 | E174: 1.000108575 | F174: 0.01473536541 | G174: 1 | H174: 0 | I174: 5896.175474 | J174: 1.570626725 | K174: 1.888990479 | L174: 1.012922847 | M174: 1.00009893 | N174: 0.0140657237 | O174: 1.000939919 | P174: 0.04529352506 | Q174: 17.01906451 | R174: -113.7818105 | S174: 66.21818949 | U174: 1000000000 | V174: 95499801.76 | X174: 27.81955253 | Y174: -32.75998507 | AA174: 24.8786005 | AB174: -81.02182545 | AD174: 0 | AE174: 0
A175: 9829.3 | B175: 9.8293 | C175: 5.401791003 | D175: 1.384598503 | E175: 1.000109843 | F175: 0.01482114985 | G175: 1 | H175: 0 | I175: 5930.506076 | J175: 1.570627707 | K175: 1.896913252 | L175: 1.015526937 | M175: 1.000100086 | N175: 0.01414761077 | O175: 1.000950891 | P175: 0.04555692988 | Q175: 16.956208 | R175: -113.7082109 | S175: 66.29178912 | U175: 1000000000 | V175: 96615138.49 | X175: 27.80546942 | Y175: -32.61552977 | AA175: 24.82982709 | AB175: -81.09268111 | AD175: 0 | AE175: 0
A176: 9886.2 | B176: 9.8862 | C176: 5.431992304 | D176: 1.385645772 | E176: 1.000111119 | F176: 0.01490693408 | G176: 1 | H176: 0 | I176: 5964.836678 | J176: 1.570628678 | K176: 1.904848781 | L176: 1.018109347 | M176: 1.000101248 | N176: 0.01422949765 | O176: 1.000961927 | P176: 0.04582032918 | Q176: 16.89381049 | R176: -113.6351778 | S176: 66.36482223 | U176: 1000000000 | V176: 97736950.44 | X176: 27.79158397 | Y176: -32.47231597 | AA176: 24.78131503 | AB176: -81.16286181 | AD176: 0 | AE176: 0
A177: 9943.1 | B177: 9.9431 | C177: 5.462199496 | D177: 1.386681459 | E177: 1.000112401 | F177: 0.01499271808 | G177: 1 | H177: 0 | I177: 5999.16728 | J177: 1.570629637 | K177: 1.912796907 | L177: 1.020670312 | M177: 1.000102417 | N177: 0.01431138433 | O177: 1.000973026 | P177: 0.04608372292 | Q177: 16.83186576 | R177: -113.5627088 | S177: 66.43729124 | U177: 1000000000 | V177: 98865237.61 | X177: 27.77789265 | Y177: -32.33033018 | AA177: 24.73306162 | AB177: -81.23237859 | AD177: 0 | AE177: 0
A178: 10000 | B178: 10 | C178: 5.492412483 | D178: 1.387705753 | E178: 1.000113691 | F178: 0.01507850186 | G178: 1 | H178: 0 | I178: 6033.497882 | J178: 1.570630585 | K178: 1.920757475 | L178: 1.023210067 | M178: 1.000103592 | N178: 0.01439327083 | O178: 1.000984189 | P178: 0.04634711108 | Q178: 16.7703677 | R178: -113.4908013 | S178: 66.50919866 | U178: 1000000000 | V178: 100000000 | X178: 27.76439201 | Y178: -32.18955906 | AA178: 24.6850642 | AB178: -81.30124227 | AD178: 0 | AE178: 0
A179: 10058.25 | B179: 10.05825 | C179: 5.523348202 | D179: 1.38874274 | E179: 1.00011502 | F179: 0.0151663207 | G179: 1 | H179: 0 | I179: 6068.643006 | J179: 1.570631545 | K179: 1.928919641 | L179: 1.025788347 | M179: 1.000104802 | N179: 0.01447709995 | O179: 1.000995683 | P179: 0.04661674251 | Q179: 16.707867 | R179: -113.4177669 | S179: 66.58223312 | U179: 1000000000 | V179: 101168393.1 | X179: 27.75076504 | Y179: -32.04669254 | AA179: 24.63619046 | AB179: -81.37107434 | AD179: 0 | AE179: 0
A180: 10116.5 | B180: 10.1165 | C180: 5.554289794 | D180: 1.389768174 | E180: 1.000116356 | F180: 0.01525413932 | G180: 1 | H180: 0 | I180: 6103.788131 | J180: 1.570632494 | K180: 1.937094522 | L180: 1.028344882 | M180: 1.00010602 | N180: 0.01456092887 | O180: 1.001007243 | P180: 0.04688636803 | Q180: 16.64582182 | R180: -113.3453154 | S180: 66.65468457 | U180: 1000000000 | V180: 102343572.2 | X180: 27.73733082 | Y180: -31.90507125 | AA180: 24.58757951 | AB180: -81.44024418 | AD180: 0 | AE180: 0
A181: 10174.75 | B181: 10.17475 | C181: 5.585237161 | D181: 1.390782246 | E181: 1.000117699 | F181: 0.01534195769 | G181: 1 | H181: 0 | I181: 6138.933255 | J181: 1.570633432 | K181: 1.945281956 | L181: 1.030879914 | M181: 1.000107244 | N181: 0.01464475759 | O181: 1.001018869 | P181: 0.04715598758 | Q181: 16.58422599 | R181: -113.2734441 | S181: 66.72655594 | U181: 1000000000 | V181: 103525537.6 | X181: 27.72408588 | Y181: -31.7646814 | AA181: 24.53922862 | AB181: -81.50876266 | AD181: 0 | AE181: 0
A182: 10233 | B182: 10.233 | C182: 5.616190209 | D182: 1.391785141 | E182: 1.000119051 | F182: 0.01542977583 | G182: 1 | H182: 0 | I182: 6174.078379 | J182: 1.570634359 | K182: 1.953481787 | L182: 1.03339368 | M182: 1.000108475 | N182: 0.0147285861 | O182: 1.001030563 | P182: 0.04742560115 | Q182: 16.5230734 | R182: -113.2021498 | S182: 66.79785022 | U182: 1000000000 | V182: 104714289 | X182: 27.71102681 | Y182: -31.62550937 | AA182: 24.49113511 | AB182: -81.57664041 | AD182: 0 | AE182: 0
A183: 10292.5 | B183: 10.2925 | C183: 5.647813252 | D183: 1.392798207 | E183: 1.000120439 | F183: 0.01551947823 | G183: 1 | H183: 0 | I183: 6209.977691 | J183: 1.570635296 | K183: 1.961870216 | L183: 1.035939679 | M183: 1.00010974 | N183: 0.01481421328 | O183: 1.001042576 | P183: 0.04770099419 | Q183: 16.46105996 | R183: -113.1299182 | S183: 66.87008177 | U183: 1000000000 | V183: 105935556.2 | X183: 27.69787594 | Y183: -31.48459411 | AA183: 24.44227253 | AB183: -81.64532411 | AD183: 0 | AE183: 0
A184: 10352 | B184: 10.352 | C184: 5.679442028 | D184: 1.393799991 | E184: 1.000121836 | F184: 0.01560918038 | G184: 1 | H184: 0 | I184: 6245.877002 | J184: 1.570636221 | K184: 1.970271254 | L184: 1.038463982 | M184: 1.000111013 | N184: 0.01489984026 | O184: 1.001054659 | P184: 0.04797638091 | Q184: 16.39949653 | R184: -113.0582823 | S184: 66.94171768 | U184: 1000000000 | V184: 107163904 | X184: 27.68491208 | Y184: -31.34492129 | AA184: 24.39367296 | AB184: -81.71336103 | AD184: 0 | AE184: 0
A185: 10411.5 | B185: 10.4115 | C185: 5.71107644 | D185: 1.394790677 | E185: 1.00012324 | F185: 0.01569888228 | G185: 1 | H185: 0 | I185: 6281.776313 | J185: 1.570637136 | K185: 1.97868474 | L185: 1.040966834 | M185: 1.000112293 | N185: 0.01498546701 | O185: 1.001066811 | P185: 0.04825176127 | Q185: 16.338377 | R185: -112.9872387 | S185: 67.01276131 | U185: 1000000000 | V185: 108399332.2 | X185: 27.67213183 | Y185: -31.20647691 | AA185: 24.34533368 | AB185: -81.78076178 | AD185: 0 | AE185: 0
A186: 10471 | B186: 10.471 | C186: 5.742716395 | D186: 1.395770448 | E186: 1.000124653 | F186: 0.01578858393 | G186: 1 | H186: 0 | I186: 6317.675625 | J186: 1.570638041 | K186: 1.987110516 | L186: 1.043448476 | M186: 1.00011358 | N186: 0.01507109355 | O186: 1.001079032 | P186: 0.04852713524 | Q186: 16.27769535 | R186: -112.9167839 | S186: 67.08321609 | U186: 1000000000 | V186: 109641841 | X186: 27.65953188 | Y186: -31.06924716 | AA186: 24.29725198 | AB186: -81.84753676 | AD186: 0 | AE186: 0
A187: 10532 | B187: 10.532 | C187: 5.775159656 | D187: 1.396763773 | E187: 1.000126109 | F187: 0.0158805467 | G187: 1 | H187: 0 | I187: 6354.479961 | J187: 1.570638958 | K187: 1.995761303 | L187: 1.045970911 | M187: 1.000114907 | N187: 0.0151588785 | O187: 1.001091634 | P187: 0.04880944473 | Q187: 16.21593232 | R187: -112.8451606 | S187: 67.15483935 | U187: 1000000000 | V187: 110923024 | X187: 27.64679805 | Y187: -30.92980449 | AA187: 24.24822278 | AB187: -81.91535616 | AD187: 0 | AE187: 0
A188: 10593 | B188: 10.593 | C188: 5.807608551 | D188: 1.397745999 | E188: 1.000127574 | F188: 0.01597250921 | G188: 1 | H188: 0 | I188: 6391.284297 | J188: 1.570639864 | K188: 2.004424678 | L188: 1.048471558 | M188: 1.000116242 | N188: 0.01524666323 | O188: 1.001104309 | P188: 0.04909174742 | Q188: 16.15461709 | R188: -112.7741489 | S188: 67.22585114 | U188: 1000000000 | V188: 112211649 | X188: 27.63424689 | Y188: -30.79160961 | AA188: 24.1994587 | AB188: -81.98253925 | AD188: 0 | AE188: 0
A189: 10654 | B189: 10.654 | C189: 5.840062987 | D189: 1.398717309 | E189: 1.000129047 | F189: 0.01606447144 | G189: 1 | H189: 0 | I189: 6428.088633 | J189: 1.57064076 | K189: 2.013100479 | L189: 1.050950666 | M189: 1.000117584 | N189: 0.01533444771 | O189: 1.001117057 | P189: 0.04937404327 | Q189: 16.09374354 | R189: -112.7037447 | S189: 67.29625528 | U189: 1000000000 | V189: 113507716 | X189: 27.62187505 | Y189: -30.65464819 | AA189: 24.15095699 | AB189: -82.04909653 | AD189: 0 | AE189: 0
A190: 10715 | B190: 10.715 | C190: 5.872522872 | D190: 1.399677883 | E190: 1.000130529 | F190: 0.0161564334 | G190: 1 | H190: 0 | I190: 6464.892969 | J190: 1.570641645 | K190: 2.021788547 | L190: 1.053408483 | M190: 1.000118934 | N190: 0.01542223197 | O190: 1.001129878 | P190: 0.04965633225 | Q190: 16.03330567 | R190: -112.6339443 | S190: 67.36605565 | U190: 1000000000 | V190: 114811225 | X190: 27.60967927 | Y190: -30.51890608 | AA190: 24.10271491 | AB190: -82.11503827 | AD190: 0 | AE190: 0
A191: 10777.5 | B191: 10.7775 | C191: 5.905786508 | D191: 1.400651124 | E191: 1.000132056 | F191: 0.01625065643 | G191: 1 | H191: 0 | I191: 6502.60233 | J191: 1.570642542 | K191: 2.030702813 | L191: 1.055904909 | M191: 1.000120326 | N191: 0.0155121746 | O191: 1.00114309 | P191: 0.04994555558 | Q191: 15.97182734 | R191: -112.5630497 | S191: 67.4369503 | U191: 1000000000 | V191: 116154506.2 | X191: 27.59736283 | Y191: -30.38107612 | AA191: 24.05355302 | AB191: -82.18197357 | AD191: 0 | AE191: 0
A192: 10840 | B192: 10.84 | C192: 5.939055676 | D192: 1.401613462 | E192: 1.000133592 | F192: 0.01634487918 | G192: 1 | H192: 0 | I192: 6540.311691 | J192: 1.570643429 | K192: 2.039629624 | L192: 1.058379498 | M192: 1.000121725 | N192: 0.01560211698 | O192: 1.001156379 | P192: 0.05023477161 | Q192: 15.91079397 | R192: -112.4927805 | S192: 67.50721949 | U192: 1000000000 | V192: 117505600 | X192: 27.58522448 | Y192: -30.24449671 | AA192: 24.004658 | AB192: -82.24828379 | AD192: 0 | AE192: 0
A193: 10902.5 | B193: 10.9025 | C193: 5.972330282 | D193: 1.402565078 | E193: 1.000135137 | F193: 0.01643910164 | G193: 1 | H193: 0 | I193: 6578.021052 | J193: 1.570644305 | K193: 2.048568817 | L193: 1.060832506 | M193: 1.000123133 | N193: 0.01569205911 | O193: 1.001169744 | P193: 0.0505239803 | Q193: 15.85019946 | R193: -112.4231325 | S193: 67.5768675 | U193: 1000000000 | V193: 118864506.2 | X193: 27.57326092 | Y193: -30.10915323 | AA193: 23.95602705 | AB193: -82.31397926 | AD193: 0 | AE193: 0
A194: 10965 | B194: 10.965 | C194: 6.005610237 | D194: 1.403506148 | E194: 1.000136691 | F194: 0.01653332381 | G194: 1 | H194: 0 | I194: 6615.730413 | J194: 1.570645172 | K194: 2.057520229 | L194: 1.063264185 | M194: 1.000124549 | N194: 0.01578200099 | O194: 1.001183186 | P194: 0.0508131816 | Q194: 15.79003783 | R194: -112.3541013 | S194: 67.64589865 | U194: 1000000000 | V194: 120231225 | X194: 27.56146893 | Y194: -29.97503126 | AA194: 23.90765741 | AB194: -82.37907009 | AD194: 0 | AE194: 0
A195: 11028.75 | B195: 11.02875 | C195: 6.03956121 | D195: 1.404455355 | E195: 1.000138285 | F195: 0.01662943011 | G195: 1 | H195: 0 | I195: 6654.193961 | J195: 1.570646046 | K195: 2.066663093 | L195: 1.065722781 | M195: 1.000126001 | N195: 0.01587374144 | O195: 1.001196976 | P195: 0.05110815928 | Q195: 15.72911282 | R195: -112.2843206 | S195: 67.71567943 | U195: 1000000000 | V195: 121633326.6 | X195: 27.5496146 | Y195: -29.83947047 | AA195: 23.85858674 | AB195: -82.44485009 | AD195: 0 | AE195: 0
A196: 11092.5 | B196: 11.0925 | C196: 6.073517563 | D196: 1.405393948 | E196: 1.000139888 | F196: 0.01672553611 | G196: 1 | H196: 0 | I196: 6692.657509 | J196: 1.570646909 | K196: 2.075818339 | L196: 1.068159705 | M196: 1.000127462 | N196: 0.01596548163 | O196: 1.001210845 | P196: 0.05140312918 | Q196: 15.66862596 | R196: -112.2151724 | S196: 67.78482758 | U196: 1000000000 | V196: 123043556.2 | X196: 27.53793222 | Y196: -29.70515083 | AA196: 23.80978224 | AB196: -82.51002159 | AD196: 0 | AE196: 0
A197: 11156.25 | B197: 11.15625 | C197: 6.107479207 | D197: 1.406322104 | E197: 1.0001415 | F197: 0.0168216418 | G197: 1 | H197: 0 | I197: 6731.121057 | J197: 1.570647763 | K197: 2.084985804 | L197: 1.070575213 | M197: 1.000128931 | N197: 0.01605722154 | O197: 1.001224794 | P197: 0.05169809126 | Q197: 15.60857123 | R197: -112.1466523 | S197: 67.85334775 | U197: 1000000000 | V197: 124461914.1 | X197: 27.52641862 | Y197: -29.57205763 | AA197: 23.76124112 | AB197: -82.57459462 | AD197: 0 | AE197: 0
A198: 11220 | B198: 11.22 | C198: 6.141446054 | D198: 1.407239993 | E198: 1.000143122 | F198: 0.01691774718 | G198: 1 | H198: 0 | I198: 6769.584605 | J198: 1.570648607 | K198: 2.094165328 | L198: 1.072969559 | M198: 1.000130409 | N198: 0.01614896119 | O198: 1.001238824 | P198: 0.05199304548 | Q198: 15.54894276 | R198: -112.0787554 | S198: 67.92124461 | U198: 1000000000 | V198: 125888400 | X198: 27.51507065 | Y198: -29.44017636 | AA198: 23.71296062 | AB198: -82.63857903 | AD198: 0 | AE198: 0
A199: 11285.5 | B199: 11.2855 | C199: 6.176350654 | D199: 1.408172564 | E199: 1.000144798 | F199: 0.01701649042 | G199: 1 | H199: 0 | I199: 6809.104015 | J199: 1.570649465 | K199: 2.103609233 | L199: 1.075407853 | M199: 1.000131936 | N199: 0.01624321889 | O199: 1.001253321 | P199: 0.05229608825 | Q199: 15.48811533 | R199: -112.009639 | S199: 67.99036102 | U199: 1000000000 | V199: 127362510.2 | X199: 27.5035805 | Y199: -29.3059221 | AA199: 23.66362334 | AB199: -82.70371688 | AD199: 0 | AE199: 0
A200: 11351 | B200: 11.351 | C200: 6.211260565 | D200: 1.409094652 | E200: 1.000146483 | F200: 0.01711523333 | G200: 1 | H200: 0 | I200: 6848.623425 | J200: 1.570650312 | K200: 2.113065533 | L200: 1.077824338 | M200: 1.000133471 | N200: 0.01633747631 | O200: 1.001267902 | P200: 0.05259912263 | Q200: 15.42772564 | R200: -111.9411705 | S200: 68.05882949 | U200: 1000000000 | V200: 128845201 | X200: 27.49225874 | Y200: -29.17291683 | AA200: 23.61455541 | AB200: -82.76825369 | AD200: 0 | AE200: 0
A201: 11416.5 | B201: 11.4165 | C201: 6.246175698 | D201: 1.410006432 | E201: 1.000148179 | F201: 0.01721397591 | G201: 1 | H201: 0 | I201: 6888.142835 | J201: 1.57065115 | K201: 2.122534062 | L201: 1.080219277 | M201: 1.000135016 | N201: 0.01643173344 | O201: 1.001282568 | P201: 0.05290214856 | Q201: 15.36776767 | R201: -111.8733449 | S201: 68.1266551 | U201: 1000000000 | V201: 130336472.2 | X201: 27.48110223 | Y201: -29.04114547 | AA201: 23.56575395 | AB201: -82.83219943 | AD201: 0 | AE201: 0
A202: 11482 | B202: 11.482 | C202: 6.281095966 | D202: 1.410908075 | E202: 1.000149884 | F202: 0.01731271815 | G202: 1 | H202: 0 | I202: 6927.662245 | J202: 1.570651978 | K202: 2.132014656 | L202: 1.08259293 | M202: 1.00013657 | N202: 0.01652599027 | O202: 1.001297317 | P202: 0.053205166 | Q202: 15.30823551 | R202: -111.806157 | S202: 68.19384299 | U202: 1000000000 | V202: 131836324 | X202: 27.47010786 | Y202: -28.91059314 | AA202: 23.51721616 | AB202: -82.89556388 | AD202: 0 | AE202: 0
... 433 more rows

Sheet Bode Plot Management (hidden)
J1: Single or dual output (MODE) | N1: 3.3V or 5V fixed (FB1/2)
A2: =CHOOSE(BODE_PLOT_TYPE, "BODE_PLOT_Ch1", "BODE_PLOT_Ch2") -> BODE_PLOT_Ch1 | J2: With/without dither (DITH) | N2: With/without VOUT connected to VCCX
J3: FPWM or DEM (DEMB)
J4: Shunt or inductor DCR current sensing
F6: =INDIRECT(A2) -> 0

Sheet Efficiency Calculations (hidden)
A1: BUCK CONTROLLER POWER DESIGN TOOL
H2: =AV19 -> 0.6644943709 | I2: 10% load
H3: =AV59 -> 0.8195955728 | I3: 50% load | AP3: =IF(MODE=1, (Qg_Q1+Qg_Q2)*Fsw*Vin, (Qg_Q1+Qg_Q2+Qg_Q3+Qg_Q4)*Fsw*Vin) -> 1.22472
H4: =AV109 -> 0.8611681311 | I4: 100% load | AO4: I_VCC | AP4: =(Qg_Q1+Qg_Q2)*Fsw*1000 -> 32.76 | AQ4: mA | AR4: =AP4*5/1000 -> 0.1638
A6: Enter the values of your design and MOSFET datasheet specifications below. Note that thermal resistance (θJA) will change when components are placed on the PCB
G7: Operating Point Condtions | R7: Filter Inductor | V7: Cout | Y7: Cin | AB7: High-side BUCK "Control" MOSFET Losses | AH7: Low-side BUCK "Sync" MOSFET Losses | AL7: External Diode | AM7: Diode/FET | AN7: Sense Rs | AO7: Controller IC Losses | AT7: RESULTS | AZ7: Consolidated Buck/Boost Efficiency & Losses
A8: Input Parameters | G8: Step | H8: Vin | I8: Mode | J8: Iout | K8: Iout/ phase | L8: Iin | M8: Duty Cycle BUCK Leg | N8: Ripple Current pk-pk | O8: Peak Inductor Current | P8: Valley Inductor Current | Q8: SW node voltage at Q1 turn-on | R8: Irms Lf | S8: DCR Loss | T8: Core Loss | U8: Total Inductor Loss | V8: Irms Cout | W8: Cout ESR Loss | X8: Total Cout Loss | Y8: Irms Cin | Z8: Cin ESR Loss | AA8: Total Cin Loss | AB8: Irms | AC8: RDS(on) Loss | AD8: Transition Loss (not including capacitive loss) | AE8: MOSFET Output Capacitance Loss | AF8: Dead Time Loss | AG8: Total Control MOSFET Loss | AH8: Irms | AI8: RDS(on) Loss | AJ8: Deadtime Loss | AK8: Total Sync MOSFET Loss | AL8: Deadtime Loss | AM8: Reverse Recovery Loss | AN8: Isense Shunt Loss | AO8: IQ Loss | AP8: Switching Current Loss | AQ8: Switching Current Diss | AR8: LDO Loss Saved from Gate Drive Current (ext VCC) | AS8: Total IC Loss | AT8: Total Loss | AU8: Pout | AV8: EFF, h | AW8: =IF(Vin>Vout, "Buck ''CONTROL'' MOSFET Temp Rise", "Boost ''CONTROL'' MOSFET Temp Rise") -> Buck ''CONTROL'' MOSFET Temp Rise | AX8: =IF(Vin>Vout, "Buck ''SYNC'' MOSFET Temp Rise", "Boost ''SYNC'' MOSFET Temp Rise") -> Buck ''SYNC'' MOSFET Temp Rise | AZ8: h | BA8: Inductor Cu & Core Loss | BB8: Total MOSFET Loss | BC8: Control MOSFET Loss | BD8: SYNC MOSFET Loss | BE8: Shunt Loss
A9: Design | B9: Input Value | C9: Units | D9: Description | G9: 0 | H9: =Vin -> 12 | I9: =MODE -> 2 | J9: 0 | K9: =Iout*G9/100/Number_of_Phases -> 0 | L9: =Vout*K9/(Vin*Efficiency) -> 0 | M9: =(Vout+(Rdson2+Rs+Rdcr)*K9)/(Vin+(Rs+Rdson2-Rdson1)*K9) -> 0.275 | N9: =(Vin-(Rdson1+Rdcr)*K9-Vout)*M9/(Fsw*Lf) -> 1.675420168 | O9: =K9+N9/2 -> 0.837710084 | P9: =K9-N9/2 -> -0.837710084 | Q9: =IF(MIN(Vin, -P9/(Coss_Q1+Coss_Q2)*0.00000002)<0, 0, MIN(Vin, -P9/(Coss_Q1+Coss_Q2)*0.00000002)) -> 12 | R9: =SQRT(K9^2+(N9^2)/12) -> 0.4836521425 | S9: =R9^2*Rdcr -> 0.001347375715 | T9: =Core_Loss_Ch1 -> 0.3 | U9: =(T9+S9*(1+Ltc*(Ta-25)))/(1-S9*Ltc*ThetaCa) -> 0.3013798615 | V9: =N9/SQRT(12) -> 0.4836521425 | W9: =RCoutEsr*V9^2 -> 0.0004678387899 | X9: =W9 -> 0.0004678387899 | Y9: =SQRT(M9*(1-M9))*SQRT(K9^2+(N9^2)/12) -> 0.215957587 | Z9: =RCinEsr*Y9^2 -> 4.663767937e-05 | AA9: =Z9 -> 4.663767937e-05 | AB9: =SQRT(M9)*SQRT(K9^2+(N9^2)/12) -> 0.2536293233 | AC9: =Rdson1*AB9^2 -> 0.0009005896706 | AD9: =(Vin*K9/2)*Fsw*(Tr_buck+Tf_buck) -> 0 | AE9: =(0.5*Coss_Q1*(Vin-Q9)^2-0.5*Coss_Q2*(Vin-Q9)^2+(Qoss_Q2*(Vin-Q9)/Vin)*Vin)*Fsw -> 0 | AF9: =IF(K9>N9/2,0,ABS(K9-N9/2)*Vsd_Q1*Deadtime*Fsw) -> 0.02019551471 | AG9: =(AF9+AE9+AD9+AC9*(1+RdsonTopTc*Ta-RdsonTopTc*25))/(1-AC9*RdsonTopTc*ThetaJA_Q1) -> 0.02109990485 | AH9: =SQRT((1-M9))*SQRT(K9^2+(N9^2)/12) -> 0.4118149601 | AI9: =Rdson2*AH9^2 -> 0.002374281859 | AJ9: =IF(K9<N9/2,Deadtime*Fsw*IF(VfdSky_Q2>0,0,Vsd_Q2)*(K9+N9/2),2*Deadtime*Fsw*IF(VfdSky_Q2>0,0,Vsd_Q2)*K9) -> 0 | AK9: =(AJ9+AI9*(1+RdsonBotTc*Ta-RdsonBotTc*25))/(1-AI9*RdsonBotTc*ThetaJA_Q2) -> 0.002375409837 | AL9: =2*Deadtime*Fsw*IF(VfdSky_Q2>0,VfdSky_Q2,Vsd_Q2)*K9 -> 0 | AM9: =IF(QrrSky_Q2>0,QrrSky_Q2,Qrr_Q2*K9/(Iout/Number_of_Phases))*Fsw*Vin -> 0 | AN9: =CHOOSE(SENSING_TYPE, Rs*R9^2, 0) -> 0.001637435765 | AO9: =Iq*Vin -> 0.00042 | AP9: =IF(Ext_VCC=1, (Qg_Q1+Qg_Q2)*Fsw*VCC, (Qg_Q1+Qg_Q2)*Fsw*Vin) -> 0.1638 | AQ9: =(Vin-VCC)*Fsw*(Qg_Q1+Qg_Q2)+(RdsonDRT+RdsonDRT2)*Fsw*Qg_Q1*VCC/(RdsonDRT+2*Rgate1+RdsonDRT2)+(RdsonDRB+RdsonDRB2)*Fsw*Qg_Q2*VCC/(RdsonDRB+2*Rgate2+RdsonDRB2) -> 0.29952 | AR9: =(Qg_Q1+Qg_Q2)*Fsw*(Vin-VCC) -> 0.22932 | AS9: =SUM(AO9:AP9) -> 0.16422 | AT9: =SUM(U9,X9,AA9,AG9,AK9,AL9,AM9,AS9,AN9) -> 0.4912270884 | AU9: =Vout*K9 -> 0 | AV9: =AU9/(AU9+AT9) -> 0 | AW9: =ThetaJA_Q1*BC9 -> 1.054995242 | AX9: =ThetaJA_Q2*BD9 -> 0.1187704919 | AZ9: =AV9*100 -> 0 | BA9: =U9 -> 0.3013798615 | BB9: =AG9+AK9+AM9 -> 0.02347531469 | BC9: =AG9+AM9*0.66 -> 0.02109990485 | BD9: =AK9+AM9*0.33 -> 0.002375409837 | BE9: =AN9 -> 0.001637435765
G10: 1 | H10: 12 | I10: 2 | J10: =Iout*G10/100 -> 0.07 | K10: 0.035 | L10: 0.01069444444 | M10: 0.2750724339 | N10: 1.675728246 | O10: =K10+N10/2 -> 0.872864123 | P10: =K10-N10/2 -> -0.802864123 | Q10: 12 | R10: =SQRT(K10^2+(N10^2)/12) -> 0.4850055974 | S10: 0.001354927274 | T10: 0.3 | U10: 0.3013875959 | V10: =N10/SQRT(12) -> 0.4837410769 | W10: 0.000468010859 | X10: =W10 -> 0.000468010859 | Y10: =SQRT(M10*(1-M10))*SQRT(K10^2+(N10^2)/12) -> 0.2165796229 | Z10: 4.690673305e-05 | AA10: =Z10 -> 4.690673305e-05 | AB10: =SQRT(M10)*SQRT(K10^2+(N10^2)/12) -> 0.2543725747 | AC10: 0.000905875695 | AD10: 0.0031724 | AE10: 0 | AF10: 0.01935544828 | AG10: 0.02343797035 | AH10: 0.4129467553 | AI10: 0.002387350318 | AJ10: 0 | AK10: 0.002388490751 | AL10: 0.001029 | AM10: 0.0024444 | AN10: 0.001646613007 | AO10: 0.00042 | AP10: 0.1638 | AQ10: 0.29952 | AR10: 0.22932 | AS10: 0.16422 | AT10: 0.4970689876 | AU10: 0.1155 | AV10: =AU10/(AU10+AT10) -> 0.1885501916 | AW10: 1.252563717 | AX10: 0.1597571376 | AZ10: =AV10*100 -> 18.85501916 | BA10: 0.3013875959 | BB10: 0.0282708611 | BC10: 0.02505127435 | BD10: 0.003195142751 | BE10: 0.001646613007
A11: Vin | B11: =Vin -> 12 | C11: V | D11: Vin | G11: 2 | H11: 12 | I11: 2 | J11: 0.14 | K11: 0.07 | L11: 0.02138888889 | M11: 0.2751448649 | N11: 1.676036236 | O11: 0.9080181178 | P11: -0.7680181178 | Q11: 12 | R11: 0.4888675232 | S11: 0.001376590782 | T11: 0.3 | U11: 0.3014097842 | V11: 0.4838299859 | W11: 0.0004681829105 | X11: 0.0004681829105 | Y11: 0.2183220008 | Z11: 4.766449604e-05 | AA11: 4.766449604e-05 | AB11: 0.2564318071 | AC11: 0.0009206018034 | AD11: 0.0063448 | AE11: 0 | AF11: 0.01851538078 | AG11: 0.02578553023 | AH11: 0.4162141079 | AI11: 0.00242527857 | AJ11: 0 | AK11: 0.002426455536 | AL11: 0.002058 | AM11: 0.0048888 | AN11: 0.001672940187 | AO11: 0.00042 | AP11: 0.1638 | AQ11: 0.29952 | AR11: 0.22932 | AS11: 0.16422 | AT11: 0.5029773576 | AU11: 0.231 | AV11: 0.314723605 | AW11: 1.450606911 | AX11: 0.2019879768 | AZ11: 31.4723605 | BA11: 0.3014097842 | BB11: 0.03310078576 | BC11: 0.02901213823 | BD11: 0.004039759536 | BE11: 0.001672940187
A12: Vout | B12: =Vout -> 3.3 | C12: V | D12: Vout | G12: 3 | H12: 12 | I12: 2 | J12: 0.21 | K12: 0.105 | L12: 0.03208333333 | M12: 0.2752172929 | N12: 1.676344137 | O12: 0.9431720685 | P12: -0.7331720685 | Q12: 12 | R12: 0.4951792324 | S12: 0.00141236624 | T12: 0.3 | U12: 0.3014464265 | V12: 0.4839188694 | W12: 0.0004683549443 | X12: 0.0004683549443 | Y12: 0.2211587838 | Z12: 4.891120765e-05 | AA12: 4.891120765e-05 | AB12: 0.2597767515 | AC12: 0.0009447754485 | AD12: 0.0095172 | AE12: 0 | AF12: 0.01767531223 | AG12: 0.02814260537 | AH12: 0.4215667344 | AI12: 0.002488059162 | AJ12: 0 | AK12: 0.002489297866 | AL12: 0.003087 | AM12: 0.0073332 | AN12: 0.001716417305 | AO12: 0.00042 | AP12: 0.1638 | AQ12: 0.29952 | AR12: 0.22932 | AS12: 0.16422 | AT12: 0.5089522131 | AU12: 0.3465 | AV12: 0.4050489258 | AW12: 1.649125868 | AX12: 0.2454626933 | AZ12: 40.50489258 | BA12: 0.3014464265 | BB12: 0.03796510323 | BC12: 0.03298251737 | BD12: 0.004909253866 | BE12: 0.001716417305
A13: Fsw | B13: =Fsw/1000 -> 2100 | C13: kHz | D13: Switching Frequency | G13: 4 | H13: 12 | I13: 2 | J13: 0.28 | K13: 0.14 | L13: 0.04277777778 | M13: 0.275289718 | N13: 1.67665195 | O13: 0.9783259752 | P13: -0.6983259752 | Q13: 12 | R13: 0.503848668 | S13: 0.001462253646 | T13: 0.3 | U13: 0.3014975229 | V13: 0.4840077275 | W13: 0.0004685269605 | X13: 0.0004685269605 | Y13: 0.2250491214 | Z13: 5.064710703e-05 | AA13: 5.064710703e-05 | AB13: 0.2643596147 | AC13: 0.0009784040824 | AD13: 0.0126896 | AE13: 0 | AF13: 0.01683524261 | AG13: 0.03050921676 | AH13: 0.4289259544 | AI13: 0.002575684641 | AJ13: 0 | AK13: 0.002577012155 | AL13: 0.004116 | AM13: 0.0097776 | AN13: 0.001777044362 | AO13: 0.00042 | AP13: 0.1638 | AQ13: 0.29952 | AR13: 0.22932 | AS13: 0.16422 | AT13: 0.5149935703 | AU13: 0.462 | AV13: 0.4728792636 | AW13: 1.848121638 | AX13: 0.2901810077 | AZ13: 47.28792636 | BA13: 0.3014975229 | BB13: 0.04286382892 | BC13: 0.03696243276 | BD13: 0.005803620155 | BE13: 0.001777044362
A14: Iout | B14: =Iout -> 7 | C14: A | D14: Max Output Current | G14: 5 | H14: 12 | I14: 2 | J14: 0.35 | K14: 0.175 | L14: 0.05347222222 | M14: 0.2753621401 | N14: 1.676959676 | O14: 1.013479838 | P14: -0.6634798378 | Q14: 12 | R14: 0.5147567187 | S14: 0.001526253002 | T14: 0.3 | U14: 0.3015630739 | V14: 0.4840965601 | W14: 0.0004686989589 | X14: 0.0004686989589 | Y14: 0.2299400642 | Z14: 5.287243314e-05 | AA14: 5.287243314e-05 | AB14: 0.270118381 | AC14: 0.001021495156 | AD14: 0.015862 | AE14: 0 | AF14: 0.01599517193 | AG14: 0.03288538554 | AH14: 0.4381900726 | AI14: 0.002688147556 | AJ14: 0 | AK14: 0.002689593561 | AL14: 0.005145 | AM14: 0.012222 | AN14: 0.001854821356 | AO14: 0.00042 | AP14: 0.1638 | AQ14: 0.29952 | AR14: 0.22932 | AS14: 0.16422 | AT14: 0.5211014458 | AU14: 0.5775 | AV14: 0.5256683415 | AW14: 2.047595277 | AX14: 0.336142678 | AZ14: 52.56683415 | BA14: 0.3015630739 | BB14: 0.0477969791 | BC14: 0.04095190554 | BD14: 0.006722853561 | BE14: 0.001854821356
A15: Ta | B15: =Ta -> 25 | C15: °C | D15: Ambient Temperature | G15: 6 | H15: 12 | I15: 2 | J15: 0.42 | K15: 0.21 | L15: 0.06416666667 | M15: 0.2754345593 | N15: 1.677267313 | O15: 1.048633656 | P15: -0.6286336563 | Q15: 12 | R15: 0.527764597 | S15: 0.001604364306 | T15: 0.3 | U15: 0.3016430799 | V15: 0.4841853672 | W15: 0.0004688709396 | X15: 0.0004688709396 | Y15: 0.2357698555 | Z15: 5.558742477e-05 | AA15: 5.558742477e-05 | AB15: 0.2769806751 | AC15: 0.001074056121 | AD15: 0.0190344 | AE15: 0 | AF15: 0.01515510019 | AG15: 0.03527113294 | AH15: 0.4492406654 | AI15: 0.002825440456 | AJ15: 0 | AK15: 0.002827037982 | AL15: 0.006174 | AM15: 0.0146664 | AN15: 0.001949748289 | AO15: 0.00042 | AP15: 0.1638 | AQ15: 0.29952 | AR15: 0.22932 | AS15: 0.16422 | AT15: 0.5272758575 | AU15: 0.693 | AV15: 0.5679043765 | AW15: 2.247547847 | AX15: 0.3833474991 | AZ15: 56.79043765 | BA15: 0.3016430799 | BB15: 0.05276457092 | BC15: 0.04495095694 | BD15: 0.007666949982 | BE15: 0.001949748289
A16: Vcc | B16: =VCC -> 5 | C16: V | D16: Subregulated VCC Voltage | G16: 7 | H16: 12 | I16: 2 | J16: 0.49 | K16: 0.245 | L16: 0.07486111111 | M16: 0.2755069755 | N16: 1.677574861 | O16: 1.083787431 | P16: -0.5937874307 | Q16: 12 | R16: 0.5427213385 | S16: 0.00169658756 | T16: 0.3 | U16: 0.3017375415 | V16: 0.4842741489 | W16: 0.0004690429026 | X16: 0.0004690429026 | Y16: 0.2424712778 | Z16: 5.879232055e-05 | AA16: 5.879232055e-05 | AB16: 0.284867692 | AC16: 0.001136094427 | AD16: 0.0222068 | AE16: 0 | AF16: 0.01431502738 | AG16: 0.03766648034 | AH16: 0.4619489684 | AI16: 0.002987555891 | AJ16: 0 | AK16: 0.002989342057 | AL16: 0.007203 | AM16: 0.0171108 | AN16: 0.002061825159 | AO16: 0.00042 | AP16: 0.1638 | AQ16: 0.29952 | AR16: 0.22932 | AS16: 0.16422 | AT16: 0.5335168243 | AU16: 0.8085 | AV16: 0.6024514636 | AW16: 2.447980417 | AX16: 0.4317953028 | AZ16: 60.24514636 | BA16: 0.3017375415 | BB16: 0.0577666224 | BC16: 0.04895960834 | BD16: 0.008635906057 | BE16: 0.002061825159
A17: Components | B17: Input Value | C17: Units | D17: Description | G17: 8 | H17: 12 | I17: 2 | J17: 0.56 | K17: 0.28 | L17: 0.08555555556 | M17: 0.2755793887 | N17: 1.677882322 | O17: 1.118941161 | P17: -0.5589411611 | Q17: 12 | R17: 0.559470664 | S17: 0.001802922762 | T17: 0.3 | U17: 0.3018464592 | V17: 0.4843629052 | W17: 0.0004692148478 | X17: 0.0004692148478 | Y17: 0.2499747165 | Z17: 6.24873589e-05 | AA17: 6.24873589e-05 | AB17: 0.2936977946 | AC17: 0.001207617524 | AD17: 0.0253792 | AE17: 0 | AF17: 0.01347495351 | AG17: 0.04007144923 | AH17: 0.4761817189 | AI17: 0.003174486411 | AJ17: 0 | AK17: 0.003176503164 | AL17: 0.008232 | AM17: 0.0195552 | AN17: 0.002191051967 | AO17: 0.00042 | AP17: 0.1638 | AQ17: 0.29952 | AR17: 0.22932 | AS17: 0.16422 | AT17: 0.5398243658 | AU17: 0.924 | AV17: 0.631223268 | AW17: 2.648894062 | AX17: 0.4814859582 | AZ17: 63.1223268 | BA17: 0.3018464592 | BB17: 0.0628031524 | BC17: 0.05297788123 | BD17: 0.009629719164 | BE17: 0.002191051967
A18: L | B18: =Lf*1000000 -> 0.68 | C18: uH | D18: Filter Inductance | G18: 9 | H18: 12 | I18: 2 | J18: 0.63 | K18: 0.315 | L18: 0.09625 | M18: 0.275651799 | N18: 1.678189695 | O18: 1.154094847 | P18: -0.5240948474 | Q18: 11.83058346 | R18: 0.5778567189 | S18: 0.001923369913 | T18: 0.3 | U18: 0.3019698339 | V18: 0.484451636 | W18: 0.0004693867753 | X18: 0.0004693867753 | Y18: 0.2582107243 | Z18: 6.667277812e-05 | AA18: 6.667277812e-05 | AB18: 0.3033895256 | AC18: 0.00128863286 | AD18: 0.0285516 | AE18: 0.005407775891 | AF18: 0.01263487858 | AG18: 0.04789523121 | AH18: 0.4918060424 | AI18: 0.003386224567 | AJ18: 0 | AK18: 0.003388519425 | AL18: 0.009261 | AM18: 0.0219996 | AN18: 0.002337428713 | AO18: 0.00042 | AP18: 0.1638 | AQ18: 0.29952 | AR18: 0.22932 | AS18: 0.16422 | AT18: 0.5516076728 | AU18: 1.0395 | AV18: 0.6533184509 | AW18: 3.12074836 | AX18: 0.5324193712 | AZ18: 65.33184509 | BA18: 0.3019698339 | BB18: 0.07328335063 | BC18: 0.06241496721 | BD18: 0.01064838742 | BE18: 0.002337428713
A19: Rdcr | B19: =Rdcr*1000 -> 5.76 | C19: mW | D19: Inductor DCR at 25°C | G19: 10 | H19: 12 | I19: 2 | J19: 0.7 | K19: 0.35 | L19: 0.1069444444 | M19: 0.2757242063 | N19: 1.678496979 | O19: 1.18924849 | P19: -0.4892484896 | Q19: 11.04398396 | R19: 0.5977284855 | S19: 0.002057929012 | T19: 0.3 | U19: 0.3021076663 | V19: 0.4845403414 | W19: 0.0004695586849 | X19: 0.0004695586849 | Y19: 0.267111992 | Z19: 7.134881629e-05 | AA19: 7.134881629e-05 | AB19: 0.3138639245 | AC19: 0.001379147884 | AD19: 0.031724 | AE19: 0.03051603188 | AF19: 0.01179480259 | AG19: 0.0754347895 | AH19: 0.5086932074 | AI19: 0.00362276291 | AJ19: 0 | AK19: 0.003625389696 | AL19: 0.01029 | AM19: 0.024444 | AN19: 0.002500955397 | AO19: 0.00042 | AP19: 0.1638 | AQ19: 0.29952 | AR19: 0.22932 | AS19: 0.16422 | AT19: 0.5831637084 | AU19: 1.155 | AV19: 0.6644943709 | AW19: 4.578391475 | AX19: 0.5845954848 | AZ19: 66.44943709 | BA19: 0.3021076663 | BB19: 0.1035041792 | BC19: 0.0915678295 | BD19: 0.0116919097 | BE19: 0.002500955397
A20: LTc | B20: =Ltc*1000000 -> 4000 | C20: ppm | D20: Inductor Series Resistance Temp Co | G20: 11 | H20: 12 | I20: 2 | J20: 0.77 | K20: 0.385 | L20: 0.1176388889 | M20: 0.2757966107 | N20: 1.678804175 | O20: 1.224402088 | P20: -0.4544020877 | Q20: 10.25738347 | R20: 0.6189428797 | S20: 0.002206600061 | T20: 0.3 | U20: 0.3022599574 | V20: 0.4846290213 | W20: 0.0004697305766 | X20: 0.0004697305766 | Y20: 0.2766147345 | Z20: 7.651571134e-05 | AA20: 7.651571134e-05 | AB20: 0.3250461553 | AC20: 0.001479170043 | AD20: 0.0348964 | AE20: 0.05562431962 | AF20: 0.01095472553 | AG20: 0.1029850817 | AH20: 0.5267212595 | AI20: 0.003884093993 | AJ20: 0 | AK20: 0.003887113576 | AL20: 0.011319 | AM20: 0.0268884 | AN20: 0.002681632018 | AO20: 0.00042 | AP20: 0.1638 | AQ20: 0.29952 | AR20: 0.22932 | AS20: 0.16422 | AT20: 0.614787431 | AU20: 1.2705 | AV20: 0.6739025462 | AW20: 6.036571284 | AX20: 0.6380142788 | AZ20: 67.39025462 | BA20: 0.3022599574 | BB20: 0.1337605953 | BC20: 0.1207314257 | BD20: 0.01276028558 | BE20: 0.002681632018
A21: ThetaCa | B21: =ThetaCa -> 20 | C21: °C/W | D21: Core to Ambient Thermal Resistance | G21: 12 | H21: 12 | I21: 2 | J21: 0.84 | K21: 0.42 | L21: 0.1283333333 | M21: 0.2758690121 | N21: 1.679111284 | O21: 1.259555642 | P21: -0.4195556418 | Q21: 9.470781983 | R21: 0.6413666855 | S21: 0.002369383057 | T21: 0.3 | U21: 0.3024267082 | V21: 0.4847176758 | W21: 0.0004699024505 | X21: 0.0004699024505 | Y21: 0.286659556 | Z21: 8.217370102e-05 | AA21: 8.217370102e-05 | AB21: 0.3368665257 | AC21: 0.001588706786 | AD21: 0.0380688 | AE21: 0.08073263911 | AF21: 0.01011464741 | AG21: 0.1305462733 | AH21: 0.545776666 | AI21: 0.004170210368 | AJ21: 0 | AK21: 0.004173691402 | AL21: 0.012348 | AM21: 0.0293328 | AN21: 0.002879458577 | AO21: 0.00042 | AP21: 0.1638 | AQ21: 0.29952 | AR21: 0.22932 | AS21: 0.16422 | AT21: 0.6464790076 | AU21: 1.386 | AV21: 0.6819258624 | AW21: 7.495296063 | AX21: 0.6926757701 | AZ21: 68.19258624 | BA21: 0.3024267082 | BB21: 0.1640527647 | BC21: 0.1499059213 | BD21: 0.0138535154 | BE21: 0.002879458577
A22: Cin | B22: =Cin*1000000 -> 40.04 | C22: μF | D22: Input Capacitance | G22: 13 | H22: 12 | I22: 2 | J22: 0.91 | K22: 0.455 | L22: 0.1390277778 | M22: 0.2759414106 | N22: 1.679418304 | O22: 1.294709152 | P22: -0.3847091519 | Q22: 8.684179501 | R22: 0.6648775476 | S22: 0.002546278003 | T22: 0.3 | U22: 0.3026079199 | V22: 0.4848063049 | W22: 0.0004700743065 | X22: 0.0004700743065 | Y22: 0.2971918958 | Z22: 8.832302291e-05 | AA22: 8.832302291e-05 | AB22: 0.3492610114 | AC22: 0.001707765558 | AD22: 0.0412412 | AE22: 0.1058409903 | AF22: 0.009274568233 | AG22: 0.15811853 | AH22: 0.5657551583 | AI22: 0.004481104588 | AJ22: 0 | AK22: 0.00448512425 | AL22: 0.013377 | AM22: 0.0317772 | AN22: 0.003094435073 | AO22: 0.00042 | AP22: 0.1638 | AQ22: 0.29952 | AR22: 0.22932 | AS22: 0.16422 | AT22: 0.6782386066 | AU22: 1.5015 | AV22: 0.6888440639 | AW22: 8.9545741 | AX22: 0.7485800125 | AZ22: 68.88440639 | BA22: 0.3026079199 | BB22: 0.1943808543 | BC22: 0.179091482 | BD22: 0.01497160025 | BE22: 0.003094435073
A23: RCinEsr | B23: =RCinEsr*1000 -> 1 | C23: mW | D23: Input Capacitor ESR | G23: 14 | H23: 12 | I23: 2 | J23: 0.98 | K23: 0.49 | L23: 0.1497222222 | M23: 0.2760138061 | N23: 1.679725236 | O23: 1.329862618 | P23: -0.3498626179 | Q23: 7.897576024 | R23: 0.6893642523 | S23: 0.002737284896 | T23: 0.3 | U23: 0.3028035937 | V23: 0.4848949085 | W23: 0.0004702461446 | X23: 0.0004702461446 | Y23: 0.308162156 | Z23: 9.496391441e-05 | AA23: 9.496391441e-05 | AB23: 0.3621714082 | AC23: 0.001836353805 | AD23: 0.0444136 | AE23: 0.1309493733 | AF23: 0.008434487991 | AG23: 0.185702018 | AH23: 0.5865619689 | AI23: 0.004816769207 | AJ23: 0 | AK23: 0.004821413935 | AL23: 0.014406 | AM23: 0.0342216 | AN23: 0.003326561506 | AO23: 0.00042 | AP23: 0.1638 | AQ23: 0.29952 | AR23: 0.22932 | AS23: 0.16422 | AT23: 0.7100663972 | AU23: 1.617 | AV23: 0.6948662926 | AW23: 10.4144137 | AX23: 0.8057270967 | AZ23: 69.48662926 | BA23: 0.3028035937 | BB23: 0.224745032 | BC23: 0.208288274 | BD23: 0.01611454193 | BE23: 0.003326561506
A24: Cout | B24: =Cout*1000000 -> 188 | C24: μF | D24: Output Capcitance | G24: 15 | H24: 12 | I24: 2 | J24: 1.05 | K24: 0.525 | L24: 0.1604166667 | M24: 0.2760861986 | N24: 1.68003208 | O24: 1.36501604 | P24: -0.3150160398 | Q24: 7.110971553 | R24: 0.7147265088 | S24: 0.002942403738 | T24: 0.3 | U24: 0.3030137308 | V24: 0.4849834867 | W24: 0.0004704179647 | X24: 0.0004704179647 | Y24: 0.3195256058 | Z24: 0.0001020966128 | AA24: 0.0001020966128 | AB24: 0.3755452201 | AC24: 0.001974478972 | AD24: 0.047586 | AE24: 0.156057788 | AF24: 0.007594406687 | AG24: 0.2132969038 | AH24: 0.6081116428 | AI24: 0.005177196781 | AJ24: 0 | AK24: 0.00518256301 | AL24: 0.015435 | AM24: 0.036666 | AN24: 0.003575837877 | AO24: 0.00042 | AP24: 0.1638 | AQ24: 0.29952 | AR24: 0.22932 | AS24: 0.16422 | AT24: 0.7419625501 | AU24: 1.7325 | AV24: 0.7001520391 | AW24: 11.87482319 | AX24: 0.8641171505 | AZ24: 70.01520391 | BA24: 0.3030137308 | BB24: 0.2551454668 | BC24: 0.2374964638 | BD24: 0.01728234301 | BE24: 0.003575837877
A25: RCoutEsr | B25: =Cout_ESR*1000 -> 2 | C25: mW | D25: Output Capacitor ESR | G25: 16 | H25: 12 | I25: 2 | J25: 1.12 | K25: 0.56 | L25: 0.1711111111 | M25: 0.2761585882 | N25: 1.680338835 | O25: 1.400169418 | P25: -0.2801694177 | Q25: 6.324366087 | R25: 0.7408744046 | S25: 0.003161634529 | T25: 0.3 | U25: 0.3032383328 | V25: 0.4850720394 | W25: 0.0004705897669 | X25: 0.0004705897669 | Y25: 0.3312421395 | Z25: 0.000109721355 | AA25: 0.000109721355 | AB25: 0.3893353774 | AC25: 0.002122148505 | AD25: 0.0507584 | AE25: 0.1811662345 | AF25: 0.006754324321 | AG25: 0.2409033539 | AH25: 0.6303275715 | AI25: 0.005562379863 | AJ25: 0 | AK25: 0.005568574769 | AL25: 0.016464 | AM25: 0.0391104 | AN25: 0.003842264184 | AO25: 0.00042 | AP25: 0.1638 | AQ25: 0.29952 | AR25: 0.22932 | AS25: 0.16422 | AT25: 0.7739272368 | AU25: 1.848 | AV25: 0.7048250516 | AW25: 13.33581089 | AX25: 0.9237503384 | AZ25: 70.48250516 | BA25: 0.3032383328 | BB25: 0.2855823286 | BC25: 0.2667162179 | BD25: 0.01847500677 | BE25: 0.003842264184
A26: Top Driver | B26: Input Value | C26: Units | D26: Description | G26: 17 | H26: 12 | I26: 2 | J26: 1.19 | K26: 0.595 | L26: 0.1818055556 | M26: 0.2762309748 | N26: 1.680645503 | O26: 1.435322751 | P26: -0.2453227515 | Q26: 5.537759627 | R26: 0.7677276702 | S26: 0.003394977267 | T26: 0.3 | U26: 0.3034774012 | V26: 0.4851605668 | W26: 0.0004707615511 | X26: 0.0004707615511 | Y26: 0.3432759503 | Z26: 0.000117838378 | AA26: 0.000117838378 | AB26: 0.4034998537 | AC26: 0.002279369847 | AD26: 0.0539308 | AE26: 0.2062747127 | AF26: 0.005914240893 | AG26: 0.2685215354 | AH26: 0.6531413657 | AI26: 0.00597231101 | AJ26: 0 | AK26: 0.005979453241 | AL26: 0.017493 | AM26: 0.0415548 | AN26: 0.004125840429 | AO26: 0.00042 | AP26: 0.1638 | AQ26: 0.29952 | AR26: 0.22932 | AS26: 0.16422 | AT26: 0.8059606302 | AU26: 1.9635 | AV26: 0.7089828173 | AW26: 14.79738517 | AX26: 0.9846268621 | AZ26: 70.89828173 | BA26: 0.3034774012 | BB26: 0.3160557887 | BC26: 0.2959477034 | BD26: 0.01969253724 | BE26: 0.004125840429
A27: RdsonDRT | B27: =RdsonDRT -> 1 | C27: W | D27: Drain to Source Resistance of pullup Top FET Driver | G27: 18 | H27: 12 | I27: 2 | J27: 1.26 | K27: 0.63 | L27: 0.1925 | M27: 0.2763033585 | N27: 1.680952083 | O27: 1.470476041 | P27: -0.2104760413 | Q27: 4.751152173 | R27: 0.7952148506 | S27: 0.003642431954 | T27: 0.3 | U27: 0.3037309375 | V27: 0.4852490687 | W27: 0.0004709333173 | X27: 0.0004709333173 | Y27: 0.355595161 | Z27: 0.0001264479185 | AA27: 0.0001264479185 | AB27: 0.418001234 | AC27: 0.002446150442 | AD27: 0.0571032 | AE27: 0.2313832226 | AF27: 0.005074156403 | AG27: 0.2961516158 | AH27: 0.6764921485 | AI27: 0.006406982779 | AJ27: 0 | AK27: 0.006415203198 | AL27: 0.018522 | AM27: 0.0439992 | AN27: 0.004426566611 | AO27: 0.00042 | AP27: 0.1638 | AQ27: 0.29952 | AR27: 0.22932 | AS27: 0.16422 | AT27: 0.8380629043 | AU27: 2.079 | AV27: 0.7127031772 | AW27: 16.25955439 | AX27: 1.04674696 | AZ27: 71.27031772 | BA27: 0.3037309375 | BB27: 0.346566019 | BC27: 0.3251910878 | BD27: 0.0209349392 | BE27: 0.004426566611
A28: RdsonDRT2 | B28: =RdsonDRT2 -> 0.5 | C28: W | D28: Drain to Source Resistance of pulldown Top FET Driver | G28: 19 | H28: 12 | I28: 2 | J28: 1.33 | K28: 0.665 | L28: 0.2031944444 | M28: 0.2763757392 | N28: 1.681258574 | O28: 1.505629287 | P28: -0.175629287 | Q28: 3.964543725 | R28: 0.8232724535 | S28: 0.003903998588 | T28: 0.3 | U28: 0.3039989435 | V28: 0.4853375451 | W28: 0.0004711050654 | X28: 0.0004711050654 | Y28: 0.3681714453 | Z28: 0.0001355502131 | AA28: 0.0001355502131 | AB28: 0.4328062692 | AC28: 0.002622497733 | AD28: 0.0602756 | AE28: 0.2564917643 | AF28: 0.004234070851 | AG28: 0.3237937626 | AH28: 0.7003258285 | AI28: 0.006866387725 | AJ28: 0 | AK28: 0.006875830148 | AL28: 0.019551 | AM28: 0.0464436 | AN28: 0.004744442729 | AO28: 0.00042 | AP28: 0.1638 | AQ28: 0.29952 | AR28: 0.22932 | AS28: 0.16422 | AT28: 0.8702342342 | AU28: 2.1945 | AV28: 0.716049038 | AW28: 17.72232693 | AX28: 1.110110907 | AZ28: 71.6049038 | BA28: 0.3039989435 | BB28: 0.3771131927 | BC28: 0.3544465386 | BD28: 0.02220221815 | BE28: 0.004744442729
A29: Bottom Driver | B29: Input Value | C29: Units | D29: Description | G29: 20 | H29: 12 | I29: 2 | J29: 1.4 | K29: 0.7 | L29: 0.2138888889 | M29: 0.276448117 | N29: 1.681564977 | O29: 1.540782489 | P29: -0.1407824887 | Q29: 3.177934282 | R29: 0.8518441159 | S29: 0.004179677171 | T29: 0.3 | U29: 0.304281421 | V29: 0.4854259962 | W29: 0.0004712767955 | X29: 0.0004712767955 | Y29: 0.3809796557 | Z29: 0.0001451454981 | AA29: 0.0001451454981 | AB29: 0.4478854415 | AC29: 0.002808419162 | AD29: 0.063448 | AE29: 0.2816003377 | AF29: 0.003393984237 | AG29: 0.3514481439 | AH29: 0.7245943893 | AI29: 0.007350518407 | AJ29: 0 | AK29: 0.00736134034 | AL29: 0.02058 | AM29: 0.048888 | AN29: 0.005079468784 | AO29: 0.00042 | AP29: 0.1638 | AQ29: 0.29952 | AR29: 0.22932 | AS29: 0.16422 | AT29: 0.9024747963 | AU29: 2.31 | AV29: 0.7190717893 | AW29: 19.18571119 | AX29: 1.174719017 | AZ29: 71.90717893 | BA29: 0.304281421 | BB29: 0.4076974842 | BC29: 0.3837142239 | BD29: 0.02349438034 | BE29: 0.005079468784
A30: RdsonDRB | B30: =RdsonDRB -> 1 | C30: W | D30: Drain to Source Resistance of pullup Bottom FET Driver | G30: 21 | H30: 12 | I30: 2 | J30: 1.47 | K30: 0.735 | L30: 0.2245833333 | M30: 0.2765204918 | N30: 1.681871293 | O30: 1.575935646 | P30: -0.1059356464 | Q30: 2.391323845 | R30: 0.880879818 | S30: 0.004469467702 | T30: 0.3 | U30: 0.304578372 | V30: 0.4855144218 | W30: 0.0004714485075 | X30: 0.0004714485075 | Y30: 0.3939974741 | Z30: 0.0001552340096 | AA30: 0.0001552340096 | AB30: 0.463212553 | AC30: 0.00300392217 | AD30: 0.0666204 | AE30: 0.3067089429 | AF30: 0.002553896562 | AG30: 0.3791149279 | AH30: 0.7492552199 | AI30: 0.007859367383 | AJ30: 0 | AK30: 0.007871740763 | AL30: 0.021609 | AM30: 0.0513324 | AN30: 0.005431644776 | AO30: 0.00042 | AP30: 0.1638 | AQ30: 0.29952 | AR30: 0.22932 | AS30: 0.16422 | AT30: 0.9347847679 | AU30: 2.4255 | AV30: 0.7218138246 | AW30: 20.6497156 | AX30: 1.240571638 | AZ30: 72.18138246 | BA30: 0.304578372 | BB30: 0.4383190687 | BC30: 0.4129943119 | BD30: 0.02481143276 | BE30: 0.005431644776
A31: RdsonDRB2 | B31: 1 | C31: W | D31: Drain to Source Resistance of pulldown Bottom FET Driver | G31: 22 | H31: 12 | I31: 2 | J31: 1.54 | K31: 0.77 | L31: 0.2352777778 | M31: 0.2765928637 | N31: 1.68217752 | O31: 1.61108876 | P31: -0.07108875998 | Q31: 1.604712415 | R31: 0.9103351585 | S31: 0.00477337018 | T31: 0.3 | U31: 0.3048897983 | V31: 0.485602822 | W31: 0.0004716202014 | X31: 0.0004716202014 | Y31: 0.407205088 | Z31: 0.0001658159837 | AA31: 0.0001658159837 | AB31: 0.478764347 | AC31: 0.003209014199 | AD31: 0.0697928 | AE31: 0.3318175797 | AF31: 0.001713807826 | AG31: 0.4067942835 | AH31: 0.7742704959 | AI31: 0.008392927211 | AJ31: 0 | AK31: 0.008407039144 | AL31: 0.022638 | AM31: 0.0537768 | AN31: 0.005800970705 | AO31: 0.00042 | AP31: 0.1638 | AQ31: 0.29952 | AR31: 0.22932 | AS31: 0.16422 | AT31: 0.9671643278 | AU31: 2.541 | AV31: 0.7243104264 | AW31: 22.11434857 | AX31: 1.307669157 | AZ31: 72.43104264 | BA31: 0.3048897983 | BB31: 0.4689781226 | BC31: 0.4422869715 | BD31: 0.02615338314 | BE31: 0.005800970705
A32: Deadtime | B32: Input Value | C32: Units | D32: Description | G32: 23 | H32: 12 | I32: 2 | J32: 1.61 | K32: 0.805 | L32: 0.2459722222 | M32: 0.2766652326 | N32: 1.682483659 | O32: 1.64624183 | P32: -0.03624182957 | Q32: 0.8180999903 | R32: 0.9401706965 | S32: 0.005091384606 | T32: 0.3 | U32: 0.3052157022 | V32: 0.4856911968 | W32: 0.0004717918772 | X32: 0.0004717918772 | Y32: 0.4205848979 | Z32: 0.0001768916563 | AA32: 0.0001768916563 | AB32: 0.4945201635 | AC32: 0.003423702689 | AD32: 0.0729652 | AE32: 0.3569262483 | AF32: 0.0008737180273 | AG32: 0.4344863795 | AH32: 0.7996066199 | AI32: 0.008951190451 | AJ32: 0 | AK32: 0.008967243953 | AL32: 0.023667 | AM32: 0.0562212 | AN32: 0.00618744657 | AO32: 0.00042 | AP32: 0.1638 | AQ32: 0.29952 | AR32: 0.22932 | AS32: 0.16422 | AT32: 0.9996136558 | AU32: 2.6565 | AV32: 0.7265911977 | AW32: 23.57961857 | AX32: 1.376011998 | AZ32: 72.65911977 | BA32: 0.3052157022 | BB32: 0.4996748234 | BC32: 0.4715923715 | BD32: 0.02752023995 | BE32: 0.00618744657
A33: Deadtime | B33: =Deadtime*1000000000 -> 14 | C33: ns | D33: Total Deadtime | G33: 24 | H33: 12 | I33: 2 | J33: 1.68 | K33: 0.84 | L33: 0.2566666667 | M33: 0.2767375986 | N33: 1.68278971 | O33: 1.681394855 | P33: -0.001394855133 | Q33: 0.03148657186 | R33: 0.9703513629 | S33: 0.00542351098 | T33: 0.3 | U33: 0.3055560859 | V33: 0.4857795461 | W33: 0.0004719635348 | X33: 0.0004719635348 | Y33: 0.4341212538 | Z33: 0.000188461263 | AA33: 0.000188461263 | AB33: 0.5104616314 | AC33: 0.00364799508 | AD33: 0.0761376 | AE33: 0.3820349486 | AF33: 3.362716756e-05 | AG33: 0.4621913853 | AH33: 0.8252337186 | AI33: 0.009534149663 | AJ33: 0 | AK33: 0.009552364398 | AL33: 0.024696 | AM33: 0.0586656 | AN33: 0.006591072372 | AO33: 0.00042 | AP33: 0.1638 | AQ33: 0.29952 | AR33: 0.22932 | AS33: 0.16422 | AT33: 1.032132933 | AU33: 2.772 | AV33: 0.7286811605 | AW33: 25.04553406 | AX33: 1.44560062 | AZ33: 72.86811605 | BA33: 0.3055560859 | BB33: 0.5304093497 | BC33: 0.5009106813 | BD33: 0.0289120124 | BE33: 0.006591072372
A34: IQ | B34: Input Value | C34: Units | D34: Description | G34: 25 | H34: 12 | I34: 2 | J34: 1.75 | K34: 0.875 | L34: 0.2673611111 | M34: 0.2768099616 | N34: 1.683095673 | O34: 1.716547837 | P34: 0.03345216333 | Q34: 0 | R34: 1.000845936 | S34: 0.005769749302 | T34: 0.3 | U34: 0.3059109517 | V34: 0.48586787 | W34: 0.0004721351743 | X34: 0.0004721351743 | Y34: 0.4478002226 | Z34: 0.0002005250393 | AA34: 0.0002005250393 | AB34: 0.5265723944 | AC34: 0.003881898812 | AD34: 0.07931 | AE34: 0.38304 | AF34: 0 | AG34: 0.4665941531 | AH34: 0.8511251968 | AI34: 0.01014179741 | AJ34: 0 | AK34: 0.01016241043 | AL34: 0.025725 | AM34: 0.06111 | AN34: 0.00701184811 | AO34: 0.00042 | AP34: 0.1638 | AQ34: 0.29952 | AR34: 0.22932 | AS34: 0.16422 | AT34: 1.041407023 | AU34: 2.8875 | AV34: 0.7349372186 | AW34: 25.34633765 | AX34: 1.516435521 | AZ34: 73.49372186 | BA34: 0.3059109517 | BB34: 0.5378665635 | BC34: 0.5069267531 | BD34: 0.03032871043 | BE34: 0.00701184811
A35: IQ | B35: =Iq*1000 -> 0.035 | C35: mA | D35: Quiescent Current Of Controller (Not Switching!) | G35: 26 | H35: 12 | I35: 2 | J35: 1.82 | K35: 0.91 | L35: 0.2780555556 | M35: 0.2768823216 | N35: 1.683401548 | O35: 1.751700774 | P35: 0.06829922582 | Q35: 0 | R35: 1.031626579 | S35: 0.006130099571 | T35: 0.3 | U35: 0.3062803019 | V35: 0.4859561686 | W35: 0.0004723067955 | X35: 0.0004723067955 | Y35: 0.461609381 | Z35: 0.0002130832206 | AA35: 0.0002130832206 | AB35: 0.5428378686 | AC35: 0.004125421322 | AD35: 0.0824824 | AE35: 0.38304 | AF35: 0 | AG35: 0.4700356403 | AH35: 0.8772573432 | AI35: 0.01077412625 | AJ35: 0 | AK35: 0.01079739274 | AL35: 0.026754 | AM35: 0.0635544 | AN35: 0.007449773784 | AO35: 0.00042 | AP35: 0.1638 | AQ35: 0.29952 | AR35: 0.22932 | AS35: 0.16422 | AT35: 1.049776899 | AU35: 3.003 | AV35: 0.7409734301 | AW35: 25.59907722 | AX35: 1.588517237 | AZ35: 74.09734301 | BA35: 0.3062803019 | BB35: 0.5443874331 | BC35: 0.5119815443 | BD35: 0.03177034474 | BE35: 0.007449773784
A36: High-side FET | B36: Input Value | C36: Units | D36: Description | G36: 27 | H36: 12 | I36: 2 | J36: 1.89 | K36: 0.945 | L36: 0.28875 | M36: 0.2769546787 | N36: 1.683707335 | O36: 1.786853668 | P36: 0.1031463323 | Q36: 0 | R36: 1.062668433 | S36: 0.006504561788 | T36: 0.3 | U36: 0.3066641391 | V36: 0.4860444416 | W36: 0.0004724783985 | X36: 0.0004724783985 | Y36: 0.4755376347 | Z36: 0.000226136042 | AA36: 0.000226136042 | AB36: 0.5592450299 | AC36: 0.004378570049 | AD36: 0.0856548 | AE36: 0.38304 | AF36: 0 | AG36: 0.4734880101 | AH36: 0.9036089839 | AI36: 0.01143112874 | AJ36: 0 | AK36: 0.01145732277 | AL36: 0.027783 | AM36: 0.0659988 | AN36: 0.007904849395 | AO36: 0.00042 | AP36: 0.1638 | AQ36: 0.29952 | AR36: 0.22932 | AS36: 0.16422 | AT36: 1.058214736 | AU36: 3.1185 | AV36: 0.7466394516 | AW36: 25.85236091 | AX36: 1.661846338 | AZ36: 74.66394516 | BA36: 0.3066641391 | BB36: 0.5509441329 | BC36: 0.5170472181 | BD36: 0.03323692677 | BE36: 0.007904849395
A37: RdsonTop | B37: =Rdson1*1000 -> 14 | C37: mW | D37: Drain-Source Resistance of Top FET | G37: 28 | H37: 12 | I37: 2 | J37: 1.96 | K37: 0.98 | L37: 0.2994444444 | M37: 0.2770270329 | N37: 1.684013034 | O37: 1.822006517 | P37: 0.1379934829 | Q37: 0 | R37: 1.093949264 | S37: 0.006893135952 | T37: 0.3 | U37: 0.3070624658 | V37: 0.4861326893 | W37: 0.0004726499833 | X37: 0.0004726499833 | Y37: 0.489575059 | Z37: 0.0002396837384 | AA37: 0.0002396837384 | AB37: 0.5757822276 | AC37: 0.00464135243 | AD37: 0.0888272 | AE37: 0.38304 | AF37: 0 | AG37: 0.4769512922 | AH37: 0.9301611785 | AI37: 0.01211279745 | AJ37: 0 | AK37: 0.01214221269 | AL37: 0.028812 | AM37: 0.0684432 | AN37: 0.008377074941 | AO37: 0.00042 | AP37: 0.1638 | AQ37: 0.29952 | AR37: 0.22932 | AS37: 0.16422 | AT37: 1.066720579 | AU37: 3.234 | AV37: 0.7519670112 | AW37: 26.10619021 | AX37: 1.736423434 | AZ37: 75.19670112 | BA37: 0.3070624658 | BB37: 0.5575367049 | BC37: 0.5221238042 | BD37: 0.03472846869 | BE37: 0.008377074941
A38: RdsonTopTc | B38: =RdsonTopTc*1000000 -> 4000 | C38: ppm | D38: Drain to Source Resistance Temp Co | G38: 29 | H38: 12 | I38: 2 | J38: 2.03 | K38: 1.015 | L38: 0.3101388889 | M38: 0.2770993841 | N38: 1.684318645 | O38: 1.857159323 | P38: 0.1728406774 | Q38: 0 | R38: 1.125449144 | S38: 0.007295822063 | T38: 0.3 | U38: 0.3074752849 | V38: 0.4862209116 | W38: 0.0004728215498 | X38: 0.0004728215498 | Y38: 0.5037127602 | Z38: 0.0002537265448 | AA38: 0.0002537265448 | AB38: 0.5924390205 | AC38: 0.004913775903 | AD38: 0.0919996 | AE38: 0.38304 | AF38: 0 | AG38: 0.4804255166 | AH38: 0.9568969546 | AI38: 0.01281912495 | AJ38: 0 | AK38: 0.01285207542 | AL38: 0.029841 | AM38: 0.0708876 | AN38: 0.008866450424 | AO38: 0.00042 | AP38: 0.1638 | AQ38: 0.29952 | AR38: 0.22932 | AS38: 0.16422 | AT38: 1.075294475 | AU38: 3.3495 | AV38: 0.7569843116 | AW38: 26.36056663 | AX38: 1.812249171 | AZ38: 75.69843116 | BA38: 0.3074752849 | BB38: 0.564165192 | BC38: 0.5272113326 | BD38: 0.03624498342 | BE38: 0.008866450424
A39: QgTop | B39: =Qg_Q1*1000000000 -> 7.8 | C39: nC | D39: Gate Charge Of Top FET | G39: 30 | H39: 12 | I39: 2 | J39: 2.1 | K39: 1.05 | L39: 0.3208333333 | M39: 0.2771717323 | N39: 1.684624168 | O39: 1.892312084 | P39: 0.207687916 | Q39: 0 | R39: 1.157150184 | S39: 0.007712620122 | T39: 0.3 | U39: 0.307902599 | V39: 0.4863091085 | W39: 0.000472993098 | X39: 0.000472993098 | Y39: 0.5179427532 | Z39: 0.0002682646956 | AA39: 0.0002682646956 | AB39: 0.609206035 | AC39: 0.005195847903 | AD39: 0.095172 | AE39: 0.38304 | AF39: 0 | AG39: 0.4839107132 | AH39: 0.9838010754 | AI39: 0.01355010378 | AJ39: 0 | AK39: 0.01358692463 | AL39: 0.03087 | AM39: 0.073332 | AN39: 0.009372975843 | AO39: 0.00042 | AP39: 0.1638 | AQ39: 0.29952 | AR39: 0.22932 | AS39: 0.16422 | AT39: 1.08393647 | AU39: 3.465 | AV39: 0.7617165073 | AW39: 26.61549166 | AX39: 1.889324232 | AZ39: 76.17165073 | BA39: 0.307902599 | BB39: 0.5708296378 | BC39: 0.5323098332 | BD39: 0.03778648463 | BE39: 0.009372975843
A40: QgdTop | B40: =Qgd_Q1*1000000000 -> 3.7 | C40: nC | D40: Gate to Drain Charge | G40: 31 | H40: 12 | I40: 2 | J40: 2.17 | K40: 1.085 | L40: 0.3315277778 | M40: 0.2772440776 | N40: 1.684929603 | O40: 1.927464801 | P40: 0.2425351985 | Q40: 0 | R40: 1.189036296 | S40: 0.008143530128 | T40: 0.3 | U40: 0.3083444111 | V40: 0.4863972799 | W40: 0.0004731646278 | X40: 0.0004731646278 | Y40: 0.5322578562 | Z40: 0.0002832984254 | AA40: 0.0002832984254 | AB40: 0.6260748395 | AC40: 0.005487575865 | AD40: 0.0983444 | AE40: 0.38304 | AF40: 0 | AG40: 0.4874069123 | AH40: 1.010859837 | AI40: 0.01430572653 | AJ40: 0 | AK40: 0.01434677474 | AL40: 0.031899 | AM40: 0.0757764 | AN40: 0.009896651197 | AO40: 0.00042 | AP40: 0.1638 | AQ40: 0.29952 | AR40: 0.22932 | AS40: 0.16422 | AT40: 1.092646612 | AU40: 3.5805 | AV40: 0.7661861048 | AW40: 26.87096682 | AX40: 1.967649337 | AZ40: 76.61861048 | BA40: 0.3083444111 | BB40: 0.5775300871 | BC40: 0.5374193363 | BD40: 0.03935298674 | BE40: 0.009896651197
A41: QgsTop | B41: =Qgs_Q1*1000000000 -> 2.9 | C41: nC | G41: 32 | H41: =Vin -> 12 | I41: =MODE -> 2 | J41: 2.24 | K41: =Iout*G41/100/Number_of_Phases -> 1.12 | L41: =Vout*K41/(Vin*Efficiency) -> 0.3422222222 | M41: =(Vout+(Rdson2+Rs+Rdcr)*K41)/(Vin+(Rs+Rdson2-Rdson1)*K41) -> 0.2773164199 | N41: =(Vin-(Rdson1+Rdcr)*K41-Vout)*M41/(Fsw*Lf) -> 1.68523495 | O41: 1.962617475 | P41: 0.2773825251 | Q41: =IF(MIN(Vin, -P41/(Coss_Q1+Coss_Q2)*0.00000002)<0, 0, MIN(Vin, -P41/(Coss_Q1+Coss_Q2)*0.00000002)) -> 0 | R41: 1.221092982 | S41: =R41^2*Rdcr -> 0.008588552081 | T41: =Core_Loss_Ch1 -> 0.3 | U41: =(T41+S41*(1+Ltc*(Ta-25)))/(1-S41*Ltc*ThetaCa) -> 0.3088007242 | V41: 0.486485426 | W41: 0.0004733361393 | X41: 0.0004733361393 | Y41: 0.546651597 | Z41: 0.0002988279685 | AA41: 0.0002988279685 | AB41: 0.6430378363 | AC41: =Rdson1*AB41^2 -> 0.005788967226 | AD41: =(Vin*K41/2)*Fsw*(Tr_buck+Tf_buck) -> 0.1015168 | AE41: =(0.5*Coss_Q1*(Vin-Q41)^2-0.5*Coss_Q2*(Vin-Q41)^2+(Qoss_Q2*(Vin-Q41)/Vin)*Vin)*Fsw -> 0.38304 | AF41: =IF(K41>N41/2,0,ABS(K41-N41/2)*Vsd_Q1*Deadtime*Fsw) -> 0 | AG41: =(AF41+AE41+AD41+AC41*(1+RdsonTopTc*Ta-RdsonTopTc*25))/(1-AC41*RdsonTopTc*ThetaJA_Q1) -> 0.4909141444 | AH41: =SQRT((1-M41))*SQRT(K41^2+(N41^2)/12) -> 1.03806089 | AI41: =Rdson2*AH41^2 -> 0.01508598575 | AJ41: =IF(K41<N41/2,Deadtime*Fsw*IF(VfdSky_Q2>0,0,Vsd_Q2)*(K41+N41/2),2*Deadtime*Fsw*IF(VfdSky_Q2>0,0,Vsd_Q2)*K41) -> 0 | AK41: =(AJ41+AI41*(1+RdsonBotTc*Ta-RdsonBotTc*25))/(1-AI41*RdsonBotTc*ThetaJA_Q2) -> 0.01513164089 | AL41: =2*Deadtime*Fsw*IF(VfdSky_Q2>0,VfdSky_Q2,Vsd_Q2)*K41 -> 0.032928 | AM41: =IF(QrrSky_Q2>0,QrrSky_Q2,Qrr_Q2*K41/(Iout/Number_of_Phases))*Fsw*Vin -> 0.0782208 | AN41: =CHOOSE(SENSING_TYPE, Rs*R41^2, 0) -> 0.01043747649 | AO41: =Iq*Vin -> 0.00042 | AP41: =IF(Ext_VCC=1, (Qg_Q1+Qg_Q2)*Fsw*VCC, (Qg_Q1+Qg_Q2)*Fsw*Vin) -> 0.1638 | AQ41: 0.29952 | AR41: =(Qg_Q1+Qg_Q2)*Fsw*(Vin-VCC) -> 0.22932 | AS41: =SUM(AO41:AP41) -> 0.16422 | AT41: =SUM(U41,X41,AA41,AG41,AK41,AL41,AM41,AS41,AN41) -> 1.10142495 | AU41: =Vout*K41 -> 3.696 | AV41: 0.7704133027 | AW41: =ThetaJA_Q1*BC41 -> 27.12699362 | AX41: =ThetaJA_Q2*BD41 -> 2.047225245 | AZ41: 77.04133027 | BA41: =U41 -> 0.3088007242 | BB41: =AG41+AK41+AM41 -> 0.5842665853 | BC41: =AG41+AM41*0.66 -> 0.5425398724 | BD41: =AK41+AM41*0.33 -> 0.04094450489 | BE41: =AN41 -> 0.01043747649
A42: RGateTop | B42: =Rgate1 -> 1 | C42: W | D42: Gate Resistance | G42: 33 | H42: 12 | I42: 2 | J42: =Iout*G42/100 -> 2.31 | K42: 1.155 | L42: 0.3529166667 | M42: 0.2773887593 | N42: 1.685540209 | O42: 1.997770104 | P42: 0.3122298957 | Q42: 0 | R42: 1.253307152 | S42: 0.009047685982 | T42: 0.3 | U42: 0.3092715413 | V42: 0.4865735466 | W42: 0.0004735076325 | X42: 0.0004735076325 | Y42: 0.5611181328 | Z42: 0.000314853559 | AA42: 0.000314853559 | AB42: 0.6600881661 | AC42: 0.006100029418 | AD42: 0.1046892 | AE42: 0.38304 | AF42: 0 | AG42: 0.4944324399 | AH42: 1.065393087 | AI42: 0.01589087401 | AJ42: 0 | AK42: 0.01594153901 | AL42: 0.033957 | AM42: 0.0806652 | AN42: 0.01099545171 | AO42: 0.00042 | AP42: 0.1638 | AQ42: 0.29952 | AR42: 0.22932 | AS42: 0.16422 | AT42: 1.110271533 | AU42: 3.8115 | AV42: 0.7744162797 | AW42: 27.3835736 | AX42: 2.12805275 | AZ42: 77.44162797 | BA42: 0.3092715413 | BB42: 0.5910391789 | BC42: 0.5476714719 | BD42: 0.04256105501 | BE42: 0.01099545171
A43: GfsTop | B43: =Gfs_Q1 -> 40 | C43: S | D43: Transconductance of Top FET | G43: 34 | H43: 12 | I43: 2 | J43: 2.38 | K43: 1.19 | L43: 0.3636111111 | M43: 0.2774610958 | N43: 1.685845379 | O43: 2.03292269 | P43: 0.3470773103 | Q43: 0 | R43: 1.285666968 | S43: 0.009520931829 | T43: 0.3 | U43: 0.3097568657 | V43: 0.4866616418 | W43: 0.0004736791072 | X43: 0.0004736791072 | Y43: 0.5756521787 | Z43: 0.0003313754308 | AA43: 0.0003313754308 | AB43: 0.6772196245 | AC43: 0.006420769877 | AD43: 0.1078616 | AE43: 0.38304 | AF43: 0 | AG43: 0.4979618295 | AH43: 1.092846345 | AI43: 0.01672038387 | AJ43: 0 | AK43: 0.01677648573 | AL43: 0.034986 | AM43: 0.0831096 | AN43: 0.01157057688 | AO43: 0.00042 | AP43: 0.1638 | AQ43: 0.29952 | AR43: 0.22932 | AS43: 0.16422 | AT43: 1.119186412 | AU43: 3.927 | AV43: 0.7782114411 | AW43: 27.64070828 | AX43: 2.210132687 | AZ43: 77.82114411 | BA43: 0.3097568657 | BB43: 0.5978479153 | BC43: 0.5528141655 | BD43: 0.04420265373 | BE43: 0.01157057688
A44: VthTop | B44: =Vth_Q1 -> 2.1 | C44: V | D44: Threshold Voltage of Top FET | G44: 35 | H44: 12 | I44: 2 | J44: 2.45 | K44: 1.225 | L44: 0.3743055556 | M44: 0.2775334292 | N44: 1.686150462 | O44: 2.068075231 | P44: 0.3819247688 | Q44: 0 | R44: 1.318161705 | S44: 0.01000828962 | T44: 0.3 | U44: 0.3102567007 | V44: 0.4867497117 | W44: 0.0004738505636 | X44: 0.0004738505636 | Y44: 0.5902489455 | Z44: 0.0003483938177 | AA44: 0.0003483938177 | AB44: 0.6944265895 | AC44: 0.006751196034 | AD44: 0.111034 | AE44: 0.38304 | AF44: 0 | AG44: 0.5015023442 | AH44: 1.120411529 | AI44: 0.01757450791 | AJ44: 0 | AK44: 0.01763649847 | AL44: 0.036015 | AM44: 0.085554 | AN44: 0.01216285197 | AO44: 0.00042 | AP44: 0.1638 | AQ44: 0.29952 | AR44: 0.22932 | AS44: 0.16422 | AT44: 1.12816964 | AU44: 4.0425 | AV44: 0.7818136299 | AW44: 27.89839921 | AX44: 2.293465923 | AZ44: 78.18136299 | BA44: 0.3102567007 | BB44: 0.6046928426 | BC44: 0.5579679842 | BD44: 0.04586931847 | BE44: 0.01216285197
A45: VspTop | B45: =Vsp_Q1 -> 2.1875 | C45: V | G45: 36 | H45: 12 | I45: 2 | J45: 2.52 | K45: 1.26 | L45: 0.385 | M45: 0.2776057598 | N45: 1.686455457 | O45: 2.103227729 | P45: 0.4167722714 | Q45: 0 | R45: 1.350781626 | S45: 0.01050975936 | T45: 0.3 | U45: 0.3107710497 | V45: 0.4868377561 | W45: 0.0004740220015 | X45: 0.0004740220015 | Y45: 0.604904086 | Z45: 0.0003659089533 | AA45: 0.0003659089533 | AB45: 0.7117039575 | AC45: 0.007091315324 | AD45: 0.1142064 | AE45: 0.38304 | AF45: 0 | AG45: 0.5050540148 | AH45: 1.148080345 | AI45: 0.01845323869 | AJ45: 0 | AK45: 0.01852159537 | AL45: 0.037044 | AM45: 0.0879984 | AN45: 0.01277227701 | AO45: 0.00042 | AP45: 0.1638 | AQ45: 0.29952 | AR45: 0.22932 | AS45: 0.16422 | AT45: 1.137221268 | AU45: 4.158 | AV45: 0.7852363083 | AW45: 28.15664794 | AX45: 2.378053369 | AZ45: 78.52363083 | BA45: 0.3107710497 | BB45: 0.6115740101 | BC45: 0.5631329588 | BD45: 0.04756106737 | BE45: 0.01277227701
A46: VsdTop | B46: =Vsd_Q1 -> 0.82 | C46: V | G46: 37 | H46: 12 | I46: 2 | J46: 2.59 | K46: 1.295 | L46: 0.3956944444 | M46: 0.2776780873 | N46: 1.686760364 | O46: 2.138380182 | P46: 0.451619818 | Q46: 0 | R46: 1.383517875 | S46: 0.01102534105 | T46: 0.3 | U46: 0.3112999161 | V46: 0.4869257751 | W46: 0.0004741934209 | X46: 0.0004741934209 | Y46: 0.6196136465 | Z46: 0.000383921071 | AA46: 0.000383921071 | AB46: 0.7290470873 | AC46: 0.007441135177 | AD46: 0.1173788 | AE46: 0.38304 | AF46: 0 | AG46: 0.5086168726 | AH46: 1.175845251 | AI46: 0.01935656877 | AJ46: 0 | AK46: 0.01943179535 | AL46: 0.038073 | AM46: 0.0904428 | AN46: 0.01339885197 | AO46: 0.00042 | AP46: 0.1638 | AQ46: 0.29952 | AR46: 0.22932 | AS46: 0.16422 | AT46: 1.14634135 | AU46: 4.2735 | AV46: 0.7884917147 | AW46: 28.41545603 | AX46: 2.463895967 | AZ46: 78.84917147 | BA46: 0.3112999161 | BB46: 0.6184914679 | BC46: 0.5683091206 | BD46: 0.04927791935 | BE46: 0.01339885197
A47: θJATop | B47: =ThetaJA_Q1 -> 50 | C47: °C/W | D47: Junction to Ambient Resistance | G47: 38 | H47: 12 | I47: 2 | J47: 2.66 | K47: 1.33 | L47: 0.4063888889 | M47: 0.277750412 | N47: 1.687065183 | O47: 2.173532591 | P47: 0.4864674086 | Q47: 0 | R47: 1.416362387 | S47: 0.01155503469 | T47: 0.3 | U47: 0.3118433035 | V47: 0.4870137687 | W47: 0.0004743648219 | X47: 0.0004743648219 | Y47: 0.6343740253 | Z47: 0.000402430404 | AA47: 0.000402430404 | AB47: 0.7464517507 | AC47: 0.007800663025 | AD47: 0.1205512 | AE47: 0.38304 | AF47: 0 | AG47: 0.5121909488 | AH47: 1.203699379 | AI47: 0.02028449073 | AJ47: 0 | AK47: 0.02036711805 | AL47: 0.039102 | AM47: 0.0928872 | AN47: 0.01404257688 | AO47: 0.00042 | AP47: 0.1638 | AQ47: 0.29952 | AR47: 0.22932 | AS47: 0.16422 | AT47: 1.155529942 | AU47: 4.389 | AV47: 0.7915909997 | AW47: 28.67482504 | AX47: 2.550994703 | AZ47: 79.15909997 | BA47: 0.3118433035 | BB47: 0.6254452669 | BC47: 0.5734965008 | BD47: 0.05101989405 | BE47: 0.01404257688
A48: Low-side FET | B48: Input Value | C48: Units | D48: Description | G48: 39 | H48: 12 | I48: 2 | J48: 2.73 | K48: 1.365 | L48: 0.4170833333 | M48: 0.2778227336 | N48: 1.687369914 | O48: 2.208684957 | P48: 0.5213150431 | Q48: 0 | R48: 1.449307801 | S48: 0.01209884027 | T48: 0.3 | U48: 0.3124012157 | V48: 0.487101737 | W48: 0.0004745362043 | X48: 0.0004745362043 | Y48: 0.6491819356 | Z48: 0.0004214371855 | AA48: 0.0004214371855 | AB48: 0.7639140892 | AC48: 0.008169906299 | AD48: 0.1237236 | AE48: 0.38304 | AF48: 0 | AG48: 0.5157762751 | AH48: 1.231636459 | AI48: 0.02123699713 | AJ48: 0 | AK48: 0.0213275839 | AL48: 0.040131 | AM48: 0.0953316 | AN48: 0.01470345172 | AO48: 0.00042 | AP48: 0.1638 | AQ48: 0.29952 | AR48: 0.22932 | AS48: 0.16422 | AT48: 1.1647871 | AU48: 4.5045 | AV48: 0.7945443441 | AW48: 28.93475655 | AX48: 2.639350595 | AZ48: 79.45443441 | BA48: 0.3124012157 | BB48: 0.632435459 | BC48: 0.5786951311 | BD48: 0.0527870119 | BE48: 0.01470345172
A49: RdsonBot | B49: =Rdson2*1000 -> 14 | C49: mW | D49: Drain-Source Resistance of Low-side FET | G49: 40 | H49: 12 | I49: 2 | J49: 2.8 | K49: 1.4 | L49: 0.4277777778 | M49: 0.2778950524 | N49: 1.687674557 | O49: 2.243837278 | P49: 0.5561627217 | Q49: 0 | R49: 1.48234739 | S49: 0.0126567578 | T49: 0.3 | U49: 0.3129736563 | V49: 0.4871896798 | W49: 0.0004747075682 | X49: 0.0004747075682 | Y49: 0.6640343729 | Z49: 0.0004409416484 | AA49: 0.0004409416484 | AB49: 0.7814305759 | AC49: 0.008548872429 | AD49: 0.126896 | AE49: 0.38304 | AF49: 0 | AG49: 0.5193728829 | AH49: 1.259650761 | AI49: 0.02221408055 | AJ49: 0 | AK49: 0.02231321406 | AL49: 0.04116 | AM49: 0.097776 | AN49: 0.01538147649 | AO49: 0.00042 | AP49: 0.1638 | AQ49: 0.29952 | AR49: 0.22932 | AS49: 0.16422 | AT49: 1.174112879 | AU49: 4.62 | AV49: 0.7973610622 | AW49: 29.19525215 | AX49: 2.728964703 | AZ49: 79.73610622 | BA49: 0.3129736563 | BB49: 0.639462097 | BC49: 0.5839050429 | BD49: 0.05457929406 | BE49: 0.01538147649
A50: RdsonBotTc | B50: =RdsonBotTc*1000000 -> 4000 | C50: ppm | D50: Drain To Source Resitance Temp Co | G50: 41 | H50: 12 | I50: 2 | J50: 2.87 | K50: 1.435 | L50: 0.4384722222 | M50: 0.2779673681 | N50: 1.687979112 | O50: 2.278989556 | P50: 0.5910104442 | Q50: 0 | R50: 1.515474994 | S50: 0.01322878727 | T50: 0.3 | U50: 0.3135606294 | V50: 0.4872775972 | W50: 0.0004748789135 | X50: 0.0004748789135 | Y50: 0.6789285863 | Z50: 0.0004609440253 | AA50: 0.0004609440253 | AB50: 0.7989979816 | AC50: 0.008937568844 | AD50: 0.1300684 | AE50: 0.38304 | AF50: 0 | AG50: 0.5229808042 | AH50: 1.287737039 | AI50: 0.02321573355 | AJ50: 0 | AK50: 0.02332403045 | AL50: 0.042189 | AM50: 0.1002204 | AN50: 0.0160766512 | AO50: 0.00042 | AP50: 0.1638 | AQ50: 0.29952 | AR50: 0.22932 | AS50: 0.16422 | AT50: 1.183507338 | AU50: 4.7355 | AV50: 0.8000496924 | AW50: 29.45631341 | AX50: 2.819838122 | AZ50: 80.00496924 | BA50: 0.3135606294 | BB50: 0.6465252347 | BC50: 0.5891262682 | BD50: 0.05639676245 | BE50: 0.0160766512
A51: QgBot | B51: =Qg_Q2*1000000000 -> 7.8 | C51: nC | D51: Gate Charge Of Top FET | G51: 42 | H51: 12 | I51: 2 | J51: 2.94 | K51: 1.47 | L51: 0.4491666667 | M51: 0.278039681 | N51: 1.688283579 | O51: 2.314141789 | P51: 0.6258582107 | Q51: 0 | R51: 1.548684965 | S51: 0.01381492869 | T51: 0.3 | U51: 0.3141621389 | V51: 0.4873654893 | W51: 0.0004750502403 | X51: 0.0004750502403 | Y51: 0.6938620532 | Z51: 0.0004814445489 | AA51: 0.0004814445489 | AB51: 0.816613345 | AC51: 0.009336002973 | AD51: 0.1332408 | AE51: 0.38304 | AF51: 0 | AG51: 0.5266000709 | AH51: 1.315890484 | AI51: 0.02424194871 | AJ51: 0 | AK51: 0.02436005575 | AL51: 0.043218 | AM51: 0.1026648 | AN51: 0.01678897584 | AO51: 0.00042 | AP51: 0.1638 | AQ51: 0.29952 | AR51: 0.22932 | AS51: 0.16422 | AT51: 1.192970536 | AU51: 4.851 | AV51: 0.8026180755 | AW51: 29.71794195 | AX51: 2.911971988 | AZ51: 80.26180755 | BA51: 0.3141621389 | BB51: 0.6536249267 | BC51: 0.5943588389 | BD51: 0.05823943975 | BE51: 0.01678897584
A52: RGateBot | B52: =Rgate2 -> 1 | C52: W | D52: Gate Resistance | G52: 43 | H52: 12 | I52: 2 | J52: 3.01 | K52: 1.505 | L52: 0.4598611111 | M52: 0.2781119908 | N52: 1.688587958 | O52: 2.349293979 | P52: 0.6607060212 | Q52: 0 | R52: 1.581972116 | S52: 0.01441518206 | T52: 0.3 | U52: 0.3147781889 | V52: 0.4874533559 | W52: 0.0004752215484 | X52: 0.0004752215484 | Y52: 0.7088324566 | Z52: 0.0005024434516 | AA52: 0.0005024434516 | AB52: 0.8342739463 | AC52: 0.009744182246 | AD52: 0.1364132 | AE52: 0.38304 | AF52: 0 | AG52: 0.5302307152 | AH52: 1.344106676 | AI52: 0.02529271859 | AJ52: 0 | AK52: 0.02542131342 | AL52: 0.044247 | AM52: 0.1051092 | AN52: 0.01751845042 | AO52: 0.00042 | AP52: 0.1638 | AQ52: 0.29952 | AR52: 0.22932 | AS52: 0.16422 | AT52: 1.202502533 | AU52: 4.9665 | AV52: 0.8050734253 | AW52: 29.98013936 | AX52: 3.005367471 | AZ52: 80.50734253 | BA52: 0.3147781889 | BB52: 0.6607612286 | BC52: 0.5996027872 | BD52: 0.06010734942 | BE52: 0.01751845042
A53: VsdBot | B53: =Vsd_Q2 -> 0.82 | C53: V | D53: Diode Forward Voltage of Bottom FET Body Diode | G53: 44 | H53: 12 | I53: 2 | J53: 3.08 | K53: 1.54 | L53: 0.4705555556 | M53: 0.2781842978 | N53: 1.688892249 | O53: 2.384446124 | P53: 0.6955538756 | Q53: 0 | R53: 1.615331675 | S53: 0.01502954737 | T53: 0.3 | U53: 0.3154087835 | V53: 0.4875411972 | W53: 0.000475392838 | X53: 0.000475392838 | Y53: 0.7238376651 | Z53: 0.0005239409655 | AA53: 0.0005239409655 | AB53: 0.8519772837 | AC53: 0.01016211409 | AD53: 0.1395856 | AE53: 0.38304 | AF53: 0 | AG53: 0.5338727693 | AH53: 1.372381553 | AI53: 0.02636803578 | AJ53: 0 | AK53: 0.02650782765 | AL53: 0.045276 | AM53: 0.1075536 | AN53: 0.01826507493 | AO53: 0.00042 | AP53: 0.1638 | AQ53: 0.29952 | AR53: 0.22932 | AS53: 0.16422 | AT53: 1.212103389 | AU53: 5.082 | AV53: 0.8074223898 | AW53: 30.24290726 | AX53: 3.100025782 | AZ53: 80.74223898 | BA53: 0.3154087835 | BB53: 0.6679341969 | BC53: 0.6048581453 | BD53: 0.06200051565 | BE53: 0.01826507493
A54: QrrBot | B54: =Qrr_Q2*1000000000 -> 9.7 | C54: nC | D54: Reverse Recovery Charge of Body Diode | G54: 45 | H54: 12 | I54: 2 | J54: 3.15 | K54: 1.575 | L54: 0.48125 | M54: 0.2782566017 | N54: 1.689196452 | O54: 2.419598226 | P54: 0.7304017741 | Q54: 0 | R54: 1.648759247 | S54: 0.01565802463 | T54: 0.3 | U54: 0.316053927 | V54: 0.4876290131 | W54: 0.0004755641088 | X54: 0.0004755641088 | Y54: 0.7388757153 | Z54: 0.0005459373227 | AA54: 0.0005459373227 | AB54: 0.8697210525 | AC54: 0.01058980593 | AD54: 0.142758 | AE54: 0.38304 | AF54: 0 | AG54: 0.5375262657 | AH54: 1.400711371 | AI54: 0.02746789283 | AJ54: 0 | AK54: 0.02761962341 | AL54: 0.046305 | AM54: 0.109998 | AN54: 0.01902884938 | AO54: 0.00042 | AP54: 0.1638 | AQ54: 0.29952 | AR54: 0.22932 | AS54: 0.16422 | AT54: 1.221773167 | AU54: 5.1975 | AV54: 0.8096711053 | AW54: 30.50624728 | AX54: 3.19594817 | AZ54: 80.96711053 | BA54: 0.316053927 | BB54: 0.6751438891 | BC54: 0.6101249457 | BD54: 0.06391896341 | BE54: 0.01902884938
A55: TrrBot | B55: =Trr_Q2*1000000000 -> 40 | C55: ns | D55: Reverse Recovery Time of Body Diode | G55: 46 | H55: 12 | I55: 2 | J55: 3.22 | K55: 1.61 | L55: 0.4919444444 | M55: 0.2783289028 | N55: 1.689500567 | O55: 2.454750284 | P55: 0.7652497165 | Q55: 0 | R55: 1.682250778 | S55: 0.01630061384 | T55: 0.3 | U55: 0.316713624 | V55: 0.4877168036 | W55: 0.000475735361 | X55: 0.000475735361 | Y55: 0.7539447957 | Z55: 0.000568432755 | AA55: 0.000568432755 | AB55: 0.8875031264 | AC55: 0.01102726519 | AD55: 0.1459304 | AE55: 0.38304 | AF55: 0 | AG55: 0.541191237 | AH55: 1.429092678 | AI55: 0.02859228234 | AJ55: 0 | AK55: 0.02875672642 | AL55: 0.047334 | AM55: 0.1124424 | AN55: 0.01980977376 | AO55: 0.00042 | AP55: 0.1638 | AQ55: 0.29952 | AR55: 0.22932 | AS55: 0.16422 | AT55: 1.231511929 | AU55: 5.313 | AV55: 0.8118252449 | AW55: 30.77016105 | AX55: 3.293135921 | AZ55: 81.18252449 | BA55: 0.316713624 | BB55: 0.6823903635 | BC55: 0.615403221 | BD55: 0.06586271842 | BE55: 0.01980977376
A56: θJABot | B56: =ThetaJA_Q2 -> 50 | C56: °C/W | D56: Junction to Ambient Resistance | G56: 47 | H56: 12 | I56: 2 | J56: 3.29 | K56: 1.645 | L56: 0.5026388889 | M56: 0.2784012008 | N56: 1.689804594 | O56: 2.489902297 | P56: 0.8000977028 | Q56: 0 | R56: 1.715802523 | S56: 0.01695731499 | T56: 0.3 | U56: 0.3173878787 | V56: 0.4878045687 | W56: 0.0004759065945 | X56: 0.0004759065945 | Y56: 0.769043233 | Z56: 0.0005914274942 | AA56: 0.0005914274942 | AB56: 0.9053215413 | AC56: 0.01147449931 | AD56: 0.1491028 | AE56: 0.38304 | AF56: 0 | AG56: 0.5448677162 | AH56: 1.457522283 | AI56: 0.02974119686 | AJ56: 0 | AK56: 0.0299191632 | AL56: 0.048363 | AM56: 0.1148868 | AN56: 0.02060784808 | AO56: 0.00042 | AP56: 0.1638 | AQ56: 0.29952 | AR56: 0.22932 | AS56: 0.16422 | AT56: 1.24131974 | AU56: 5.4285 | AV56: 0.8138900617 | AW56: 31.03465021 | AX56: 3.39159036 | AZ56: 81.38900617 | BA56: 0.3173878787 | BB56: 0.6896736794 | BC56: 0.6206930042 | BD56: 0.0678318072 | BE56: 0.02060784808
A57: Bottom Schottky | B57: Input Value | C57: Units | D57: Std Units | G57: 48 | H57: 12 | I57: 2 | J57: 3.36 | K57: 1.68 | L57: 0.5133333333 | M57: 0.278473496 | N57: 1.690108534 | O57: 2.525054267 | P57: 0.8349457332 | Q57: 0 | R57: 1.749411016 | S57: 0.01762812809 | T57: 0.3 | U57: 0.3180766958 | V57: 0.4878923084 | W57: 0.0004760778092 | X57: 0.0004760778092 | Y57: 0.7841694791 | Z57: 0.0006149217719 | AA57: 0.0006149217719 | AB57: 0.9231744802 | AC57: 0.01193151569 | AD57: 0.1522752 | AE57: 0.38304 | AF57: 0 | AG57: 0.548555736 | AH57: 1.485997235 | AI57: 0.03091462897 | AJ57: 0 | AK57: 0.031106961 | AL57: 0.049392 | AM57: 0.1173312 | AN57: 0.02142307233 | AO57: 0.00042 | AP57: 0.1638 | AQ57: 0.29952 | AR57: 0.22932 | AS57: 0.16422 | AT57: 1.251196665 | AU57: 5.544 | AV57: 0.8158704264 | AW57: 31.2997164 | AX57: 3.49131285 | AZ57: 81.58704264 | BA57: 0.3180766958 | BB57: 0.696993897 | BC57: 0.625994328 | BD57: 0.069826257 | BE57: 0.02142307233
A58: VfdSky | B58: =VfdSky_Q2 -> 0.5 | C58: V | D58: Diode Forward Voltage | G58: 49 | H58: 12 | I58: 2 | J58: 3.43 | K58: 1.715 | L58: 0.5240277778 | M58: 0.2785457882 | N58: 1.690412385 | O58: 2.560206193 | P58: 0.8697938075 | Q58: 0 | R58: 1.78307305 | S58: 0.01831305314 | T58: 0.3 | U58: 0.3187800801 | V58: 0.4879800228 | W58: 0.0004762490052 | X58: 0.0004762490052 | Y58: 0.7993220998 | Z58: 0.0006389158193 | AA58: 0.0006389158193 | AB58: 0.94106026 | AC58: 0.01239832178 | AD58: 0.1554476 | AE58: 0.38304 | AF58: 0 | AG58: 0.5522553296 | AH58: 1.514514803 | AI58: 0.03211257125 | AJ58: 0 | AK58: 0.03232014786 | AL58: 0.050421 | AM58: 0.1197756 | AN58: 0.02225544652 | AO58: 0.00042 | AP58: 0.1638 | AQ58: 0.29952 | AR58: 0.22932 | AS58: 0.16422 | AT58: 1.261142769 | AU58: 5.6595 | AV58: 0.8177708616 | AW58: 31.56536128 | AX58: 3.592304793 | AZ58: 81.77708616 | BA58: 0.3187800801 | BB58: 0.7043510775 | BC58: 0.6313072256 | BD58: 0.07184609586 | BE58: 0.02225544652
A59: QrrSky | B59: =QrrSky_Q2*1000000000 -> 0 | C59: nC | D59: Diode Reverse Recovery Charge | G59: 50 | H59: 12 | I59: 2 | J59: 3.5 | K59: 1.75 | L59: 0.5347222222 | M59: 0.2786180774 | N59: 1.690716149 | O59: 2.595358074 | P59: 0.9046419257 | Q59: 0 | R59: 1.816785648 | S59: 0.01901209013 | T59: 0.3 | U59: 0.3194980362 | V59: 0.4880677117 | W59: 0.0004764201825 | X59: 0.0004764201825 | Y59: 0.8144997652 | Z59: 0.0006634098676 | AA59: 0.0006634098676 | AB59: 0.9589773197 | AC59: 0.01287492499 | AD59: 0.15862 | AE59: 0.38304 | AF59: 0 | AG59: 0.5559665305 | AH59: 1.543072452 | AI59: 0.03333501628 | AJ59: 0 | AK59: 0.0335587526 | AL59: 0.05145 | AM59: 0.12222 | AN59: 0.02310497064 | AO59: 0.00042 | AP59: 0.1638 | AQ59: 0.29952 | AR59: 0.22932 | AS59: 0.16422 | AT59: 1.27115812 | AU59: 5.775 | AV59: 0.8195955728 | AW59: 31.83158652 | AX59: 3.69456763 | AZ59: 81.95955728 | BA59: 0.3194980362 | BB59: 0.7117452831 | BC59: 0.6366317305 | BD59: 0.0738913526 | BE59: 0.02310497064
A60: Ireverse | B60: =Ireverse -> 0 | C60: mA | D60: Reverse Leakage Current | G60: 51 | H60: 12 | I60: 2 | J60: 3.57 | K60: 1.785 | L60: 0.5454166667 | M60: 0.2786903637 | N60: 1.691019824 | O60: 2.630509912 | P60: 0.939490088 | Q60: 0 | R60: 1.850546047 | S60: 0.01972523906 | T60: 0.3 | U60: 0.320230569 | V60: 0.4881553753 | W60: 0.0004765913409 | X60: 0.0004765913409 | Y60: 0.8297012401 | Z60: 0.0006884041478 | AA60: 0.0006884041478 | AB60: 0.9769242094 | AC60: 0.01336133275 | AD60: 0.1617924 | AE60: 0.38304 | AF60: 0 | AG60: 0.5596893719 | AH60: 1.571667827 | AI60: 0.03458195663 | AJ60: 0 | AK60: 0.03482280478 | AL60: 0.052479 | AM60: 0.1246644 | AN60: 0.02397164469 | AO60: 0.00042 | AP60: 0.1638 | AQ60: 0.29952 | AR60: 0.22932 | AS60: 0.16422 | AT60: 1.281242786 | AU60: 5.8905 | AV60: 0.821348475 | AW60: 32.0983938 | AX60: 3.798102839 | AZ60: 82.1348475 | BA60: 0.320230569 | BB60: 0.7191765767 | BC60: 0.6419678759 | BD60: 0.07596205678 | BE60: 0.02397164469
A61: Controller | B61: Input Value | C61: Units | D61: Std Units | G61: 52 | H61: 12 | I61: 2 | J61: 3.64 | K61: 1.82 | L61: 0.5561111111 | M61: 0.278762647 | N61: 1.691323412 | O61: 2.665661706 | P61: 0.9743382941 | Q61: 0 | R61: 1.884351676 | S61: 0.02045249994 | T61: 0.3 | U61: 0.3209776836 | V61: 0.4882430135 | W61: 0.0004767624805 | X61: 0.0004767624805 | Y61: 0.8449253759 | Z61: 0.0007138988909 | AA61: 0.0007138988909 | AB61: 0.9948995816 | AC61: 0.01385755248 | AD61: 0.1649648 | AE61: 0.38304 | AF61: 0 | AG61: 0.5634238877 | AH61: 1.600298742 | AI61: 0.03585338488 | AJ61: 0 | AK61: 0.03611233477 | AL61: 0.053508 | AM61: 0.1271088 | AN61: 0.02485546868 | AO61: 0.00042 | AP61: 0.1638 | AQ61: 0.29952 | AR61: 0.22932 | AS61: 0.16422 | AT61: 1.291396836 | AU61: 6.006 | AV61: 0.8230332179 | AW61: 32.36578479 | AX61: 3.902911938 | AZ61: 82.30332179 | BA61: 0.3209776836 | BB61: 0.7266450225 | BC61: 0.6473156957 | BD61: 0.07805823877 | BE61: 0.02485546868
A62: θJA | B62: 30 | C62: °C/W | D62: Junction to Ambient Resistance | G62: 53 | H62: 12 | I62: 2 | J62: 3.71 | K62: 1.855 | L62: 0.5668055556 | M62: 0.2788349274 | N62: 1.691626912 | O62: 2.700813456 | P62: 1.009186544 | Q62: 0 | R62: 1.918200146 | S62: 0.02119387277 | T62: 0.3 | U62: 0.3217393851 | V62: 0.4883306264 | W62: 0.0004769336013 | X62: 0.0004769336013 | Y62: 0.8601711036 | Z62: 0.0007398943274 | AA62: 0.0007398943274 | AB62: 1.012902181 | AC62: 0.01436359161 | AD62: 0.1681372 | AE62: 0.38304 | AF62: 0 | AG62: 0.5671701116 | AH62: 1.628963158 | AI62: 0.0371492936 | AJ62: 0 | AK62: 0.0374273737 | AL62: 0.054537 | AM62: 0.1295532 | AN62: 0.0257564426 | AO62: 0.00042 | AP62: 0.1638 | AQ62: 0.29952 | AR62: 0.22932 | AS62: 0.16422 | AT62: 1.301620341 | AU62: 6.1215 | AV62: 0.8246532077 | AW62: 32.63376118 | AX62: 4.008996485 | AZ62: 82.46532077 | BA62: 0.3217393851 | BB62: 0.7341506853 | BC62: 0.6526752236 | BD62: 0.0801799297 | BE62: 0.0257564426
A63: Theta Ja | B63: 2 | C63: °C/W | D63: Junction to Ambient Resistance | G63: 54 | H63: 12 | I63: 2 | J63: 3.78 | K63: 1.89 | L63: 0.5775 | M63: 0.2789072048 | N63: 1.691930323 | O63: 2.735965162 | P63: 1.044034838 | Q63: 0 | R63: 1.952089227 | S63: 0.02194935755 | T63: 0.3 | U63: 0.3225156785 | V63: 0.4884182138 | W63: 0.0004771047032 | X63: 0.0004771047032 | Y63: 0.8754374266 | Z63: 0.0007663906879 | AA63: 0.0007663906879 | AB63: 1.03093084 | AC63: 0.01487945754 | AD63: 0.1713096 | AE63: 0.38304 | AF63: 0 | AG63: 0.5709280776 | AH63: 1.65765918 | AI63: 0.03846967538 | AJ63: 0 | AK63: 0.0387679535 | AL63: 0.055566 | AM63: 0.1319976 | AN63: 0.02667456646 | AO63: 0.00042 | AP63: 0.1638 | AQ63: 0.29952 | AR63: 0.22932 | AS63: 0.16422 | AT63: 1.311913371 | AU63: 6.237 | AV63: 0.8262116272 | AW63: 32.90232468 | AX63: 4.116358075 | AZ63: 82.62116272 | BA63: 0.3225156785 | BB63: 0.7416936311 | BC63: 0.6580464936 | BD63: 0.0823271615 | BE63: 0.02667456646
